Workbook

Sheet COVER
C2: Cover
C4: NAVIGATION
C6: COMMENTS
C9: Bonneville Power Authority
C10: 6P Energy Conservation Standards Savings Model
C11: CENTRAL RESIDENTIAL STOCK MODEL
C13: Model Description
C14: The Central Residential Stock Model houses the stock turnover models and 6P shipments for each residential product modeled. These individual product models link back to the Central Residential Stock Model to pull these values.
C16: Prepared By:
C17: Navigant Consulting | D17: Cadeo Group
C18: One Market Street | Spear Street Tower, Suite 1200 | D18: 840 First Street, Suite 300
C19: San Francisco, CA 94105 | D19: Washington, DC 20002

Sheet Comments
C2: Comments
C4: NAVIGATION
C7: Tab | D7: Comment
C8: Example | D8: Please use this space to document your comments as you review the model. We look forward to receiving your feedback. Thank you.

Sheet Navigation
C2: NAVIGATION
C4: COMMENTS
C7: INFORMATION TABS | E7: INPUT TABS | G7: PRODUCT STOCK MODELS | I7: SUMMARY SHIPMENT RESULTS | K7: SUMMARY STOCK RESULTS
C9: COVER | E9: CONSTANTS and MENUS | G9: ELECTRIC WATER HEATER STOCK | I9: SHIPMENTS - SINGLE FAMILY | K9: STOCK - SINGLE FAMILY
C11: COMMENTS | E11: 6P SHIPMENTS | G11: DISHWASHER STOCK | I11: SHIPMENTS - SINGLE FAMILY CHART | K11: STOCK - SINGLE FAMILY CHART
C13: NAVIGATION | E13: HOUSING STOCK | G13: REFFRIGERATOR STOCK | I13: SHIPMENTS - MULTI-FAMILY | K13: STOCK - MULTI-FAMILY
E15: LIFETIMES | G15: FREEZEER STOCK | I15: SHIPMENTS - MULTI-FAMILY CHART | K15: STOCK - MULTI-FAMILY CHART
E17: LIFETIMES CHART | G17: CLOTHES WASHER STOCK | I17: SHIPMENTS - MANUFACTURED HOMES | K17: STOCK - MANUFACTURED HOMES
E19: 1992 SATURATION DATA - AVERAGE | G19: HEAT PUMP STOCK | I19: SHIPMENTS - MANUFACTURED HOMES CHART | K19: STOCK - MANUFACTURED HOMES CHART
E21: 2011 SATURATION DATA - SF | G21: ROOM AC STOCK | I21: SHIPMENTS - TOTAL HOMES | K21: STOCK - TOTAL HOMES
E23: 2011 SATURATION DATA - MF | G23: CENTRAL AC STOCK | I23: SHIPMENTS - TOTAL HOMES CHART | K23: STOCK - TOTAL HOMES CHART
E25: 2011 SATURATION DATA - MH | G25: ELECTRIC OVEN STOCK
E27: SATURATION SUMMARY | G27: MICROWAVE OVEN STOCK
E29: SINGLE FAMILY SATURATIONS - CHART | G29: ELECTRIC COOKTOP STOCK
E31: MULTI-FAMILY SATURATIONS - CHART | G31: FURNACE FAN STOCK
E33: MANUFACTURED HOMES SATURATIONS - CHART | G33: ELECTRIC CLOTHES DRYER STOCK
G35: 6P STOCK

Sheet Constants and Menus
B2: CONSTANTS AND MENUS
B4: NAVIGATION
C7: List of Choices | G7: Model Years
C8: YES | G8: 1955
C9: NO | G9: 1956
G10: 1957
C11: Housing Types | G11: 1958
C12: Single Family | G12: 1959
C13: Multi-Family | G13: 1960
C14: Manufactured Homes | G14: 1961
C15: Total Homes | G15: 1962
G16: 1963
C17: Count of HOUSING TYPES | G17: 1964
C18: =COUNTA(HOUSING_TYPES) -> 4 | G18: 1965
G19: 1966
C20: Appliances Modeled | G20: 1967
C21: Electric Water Heaters | G21: 1968
C22: Dishwashers | G22: 1969
C23: Refrigerators | G23: 1970
C24: Freezers | G24: 1971
C25: Clothes Washers | G25: 1972
C26: Heat Pumps | G26: 1973
C27: Room AC | G27: 1974
C28: Central AC | G28: 1975
C29: Electric Ovens | G29: 1976
C30: Microwave Ovens | G30: 1977
C31: Electric Cooktops | G31: 1978
C32: Furnace Fans | G32: 1979
C33: Electric Clothes Dryers | G33: 1980
G34: 1981
C35: Shipment Types | G35: 1982
C36: New Construction Shipments | G36: 1983
C37: Retirements | G37: 1984
C38: Net Change | G38: 1985
C39: Total Shipments | G39: 1986
C40: Net New Shipments | G40: 1987
C41: Net Replacements | G41: 1988
G42: 1989
G43: 1990
G44: 1991
G45: 1992
G46: 1993
G47: 1994
G48: 1995
G49: 1996
G50: 1997
G51: 1998
G52: 1999
G53: 2000
G54: 2001
G55: 2002
G56: 2003
G57: 2004
G58: 2005
G59: 2006
G60: 2007
G61: 2008
G62: 2009
G63: 2010
G64: 2011
G65: 2012
G66: 2013
G67: 2014
G68: 2015
G69: 2016
G70: 2017
G71: 2018
G72: 2019
G73: 2020
G74: 2021
G75: 2022
G76: 2023
G77: 2024
G78: 2025
G79: 2026
G80: 2027
G81: 2028
G82: 2029
G83: 2030
G84: 2031
G85: 2032
G86: 2033
G87: 2034

Sheet 6P Shipments
B2: 6P SHIPMENTS
B4: NAVIGATION
C7: Single Family
C8: Year | D8: 2010 | E8: 2011 | F8: 2012 | G8: 2013 | H8: 2014 | I8: 2015 | J8: 2016 | K8: 2017 | L8: 2018 | M8: 2019 | N8: 2020 | O8: 2021 | P8: 2022 | Q8: 2023 | R8: 2024 | S8: 2025 | T8: 2026 | U8: 2027 | V8: 2028 | W8: 2029 | X8: 2030 | Y8: 2031 | Z8: 2032 | AA8: 2033 | AB8: 2034 | AD8: Source
C9: Electric Water Heaters | D9: 246884.0901 | E9: 257302.1057 | F9: 263293.0509 | G9: 264402.4127 | H9: 267805.4713 | I9: 267955.7586 | J9: 268111.9082 | K9: 267259.3089 | L9: 266306.8952 | M9: 265280.4427 | N9: 264505.2614 | O9: 263327.0751 | P9: 43104.32437 | Q9: 42542.23631 | R9: 41898.12947 | S9: 41755.22023 | T9: 41375.51641 | U9: 40563.8444 | V9: 39507.56796 | W9: 38787.37374 | X9: 38631.61751 | Y9: =X9 -> 38631.61751 | Z9: 38631.61751 | AA9: 38631.61751 | AB9: 38631.61751 | AD9: 6P Supply Curve File - PNWResSectorSupplyCurveUnits_6th_Fnl: 'DHW & Appliance Units' tab, Range N132:AH132
C10: Dishwashers | D10: 336869.1594 | E10: 352263.144 | F10: 359269.9637 | G10: 360567.438 | H10: 360196.5459 | I10: 360358.7963 | J10: 360527.3756 | K10: 359606.9082 | L10: 358578.6809 | M10: 49485.99485 | N10: 48649.10795 | O10: 47377.13627 | P10: 46535.49408 | Q10: 45928.66295 | R10: 45233.28423 | S10: 45078.99919 | T10: 44669.07038 | U10: 43792.78805 | V10: 42652.43039 | W10: 41874.90762 | X10: 41706.75296 | Y10: 41706.75296 | Z10: 41706.75296 | AA10: 41706.75296 | AB10: 41706.75296 | AD10: 6P Supply Curve File - PNWResSectorSupplyCurveUnits_6th_Fnl: 'DHW & Appliance Units' tab, Range N137:AH137
C11: Refrigerators | D11: 291577.1986 | E11: 309872.2952 | F11: 320393.0054 | G11: 322341.1576 | H11: 321784.2647 | I11: 322027.883 | J11: 322281.0041 | K11: 320898.9261 | L11: 319355.0472 | M11: 317691.15 | N11: 316434.5679 | O11: 318268.7378 | P11: 316938.5039 | Q11: 315979.3941 | R11: 314880.3328 | S11: 314636.4819 | T11: 313988.5805 | U11: 312603.5971 | V11: 310801.2369 | W11: 66184.2069 | X11: 65918.43478 | Y11: 65918.43478 | Z11: 65918.43478 | AA11: 65918.43478 | AB11: 65918.43478 | AD11: 6P Supply Curve File - PNWResSectorSupplyCurveUnits_6th_Fnl: 'DHW & Appliance Units' tab, Range N133:AH133
C12: Freezers | D12: 130842.8943 | E12: 140107.1954 | F12: 145434.69 | G12: 146421.1985 | H12: 146139.1981 | I12: 146262.562 | J12: 146390.7379 | K12: 145690.879 | L12: 144909.087 | M12: 144066.52 | N12: 143430.2099 | O12: 142463.0918 | P12: 141823.1661 | Q12: 141361.7742 | R12: 142396.3396 | S12: 142273.6999 | T12: 141947.8515 | U12: 141251.3031 | V12: 140344.8438 | W12: 139726.7985 | X12: 139593.134 | Y12: 139593.134 | Z12: 139593.134 | AA12: 139593.134 | AB12: 139593.134 | AD12: 6P Supply Curve File - PNWResSectorSupplyCurveUnits_6th_Fnl: 'DHW & Appliance Units' tab, Range N134:AH134
C13: Clothes Washers | D13: 286091.2913 | E13: 299919.6839 | F13: 307871.7879 | G13: 309344.3034 | H13: 308923.3745 | I13: 309107.514 | J13: 313558.2192 | K13: 312438.9546 | L13: 311188.6569 | M13: 309841.1633 | N13: 308823.5305 | O13: 307276.8459 | P13: 306253.4308 | Q13: 305515.5398 | R13: 55002.50276 | S13: 54814.89615 | T13: 54316.43332 | U13: 53250.89669 | V13: 51864.2513 | W13: 50918.80373 | X13: 50714.33202 | Y13: 50714.33202 | Z13: 50714.33202 | AA13: 50714.33202 | AB13: 50714.33202 | AD13: 6P Supply Curve File - PNWResSectorSupplyCurveUnits_6th_Fnl: 'DHW & Appliance Units' tab, Range N135:AH135
C14: Heat Pumps | D14: =D81/Lifetimes!$J$15+'6P Shipments'!D82 -> 36143.464 | E14: =E81/Lifetimes!$J$15+'6P Shipments'!E82 -> 37417.07855 | F14: =F81/Lifetimes!$J$15+'6P Shipments'!F82 -> 38149.47859 | G14: =G81/Lifetimes!$J$15+'6P Shipments'!G82 -> 38285.09936 | H14: =H81/Lifetimes!$J$15+'6P Shipments'!H82 -> 38246.33121 | I14: =I81/Lifetimes!$J$15+'6P Shipments'!I82 -> 38263.29072 | J14: =J81/Lifetimes!$J$15+'6P Shipments'!J82 -> 38280.91177 | K14: =K81/Lifetimes!$J$15+'6P Shipments'!K82 -> 38184.6983 | L14: =L81/Lifetimes!$J$15+'6P Shipments'!L82 -> 38077.22106 | M14: =M81/Lifetimes!$J$15+'6P Shipments'!M82 -> 37961.38873 | N14: =N81/Lifetimes!$J$15+'6P Shipments'!N82 -> 37873.91166 | O14: =O81/Lifetimes!$J$15+'6P Shipments'!O82 -> 37740.95661 | P14: =P81/Lifetimes!$J$15+'6P Shipments'!P82 -> 37652.98249 | Q14: =Q81/Lifetimes!$J$15+'6P Shipments'!Q82 -> 37589.55241 | R14: =R81/Lifetimes!$J$15+'6P Shipments'!R82 -> 37516.86674 | S14: =S81/Lifetimes!$J$15+'6P Shipments'!S82 -> 37500.73983 | T14: =T81/Lifetimes!$J$15+'6P Shipments'!T82 -> 37457.8913 | U14: =U81/Lifetimes!$J$15+'6P Shipments'!U82 -> 37366.29636 | V14: =V81/Lifetimes!$J$15+'6P Shipments'!V82 -> 37247.09849 | W14: =W81/Lifetimes!$J$15+'6P Shipments'!W82 -> 37165.82657 | X14: =X81/Lifetimes!$J$15+'6P Shipments'!X82 -> 37148.24991 | Y14: 37148.24991 | Z14: 37148.24991 | AA14: 37148.24991 | AB14: 37148.24991 | AD14: Calculated per method described in INFORMATION box
C15: Room AC | D15: 55721.12922 | E15: 58267.43 | F15: 59426.41976 | G15: 59641.03346 | H15: 59579.68463 | I15: 59606.52228 | J15: 59634.40678 | K15: 59482.15335 | L15: 59312.07549 | M15: 8185.419877 | N15: 8046.991405 | O15: 7836.596074 | P15: 7697.381035 | Q15: 7597.005816 | R15: 7481.984045 | S15: 7456.463939 | T15: 7388.658099 | U15: 7243.713274 | V15: 7055.088063 | W15: 6926.478942 | X15: 6898.664678 | Y15: 6898.664678 | Z15: 6898.664678 | AA15: 6898.664678 | AB15: 6898.664678 | AD15: 6P Supply Curve File - PNWResSectorSupplyCurveUnits_6th_Fnl: 'DHW & Appliance Units' tab, Range N139:AH139
C16: Central AC | D16: 141874.0042 | E16: 150381.4088 | F16: 155273.6453 | G16: 156179.5557 | H16: 155920.5949 | I16: 156033.8799 | J16: 156151.5837 | K16: 155508.9035 | L16: 154790.9843 | M16: 154017.2553 | N16: 155320.0056 | O16: 154382.5623 | P16: 153762.2718 | Q16: 153315.0372 | R16: 152802.543 | S16: 152688.8349 | T16: 152386.7173 | U16: 151740.897 | V16: 31434.84854 | W16: 30861.81413 | X16: 30737.88411 | Y16: 30737.88411 | Z16: 30737.88411 | AA16: 30737.88411 | AB16: 30737.88411 | AD16: 6P Supply Curve File - PNWResSectorSupplyCurveUnits_6th_Fnl: 'DHW & Appliance Units' tab, Range N140:AH140
C17: Electric Ovens | D17: 205558.3542 | E17: 219017.9285 | F17: 226757.9412 | G17: 228191.1832 | H17: 227781.4809 | I17: 227960.7092 | J17: 228146.9287 | K17: 227130.1436 | L17: 225994.3227 | M17: 224770.2052 | N17: 223845.7465 | O17: 222440.6758 | P17: 224081.2125 | Q17: 223377.3661 | R17: 222570.8159 | S17: 222391.865 | T17: 221916.4001 | U17: 220900.0248 | V17: 219577.356 | W17: 218675.5292 | X17: 48374.49115 | Y17: 48374.49115 | Z17: 48374.49115 | AA17: 48374.49115 | AB17: 48374.49115 | AD17: 6P Supply Curve File - PNWResSectorSupplyCurveUnits_6th_Fnl: 'DHW & Appliance Units' tab, Range N138:AH138
C18: Microwave Ovens | D18: =INDEX(HOUSING_STOCK,MATCH($D$8,HOUSING_STOCK_YEARS,0)+2,MATCH($C$7,HOUSING_STOCK_BLDG,0)+4) *'Microwave Ovens'!$K$66 /ROUND(INDEX(LIFETIMES_TABLE,MATCH($C18,APPLIANCES,0),MATCH($C$7,LIFETIMES_HOUSING_TYPE,0)),0) -> 443089.1068 | E18: =INDEX(HOUSING_STOCK,MATCH($D$8,HOUSING_STOCK_YEARS,0)+2,MATCH($C$7,HOUSING_STOCK_BLDG,0)+4) *'Microwave Ovens'!$K$66 /ROUND(INDEX(LIFETIMES_TABLE,MATCH($C18,APPLIANCES,0),MATCH($C$7,LIFETIMES_HOUSING_TYPE,0)),0) -> 443089.1068 | F18: =INDEX(HOUSING_STOCK,MATCH($D$8,HOUSING_STOCK_YEARS,0)+2,MATCH($C$7,HOUSING_STOCK_BLDG,0)+4) *'Microwave Ovens'!$K$66 /ROUND(INDEX(LIFETIMES_TABLE,MATCH($C18,APPLIANCES,0),MATCH($C$7,LIFETIMES_HOUSING_TYPE,0)),0) -> 443089.1068 | G18: =INDEX(HOUSING_STOCK,MATCH($D$8,HOUSING_STOCK_YEARS,0)+2,MATCH($C$7,HOUSING_STOCK_BLDG,0)+4) *'Microwave Ovens'!$K$66 /ROUND(INDEX(LIFETIMES_TABLE,MATCH($C18,APPLIANCES,0),MATCH($C$7,LIFETIMES_HOUSING_TYPE,0)),0) -> 443089.1068 | H18: =INDEX(HOUSING_STOCK,MATCH($D$8,HOUSING_STOCK_YEARS,0)+2,MATCH($C$7,HOUSING_STOCK_BLDG,0)+4) *'Microwave Ovens'!$K$66 /ROUND(INDEX(LIFETIMES_TABLE,MATCH($C18,APPLIANCES,0),MATCH($C$7,LIFETIMES_HOUSING_TYPE,0)),0) -> 443089.1068 | I18: =INDEX(HOUSING_STOCK,MATCH($D$8,HOUSING_STOCK_YEARS,0)+2,MATCH($C$7,HOUSING_STOCK_BLDG,0)+4) *'Microwave Ovens'!$K$66 /ROUND(INDEX(LIFETIMES_TABLE,MATCH($C18,APPLIANCES,0),MATCH($C$7,LIFETIMES_HOUSING_TYPE,0)),0) -> 443089.1068 | J18: =INDEX(HOUSING_STOCK,MATCH($D$8,HOUSING_STOCK_YEARS,0)+2,MATCH($C$7,HOUSING_STOCK_BLDG,0)+4) *'Microwave Ovens'!$K$66 /ROUND(INDEX(LIFETIMES_TABLE,MATCH($C18,APPLIANCES,0),MATCH($C$7,LIFETIMES_HOUSING_TYPE,0)),0) -> 443089.1068 | K18: =INDEX(HOUSING_STOCK,MATCH($D$8,HOUSING_STOCK_YEARS,0)+2,MATCH($C$7,HOUSING_STOCK_BLDG,0)+4) *'Microwave Ovens'!$K$66 /ROUND(INDEX(LIFETIMES_TABLE,MATCH($C18,APPLIANCES,0),MATCH($C$7,LIFETIMES_HOUSING_TYPE,0)),0) -> 443089.1068 | L18: =INDEX(HOUSING_STOCK,MATCH($D$8,HOUSING_STOCK_YEARS,0)+2,MATCH($C$7,HOUSING_STOCK_BLDG,0)+4) *'Microwave Ovens'!$K$66 /ROUND(INDEX(LIFETIMES_TABLE,MATCH($C18,APPLIANCES,0),MATCH($C$7,LIFETIMES_HOUSING_TYPE,0)),0) -> 443089.1068 | M18: =INDEX(HOUSING_STOCK,MATCH($D$8,HOUSING_STOCK_YEARS,0)+2,MATCH($C$7,HOUSING_STOCK_BLDG,0)+4) *'Microwave Ovens'!$K$66 /ROUND(INDEX(LIFETIMES_TABLE,MATCH($C18,APPLIANCES,0),MATCH($C$7,LIFETIMES_HOUSING_TYPE,0)),0) -> 443089.1068 | N18: =INDEX(HOUSING_STOCK,MATCH($D$8,HOUSING_STOCK_YEARS,0)+2,MATCH($C$7,HOUSING_STOCK_BLDG,0)+4) *'Microwave Ovens'!$K$66 /ROUND(INDEX(LIFETIMES_TABLE,MATCH($C18,APPLIANCES,0),MATCH($C$7,LIFETIMES_HOUSING_TYPE,0)),0) -> 443089.1068 | O18: =INDEX(HOUSING_STOCK,MATCH($D$8,HOUSING_STOCK_YEARS,0)+2,MATCH($C$7,HOUSING_STOCK_BLDG,0)+4) *'Microwave Ovens'!$K$66 /ROUND(INDEX(LIFETIMES_TABLE,MATCH($C18,APPLIANCES,0),MATCH($C$7,LIFETIMES_HOUSING_TYPE,0)),0) -> 443089.1068 | P18: =INDEX(HOUSING_STOCK,MATCH($D$8,HOUSING_STOCK_YEARS,0)+2,MATCH($C$7,HOUSING_STOCK_BLDG,0)+4) *'Microwave Ovens'!$K$66 /ROUND(INDEX(LIFETIMES_TABLE,MATCH($C18,APPLIANCES,0),MATCH($C$7,LIFETIMES_HOUSING_TYPE,0)),0) -> 443089.1068 | Q18: =INDEX(HOUSING_STOCK,MATCH($D$8,HOUSING_STOCK_YEARS,0)+2,MATCH($C$7,HOUSING_STOCK_BLDG,0)+4) *'Microwave Ovens'!$K$66 /ROUND(INDEX(LIFETIMES_TABLE,MATCH($C18,APPLIANCES,0),MATCH($C$7,LIFETIMES_HOUSING_TYPE,0)),0) -> 443089.1068 | R18: =INDEX(HOUSING_STOCK,MATCH($D$8,HOUSING_STOCK_YEARS,0)+2,MATCH($C$7,HOUSING_STOCK_BLDG,0)+4) *'Microwave Ovens'!$K$66 /ROUND(INDEX(LIFETIMES_TABLE,MATCH($C18,APPLIANCES,0),MATCH($C$7,LIFETIMES_HOUSING_TYPE,0)),0) -> 443089.1068 | S18: =INDEX(HOUSING_STOCK,MATCH($D$8,HOUSING_STOCK_YEARS,0)+2,MATCH($C$7,HOUSING_STOCK_BLDG,0)+4) *'Microwave Ovens'!$K$66 /ROUND(INDEX(LIFETIMES_TABLE,MATCH($C18,APPLIANCES,0),MATCH($C$7,LIFETIMES_HOUSING_TYPE,0)),0) -> 443089.1068 | T18: =INDEX(HOUSING_STOCK,MATCH($D$8,HOUSING_STOCK_YEARS,0)+2,MATCH($C$7,HOUSING_STOCK_BLDG,0)+4) *'Microwave Ovens'!$K$66 /ROUND(INDEX(LIFETIMES_TABLE,MATCH($C18,APPLIANCES,0),MATCH($C$7,LIFETIMES_HOUSING_TYPE,0)),0) -> 443089.1068 | U18: =INDEX(HOUSING_STOCK,MATCH($D$8,HOUSING_STOCK_YEARS,0)+2,MATCH($C$7,HOUSING_STOCK_BLDG,0)+4) *'Microwave Ovens'!$K$66 /ROUND(INDEX(LIFETIMES_TABLE,MATCH($C18,APPLIANCES,0),MATCH($C$7,LIFETIMES_HOUSING_TYPE,0)),0) -> 443089.1068 | V18: =INDEX(HOUSING_STOCK,MATCH($D$8,HOUSING_STOCK_YEARS,0)+2,MATCH($C$7,HOUSING_STOCK_BLDG,0)+4) *'Microwave Ovens'!$K$66 /ROUND(INDEX(LIFETIMES_TABLE,MATCH($C18,APPLIANCES,0),MATCH($C$7,LIFETIMES_HOUSING_TYPE,0)),0) -> 443089.1068 | W18: =INDEX(HOUSING_STOCK,MATCH($D$8,HOUSING_STOCK_YEARS,0)+2,MATCH($C$7,HOUSING_STOCK_BLDG,0)+4) *'Microwave Ovens'!$K$66 /ROUND(INDEX(LIFETIMES_TABLE,MATCH($C18,APPLIANCES,0),MATCH($C$7,LIFETIMES_HOUSING_TYPE,0)),0) -> 443089.1068 | X18: =INDEX(HOUSING_STOCK,MATCH($D$8,HOUSING_STOCK_YEARS,0)+2,MATCH($C$7,HOUSING_STOCK_BLDG,0)+4) *'Microwave Ovens'!$K$66 /ROUND(INDEX(LIFETIMES_TABLE,MATCH($C18,APPLIANCES,0),MATCH($C$7,LIFETIMES_HOUSING_TYPE,0)),0) -> 443089.1068 | Y18: =INDEX(HOUSING_STOCK,MATCH($D$8,HOUSING_STOCK_YEARS,0)+2,MATCH($C$7,HOUSING_STOCK_BLDG,0)+4) *'Microwave Ovens'!$K$66 /ROUND(INDEX(LIFETIMES_TABLE,MATCH($C18,APPLIANCES,0),MATCH($C$7,LIFETIMES_HOUSING_TYPE,0)),0) -> 443089.1068 | Z18: =INDEX(HOUSING_STOCK,MATCH($D$8,HOUSING_STOCK_YEARS,0)+2,MATCH($C$7,HOUSING_STOCK_BLDG,0)+4) *'Microwave Ovens'!$K$66 /ROUND(INDEX(LIFETIMES_TABLE,MATCH($C18,APPLIANCES,0),MATCH($C$7,LIFETIMES_HOUSING_TYPE,0)),0) -> 443089.1068 | AA18: =INDEX(HOUSING_STOCK,MATCH($D$8,HOUSING_STOCK_YEARS,0)+2,MATCH($C$7,HOUSING_STOCK_BLDG,0)+4) *'Microwave Ovens'!$K$66 /ROUND(INDEX(LIFETIMES_TABLE,MATCH($C18,APPLIANCES,0),MATCH($C$7,LIFETIMES_HOUSING_TYPE,0)),0) -> 443089.1068 | AB18: =INDEX(HOUSING_STOCK,MATCH($D$8,HOUSING_STOCK_YEARS,0)+2,MATCH($C$7,HOUSING_STOCK_BLDG,0)+4) *'Microwave Ovens'!$K$66 /ROUND(INDEX(LIFETIMES_TABLE,MATCH($C18,APPLIANCES,0),MATCH($C$7,LIFETIMES_HOUSING_TYPE,0)),0) -> 443089.1068 | AD18: Calculated per method described in INFORMATION box
C19: Electric Cooktops | D19: =INDEX(HOUSING_STOCK,MATCH($D$8,HOUSING_STOCK_YEARS,0)+2,MATCH($C$7,HOUSING_STOCK_BLDG,0)+4) *'Electric Cooktops'!$K$66 /ROUND(INDEX(LIFETIMES_TABLE,MATCH($C19,APPLIANCES,0),MATCH($C$7,LIFETIMES_HOUSING_TYPE,0)),0) -> 166193.9204 | E19: =INDEX(HOUSING_STOCK,MATCH($D$8,HOUSING_STOCK_YEARS,0)+2,MATCH($C$7,HOUSING_STOCK_BLDG,0)+4) *'Electric Cooktops'!$K$66 /ROUND(INDEX(LIFETIMES_TABLE,MATCH($C19,APPLIANCES,0),MATCH($C$7,LIFETIMES_HOUSING_TYPE,0)),0) -> 166193.9204 | F19: =INDEX(HOUSING_STOCK,MATCH($D$8,HOUSING_STOCK_YEARS,0)+2,MATCH($C$7,HOUSING_STOCK_BLDG,0)+4) *'Electric Cooktops'!$K$66 /ROUND(INDEX(LIFETIMES_TABLE,MATCH($C19,APPLIANCES,0),MATCH($C$7,LIFETIMES_HOUSING_TYPE,0)),0) -> 166193.9204 | G19: =INDEX(HOUSING_STOCK,MATCH($D$8,HOUSING_STOCK_YEARS,0)+2,MATCH($C$7,HOUSING_STOCK_BLDG,0)+4) *'Electric Cooktops'!$K$66 /ROUND(INDEX(LIFETIMES_TABLE,MATCH($C19,APPLIANCES,0),MATCH($C$7,LIFETIMES_HOUSING_TYPE,0)),0) -> 166193.9204 | H19: =INDEX(HOUSING_STOCK,MATCH($D$8,HOUSING_STOCK_YEARS,0)+2,MATCH($C$7,HOUSING_STOCK_BLDG,0)+4) *'Electric Cooktops'!$K$66 /ROUND(INDEX(LIFETIMES_TABLE,MATCH($C19,APPLIANCES,0),MATCH($C$7,LIFETIMES_HOUSING_TYPE,0)),0) -> 166193.9204 | I19: =INDEX(HOUSING_STOCK,MATCH($D$8,HOUSING_STOCK_YEARS,0)+2,MATCH($C$7,HOUSING_STOCK_BLDG,0)+4) *'Electric Cooktops'!$K$66 /ROUND(INDEX(LIFETIMES_TABLE,MATCH($C19,APPLIANCES,0),MATCH($C$7,LIFETIMES_HOUSING_TYPE,0)),0) -> 166193.9204 | J19: =INDEX(HOUSING_STOCK,MATCH($D$8,HOUSING_STOCK_YEARS,0)+2,MATCH($C$7,HOUSING_STOCK_BLDG,0)+4) *'Electric Cooktops'!$K$66 /ROUND(INDEX(LIFETIMES_TABLE,MATCH($C19,APPLIANCES,0),MATCH($C$7,LIFETIMES_HOUSING_TYPE,0)),0) -> 166193.9204 | K19: =INDEX(HOUSING_STOCK,MATCH($D$8,HOUSING_STOCK_YEARS,0)+2,MATCH($C$7,HOUSING_STOCK_BLDG,0)+4) *'Electric Cooktops'!$K$66 /ROUND(INDEX(LIFETIMES_TABLE,MATCH($C19,APPLIANCES,0),MATCH($C$7,LIFETIMES_HOUSING_TYPE,0)),0) -> 166193.9204 | L19: =INDEX(HOUSING_STOCK,MATCH($D$8,HOUSING_STOCK_YEARS,0)+2,MATCH($C$7,HOUSING_STOCK_BLDG,0)+4) *'Electric Cooktops'!$K$66 /ROUND(INDEX(LIFETIMES_TABLE,MATCH($C19,APPLIANCES,0),MATCH($C$7,LIFETIMES_HOUSING_TYPE,0)),0) -> 166193.9204 | M19: =INDEX(HOUSING_STOCK,MATCH($D$8,HOUSING_STOCK_YEARS,0)+2,MATCH($C$7,HOUSING_STOCK_BLDG,0)+4) *'Electric Cooktops'!$K$66 /ROUND(INDEX(LIFETIMES_TABLE,MATCH($C19,APPLIANCES,0),MATCH($C$7,LIFETIMES_HOUSING_TYPE,0)),0) -> 166193.9204 | N19: =INDEX(HOUSING_STOCK,MATCH($D$8,HOUSING_STOCK_YEARS,0)+2,MATCH($C$7,HOUSING_STOCK_BLDG,0)+4) *'Electric Cooktops'!$K$66 /ROUND(INDEX(LIFETIMES_TABLE,MATCH($C19,APPLIANCES,0),MATCH($C$7,LIFETIMES_HOUSING_TYPE,0)),0) -> 166193.9204 | O19: =INDEX(HOUSING_STOCK,MATCH($D$8,HOUSING_STOCK_YEARS,0)+2,MATCH($C$7,HOUSING_STOCK_BLDG,0)+4) *'Electric Cooktops'!$K$66 /ROUND(INDEX(LIFETIMES_TABLE,MATCH($C19,APPLIANCES,0),MATCH($C$7,LIFETIMES_HOUSING_TYPE,0)),0) -> 166193.9204 | P19: =INDEX(HOUSING_STOCK,MATCH($D$8,HOUSING_STOCK_YEARS,0)+2,MATCH($C$7,HOUSING_STOCK_BLDG,0)+4) *'Electric Cooktops'!$K$66 /ROUND(INDEX(LIFETIMES_TABLE,MATCH($C19,APPLIANCES,0),MATCH($C$7,LIFETIMES_HOUSING_TYPE,0)),0) -> 166193.9204 | Q19: =INDEX(HOUSING_STOCK,MATCH($D$8,HOUSING_STOCK_YEARS,0)+2,MATCH($C$7,HOUSING_STOCK_BLDG,0)+4) *'Electric Cooktops'!$K$66 /ROUND(INDEX(LIFETIMES_TABLE,MATCH($C19,APPLIANCES,0),MATCH($C$7,LIFETIMES_HOUSING_TYPE,0)),0) -> 166193.9204 | R19: =INDEX(HOUSING_STOCK,MATCH($D$8,HOUSING_STOCK_YEARS,0)+2,MATCH($C$7,HOUSING_STOCK_BLDG,0)+4) *'Electric Cooktops'!$K$66 /ROUND(INDEX(LIFETIMES_TABLE,MATCH($C19,APPLIANCES,0),MATCH($C$7,LIFETIMES_HOUSING_TYPE,0)),0) -> 166193.9204 | S19: =INDEX(HOUSING_STOCK,MATCH($D$8,HOUSING_STOCK_YEARS,0)+2,MATCH($C$7,HOUSING_STOCK_BLDG,0)+4) *'Electric Cooktops'!$K$66 /ROUND(INDEX(LIFETIMES_TABLE,MATCH($C19,APPLIANCES,0),MATCH($C$7,LIFETIMES_HOUSING_TYPE,0)),0) -> 166193.9204 | T19: =INDEX(HOUSING_STOCK,MATCH($D$8,HOUSING_STOCK_YEARS,0)+2,MATCH($C$7,HOUSING_STOCK_BLDG,0)+4) *'Electric Cooktops'!$K$66 /ROUND(INDEX(LIFETIMES_TABLE,MATCH($C19,APPLIANCES,0),MATCH($C$7,LIFETIMES_HOUSING_TYPE,0)),0) -> 166193.9204 | U19: =INDEX(HOUSING_STOCK,MATCH($D$8,HOUSING_STOCK_YEARS,0)+2,MATCH($C$7,HOUSING_STOCK_BLDG,0)+4) *'Electric Cooktops'!$K$66 /ROUND(INDEX(LIFETIMES_TABLE,MATCH($C19,APPLIANCES,0),MATCH($C$7,LIFETIMES_HOUSING_TYPE,0)),0) -> 166193.9204 | V19: =INDEX(HOUSING_STOCK,MATCH($D$8,HOUSING_STOCK_YEARS,0)+2,MATCH($C$7,HOUSING_STOCK_BLDG,0)+4) *'Electric Cooktops'!$K$66 /ROUND(INDEX(LIFETIMES_TABLE,MATCH($C19,APPLIANCES,0),MATCH($C$7,LIFETIMES_HOUSING_TYPE,0)),0) -> 166193.9204 | W19: =INDEX(HOUSING_STOCK,MATCH($D$8,HOUSING_STOCK_YEARS,0)+2,MATCH($C$7,HOUSING_STOCK_BLDG,0)+4) *'Electric Cooktops'!$K$66 /ROUND(INDEX(LIFETIMES_TABLE,MATCH($C19,APPLIANCES,0),MATCH($C$7,LIFETIMES_HOUSING_TYPE,0)),0) -> 166193.9204 | X19: =INDEX(HOUSING_STOCK,MATCH($D$8,HOUSING_STOCK_YEARS,0)+2,MATCH($C$7,HOUSING_STOCK_BLDG,0)+4) *'Electric Cooktops'!$K$66 /ROUND(INDEX(LIFETIMES_TABLE,MATCH($C19,APPLIANCES,0),MATCH($C$7,LIFETIMES_HOUSING_TYPE,0)),0) -> 166193.9204 | Y19: =INDEX(HOUSING_STOCK,MATCH($D$8,HOUSING_STOCK_YEARS,0)+2,MATCH($C$7,HOUSING_STOCK_BLDG,0)+4) *'Electric Cooktops'!$K$66 /ROUND(INDEX(LIFETIMES_TABLE,MATCH($C19,APPLIANCES,0),MATCH($C$7,LIFETIMES_HOUSING_TYPE,0)),0) -> 166193.9204 | Z19: =INDEX(HOUSING_STOCK,MATCH($D$8,HOUSING_STOCK_YEARS,0)+2,MATCH($C$7,HOUSING_STOCK_BLDG,0)+4) *'Electric Cooktops'!$K$66 /ROUND(INDEX(LIFETIMES_TABLE,MATCH($C19,APPLIANCES,0),MATCH($C$7,LIFETIMES_HOUSING_TYPE,0)),0) -> 166193.9204 | AA19: =INDEX(HOUSING_STOCK,MATCH($D$8,HOUSING_STOCK_YEARS,0)+2,MATCH($C$7,HOUSING_STOCK_BLDG,0)+4) *'Electric Cooktops'!$K$66 /ROUND(INDEX(LIFETIMES_TABLE,MATCH($C19,APPLIANCES,0),MATCH($C$7,LIFETIMES_HOUSING_TYPE,0)),0) -> 166193.9204 | AB19: =INDEX(HOUSING_STOCK,MATCH($D$8,HOUSING_STOCK_YEARS,0)+2,MATCH($C$7,HOUSING_STOCK_BLDG,0)+4) *'Electric Cooktops'!$K$66 /ROUND(INDEX(LIFETIMES_TABLE,MATCH($C19,APPLIANCES,0),MATCH($C$7,LIFETIMES_HOUSING_TYPE,0)),0) -> 166193.9204 | AD19: Calculated per method described in INFORMATION box
C20: Furnace Fans | D20: =INDEX(HOUSING_STOCK,MATCH($D$8,HOUSING_STOCK_YEARS,0)+2,MATCH($C$7,HOUSING_STOCK_BLDG,0)+4) *'Furnace Fans'!$K$66 /ROUND(INDEX(LIFETIMES_TABLE,MATCH($C20,APPLIANCES,0),MATCH($C$7,LIFETIMES_HOUSING_TYPE,0)),0) -> 108868.3468 | E20: =INDEX(HOUSING_STOCK,MATCH($D$8,HOUSING_STOCK_YEARS,0)+2,MATCH($C$7,HOUSING_STOCK_BLDG,0)+4) *'Furnace Fans'!$K$66 /ROUND(INDEX(LIFETIMES_TABLE,MATCH($C20,APPLIANCES,0),MATCH($C$7,LIFETIMES_HOUSING_TYPE,0)),0) -> 108868.3468 | F20: =INDEX(HOUSING_STOCK,MATCH($D$8,HOUSING_STOCK_YEARS,0)+2,MATCH($C$7,HOUSING_STOCK_BLDG,0)+4) *'Furnace Fans'!$K$66 /ROUND(INDEX(LIFETIMES_TABLE,MATCH($C20,APPLIANCES,0),MATCH($C$7,LIFETIMES_HOUSING_TYPE,0)),0) -> 108868.3468 | G20: =INDEX(HOUSING_STOCK,MATCH($D$8,HOUSING_STOCK_YEARS,0)+2,MATCH($C$7,HOUSING_STOCK_BLDG,0)+4) *'Furnace Fans'!$K$66 /ROUND(INDEX(LIFETIMES_TABLE,MATCH($C20,APPLIANCES,0),MATCH($C$7,LIFETIMES_HOUSING_TYPE,0)),0) -> 108868.3468 | H20: =INDEX(HOUSING_STOCK,MATCH($D$8,HOUSING_STOCK_YEARS,0)+2,MATCH($C$7,HOUSING_STOCK_BLDG,0)+4) *'Furnace Fans'!$K$66 /ROUND(INDEX(LIFETIMES_TABLE,MATCH($C20,APPLIANCES,0),MATCH($C$7,LIFETIMES_HOUSING_TYPE,0)),0) -> 108868.3468 | I20: =INDEX(HOUSING_STOCK,MATCH($D$8,HOUSING_STOCK_YEARS,0)+2,MATCH($C$7,HOUSING_STOCK_BLDG,0)+4) *'Furnace Fans'!$K$66 /ROUND(INDEX(LIFETIMES_TABLE,MATCH($C20,APPLIANCES,0),MATCH($C$7,LIFETIMES_HOUSING_TYPE,0)),0) -> 108868.3468 | J20: =INDEX(HOUSING_STOCK,MATCH($D$8,HOUSING_STOCK_YEARS,0)+2,MATCH($C$7,HOUSING_STOCK_BLDG,0)+4) *'Furnace Fans'!$K$66 /ROUND(INDEX(LIFETIMES_TABLE,MATCH($C20,APPLIANCES,0),MATCH($C$7,LIFETIMES_HOUSING_TYPE,0)),0) -> 108868.3468 | K20: =INDEX(HOUSING_STOCK,MATCH($D$8,HOUSING_STOCK_YEARS,0)+2,MATCH($C$7,HOUSING_STOCK_BLDG,0)+4) *'Furnace Fans'!$K$66 /ROUND(INDEX(LIFETIMES_TABLE,MATCH($C20,APPLIANCES,0),MATCH($C$7,LIFETIMES_HOUSING_TYPE,0)),0) -> 108868.3468 | L20: =INDEX(HOUSING_STOCK,MATCH($D$8,HOUSING_STOCK_YEARS,0)+2,MATCH($C$7,HOUSING_STOCK_BLDG,0)+4) *'Furnace Fans'!$K$66 /ROUND(INDEX(LIFETIMES_TABLE,MATCH($C20,APPLIANCES,0),MATCH($C$7,LIFETIMES_HOUSING_TYPE,0)),0) -> 108868.3468 | M20: =INDEX(HOUSING_STOCK,MATCH($D$8,HOUSING_STOCK_YEARS,0)+2,MATCH($C$7,HOUSING_STOCK_BLDG,0)+4) *'Furnace Fans'!$K$66 /ROUND(INDEX(LIFETIMES_TABLE,MATCH($C20,APPLIANCES,0),MATCH($C$7,LIFETIMES_HOUSING_TYPE,0)),0) -> 108868.3468 | N20: =INDEX(HOUSING_STOCK,MATCH($D$8,HOUSING_STOCK_YEARS,0)+2,MATCH($C$7,HOUSING_STOCK_BLDG,0)+4) *'Furnace Fans'!$K$66 /ROUND(INDEX(LIFETIMES_TABLE,MATCH($C20,APPLIANCES,0),MATCH($C$7,LIFETIMES_HOUSING_TYPE,0)),0) -> 108868.3468 | O20: =INDEX(HOUSING_STOCK,MATCH($D$8,HOUSING_STOCK_YEARS,0)+2,MATCH($C$7,HOUSING_STOCK_BLDG,0)+4) *'Furnace Fans'!$K$66 /ROUND(INDEX(LIFETIMES_TABLE,MATCH($C20,APPLIANCES,0),MATCH($C$7,LIFETIMES_HOUSING_TYPE,0)),0) -> 108868.3468 | P20: =INDEX(HOUSING_STOCK,MATCH($D$8,HOUSING_STOCK_YEARS,0)+2,MATCH($C$7,HOUSING_STOCK_BLDG,0)+4) *'Furnace Fans'!$K$66 /ROUND(INDEX(LIFETIMES_TABLE,MATCH($C20,APPLIANCES,0),MATCH($C$7,LIFETIMES_HOUSING_TYPE,0)),0) -> 108868.3468 | Q20: =INDEX(HOUSING_STOCK,MATCH($D$8,HOUSING_STOCK_YEARS,0)+2,MATCH($C$7,HOUSING_STOCK_BLDG,0)+4) *'Furnace Fans'!$K$66 /ROUND(INDEX(LIFETIMES_TABLE,MATCH($C20,APPLIANCES,0),MATCH($C$7,LIFETIMES_HOUSING_TYPE,0)),0) -> 108868.3468 | R20: =INDEX(HOUSING_STOCK,MATCH($D$8,HOUSING_STOCK_YEARS,0)+2,MATCH($C$7,HOUSING_STOCK_BLDG,0)+4) *'Furnace Fans'!$K$66 /ROUND(INDEX(LIFETIMES_TABLE,MATCH($C20,APPLIANCES,0),MATCH($C$7,LIFETIMES_HOUSING_TYPE,0)),0) -> 108868.3468 | S20: =INDEX(HOUSING_STOCK,MATCH($D$8,HOUSING_STOCK_YEARS,0)+2,MATCH($C$7,HOUSING_STOCK_BLDG,0)+4) *'Furnace Fans'!$K$66 /ROUND(INDEX(LIFETIMES_TABLE,MATCH($C20,APPLIANCES,0),MATCH($C$7,LIFETIMES_HOUSING_TYPE,0)),0) -> 108868.3468 | T20: =INDEX(HOUSING_STOCK,MATCH($D$8,HOUSING_STOCK_YEARS,0)+2,MATCH($C$7,HOUSING_STOCK_BLDG,0)+4) *'Furnace Fans'!$K$66 /ROUND(INDEX(LIFETIMES_TABLE,MATCH($C20,APPLIANCES,0),MATCH($C$7,LIFETIMES_HOUSING_TYPE,0)),0) -> 108868.3468 | U20: =INDEX(HOUSING_STOCK,MATCH($D$8,HOUSING_STOCK_YEARS,0)+2,MATCH($C$7,HOUSING_STOCK_BLDG,0)+4) *'Furnace Fans'!$K$66 /ROUND(INDEX(LIFETIMES_TABLE,MATCH($C20,APPLIANCES,0),MATCH($C$7,LIFETIMES_HOUSING_TYPE,0)),0) -> 108868.3468 | V20: =INDEX(HOUSING_STOCK,MATCH($D$8,HOUSING_STOCK_YEARS,0)+2,MATCH($C$7,HOUSING_STOCK_BLDG,0)+4) *'Furnace Fans'!$K$66 /ROUND(INDEX(LIFETIMES_TABLE,MATCH($C20,APPLIANCES,0),MATCH($C$7,LIFETIMES_HOUSING_TYPE,0)),0) -> 108868.3468 | W20: =INDEX(HOUSING_STOCK,MATCH($D$8,HOUSING_STOCK_YEARS,0)+2,MATCH($C$7,HOUSING_STOCK_BLDG,0)+4) *'Furnace Fans'!$K$66 /ROUND(INDEX(LIFETIMES_TABLE,MATCH($C20,APPLIANCES,0),MATCH($C$7,LIFETIMES_HOUSING_TYPE,0)),0) -> 108868.3468 | X20: =INDEX(HOUSING_STOCK,MATCH($D$8,HOUSING_STOCK_YEARS,0)+2,MATCH($C$7,HOUSING_STOCK_BLDG,0)+4) *'Furnace Fans'!$K$66 /ROUND(INDEX(LIFETIMES_TABLE,MATCH($C20,APPLIANCES,0),MATCH($C$7,LIFETIMES_HOUSING_TYPE,0)),0) -> 108868.3468 | Y20: =INDEX(HOUSING_STOCK,MATCH($D$8,HOUSING_STOCK_YEARS,0)+2,MATCH($C$7,HOUSING_STOCK_BLDG,0)+4) *'Furnace Fans'!$K$66 /ROUND(INDEX(LIFETIMES_TABLE,MATCH($C20,APPLIANCES,0),MATCH($C$7,LIFETIMES_HOUSING_TYPE,0)),0) -> 108868.3468 | Z20: =INDEX(HOUSING_STOCK,MATCH($D$8,HOUSING_STOCK_YEARS,0)+2,MATCH($C$7,HOUSING_STOCK_BLDG,0)+4) *'Furnace Fans'!$K$66 /ROUND(INDEX(LIFETIMES_TABLE,MATCH($C20,APPLIANCES,0),MATCH($C$7,LIFETIMES_HOUSING_TYPE,0)),0) -> 108868.3468 | AA20: =INDEX(HOUSING_STOCK,MATCH($D$8,HOUSING_STOCK_YEARS,0)+2,MATCH($C$7,HOUSING_STOCK_BLDG,0)+4) *'Furnace Fans'!$K$66 /ROUND(INDEX(LIFETIMES_TABLE,MATCH($C20,APPLIANCES,0),MATCH($C$7,LIFETIMES_HOUSING_TYPE,0)),0) -> 108868.3468 | AB20: =INDEX(HOUSING_STOCK,MATCH($D$8,HOUSING_STOCK_YEARS,0)+2,MATCH($C$7,HOUSING_STOCK_BLDG,0)+4) *'Furnace Fans'!$K$66 /ROUND(INDEX(LIFETIMES_TABLE,MATCH($C20,APPLIANCES,0),MATCH($C$7,LIFETIMES_HOUSING_TYPE,0)),0) -> 108868.3468 | AD20: Calculated per method described in INFORMATION box
C21: Electric Clothes Dryers | D21: 277293.6452 | E21: 290696.7984 | F21: 298404.3657 | G21: 299831.5997 | H21: 299423.6148 | I21: 299602.0918 | J21: 303915.9326 | K21: 302831.0867 | L21: 301619.2371 | M21: 300313.1805 | N21: 299326.8411 | O21: 297827.7189 | P21: 296835.775 | Q21: 296120.5751 | R21: 53311.11065 | S21: 53129.27316 | T21: 52646.13866 | U21: 51613.36853 | V21: 50269.36413 | W21: 49352.9902 | X21: 49154.80623 | Y21: =X21 -> 49154.80623 | Z21: =Y21 -> 49154.80623 | AA21: =Z21 -> 49154.80623 | AB21: =AA21 -> 49154.80623 | AD21: 6P Supply Curve File - PNWResSectorSupplyCurveUnits_6th_Fnl: 'DHW & Appliance Units' tab, Range N136:AH136
C25: Multi-Family
C26: Year | D26: 2010 | E26: 2011 | F26: 2012 | G26: 2013 | H26: 2014 | I26: 2015 | J26: 2016 | K26: 2017 | L26: 2018 | M26: 2019 | N26: 2020 | O26: 2021 | P26: 2022 | Q26: 2023 | R26: 2024 | S26: 2025 | T26: 2026 | U26: 2027 | V26: 2028 | W26: 2029 | X26: 2030 | Y26: 2031 | Z26: 2032 | AA26: 2033 | AB26: 2034 | AD26: Source
C27: Electric Water Heaters | D27: 59316.73832 | E27: 62048.9345 | F27: 62816.53579 | G27: 63350.27742 | H27: 64986.2297 | I27: 65938.5369 | J27: 66720.83055 | K27: 67159.87121 | L27: 67641.55219 | M27: 68198.3627 | N27: 68527.4398 | O27: 68259.21047 | P27: 15082.87355 | Q27: 15152.20868 | R27: 15110.14713 | S27: 14946.85553 | T27: 14722.7055 | U27: 14653.16344 | V27: 14623.74418 | W27: 14574.99352 | X27: 14416.41711 | Y27: =X27 -> 14416.41711 | Z27: 14416.41711 | AA27: 14416.41711 | AB27: 14416.41711 | AD27: 6P Supply Curve File - PNWResSectorSupplyCurveUnits_6th_Fnl: 'DHW & Appliance Units' tab, Range N143:AH143
C28: Dishwashers | D28: 81154.0536 | E28: 85048.18349 | F28: 85945.94564 | G28: 86570.19294 | H28: 87436.06969 | I28: 88464.18199 | J28: 89308.7474 | K28: 89782.73636 | L28: 90302.75988 | M28: 16037.59808 | N28: 16392.87023 | O28: 16103.28943 | P28: 16283.4932 | Q28: 16358.34751 | R28: 16312.9378 | S28: 16136.64794 | T28: 15894.65523 | U28: 15819.57751 | V28: 15787.81643 | W28: 15735.18514 | X28: 15563.98582 | Y28: 15563.98582 | Z28: 15563.98582 | AA28: 15563.98582 | AB28: 15563.98582 | AD28: 6P Supply Curve File - PNWResSectorSupplyCurveUnits_6th_Fnl: 'DHW & Appliance Units' tab, Range N148:AH148
C29: Refrigerators | D29: 69653.95539 | E29: 74451.97022 | F29: 75799.95628 | G29: 76737.26095 | H29: 78037.37123 | I29: 79581.07749 | J29: 80849.18889 | K29: 81560.88131 | L29: 82341.69441 | M29: 83244.29378 | N29: 83777.7334 | O29: 84615.5091 | P29: 84900.3251 | Q29: 85018.63397 | R29: 84946.86293 | S29: 84668.23296 | T29: 84285.75819 | U29: 84167.09621 | V29: 84116.89713 | W29: 24869.8041 | X29: 24599.21982 | Y29: 24599.21982 | Z29: 24599.21982 | AA29: 24599.21982 | AB29: 24599.21982 | AD29: 6P Supply Curve File - PNWResSectorSupplyCurveUnits_6th_Fnl: 'DHW & Appliance Units' tab, Range N144:AH144
C30: Freezers | D30: 31186.09601 | E30: 33615.72267 | F30: 34298.31807 | G30: 34772.95196 | H30: 35431.30394 | I30: 36213.00846 | J30: 36855.1568 | K30: 37215.54478 | L30: 37610.93421 | M30: 38067.99396 | N30: 38338.118 | O30: 38117.94106 | P30: 38254.95537 | Q30: 38311.86934 | R30: 38841.12545 | S30: 38700.99435 | T30: 38508.63668 | U30: 38448.95812 | V30: 38423.71155 | W30: 38381.87544 | X30: 38245.79075 | Y30: 38245.79075 | Z30: 38245.79075 | AA30: 38245.79075 | AB30: 38245.79075 | AD30: 6P Supply Curve File - PNWResSectorSupplyCurveUnits_6th_Fnl: 'DHW & Appliance Units' tab, Range N145:AH145
C31: Clothes Washers | D31: 68619.24544 | E31: 72245.83644 | F31: 73264.71494 | G31: 73973.17892 | H31: 74955.87039 | I31: 76122.68447 | J31: 78251.96604 | K31: 78828.32435 | L31: 79460.65948 | M31: 80191.62222 | N31: 80623.62395 | O31: 80271.50119 | P31: 80490.62431 | Q31: 80581.64521 | R31: 19836.1101 | S31: 19621.7462 | T31: 19327.48933 | U31: 19236.19676 | V31: 19197.57611 | W31: 19133.57783 | X31: 18925.40388 | Y31: 18925.40388 | Z31: 18925.40388 | AA31: 18925.40388 | AB31: 18925.40388 | AD31: 6P Supply Curve File - PNWResSectorSupplyCurveUnits_6th_Fnl: 'DHW & Appliance Units' tab, Range N146:AH146
C32: Heat Pumps | D32: =D83/Lifetimes!$J$15+'6P Shipments'!D84 -> 1066.155032 | E32: =E83/Lifetimes!$J$15+'6P Shipments'!E84 -> 1224.597651 | F32: =F83/Lifetimes!$J$15+'6P Shipments'!F84 -> 1269.111569 | G32: =G83/Lifetimes!$J$15+'6P Shipments'!G84 -> 1300.063747 | H32: =H83/Lifetimes!$J$15+'6P Shipments'!H84 -> 1342.996685 | I32: =I83/Lifetimes!$J$15+'6P Shipments'!I84 -> 1393.973781 | J32: =J83/Lifetimes!$J$15+'6P Shipments'!J84 -> 1435.850036 | K32: =K83/Lifetimes!$J$15+'6P Shipments'!K84 -> 1459.351925 | L32: =L83/Lifetimes!$J$15+'6P Shipments'!L84 -> 1485.136354 | M32: =M83/Lifetimes!$J$15+'6P Shipments'!M84 -> 1514.942474 | N32: =N83/Lifetimes!$J$15+'6P Shipments'!N84 -> 1532.558003 | O32: =O83/Lifetimes!$J$15+'6P Shipments'!O84 -> 1518.199661 | P32: =P83/Lifetimes!$J$15+'6P Shipments'!P84 -> 1527.13474 | Q32: =Q83/Lifetimes!$J$15+'6P Shipments'!Q84 -> 1530.846256 | R32: =R83/Lifetimes!$J$15+'6P Shipments'!R84 -> 1528.594698 | S32: =S83/Lifetimes!$J$15+'6P Shipments'!S84 -> 1519.853683 | T32: =T83/Lifetimes!$J$15+'6P Shipments'!T84 -> 1507.85491 | U32: =U83/Lifetimes!$J$15+'6P Shipments'!U84 -> 1504.132317 | V32: =V83/Lifetimes!$J$15+'6P Shipments'!V84 -> 1502.557501 | W32: =W83/Lifetimes!$J$15+'6P Shipments'!W84 -> 1499.947873 | X32: =X83/Lifetimes!$J$15+'6P Shipments'!X84 -> 1491.459263 | Y32: 1491.459263 | Z32: 1491.459263 | AA32: 1491.459263 | AB32: 1491.459263 | AD32: Calculated per method described in INFORMATION box
C33: Room AC | D33: 13423.59602 | E33: 14067.71944 | F33: 14216.21722 | G33: 14319.47322 | H33: 14462.69687 | I33: 14632.75571 | J33: 14772.45428 | K33: 14850.85623 | L33: 14936.8727 | M33: 2652.76013 | N33: 2711.525275 | O33: 2663.626058 | P33: 2693.433351 | Q33: 2705.814913 | R33: 2698.303747 | S33: 2669.14385 | T33: 2629.116122 | U33: 2616.697605 | V33: 2611.444043 | W33: 2602.738364 | X33: 2574.420486 | Y33: 2574.420486 | Z33: 2574.420486 | AA33: 2574.420486 | AB33: 2574.420486 | AD33: 6P Supply Curve File - PNWResSectorSupplyCurveUnits_6th_Fnl: 'DHW & Appliance Units' tab, Range N150:AH150
C34: Central AC | D34: 29620.39552 | E34: 31568.8115 | F34: 32116.21239 | G34: 32496.84052 | H34: 33024.79963 | I34: 33651.68013 | J34: 34166.64488 | K34: 34455.6546 | L34: 34772.73339 | M34: 35139.26811 | N34: 35911.19027 | O34: 35724.81209 | P34: 35840.79371 | Q34: 35888.97097 | R34: 35859.74466 | S34: 35746.28208 | T34: 35590.53225 | U34: 35542.2112 | V34: 10161.25556 | W34: 10127.38134 | X34: 10017.1951 | Y34: 10017.1951 | Z34: 10017.1951 | AA34: 10017.1951 | AB34: 10017.1951 | AD34: 6P Supply Curve File - PNWResSectorSupplyCurveUnits_6th_Fnl: 'DHW & Appliance Units' tab, Range N151:AH151
C35: Electric Ovens | D35: 49067.60319 | E35: 52597.46907 | F35: 53589.17297 | G35: 54278.74145 | H35: 55235.22346 | I35: 56370.91734 | J35: 57303.85801 | K35: 57827.44514 | L35: 58401.88387 | M35: 59065.91989 | N35: 59458.36768 | O35: 59138.48517 | P35: 60236.91528 | Q35: 60323.73669 | R35: 60271.06724 | S35: 60066.59359 | T35: 59785.91304 | U35: 59698.8325 | V35: 59661.99372 | W35: 59600.94817 | X35: 18052.22994 | Y35: 18052.22994 | Z35: 18052.22994 | AA35: 18052.22994 | AB35: 18052.22994 | AD35: 6P Supply Curve File - PNWResSectorSupplyCurveUnits_6th_Fnl: 'DHW & Appliance Units' tab, Range N149:AH149
C36: Microwave Ovens | D36: =INDEX(HOUSING_STOCK,MATCH($D$26,HOUSING_STOCK_YEARS,0)+2,MATCH($C$25,HOUSING_STOCK_BLDG,0)+4) *'Microwave Ovens'!$AI$66 /ROUND(INDEX(LIFETIMES_TABLE,MATCH($C36,APPLIANCES,0),MATCH($C$25,LIFETIMES_HOUSING_TYPE,0)),0) -> 107592.0716 | E36: =INDEX(HOUSING_STOCK,MATCH($D$26,HOUSING_STOCK_YEARS,0)+2,MATCH($C$25,HOUSING_STOCK_BLDG,0)+4) *'Microwave Ovens'!$AI$66 /ROUND(INDEX(LIFETIMES_TABLE,MATCH($C36,APPLIANCES,0),MATCH($C$25,LIFETIMES_HOUSING_TYPE,0)),0) -> 107592.0716 | F36: =INDEX(HOUSING_STOCK,MATCH($D$26,HOUSING_STOCK_YEARS,0)+2,MATCH($C$25,HOUSING_STOCK_BLDG,0)+4) *'Microwave Ovens'!$AI$66 /ROUND(INDEX(LIFETIMES_TABLE,MATCH($C36,APPLIANCES,0),MATCH($C$25,LIFETIMES_HOUSING_TYPE,0)),0) -> 107592.0716 | G36: =INDEX(HOUSING_STOCK,MATCH($D$26,HOUSING_STOCK_YEARS,0)+2,MATCH($C$25,HOUSING_STOCK_BLDG,0)+4) *'Microwave Ovens'!$AI$66 /ROUND(INDEX(LIFETIMES_TABLE,MATCH($C36,APPLIANCES,0),MATCH($C$25,LIFETIMES_HOUSING_TYPE,0)),0) -> 107592.0716 | H36: =INDEX(HOUSING_STOCK,MATCH($D$26,HOUSING_STOCK_YEARS,0)+2,MATCH($C$25,HOUSING_STOCK_BLDG,0)+4) *'Microwave Ovens'!$AI$66 /ROUND(INDEX(LIFETIMES_TABLE,MATCH($C36,APPLIANCES,0),MATCH($C$25,LIFETIMES_HOUSING_TYPE,0)),0) -> 107592.0716 | I36: =INDEX(HOUSING_STOCK,MATCH($D$26,HOUSING_STOCK_YEARS,0)+2,MATCH($C$25,HOUSING_STOCK_BLDG,0)+4) *'Microwave Ovens'!$AI$66 /ROUND(INDEX(LIFETIMES_TABLE,MATCH($C36,APPLIANCES,0),MATCH($C$25,LIFETIMES_HOUSING_TYPE,0)),0) -> 107592.0716 | J36: =INDEX(HOUSING_STOCK,MATCH($D$26,HOUSING_STOCK_YEARS,0)+2,MATCH($C$25,HOUSING_STOCK_BLDG,0)+4) *'Microwave Ovens'!$AI$66 /ROUND(INDEX(LIFETIMES_TABLE,MATCH($C36,APPLIANCES,0),MATCH($C$25,LIFETIMES_HOUSING_TYPE,0)),0) -> 107592.0716 | K36: =INDEX(HOUSING_STOCK,MATCH($D$26,HOUSING_STOCK_YEARS,0)+2,MATCH($C$25,HOUSING_STOCK_BLDG,0)+4) *'Microwave Ovens'!$AI$66 /ROUND(INDEX(LIFETIMES_TABLE,MATCH($C36,APPLIANCES,0),MATCH($C$25,LIFETIMES_HOUSING_TYPE,0)),0) -> 107592.0716 | L36: =INDEX(HOUSING_STOCK,MATCH($D$26,HOUSING_STOCK_YEARS,0)+2,MATCH($C$25,HOUSING_STOCK_BLDG,0)+4) *'Microwave Ovens'!$AI$66 /ROUND(INDEX(LIFETIMES_TABLE,MATCH($C36,APPLIANCES,0),MATCH($C$25,LIFETIMES_HOUSING_TYPE,0)),0) -> 107592.0716 | M36: =INDEX(HOUSING_STOCK,MATCH($D$26,HOUSING_STOCK_YEARS,0)+2,MATCH($C$25,HOUSING_STOCK_BLDG,0)+4) *'Microwave Ovens'!$AI$66 /ROUND(INDEX(LIFETIMES_TABLE,MATCH($C36,APPLIANCES,0),MATCH($C$25,LIFETIMES_HOUSING_TYPE,0)),0) -> 107592.0716 | N36: =INDEX(HOUSING_STOCK,MATCH($D$26,HOUSING_STOCK_YEARS,0)+2,MATCH($C$25,HOUSING_STOCK_BLDG,0)+4) *'Microwave Ovens'!$AI$66 /ROUND(INDEX(LIFETIMES_TABLE,MATCH($C36,APPLIANCES,0),MATCH($C$25,LIFETIMES_HOUSING_TYPE,0)),0) -> 107592.0716 | O36: =INDEX(HOUSING_STOCK,MATCH($D$26,HOUSING_STOCK_YEARS,0)+2,MATCH($C$25,HOUSING_STOCK_BLDG,0)+4) *'Microwave Ovens'!$AI$66 /ROUND(INDEX(LIFETIMES_TABLE,MATCH($C36,APPLIANCES,0),MATCH($C$25,LIFETIMES_HOUSING_TYPE,0)),0) -> 107592.0716 | P36: =INDEX(HOUSING_STOCK,MATCH($D$26,HOUSING_STOCK_YEARS,0)+2,MATCH($C$25,HOUSING_STOCK_BLDG,0)+4) *'Microwave Ovens'!$AI$66 /ROUND(INDEX(LIFETIMES_TABLE,MATCH($C36,APPLIANCES,0),MATCH($C$25,LIFETIMES_HOUSING_TYPE,0)),0) -> 107592.0716 | Q36: =INDEX(HOUSING_STOCK,MATCH($D$26,HOUSING_STOCK_YEARS,0)+2,MATCH($C$25,HOUSING_STOCK_BLDG,0)+4) *'Microwave Ovens'!$AI$66 /ROUND(INDEX(LIFETIMES_TABLE,MATCH($C36,APPLIANCES,0),MATCH($C$25,LIFETIMES_HOUSING_TYPE,0)),0) -> 107592.0716 | R36: =INDEX(HOUSING_STOCK,MATCH($D$26,HOUSING_STOCK_YEARS,0)+2,MATCH($C$25,HOUSING_STOCK_BLDG,0)+4) *'Microwave Ovens'!$AI$66 /ROUND(INDEX(LIFETIMES_TABLE,MATCH($C36,APPLIANCES,0),MATCH($C$25,LIFETIMES_HOUSING_TYPE,0)),0) -> 107592.0716 | S36: =INDEX(HOUSING_STOCK,MATCH($D$26,HOUSING_STOCK_YEARS,0)+2,MATCH($C$25,HOUSING_STOCK_BLDG,0)+4) *'Microwave Ovens'!$AI$66 /ROUND(INDEX(LIFETIMES_TABLE,MATCH($C36,APPLIANCES,0),MATCH($C$25,LIFETIMES_HOUSING_TYPE,0)),0) -> 107592.0716 | T36: =INDEX(HOUSING_STOCK,MATCH($D$26,HOUSING_STOCK_YEARS,0)+2,MATCH($C$25,HOUSING_STOCK_BLDG,0)+4) *'Microwave Ovens'!$AI$66 /ROUND(INDEX(LIFETIMES_TABLE,MATCH($C36,APPLIANCES,0),MATCH($C$25,LIFETIMES_HOUSING_TYPE,0)),0) -> 107592.0716 | U36: =INDEX(HOUSING_STOCK,MATCH($D$26,HOUSING_STOCK_YEARS,0)+2,MATCH($C$25,HOUSING_STOCK_BLDG,0)+4) *'Microwave Ovens'!$AI$66 /ROUND(INDEX(LIFETIMES_TABLE,MATCH($C36,APPLIANCES,0),MATCH($C$25,LIFETIMES_HOUSING_TYPE,0)),0) -> 107592.0716 | V36: =INDEX(HOUSING_STOCK,MATCH($D$26,HOUSING_STOCK_YEARS,0)+2,MATCH($C$25,HOUSING_STOCK_BLDG,0)+4) *'Microwave Ovens'!$AI$66 /ROUND(INDEX(LIFETIMES_TABLE,MATCH($C36,APPLIANCES,0),MATCH($C$25,LIFETIMES_HOUSING_TYPE,0)),0) -> 107592.0716 | W36: =INDEX(HOUSING_STOCK,MATCH($D$26,HOUSING_STOCK_YEARS,0)+2,MATCH($C$25,HOUSING_STOCK_BLDG,0)+4) *'Microwave Ovens'!$AI$66 /ROUND(INDEX(LIFETIMES_TABLE,MATCH($C36,APPLIANCES,0),MATCH($C$25,LIFETIMES_HOUSING_TYPE,0)),0) -> 107592.0716 | X36: =INDEX(HOUSING_STOCK,MATCH($D$26,HOUSING_STOCK_YEARS,0)+2,MATCH($C$25,HOUSING_STOCK_BLDG,0)+4) *'Microwave Ovens'!$AI$66 /ROUND(INDEX(LIFETIMES_TABLE,MATCH($C36,APPLIANCES,0),MATCH($C$25,LIFETIMES_HOUSING_TYPE,0)),0) -> 107592.0716 | Y36: =INDEX(HOUSING_STOCK,MATCH($D$26,HOUSING_STOCK_YEARS,0)+2,MATCH($C$25,HOUSING_STOCK_BLDG,0)+4) *'Microwave Ovens'!$AI$66 /ROUND(INDEX(LIFETIMES_TABLE,MATCH($C36,APPLIANCES,0),MATCH($C$25,LIFETIMES_HOUSING_TYPE,0)),0) -> 107592.0716 | Z36: =INDEX(HOUSING_STOCK,MATCH($D$26,HOUSING_STOCK_YEARS,0)+2,MATCH($C$25,HOUSING_STOCK_BLDG,0)+4) *'Microwave Ovens'!$AI$66 /ROUND(INDEX(LIFETIMES_TABLE,MATCH($C36,APPLIANCES,0),MATCH($C$25,LIFETIMES_HOUSING_TYPE,0)),0) -> 107592.0716 | AA36: =INDEX(HOUSING_STOCK,MATCH($D$26,HOUSING_STOCK_YEARS,0)+2,MATCH($C$25,HOUSING_STOCK_BLDG,0)+4) *'Microwave Ovens'!$AI$66 /ROUND(INDEX(LIFETIMES_TABLE,MATCH($C36,APPLIANCES,0),MATCH($C$25,LIFETIMES_HOUSING_TYPE,0)),0) -> 107592.0716 | AB36: =INDEX(HOUSING_STOCK,MATCH($D$26,HOUSING_STOCK_YEARS,0)+2,MATCH($C$25,HOUSING_STOCK_BLDG,0)+4) *'Microwave Ovens'!$AI$66 /ROUND(INDEX(LIFETIMES_TABLE,MATCH($C36,APPLIANCES,0),MATCH($C$25,LIFETIMES_HOUSING_TYPE,0)),0) -> 107592.0716 | AD36: Calculated per method described in INFORMATION box
C37: Electric Cooktops | D37: =INDEX(HOUSING_STOCK,MATCH($D$26,HOUSING_STOCK_YEARS,0)+2,MATCH($C$25,HOUSING_STOCK_BLDG,0)+4) *'Electric Cooktops'!$AI$66 /ROUND(INDEX(LIFETIMES_TABLE,MATCH($C37,APPLIANCES,0),MATCH($C$25,LIFETIMES_HOUSING_TYPE,0)),0) -> 51908.86327 | E37: =INDEX(HOUSING_STOCK,MATCH($D$26,HOUSING_STOCK_YEARS,0)+2,MATCH($C$25,HOUSING_STOCK_BLDG,0)+4) *'Electric Cooktops'!$AI$66 /ROUND(INDEX(LIFETIMES_TABLE,MATCH($C37,APPLIANCES,0),MATCH($C$25,LIFETIMES_HOUSING_TYPE,0)),0) -> 51908.86327 | F37: =INDEX(HOUSING_STOCK,MATCH($D$26,HOUSING_STOCK_YEARS,0)+2,MATCH($C$25,HOUSING_STOCK_BLDG,0)+4) *'Electric Cooktops'!$AI$66 /ROUND(INDEX(LIFETIMES_TABLE,MATCH($C37,APPLIANCES,0),MATCH($C$25,LIFETIMES_HOUSING_TYPE,0)),0) -> 51908.86327 | G37: =INDEX(HOUSING_STOCK,MATCH($D$26,HOUSING_STOCK_YEARS,0)+2,MATCH($C$25,HOUSING_STOCK_BLDG,0)+4) *'Electric Cooktops'!$AI$66 /ROUND(INDEX(LIFETIMES_TABLE,MATCH($C37,APPLIANCES,0),MATCH($C$25,LIFETIMES_HOUSING_TYPE,0)),0) -> 51908.86327 | H37: =INDEX(HOUSING_STOCK,MATCH($D$26,HOUSING_STOCK_YEARS,0)+2,MATCH($C$25,HOUSING_STOCK_BLDG,0)+4) *'Electric Cooktops'!$AI$66 /ROUND(INDEX(LIFETIMES_TABLE,MATCH($C37,APPLIANCES,0),MATCH($C$25,LIFETIMES_HOUSING_TYPE,0)),0) -> 51908.86327 | I37: =INDEX(HOUSING_STOCK,MATCH($D$26,HOUSING_STOCK_YEARS,0)+2,MATCH($C$25,HOUSING_STOCK_BLDG,0)+4) *'Electric Cooktops'!$AI$66 /ROUND(INDEX(LIFETIMES_TABLE,MATCH($C37,APPLIANCES,0),MATCH($C$25,LIFETIMES_HOUSING_TYPE,0)),0) -> 51908.86327 | J37: =INDEX(HOUSING_STOCK,MATCH($D$26,HOUSING_STOCK_YEARS,0)+2,MATCH($C$25,HOUSING_STOCK_BLDG,0)+4) *'Electric Cooktops'!$AI$66 /ROUND(INDEX(LIFETIMES_TABLE,MATCH($C37,APPLIANCES,0),MATCH($C$25,LIFETIMES_HOUSING_TYPE,0)),0) -> 51908.86327 | K37: =INDEX(HOUSING_STOCK,MATCH($D$26,HOUSING_STOCK_YEARS,0)+2,MATCH($C$25,HOUSING_STOCK_BLDG,0)+4) *'Electric Cooktops'!$AI$66 /ROUND(INDEX(LIFETIMES_TABLE,MATCH($C37,APPLIANCES,0),MATCH($C$25,LIFETIMES_HOUSING_TYPE,0)),0) -> 51908.86327 | L37: =INDEX(HOUSING_STOCK,MATCH($D$26,HOUSING_STOCK_YEARS,0)+2,MATCH($C$25,HOUSING_STOCK_BLDG,0)+4) *'Electric Cooktops'!$AI$66 /ROUND(INDEX(LIFETIMES_TABLE,MATCH($C37,APPLIANCES,0),MATCH($C$25,LIFETIMES_HOUSING_TYPE,0)),0) -> 51908.86327 | M37: =INDEX(HOUSING_STOCK,MATCH($D$26,HOUSING_STOCK_YEARS,0)+2,MATCH($C$25,HOUSING_STOCK_BLDG,0)+4) *'Electric Cooktops'!$AI$66 /ROUND(INDEX(LIFETIMES_TABLE,MATCH($C37,APPLIANCES,0),MATCH($C$25,LIFETIMES_HOUSING_TYPE,0)),0) -> 51908.86327 | N37: =INDEX(HOUSING_STOCK,MATCH($D$26,HOUSING_STOCK_YEARS,0)+2,MATCH($C$25,HOUSING_STOCK_BLDG,0)+4) *'Electric Cooktops'!$AI$66 /ROUND(INDEX(LIFETIMES_TABLE,MATCH($C37,APPLIANCES,0),MATCH($C$25,LIFETIMES_HOUSING_TYPE,0)),0) -> 51908.86327 | O37: =INDEX(HOUSING_STOCK,MATCH($D$26,HOUSING_STOCK_YEARS,0)+2,MATCH($C$25,HOUSING_STOCK_BLDG,0)+4) *'Electric Cooktops'!$AI$66 /ROUND(INDEX(LIFETIMES_TABLE,MATCH($C37,APPLIANCES,0),MATCH($C$25,LIFETIMES_HOUSING_TYPE,0)),0) -> 51908.86327 | P37: =INDEX(HOUSING_STOCK,MATCH($D$26,HOUSING_STOCK_YEARS,0)+2,MATCH($C$25,HOUSING_STOCK_BLDG,0)+4) *'Electric Cooktops'!$AI$66 /ROUND(INDEX(LIFETIMES_TABLE,MATCH($C37,APPLIANCES,0),MATCH($C$25,LIFETIMES_HOUSING_TYPE,0)),0) -> 51908.86327 | Q37: =INDEX(HOUSING_STOCK,MATCH($D$26,HOUSING_STOCK_YEARS,0)+2,MATCH($C$25,HOUSING_STOCK_BLDG,0)+4) *'Electric Cooktops'!$AI$66 /ROUND(INDEX(LIFETIMES_TABLE,MATCH($C37,APPLIANCES,0),MATCH($C$25,LIFETIMES_HOUSING_TYPE,0)),0) -> 51908.86327 | R37: =INDEX(HOUSING_STOCK,MATCH($D$26,HOUSING_STOCK_YEARS,0)+2,MATCH($C$25,HOUSING_STOCK_BLDG,0)+4) *'Electric Cooktops'!$AI$66 /ROUND(INDEX(LIFETIMES_TABLE,MATCH($C37,APPLIANCES,0),MATCH($C$25,LIFETIMES_HOUSING_TYPE,0)),0) -> 51908.86327 | S37: =INDEX(HOUSING_STOCK,MATCH($D$26,HOUSING_STOCK_YEARS,0)+2,MATCH($C$25,HOUSING_STOCK_BLDG,0)+4) *'Electric Cooktops'!$AI$66 /ROUND(INDEX(LIFETIMES_TABLE,MATCH($C37,APPLIANCES,0),MATCH($C$25,LIFETIMES_HOUSING_TYPE,0)),0) -> 51908.86327 | T37: =INDEX(HOUSING_STOCK,MATCH($D$26,HOUSING_STOCK_YEARS,0)+2,MATCH($C$25,HOUSING_STOCK_BLDG,0)+4) *'Electric Cooktops'!$AI$66 /ROUND(INDEX(LIFETIMES_TABLE,MATCH($C37,APPLIANCES,0),MATCH($C$25,LIFETIMES_HOUSING_TYPE,0)),0) -> 51908.86327 | U37: =INDEX(HOUSING_STOCK,MATCH($D$26,HOUSING_STOCK_YEARS,0)+2,MATCH($C$25,HOUSING_STOCK_BLDG,0)+4) *'Electric Cooktops'!$AI$66 /ROUND(INDEX(LIFETIMES_TABLE,MATCH($C37,APPLIANCES,0),MATCH($C$25,LIFETIMES_HOUSING_TYPE,0)),0) -> 51908.86327 | V37: =INDEX(HOUSING_STOCK,MATCH($D$26,HOUSING_STOCK_YEARS,0)+2,MATCH($C$25,HOUSING_STOCK_BLDG,0)+4) *'Electric Cooktops'!$AI$66 /ROUND(INDEX(LIFETIMES_TABLE,MATCH($C37,APPLIANCES,0),MATCH($C$25,LIFETIMES_HOUSING_TYPE,0)),0) -> 51908.86327 | W37: =INDEX(HOUSING_STOCK,MATCH($D$26,HOUSING_STOCK_YEARS,0)+2,MATCH($C$25,HOUSING_STOCK_BLDG,0)+4) *'Electric Cooktops'!$AI$66 /ROUND(INDEX(LIFETIMES_TABLE,MATCH($C37,APPLIANCES,0),MATCH($C$25,LIFETIMES_HOUSING_TYPE,0)),0) -> 51908.86327 | X37: =INDEX(HOUSING_STOCK,MATCH($D$26,HOUSING_STOCK_YEARS,0)+2,MATCH($C$25,HOUSING_STOCK_BLDG,0)+4) *'Electric Cooktops'!$AI$66 /ROUND(INDEX(LIFETIMES_TABLE,MATCH($C37,APPLIANCES,0),MATCH($C$25,LIFETIMES_HOUSING_TYPE,0)),0) -> 51908.86327 | Y37: =INDEX(HOUSING_STOCK,MATCH($D$26,HOUSING_STOCK_YEARS,0)+2,MATCH($C$25,HOUSING_STOCK_BLDG,0)+4) *'Electric Cooktops'!$AI$66 /ROUND(INDEX(LIFETIMES_TABLE,MATCH($C37,APPLIANCES,0),MATCH($C$25,LIFETIMES_HOUSING_TYPE,0)),0) -> 51908.86327 | Z37: =INDEX(HOUSING_STOCK,MATCH($D$26,HOUSING_STOCK_YEARS,0)+2,MATCH($C$25,HOUSING_STOCK_BLDG,0)+4) *'Electric Cooktops'!$AI$66 /ROUND(INDEX(LIFETIMES_TABLE,MATCH($C37,APPLIANCES,0),MATCH($C$25,LIFETIMES_HOUSING_TYPE,0)),0) -> 51908.86327 | AA37: =INDEX(HOUSING_STOCK,MATCH($D$26,HOUSING_STOCK_YEARS,0)+2,MATCH($C$25,HOUSING_STOCK_BLDG,0)+4) *'Electric Cooktops'!$AI$66 /ROUND(INDEX(LIFETIMES_TABLE,MATCH($C37,APPLIANCES,0),MATCH($C$25,LIFETIMES_HOUSING_TYPE,0)),0) -> 51908.86327 | AB37: =INDEX(HOUSING_STOCK,MATCH($D$26,HOUSING_STOCK_YEARS,0)+2,MATCH($C$25,HOUSING_STOCK_BLDG,0)+4) *'Electric Cooktops'!$AI$66 /ROUND(INDEX(LIFETIMES_TABLE,MATCH($C37,APPLIANCES,0),MATCH($C$25,LIFETIMES_HOUSING_TYPE,0)),0) -> 51908.86327 | AD37: Calculated per method described in INFORMATION box
C38: Furnace Fans | D38: =INDEX(HOUSING_STOCK,MATCH($D$26,HOUSING_STOCK_YEARS,0)+2,MATCH($C$25,HOUSING_STOCK_BLDG,0)+4) *'Furnace Fans'!$AI$66 /ROUND(INDEX(LIFETIMES_TABLE,MATCH($C38,APPLIANCES,0),MATCH($C$25,LIFETIMES_HOUSING_TYPE,0)),0) -> 3296.999289 | E38: =INDEX(HOUSING_STOCK,MATCH($D$26,HOUSING_STOCK_YEARS,0)+2,MATCH($C$25,HOUSING_STOCK_BLDG,0)+4) *'Furnace Fans'!$AI$66 /ROUND(INDEX(LIFETIMES_TABLE,MATCH($C38,APPLIANCES,0),MATCH($C$25,LIFETIMES_HOUSING_TYPE,0)),0) -> 3296.999289 | F38: =INDEX(HOUSING_STOCK,MATCH($D$26,HOUSING_STOCK_YEARS,0)+2,MATCH($C$25,HOUSING_STOCK_BLDG,0)+4) *'Furnace Fans'!$AI$66 /ROUND(INDEX(LIFETIMES_TABLE,MATCH($C38,APPLIANCES,0),MATCH($C$25,LIFETIMES_HOUSING_TYPE,0)),0) -> 3296.999289 | G38: =INDEX(HOUSING_STOCK,MATCH($D$26,HOUSING_STOCK_YEARS,0)+2,MATCH($C$25,HOUSING_STOCK_BLDG,0)+4) *'Furnace Fans'!$AI$66 /ROUND(INDEX(LIFETIMES_TABLE,MATCH($C38,APPLIANCES,0),MATCH($C$25,LIFETIMES_HOUSING_TYPE,0)),0) -> 3296.999289 | H38: =INDEX(HOUSING_STOCK,MATCH($D$26,HOUSING_STOCK_YEARS,0)+2,MATCH($C$25,HOUSING_STOCK_BLDG,0)+4) *'Furnace Fans'!$AI$66 /ROUND(INDEX(LIFETIMES_TABLE,MATCH($C38,APPLIANCES,0),MATCH($C$25,LIFETIMES_HOUSING_TYPE,0)),0) -> 3296.999289 | I38: =INDEX(HOUSING_STOCK,MATCH($D$26,HOUSING_STOCK_YEARS,0)+2,MATCH($C$25,HOUSING_STOCK_BLDG,0)+4) *'Furnace Fans'!$AI$66 /ROUND(INDEX(LIFETIMES_TABLE,MATCH($C38,APPLIANCES,0),MATCH($C$25,LIFETIMES_HOUSING_TYPE,0)),0) -> 3296.999289 | J38: =INDEX(HOUSING_STOCK,MATCH($D$26,HOUSING_STOCK_YEARS,0)+2,MATCH($C$25,HOUSING_STOCK_BLDG,0)+4) *'Furnace Fans'!$AI$66 /ROUND(INDEX(LIFETIMES_TABLE,MATCH($C38,APPLIANCES,0),MATCH($C$25,LIFETIMES_HOUSING_TYPE,0)),0) -> 3296.999289 | K38: =INDEX(HOUSING_STOCK,MATCH($D$26,HOUSING_STOCK_YEARS,0)+2,MATCH($C$25,HOUSING_STOCK_BLDG,0)+4) *'Furnace Fans'!$AI$66 /ROUND(INDEX(LIFETIMES_TABLE,MATCH($C38,APPLIANCES,0),MATCH($C$25,LIFETIMES_HOUSING_TYPE,0)),0) -> 3296.999289 | L38: =INDEX(HOUSING_STOCK,MATCH($D$26,HOUSING_STOCK_YEARS,0)+2,MATCH($C$25,HOUSING_STOCK_BLDG,0)+4) *'Furnace Fans'!$AI$66 /ROUND(INDEX(LIFETIMES_TABLE,MATCH($C38,APPLIANCES,0),MATCH($C$25,LIFETIMES_HOUSING_TYPE,0)),0) -> 3296.999289 | M38: =INDEX(HOUSING_STOCK,MATCH($D$26,HOUSING_STOCK_YEARS,0)+2,MATCH($C$25,HOUSING_STOCK_BLDG,0)+4) *'Furnace Fans'!$AI$66 /ROUND(INDEX(LIFETIMES_TABLE,MATCH($C38,APPLIANCES,0),MATCH($C$25,LIFETIMES_HOUSING_TYPE,0)),0) -> 3296.999289 | N38: =INDEX(HOUSING_STOCK,MATCH($D$26,HOUSING_STOCK_YEARS,0)+2,MATCH($C$25,HOUSING_STOCK_BLDG,0)+4) *'Furnace Fans'!$AI$66 /ROUND(INDEX(LIFETIMES_TABLE,MATCH($C38,APPLIANCES,0),MATCH($C$25,LIFETIMES_HOUSING_TYPE,0)),0) -> 3296.999289 | O38: =INDEX(HOUSING_STOCK,MATCH($D$26,HOUSING_STOCK_YEARS,0)+2,MATCH($C$25,HOUSING_STOCK_BLDG,0)+4) *'Furnace Fans'!$AI$66 /ROUND(INDEX(LIFETIMES_TABLE,MATCH($C38,APPLIANCES,0),MATCH($C$25,LIFETIMES_HOUSING_TYPE,0)),0) -> 3296.999289 | P38: =INDEX(HOUSING_STOCK,MATCH($D$26,HOUSING_STOCK_YEARS,0)+2,MATCH($C$25,HOUSING_STOCK_BLDG,0)+4) *'Furnace Fans'!$AI$66 /ROUND(INDEX(LIFETIMES_TABLE,MATCH($C38,APPLIANCES,0),MATCH($C$25,LIFETIMES_HOUSING_TYPE,0)),0) -> 3296.999289 | Q38: =INDEX(HOUSING_STOCK,MATCH($D$26,HOUSING_STOCK_YEARS,0)+2,MATCH($C$25,HOUSING_STOCK_BLDG,0)+4) *'Furnace Fans'!$AI$66 /ROUND(INDEX(LIFETIMES_TABLE,MATCH($C38,APPLIANCES,0),MATCH($C$25,LIFETIMES_HOUSING_TYPE,0)),0) -> 3296.999289 | R38: =INDEX(HOUSING_STOCK,MATCH($D$26,HOUSING_STOCK_YEARS,0)+2,MATCH($C$25,HOUSING_STOCK_BLDG,0)+4) *'Furnace Fans'!$AI$66 /ROUND(INDEX(LIFETIMES_TABLE,MATCH($C38,APPLIANCES,0),MATCH($C$25,LIFETIMES_HOUSING_TYPE,0)),0) -> 3296.999289 | S38: =INDEX(HOUSING_STOCK,MATCH($D$26,HOUSING_STOCK_YEARS,0)+2,MATCH($C$25,HOUSING_STOCK_BLDG,0)+4) *'Furnace Fans'!$AI$66 /ROUND(INDEX(LIFETIMES_TABLE,MATCH($C38,APPLIANCES,0),MATCH($C$25,LIFETIMES_HOUSING_TYPE,0)),0) -> 3296.999289 | T38: =INDEX(HOUSING_STOCK,MATCH($D$26,HOUSING_STOCK_YEARS,0)+2,MATCH($C$25,HOUSING_STOCK_BLDG,0)+4) *'Furnace Fans'!$AI$66 /ROUND(INDEX(LIFETIMES_TABLE,MATCH($C38,APPLIANCES,0),MATCH($C$25,LIFETIMES_HOUSING_TYPE,0)),0) -> 3296.999289 | U38: =INDEX(HOUSING_STOCK,MATCH($D$26,HOUSING_STOCK_YEARS,0)+2,MATCH($C$25,HOUSING_STOCK_BLDG,0)+4) *'Furnace Fans'!$AI$66 /ROUND(INDEX(LIFETIMES_TABLE,MATCH($C38,APPLIANCES,0),MATCH($C$25,LIFETIMES_HOUSING_TYPE,0)),0) -> 3296.999289 | V38: =INDEX(HOUSING_STOCK,MATCH($D$26,HOUSING_STOCK_YEARS,0)+2,MATCH($C$25,HOUSING_STOCK_BLDG,0)+4) *'Furnace Fans'!$AI$66 /ROUND(INDEX(LIFETIMES_TABLE,MATCH($C38,APPLIANCES,0),MATCH($C$25,LIFETIMES_HOUSING_TYPE,0)),0) -> 3296.999289 | W38: =INDEX(HOUSING_STOCK,MATCH($D$26,HOUSING_STOCK_YEARS,0)+2,MATCH($C$25,HOUSING_STOCK_BLDG,0)+4) *'Furnace Fans'!$AI$66 /ROUND(INDEX(LIFETIMES_TABLE,MATCH($C38,APPLIANCES,0),MATCH($C$25,LIFETIMES_HOUSING_TYPE,0)),0) -> 3296.999289 | X38: =INDEX(HOUSING_STOCK,MATCH($D$26,HOUSING_STOCK_YEARS,0)+2,MATCH($C$25,HOUSING_STOCK_BLDG,0)+4) *'Furnace Fans'!$AI$66 /ROUND(INDEX(LIFETIMES_TABLE,MATCH($C38,APPLIANCES,0),MATCH($C$25,LIFETIMES_HOUSING_TYPE,0)),0) -> 3296.999289 | Y38: =INDEX(HOUSING_STOCK,MATCH($D$26,HOUSING_STOCK_YEARS,0)+2,MATCH($C$25,HOUSING_STOCK_BLDG,0)+4) *'Furnace Fans'!$AI$66 /ROUND(INDEX(LIFETIMES_TABLE,MATCH($C38,APPLIANCES,0),MATCH($C$25,LIFETIMES_HOUSING_TYPE,0)),0) -> 3296.999289 | Z38: =INDEX(HOUSING_STOCK,MATCH($D$26,HOUSING_STOCK_YEARS,0)+2,MATCH($C$25,HOUSING_STOCK_BLDG,0)+4) *'Furnace Fans'!$AI$66 /ROUND(INDEX(LIFETIMES_TABLE,MATCH($C38,APPLIANCES,0),MATCH($C$25,LIFETIMES_HOUSING_TYPE,0)),0) -> 3296.999289 | AA38: =INDEX(HOUSING_STOCK,MATCH($D$26,HOUSING_STOCK_YEARS,0)+2,MATCH($C$25,HOUSING_STOCK_BLDG,0)+4) *'Furnace Fans'!$AI$66 /ROUND(INDEX(LIFETIMES_TABLE,MATCH($C38,APPLIANCES,0),MATCH($C$25,LIFETIMES_HOUSING_TYPE,0)),0) -> 3296.999289 | AB38: =INDEX(HOUSING_STOCK,MATCH($D$26,HOUSING_STOCK_YEARS,0)+2,MATCH($C$25,HOUSING_STOCK_BLDG,0)+4) *'Furnace Fans'!$AI$66 /ROUND(INDEX(LIFETIMES_TABLE,MATCH($C38,APPLIANCES,0),MATCH($C$25,LIFETIMES_HOUSING_TYPE,0)),0) -> 3296.999289 | AD38: Calculated per method described in INFORMATION box
C39: Electric Clothes Dryers | D39: 66509.12236 | E39: 70024.19139 | F39: 71011.73817 | G39: 71698.41604 | H39: 72650.88858 | I39: 73781.82175 | J39: 75845.62539 | K39: 76404.26 | L39: 77017.15007 | M39: 77725.63484 | N39: 78144.35201 | O39: 77803.05745 | P39: 78015.44227 | Q39: 78103.66417 | R39: 19226.12622 | S39: 19018.35426 | T39: 18733.14614 | U39: 18644.66093 | V39: 18607.22791 | W39: 18545.19765 | X39: 18343.42529 | Y39: =X39 -> 18343.42529 | Z39: =Y39 -> 18343.42529 | AA39: =Z39 -> 18343.42529 | AB39: =AA39 -> 18343.42529 | AD39: 6P Supply Curve File - PNWResSectorSupplyCurveUnits_6th_Fnl: 'DHW & Appliance Units' tab, Range N147:AH147
C43: Manufactured Homes
C44: Year | D44: 2010 | E44: 2011 | F44: 2012 | G44: 2013 | H44: 2014 | I44: 2015 | J44: 2016 | K44: 2017 | L44: 2018 | M44: 2019 | N44: 2020 | O44: 2021 | P44: 2022 | Q44: 2023 | R44: 2024 | S44: 2025 | T44: 2026 | U44: 2027 | V44: 2028 | W44: 2029 | X44: 2030 | Y44: 2031 | Z44: 2032 | AA44: 2033 | AB44: 2034 | AD44: Source
C45: Electric Water Heaters | D45: 37429.96897 | E45: 37348.08048 | F45: 37165.67725 | G45: 36936.44715 | H45: 37028.30209 | I45: 36734.01335 | J45: 36511.14645 | K45: 36381.94111 | L45: 36358.80109 | M45: 36436.69205 | N45: 36587.91233 | O45: 36781.69668 | P45: 4957.716585 | Q45: 5112.552038 | R45: 5197.168588 | S45: 5194.226243 | T45: 5102.03543 | U45: 4935.935794 | V45: 4722.727858 | W45: 4496.181374 | X45: 4291.315111 | Y45: =X45 -> 4291.315111 | Z45: 4291.315111 | AA45: 4291.315111 | AB45: 4291.315111 | AD45: 6P Supply Curve File - PNWResSectorSupplyCurveUnits_6th_Fnl: 'DHW & Appliance Units' tab, Range N154:AH154
C46: Dishwashers | D46: 50633.5503 | E46: 51170.68828 | F46: 50957.35525 | G46: 50689.25498 | H46: 50345.96679 | I46: 50028.25222 | J46: 49787.64478 | K46: 49648.15449 | L46: 49623.17249 | M46: 4769.922787 | N46: 4933.180424 | O46: 5142.39031 | P46: 5352.358357 | Q46: 5519.518947 | R46: 5610.871104 | S46: 5607.694544 | T46: 5508.165201 | U46: 5328.843782 | V46: 5098.664171 | W46: 4854.084242 | X46: 4632.910314 | Y46: 4632.910314 | Z46: 4632.910314 | AA46: 4632.910314 | AB46: 4632.910314 | AD46: 6P Supply Curve File - PNWResSectorSupplyCurveUnits_6th_Fnl: 'DHW & Appliance Units' tab, Range N159:AH159
C47: Refrigerators | D47: 45015.37405 | E47: 44871.56953 | F47: 44551.25088 | G47: 44148.69946 | H47: 43633.25369 | I47: 43156.20662 | J47: 42794.93556 | K47: 42585.49148 | L47: 42547.98111 | M47: 42674.2437 | N47: 42919.37435 | O47: 43639.88512 | P47: 43971.74421 | Q47: 44235.94518 | R47: 44380.32926 | S47: 44375.30864 | T47: 44218.00033 | U47: 43934.57891 | V47: 43570.775 | W47: 7671.986257 | X47: 7322.416028 | Y47: 7322.416028 | Z47: 7322.416028 | AA47: 7322.416028 | AB47: 7322.416028 | AD47: 6P Supply Curve File - PNWResSectorSupplyCurveUnits_6th_Fnl: 'DHW & Appliance Units' tab, Range N155:AH155
C48: Freezers | D48: 20342.76763 | E48: 20269.94766 | F48: 20107.74418 | G48: 19903.89952 | H48: 19642.88725 | I48: 19401.31936 | J48: 19218.37833 | K48: 19112.31969 | L48: 19093.32513 | M48: 19157.26219 | N48: 19281.39185 | O48: 19440.46038 | P48: 19600.10537 | Q48: 19727.20256 | R48: 19990.57457 | S48: 19988.04955 | T48: 19908.93464 | U48: 19766.39377 | V48: 19583.42622 | W48: 19389.01199 | X48: 19213.20297 | Y48: 19213.20297 | Z48: 19213.20297 | AA48: 19213.20297 | AB48: 19213.20297 | AD48: 6P Supply Curve File - PNWResSectorSupplyCurveUnits_6th_Fnl: 'DHW & Appliance Units' tab, Range N156:AH156
C49: Clothes Washers | D49: 43611.40701 | E49: 43502.71201 | F49: 43260.5984 | G49: 42956.32894 | H49: 42566.72802 | I49: 42206.15085 | J49: 42326.27285 | K49: 42156.65627 | L49: 42126.2788 | M49: 42228.53153 | N49: 42427.04859 | O49: 42681.4424 | P49: 42936.7581 | Q49: 43140.02106 | R49: 6822.674024 | S49: 6818.81141 | T49: 6697.786305 | U49: 6479.736102 | V49: 6199.843652 | W49: 5902.44079 | X49: 5633.499019 | Y49: 5633.499019 | Z49: 5633.499019 | AA49: 5633.499019 | AB49: 5633.499019 | AD49: 6P Supply Curve File - PNWResSectorSupplyCurveUnits_6th_Fnl: 'DHW & Appliance Units' tab, Range N157:AH157
C50: Heat Pumps | D50: =D85/Lifetimes!$J$15+'6P Shipments'!D86 -> 3618.190216 | E50: =E85/Lifetimes!$J$15+'6P Shipments'!E86 -> 3601.505277 | F50: =F85/Lifetimes!$J$15+'6P Shipments'!F86 -> 3564.340265 | G50: =G85/Lifetimes!$J$15+'6P Shipments'!G86 -> 3517.634185 | H50: =H85/Lifetimes!$J$15+'6P Shipments'!H86 -> 3457.829525 | I50: =I85/Lifetimes!$J$15+'6P Shipments'!I86 -> 3402.480077 | J50: =J85/Lifetimes!$J$15+'6P Shipments'!J86 -> 3360.563557 | K50: =K85/Lifetimes!$J$15+'6P Shipments'!K86 -> 3336.262781 | L50: =L85/Lifetimes!$J$15+'6P Shipments'!L86 -> 3331.910636 | M50: =M85/Lifetimes!$J$15+'6P Shipments'!M86 -> 3346.560268 | N50: =N85/Lifetimes!$J$15+'6P Shipments'!N86 -> 3375.001583 | O50: =O85/Lifetimes!$J$15+'6P Shipments'!O86 -> 3411.448297 | P50: =P85/Lifetimes!$J$15+'6P Shipments'!P86 -> 3448.02709 | Q50: =Q85/Lifetimes!$J$15+'6P Shipments'!Q86 -> 3477.148343 | R50: =R85/Lifetimes!$J$15+'6P Shipments'!R86 -> 3493.062915 | S50: =S85/Lifetimes!$J$15+'6P Shipments'!S86 -> 3492.509523 | T50: =T85/Lifetimes!$J$15+'6P Shipments'!T86 -> 3475.170393 | U50: =U85/Lifetimes!$J$15+'6P Shipments'!U86 -> 3443.930587 | V50: =V85/Lifetimes!$J$15+'6P Shipments'!V86 -> 3403.830712 | W50: =W85/Lifetimes!$J$15+'6P Shipments'!W86 -> 3361.22214 | X50: =X85/Lifetimes!$J$15+'6P Shipments'!X86 -> 3322.691156 | Y50: 3322.691156 | Z50: 3322.691156 | AA50: 3322.691156 | AB50: 3322.691156 | AD50: Calculated per method described in INFORMATION box
C51: Room AC | D51: 8375.235668 | E51: 8464.083026 | F51: 8428.795861 | G51: 8384.449712 | H51: 8327.666818 | I51: 8275.114028 | J51: 8235.315435 | K51: 8212.242512 | L51: 8208.110268 | M51: 788.9872865 | N51: 815.9915391 | O51: 850.596699 | P51: 885.3272652 | Q51: 912.9771007 | R51: 928.0875529 | S51: 927.5621219 | T51: 911.099091 | U51: 881.4377473 | V51: 843.3640099 | W51: 802.9083333 | X51: 766.3242154 | Y51: 766.3242154 | Z51: 766.3242154 | AA51: 766.3242154 | AB51: 766.3242154 | AD51: 6P Supply Curve File - PNWResSectorSupplyCurveUnits_6th_Fnl: 'DHW & Appliance Units' tab, Range N161:AH161
C52: Central AC | D52: 21736.325 | E52: 21669.80241 | F52: 21521.62608 | G52: 21335.40966 | H52: 21096.96939 | I52: 20876.292 | J52: 20709.17148 | K52: 20612.28466 | L52: 20594.93272 | M52: 20653.34058 | N52: 20957.09546 | O52: 21110.48086 | P52: 21264.42212 | Q52: 21386.97844 | R52: 21453.95466 | S52: 21451.62571 | T52: 21378.65427 | U52: 21247.18205 | V52: 3738.162952 | W52: 3558.845469 | X52: 3396.688449 | Y52: 3396.688449 | Z52: 3396.688449 | AA52: 3396.688449 | AB52: 3396.688449 | AD52: 6P Supply Curve File - PNWResSectorSupplyCurveUnits_6th_Fnl: 'DHW & Appliance Units' tab, Range N162:AH162
C53: Electric Ovens | D53: 31811.19046 | E53: 31705.39448 | F53: 31469.73829 | G53: 31173.58403 | H53: 30794.37419 | I53: 30443.414 | J53: 30177.62942 | K53: 30023.54288 | L53: 29995.94676 | M53: 30088.83726 | N53: 30269.17817 | O53: 30500.27976 | P53: 31027.84027 | Q53: 31221.72515 | R53: 31327.68195 | S53: 31323.99754 | T53: 31208.55626 | U53: 31000.56638 | V53: 30733.58751 | W53: 30449.90613 | X53: 5373.582528 | Y53: 5373.582528 | Z53: 5373.582528 | AA53: 5373.582528 | AB53: 5373.582528 | AD53: 6P Supply Curve File - PNWResSectorSupplyCurveUnits_6th_Fnl: 'DHW & Appliance Units' tab, Range N160:AH160
C54: Microwave Ovens | D54: =INDEX(HOUSING_STOCK,MATCH($D$44,HOUSING_STOCK_YEARS,0)+2,MATCH($C$43,HOUSING_STOCK_BLDG,0)+4) *'Microwave Ovens'!$BG$66 /ROUND(INDEX(LIFETIMES_TABLE,MATCH($C54,APPLIANCES,0),MATCH($C$43,LIFETIMES_HOUSING_TYPE,0)),0) -> 64884.56483 | E54: =INDEX(HOUSING_STOCK,MATCH($D$44,HOUSING_STOCK_YEARS,0)+2,MATCH($C$43,HOUSING_STOCK_BLDG,0)+4) *'Microwave Ovens'!$BG$66 /ROUND(INDEX(LIFETIMES_TABLE,MATCH($C54,APPLIANCES,0),MATCH($C$43,LIFETIMES_HOUSING_TYPE,0)),0) -> 64884.56483 | F54: =INDEX(HOUSING_STOCK,MATCH($D$44,HOUSING_STOCK_YEARS,0)+2,MATCH($C$43,HOUSING_STOCK_BLDG,0)+4) *'Microwave Ovens'!$BG$66 /ROUND(INDEX(LIFETIMES_TABLE,MATCH($C54,APPLIANCES,0),MATCH($C$43,LIFETIMES_HOUSING_TYPE,0)),0) -> 64884.56483 | G54: =INDEX(HOUSING_STOCK,MATCH($D$44,HOUSING_STOCK_YEARS,0)+2,MATCH($C$43,HOUSING_STOCK_BLDG,0)+4) *'Microwave Ovens'!$BG$66 /ROUND(INDEX(LIFETIMES_TABLE,MATCH($C54,APPLIANCES,0),MATCH($C$43,LIFETIMES_HOUSING_TYPE,0)),0) -> 64884.56483 | H54: =INDEX(HOUSING_STOCK,MATCH($D$44,HOUSING_STOCK_YEARS,0)+2,MATCH($C$43,HOUSING_STOCK_BLDG,0)+4) *'Microwave Ovens'!$BG$66 /ROUND(INDEX(LIFETIMES_TABLE,MATCH($C54,APPLIANCES,0),MATCH($C$43,LIFETIMES_HOUSING_TYPE,0)),0) -> 64884.56483 | I54: =INDEX(HOUSING_STOCK,MATCH($D$44,HOUSING_STOCK_YEARS,0)+2,MATCH($C$43,HOUSING_STOCK_BLDG,0)+4) *'Microwave Ovens'!$BG$66 /ROUND(INDEX(LIFETIMES_TABLE,MATCH($C54,APPLIANCES,0),MATCH($C$43,LIFETIMES_HOUSING_TYPE,0)),0) -> 64884.56483 | J54: =INDEX(HOUSING_STOCK,MATCH($D$44,HOUSING_STOCK_YEARS,0)+2,MATCH($C$43,HOUSING_STOCK_BLDG,0)+4) *'Microwave Ovens'!$BG$66 /ROUND(INDEX(LIFETIMES_TABLE,MATCH($C54,APPLIANCES,0),MATCH($C$43,LIFETIMES_HOUSING_TYPE,0)),0) -> 64884.56483 | K54: =INDEX(HOUSING_STOCK,MATCH($D$44,HOUSING_STOCK_YEARS,0)+2,MATCH($C$43,HOUSING_STOCK_BLDG,0)+4) *'Microwave Ovens'!$BG$66 /ROUND(INDEX(LIFETIMES_TABLE,MATCH($C54,APPLIANCES,0),MATCH($C$43,LIFETIMES_HOUSING_TYPE,0)),0) -> 64884.56483 | L54: =INDEX(HOUSING_STOCK,MATCH($D$44,HOUSING_STOCK_YEARS,0)+2,MATCH($C$43,HOUSING_STOCK_BLDG,0)+4) *'Microwave Ovens'!$BG$66 /ROUND(INDEX(LIFETIMES_TABLE,MATCH($C54,APPLIANCES,0),MATCH($C$43,LIFETIMES_HOUSING_TYPE,0)),0) -> 64884.56483 | M54: =INDEX(HOUSING_STOCK,MATCH($D$44,HOUSING_STOCK_YEARS,0)+2,MATCH($C$43,HOUSING_STOCK_BLDG,0)+4) *'Microwave Ovens'!$BG$66 /ROUND(INDEX(LIFETIMES_TABLE,MATCH($C54,APPLIANCES,0),MATCH($C$43,LIFETIMES_HOUSING_TYPE,0)),0) -> 64884.56483 | N54: =INDEX(HOUSING_STOCK,MATCH($D$44,HOUSING_STOCK_YEARS,0)+2,MATCH($C$43,HOUSING_STOCK_BLDG,0)+4) *'Microwave Ovens'!$BG$66 /ROUND(INDEX(LIFETIMES_TABLE,MATCH($C54,APPLIANCES,0),MATCH($C$43,LIFETIMES_HOUSING_TYPE,0)),0) -> 64884.56483 | O54: =INDEX(HOUSING_STOCK,MATCH($D$44,HOUSING_STOCK_YEARS,0)+2,MATCH($C$43,HOUSING_STOCK_BLDG,0)+4) *'Microwave Ovens'!$BG$66 /ROUND(INDEX(LIFETIMES_TABLE,MATCH($C54,APPLIANCES,0),MATCH($C$43,LIFETIMES_HOUSING_TYPE,0)),0) -> 64884.56483 | P54: =INDEX(HOUSING_STOCK,MATCH($D$44,HOUSING_STOCK_YEARS,0)+2,MATCH($C$43,HOUSING_STOCK_BLDG,0)+4) *'Microwave Ovens'!$BG$66 /ROUND(INDEX(LIFETIMES_TABLE,MATCH($C54,APPLIANCES,0),MATCH($C$43,LIFETIMES_HOUSING_TYPE,0)),0) -> 64884.56483 | Q54: =INDEX(HOUSING_STOCK,MATCH($D$44,HOUSING_STOCK_YEARS,0)+2,MATCH($C$43,HOUSING_STOCK_BLDG,0)+4) *'Microwave Ovens'!$BG$66 /ROUND(INDEX(LIFETIMES_TABLE,MATCH($C54,APPLIANCES,0),MATCH($C$43,LIFETIMES_HOUSING_TYPE,0)),0) -> 64884.56483 | R54: =INDEX(HOUSING_STOCK,MATCH($D$44,HOUSING_STOCK_YEARS,0)+2,MATCH($C$43,HOUSING_STOCK_BLDG,0)+4) *'Microwave Ovens'!$BG$66 /ROUND(INDEX(LIFETIMES_TABLE,MATCH($C54,APPLIANCES,0),MATCH($C$43,LIFETIMES_HOUSING_TYPE,0)),0) -> 64884.56483 | S54: =INDEX(HOUSING_STOCK,MATCH($D$44,HOUSING_STOCK_YEARS,0)+2,MATCH($C$43,HOUSING_STOCK_BLDG,0)+4) *'Microwave Ovens'!$BG$66 /ROUND(INDEX(LIFETIMES_TABLE,MATCH($C54,APPLIANCES,0),MATCH($C$43,LIFETIMES_HOUSING_TYPE,0)),0) -> 64884.56483 | T54: =INDEX(HOUSING_STOCK,MATCH($D$44,HOUSING_STOCK_YEARS,0)+2,MATCH($C$43,HOUSING_STOCK_BLDG,0)+4) *'Microwave Ovens'!$BG$66 /ROUND(INDEX(LIFETIMES_TABLE,MATCH($C54,APPLIANCES,0),MATCH($C$43,LIFETIMES_HOUSING_TYPE,0)),0) -> 64884.56483 | U54: =INDEX(HOUSING_STOCK,MATCH($D$44,HOUSING_STOCK_YEARS,0)+2,MATCH($C$43,HOUSING_STOCK_BLDG,0)+4) *'Microwave Ovens'!$BG$66 /ROUND(INDEX(LIFETIMES_TABLE,MATCH($C54,APPLIANCES,0),MATCH($C$43,LIFETIMES_HOUSING_TYPE,0)),0) -> 64884.56483 | V54: =INDEX(HOUSING_STOCK,MATCH($D$44,HOUSING_STOCK_YEARS,0)+2,MATCH($C$43,HOUSING_STOCK_BLDG,0)+4) *'Microwave Ovens'!$BG$66 /ROUND(INDEX(LIFETIMES_TABLE,MATCH($C54,APPLIANCES,0),MATCH($C$43,LIFETIMES_HOUSING_TYPE,0)),0) -> 64884.56483 | W54: =INDEX(HOUSING_STOCK,MATCH($D$44,HOUSING_STOCK_YEARS,0)+2,MATCH($C$43,HOUSING_STOCK_BLDG,0)+4) *'Microwave Ovens'!$BG$66 /ROUND(INDEX(LIFETIMES_TABLE,MATCH($C54,APPLIANCES,0),MATCH($C$43,LIFETIMES_HOUSING_TYPE,0)),0) -> 64884.56483 | X54: =INDEX(HOUSING_STOCK,MATCH($D$44,HOUSING_STOCK_YEARS,0)+2,MATCH($C$43,HOUSING_STOCK_BLDG,0)+4) *'Microwave Ovens'!$BG$66 /ROUND(INDEX(LIFETIMES_TABLE,MATCH($C54,APPLIANCES,0),MATCH($C$43,LIFETIMES_HOUSING_TYPE,0)),0) -> 64884.56483 | Y54: =INDEX(HOUSING_STOCK,MATCH($D$44,HOUSING_STOCK_YEARS,0)+2,MATCH($C$43,HOUSING_STOCK_BLDG,0)+4) *'Microwave Ovens'!$BG$66 /ROUND(INDEX(LIFETIMES_TABLE,MATCH($C54,APPLIANCES,0),MATCH($C$43,LIFETIMES_HOUSING_TYPE,0)),0) -> 64884.56483 | Z54: =INDEX(HOUSING_STOCK,MATCH($D$44,HOUSING_STOCK_YEARS,0)+2,MATCH($C$43,HOUSING_STOCK_BLDG,0)+4) *'Microwave Ovens'!$BG$66 /ROUND(INDEX(LIFETIMES_TABLE,MATCH($C54,APPLIANCES,0),MATCH($C$43,LIFETIMES_HOUSING_TYPE,0)),0) -> 64884.56483 | AA54: =INDEX(HOUSING_STOCK,MATCH($D$44,HOUSING_STOCK_YEARS,0)+2,MATCH($C$43,HOUSING_STOCK_BLDG,0)+4) *'Microwave Ovens'!$BG$66 /ROUND(INDEX(LIFETIMES_TABLE,MATCH($C54,APPLIANCES,0),MATCH($C$43,LIFETIMES_HOUSING_TYPE,0)),0) -> 64884.56483 | AB54: =INDEX(HOUSING_STOCK,MATCH($D$44,HOUSING_STOCK_YEARS,0)+2,MATCH($C$43,HOUSING_STOCK_BLDG,0)+4) *'Microwave Ovens'!$BG$66 /ROUND(INDEX(LIFETIMES_TABLE,MATCH($C54,APPLIANCES,0),MATCH($C$43,LIFETIMES_HOUSING_TYPE,0)),0) -> 64884.56483 | AD54: Calculated per method described in INFORMATION box
C55: Electric Cooktops | D55: =INDEX(HOUSING_STOCK,MATCH($D$44,HOUSING_STOCK_YEARS,0)+2,MATCH($C$43,HOUSING_STOCK_BLDG,0)+4) *'Electric Cooktops'!$BG$66 /ROUND(INDEX(LIFETIMES_TABLE,MATCH($C55,APPLIANCES,0),MATCH($C$43,LIFETIMES_HOUSING_TYPE,0)),0) -> 28808.94005 | E55: =INDEX(HOUSING_STOCK,MATCH($D$44,HOUSING_STOCK_YEARS,0)+2,MATCH($C$43,HOUSING_STOCK_BLDG,0)+4) *'Electric Cooktops'!$BG$66 /ROUND(INDEX(LIFETIMES_TABLE,MATCH($C55,APPLIANCES,0),MATCH($C$43,LIFETIMES_HOUSING_TYPE,0)),0) -> 28808.94005 | F55: =INDEX(HOUSING_STOCK,MATCH($D$44,HOUSING_STOCK_YEARS,0)+2,MATCH($C$43,HOUSING_STOCK_BLDG,0)+4) *'Electric Cooktops'!$BG$66 /ROUND(INDEX(LIFETIMES_TABLE,MATCH($C55,APPLIANCES,0),MATCH($C$43,LIFETIMES_HOUSING_TYPE,0)),0) -> 28808.94005 | G55: =INDEX(HOUSING_STOCK,MATCH($D$44,HOUSING_STOCK_YEARS,0)+2,MATCH($C$43,HOUSING_STOCK_BLDG,0)+4) *'Electric Cooktops'!$BG$66 /ROUND(INDEX(LIFETIMES_TABLE,MATCH($C55,APPLIANCES,0),MATCH($C$43,LIFETIMES_HOUSING_TYPE,0)),0) -> 28808.94005 | H55: =INDEX(HOUSING_STOCK,MATCH($D$44,HOUSING_STOCK_YEARS,0)+2,MATCH($C$43,HOUSING_STOCK_BLDG,0)+4) *'Electric Cooktops'!$BG$66 /ROUND(INDEX(LIFETIMES_TABLE,MATCH($C55,APPLIANCES,0),MATCH($C$43,LIFETIMES_HOUSING_TYPE,0)),0) -> 28808.94005 | I55: =INDEX(HOUSING_STOCK,MATCH($D$44,HOUSING_STOCK_YEARS,0)+2,MATCH($C$43,HOUSING_STOCK_BLDG,0)+4) *'Electric Cooktops'!$BG$66 /ROUND(INDEX(LIFETIMES_TABLE,MATCH($C55,APPLIANCES,0),MATCH($C$43,LIFETIMES_HOUSING_TYPE,0)),0) -> 28808.94005 | J55: =INDEX(HOUSING_STOCK,MATCH($D$44,HOUSING_STOCK_YEARS,0)+2,MATCH($C$43,HOUSING_STOCK_BLDG,0)+4) *'Electric Cooktops'!$BG$66 /ROUND(INDEX(LIFETIMES_TABLE,MATCH($C55,APPLIANCES,0),MATCH($C$43,LIFETIMES_HOUSING_TYPE,0)),0) -> 28808.94005 | K55: =INDEX(HOUSING_STOCK,MATCH($D$44,HOUSING_STOCK_YEARS,0)+2,MATCH($C$43,HOUSING_STOCK_BLDG,0)+4) *'Electric Cooktops'!$BG$66 /ROUND(INDEX(LIFETIMES_TABLE,MATCH($C55,APPLIANCES,0),MATCH($C$43,LIFETIMES_HOUSING_TYPE,0)),0) -> 28808.94005 | L55: =INDEX(HOUSING_STOCK,MATCH($D$44,HOUSING_STOCK_YEARS,0)+2,MATCH($C$43,HOUSING_STOCK_BLDG,0)+4) *'Electric Cooktops'!$BG$66 /ROUND(INDEX(LIFETIMES_TABLE,MATCH($C55,APPLIANCES,0),MATCH($C$43,LIFETIMES_HOUSING_TYPE,0)),0) -> 28808.94005 | M55: =INDEX(HOUSING_STOCK,MATCH($D$44,HOUSING_STOCK_YEARS,0)+2,MATCH($C$43,HOUSING_STOCK_BLDG,0)+4) *'Electric Cooktops'!$BG$66 /ROUND(INDEX(LIFETIMES_TABLE,MATCH($C55,APPLIANCES,0),MATCH($C$43,LIFETIMES_HOUSING_TYPE,0)),0) -> 28808.94005 | N55: =INDEX(HOUSING_STOCK,MATCH($D$44,HOUSING_STOCK_YEARS,0)+2,MATCH($C$43,HOUSING_STOCK_BLDG,0)+4) *'Electric Cooktops'!$BG$66 /ROUND(INDEX(LIFETIMES_TABLE,MATCH($C55,APPLIANCES,0),MATCH($C$43,LIFETIMES_HOUSING_TYPE,0)),0) -> 28808.94005 | O55: =INDEX(HOUSING_STOCK,MATCH($D$44,HOUSING_STOCK_YEARS,0)+2,MATCH($C$43,HOUSING_STOCK_BLDG,0)+4) *'Electric Cooktops'!$BG$66 /ROUND(INDEX(LIFETIMES_TABLE,MATCH($C55,APPLIANCES,0),MATCH($C$43,LIFETIMES_HOUSING_TYPE,0)),0) -> 28808.94005 | P55: =INDEX(HOUSING_STOCK,MATCH($D$44,HOUSING_STOCK_YEARS,0)+2,MATCH($C$43,HOUSING_STOCK_BLDG,0)+4) *'Electric Cooktops'!$BG$66 /ROUND(INDEX(LIFETIMES_TABLE,MATCH($C55,APPLIANCES,0),MATCH($C$43,LIFETIMES_HOUSING_TYPE,0)),0) -> 28808.94005 | Q55: =INDEX(HOUSING_STOCK,MATCH($D$44,HOUSING_STOCK_YEARS,0)+2,MATCH($C$43,HOUSING_STOCK_BLDG,0)+4) *'Electric Cooktops'!$BG$66 /ROUND(INDEX(LIFETIMES_TABLE,MATCH($C55,APPLIANCES,0),MATCH($C$43,LIFETIMES_HOUSING_TYPE,0)),0) -> 28808.94005 | R55: =INDEX(HOUSING_STOCK,MATCH($D$44,HOUSING_STOCK_YEARS,0)+2,MATCH($C$43,HOUSING_STOCK_BLDG,0)+4) *'Electric Cooktops'!$BG$66 /ROUND(INDEX(LIFETIMES_TABLE,MATCH($C55,APPLIANCES,0),MATCH($C$43,LIFETIMES_HOUSING_TYPE,0)),0) -> 28808.94005 | S55: =INDEX(HOUSING_STOCK,MATCH($D$44,HOUSING_STOCK_YEARS,0)+2,MATCH($C$43,HOUSING_STOCK_BLDG,0)+4) *'Electric Cooktops'!$BG$66 /ROUND(INDEX(LIFETIMES_TABLE,MATCH($C55,APPLIANCES,0),MATCH($C$43,LIFETIMES_HOUSING_TYPE,0)),0) -> 28808.94005 | T55: =INDEX(HOUSING_STOCK,MATCH($D$44,HOUSING_STOCK_YEARS,0)+2,MATCH($C$43,HOUSING_STOCK_BLDG,0)+4) *'Electric Cooktops'!$BG$66 /ROUND(INDEX(LIFETIMES_TABLE,MATCH($C55,APPLIANCES,0),MATCH($C$43,LIFETIMES_HOUSING_TYPE,0)),0) -> 28808.94005 | U55: =INDEX(HOUSING_STOCK,MATCH($D$44,HOUSING_STOCK_YEARS,0)+2,MATCH($C$43,HOUSING_STOCK_BLDG,0)+4) *'Electric Cooktops'!$BG$66 /ROUND(INDEX(LIFETIMES_TABLE,MATCH($C55,APPLIANCES,0),MATCH($C$43,LIFETIMES_HOUSING_TYPE,0)),0) -> 28808.94005 | V55: =INDEX(HOUSING_STOCK,MATCH($D$44,HOUSING_STOCK_YEARS,0)+2,MATCH($C$43,HOUSING_STOCK_BLDG,0)+4) *'Electric Cooktops'!$BG$66 /ROUND(INDEX(LIFETIMES_TABLE,MATCH($C55,APPLIANCES,0),MATCH($C$43,LIFETIMES_HOUSING_TYPE,0)),0) -> 28808.94005 | W55: =INDEX(HOUSING_STOCK,MATCH($D$44,HOUSING_STOCK_YEARS,0)+2,MATCH($C$43,HOUSING_STOCK_BLDG,0)+4) *'Electric Cooktops'!$BG$66 /ROUND(INDEX(LIFETIMES_TABLE,MATCH($C55,APPLIANCES,0),MATCH($C$43,LIFETIMES_HOUSING_TYPE,0)),0) -> 28808.94005 | X55: =INDEX(HOUSING_STOCK,MATCH($D$44,HOUSING_STOCK_YEARS,0)+2,MATCH($C$43,HOUSING_STOCK_BLDG,0)+4) *'Electric Cooktops'!$BG$66 /ROUND(INDEX(LIFETIMES_TABLE,MATCH($C55,APPLIANCES,0),MATCH($C$43,LIFETIMES_HOUSING_TYPE,0)),0) -> 28808.94005 | Y55: =INDEX(HOUSING_STOCK,MATCH($D$44,HOUSING_STOCK_YEARS,0)+2,MATCH($C$43,HOUSING_STOCK_BLDG,0)+4) *'Electric Cooktops'!$BG$66 /ROUND(INDEX(LIFETIMES_TABLE,MATCH($C55,APPLIANCES,0),MATCH($C$43,LIFETIMES_HOUSING_TYPE,0)),0) -> 28808.94005 | Z55: =INDEX(HOUSING_STOCK,MATCH($D$44,HOUSING_STOCK_YEARS,0)+2,MATCH($C$43,HOUSING_STOCK_BLDG,0)+4) *'Electric Cooktops'!$BG$66 /ROUND(INDEX(LIFETIMES_TABLE,MATCH($C55,APPLIANCES,0),MATCH($C$43,LIFETIMES_HOUSING_TYPE,0)),0) -> 28808.94005 | AA55: =INDEX(HOUSING_STOCK,MATCH($D$44,HOUSING_STOCK_YEARS,0)+2,MATCH($C$43,HOUSING_STOCK_BLDG,0)+4) *'Electric Cooktops'!$BG$66 /ROUND(INDEX(LIFETIMES_TABLE,MATCH($C55,APPLIANCES,0),MATCH($C$43,LIFETIMES_HOUSING_TYPE,0)),0) -> 28808.94005 | AB55: =INDEX(HOUSING_STOCK,MATCH($D$44,HOUSING_STOCK_YEARS,0)+2,MATCH($C$43,HOUSING_STOCK_BLDG,0)+4) *'Electric Cooktops'!$BG$66 /ROUND(INDEX(LIFETIMES_TABLE,MATCH($C55,APPLIANCES,0),MATCH($C$43,LIFETIMES_HOUSING_TYPE,0)),0) -> 28808.94005 | AD55: Calculated per method described in INFORMATION box
C56: Furnace Fans | D56: =INDEX(HOUSING_STOCK,MATCH($D$44,HOUSING_STOCK_YEARS,0)+2,MATCH($C$43,HOUSING_STOCK_BLDG,0)+4) *'Furnace Fans'!$BG$66 /ROUND(INDEX(LIFETIMES_TABLE,MATCH($C56,APPLIANCES,0),MATCH($C$43,LIFETIMES_HOUSING_TYPE,0)),0) -> 18752.38567 | E56: =INDEX(HOUSING_STOCK,MATCH($D$44,HOUSING_STOCK_YEARS,0)+2,MATCH($C$43,HOUSING_STOCK_BLDG,0)+4) *'Furnace Fans'!$BG$66 /ROUND(INDEX(LIFETIMES_TABLE,MATCH($C56,APPLIANCES,0),MATCH($C$43,LIFETIMES_HOUSING_TYPE,0)),0) -> 18752.38567 | F56: =INDEX(HOUSING_STOCK,MATCH($D$44,HOUSING_STOCK_YEARS,0)+2,MATCH($C$43,HOUSING_STOCK_BLDG,0)+4) *'Furnace Fans'!$BG$66 /ROUND(INDEX(LIFETIMES_TABLE,MATCH($C56,APPLIANCES,0),MATCH($C$43,LIFETIMES_HOUSING_TYPE,0)),0) -> 18752.38567 | G56: =INDEX(HOUSING_STOCK,MATCH($D$44,HOUSING_STOCK_YEARS,0)+2,MATCH($C$43,HOUSING_STOCK_BLDG,0)+4) *'Furnace Fans'!$BG$66 /ROUND(INDEX(LIFETIMES_TABLE,MATCH($C56,APPLIANCES,0),MATCH($C$43,LIFETIMES_HOUSING_TYPE,0)),0) -> 18752.38567 | H56: =INDEX(HOUSING_STOCK,MATCH($D$44,HOUSING_STOCK_YEARS,0)+2,MATCH($C$43,HOUSING_STOCK_BLDG,0)+4) *'Furnace Fans'!$BG$66 /ROUND(INDEX(LIFETIMES_TABLE,MATCH($C56,APPLIANCES,0),MATCH($C$43,LIFETIMES_HOUSING_TYPE,0)),0) -> 18752.38567 | I56: =INDEX(HOUSING_STOCK,MATCH($D$44,HOUSING_STOCK_YEARS,0)+2,MATCH($C$43,HOUSING_STOCK_BLDG,0)+4) *'Furnace Fans'!$BG$66 /ROUND(INDEX(LIFETIMES_TABLE,MATCH($C56,APPLIANCES,0),MATCH($C$43,LIFETIMES_HOUSING_TYPE,0)),0) -> 18752.38567 | J56: =INDEX(HOUSING_STOCK,MATCH($D$44,HOUSING_STOCK_YEARS,0)+2,MATCH($C$43,HOUSING_STOCK_BLDG,0)+4) *'Furnace Fans'!$BG$66 /ROUND(INDEX(LIFETIMES_TABLE,MATCH($C56,APPLIANCES,0),MATCH($C$43,LIFETIMES_HOUSING_TYPE,0)),0) -> 18752.38567 | K56: =INDEX(HOUSING_STOCK,MATCH($D$44,HOUSING_STOCK_YEARS,0)+2,MATCH($C$43,HOUSING_STOCK_BLDG,0)+4) *'Furnace Fans'!$BG$66 /ROUND(INDEX(LIFETIMES_TABLE,MATCH($C56,APPLIANCES,0),MATCH($C$43,LIFETIMES_HOUSING_TYPE,0)),0) -> 18752.38567 | L56: =INDEX(HOUSING_STOCK,MATCH($D$44,HOUSING_STOCK_YEARS,0)+2,MATCH($C$43,HOUSING_STOCK_BLDG,0)+4) *'Furnace Fans'!$BG$66 /ROUND(INDEX(LIFETIMES_TABLE,MATCH($C56,APPLIANCES,0),MATCH($C$43,LIFETIMES_HOUSING_TYPE,0)),0) -> 18752.38567 | M56: =INDEX(HOUSING_STOCK,MATCH($D$44,HOUSING_STOCK_YEARS,0)+2,MATCH($C$43,HOUSING_STOCK_BLDG,0)+4) *'Furnace Fans'!$BG$66 /ROUND(INDEX(LIFETIMES_TABLE,MATCH($C56,APPLIANCES,0),MATCH($C$43,LIFETIMES_HOUSING_TYPE,0)),0) -> 18752.38567 | N56: =INDEX(HOUSING_STOCK,MATCH($D$44,HOUSING_STOCK_YEARS,0)+2,MATCH($C$43,HOUSING_STOCK_BLDG,0)+4) *'Furnace Fans'!$BG$66 /ROUND(INDEX(LIFETIMES_TABLE,MATCH($C56,APPLIANCES,0),MATCH($C$43,LIFETIMES_HOUSING_TYPE,0)),0) -> 18752.38567 | O56: =INDEX(HOUSING_STOCK,MATCH($D$44,HOUSING_STOCK_YEARS,0)+2,MATCH($C$43,HOUSING_STOCK_BLDG,0)+4) *'Furnace Fans'!$BG$66 /ROUND(INDEX(LIFETIMES_TABLE,MATCH($C56,APPLIANCES,0),MATCH($C$43,LIFETIMES_HOUSING_TYPE,0)),0) -> 18752.38567 | P56: =INDEX(HOUSING_STOCK,MATCH($D$44,HOUSING_STOCK_YEARS,0)+2,MATCH($C$43,HOUSING_STOCK_BLDG,0)+4) *'Furnace Fans'!$BG$66 /ROUND(INDEX(LIFETIMES_TABLE,MATCH($C56,APPLIANCES,0),MATCH($C$43,LIFETIMES_HOUSING_TYPE,0)),0) -> 18752.38567 | Q56: =INDEX(HOUSING_STOCK,MATCH($D$44,HOUSING_STOCK_YEARS,0)+2,MATCH($C$43,HOUSING_STOCK_BLDG,0)+4) *'Furnace Fans'!$BG$66 /ROUND(INDEX(LIFETIMES_TABLE,MATCH($C56,APPLIANCES,0),MATCH($C$43,LIFETIMES_HOUSING_TYPE,0)),0) -> 18752.38567 | R56: =INDEX(HOUSING_STOCK,MATCH($D$44,HOUSING_STOCK_YEARS,0)+2,MATCH($C$43,HOUSING_STOCK_BLDG,0)+4) *'Furnace Fans'!$BG$66 /ROUND(INDEX(LIFETIMES_TABLE,MATCH($C56,APPLIANCES,0),MATCH($C$43,LIFETIMES_HOUSING_TYPE,0)),0) -> 18752.38567 | S56: =INDEX(HOUSING_STOCK,MATCH($D$44,HOUSING_STOCK_YEARS,0)+2,MATCH($C$43,HOUSING_STOCK_BLDG,0)+4) *'Furnace Fans'!$BG$66 /ROUND(INDEX(LIFETIMES_TABLE,MATCH($C56,APPLIANCES,0),MATCH($C$43,LIFETIMES_HOUSING_TYPE,0)),0) -> 18752.38567 | T56: =INDEX(HOUSING_STOCK,MATCH($D$44,HOUSING_STOCK_YEARS,0)+2,MATCH($C$43,HOUSING_STOCK_BLDG,0)+4) *'Furnace Fans'!$BG$66 /ROUND(INDEX(LIFETIMES_TABLE,MATCH($C56,APPLIANCES,0),MATCH($C$43,LIFETIMES_HOUSING_TYPE,0)),0) -> 18752.38567 | U56: =INDEX(HOUSING_STOCK,MATCH($D$44,HOUSING_STOCK_YEARS,0)+2,MATCH($C$43,HOUSING_STOCK_BLDG,0)+4) *'Furnace Fans'!$BG$66 /ROUND(INDEX(LIFETIMES_TABLE,MATCH($C56,APPLIANCES,0),MATCH($C$43,LIFETIMES_HOUSING_TYPE,0)),0) -> 18752.38567 | V56: =INDEX(HOUSING_STOCK,MATCH($D$44,HOUSING_STOCK_YEARS,0)+2,MATCH($C$43,HOUSING_STOCK_BLDG,0)+4) *'Furnace Fans'!$BG$66 /ROUND(INDEX(LIFETIMES_TABLE,MATCH($C56,APPLIANCES,0),MATCH($C$43,LIFETIMES_HOUSING_TYPE,0)),0) -> 18752.38567 | W56: =INDEX(HOUSING_STOCK,MATCH($D$44,HOUSING_STOCK_YEARS,0)+2,MATCH($C$43,HOUSING_STOCK_BLDG,0)+4) *'Furnace Fans'!$BG$66 /ROUND(INDEX(LIFETIMES_TABLE,MATCH($C56,APPLIANCES,0),MATCH($C$43,LIFETIMES_HOUSING_TYPE,0)),0) -> 18752.38567 | X56: =INDEX(HOUSING_STOCK,MATCH($D$44,HOUSING_STOCK_YEARS,0)+2,MATCH($C$43,HOUSING_STOCK_BLDG,0)+4) *'Furnace Fans'!$BG$66 /ROUND(INDEX(LIFETIMES_TABLE,MATCH($C56,APPLIANCES,0),MATCH($C$43,LIFETIMES_HOUSING_TYPE,0)),0) -> 18752.38567 | Y56: =INDEX(HOUSING_STOCK,MATCH($D$44,HOUSING_STOCK_YEARS,0)+2,MATCH($C$43,HOUSING_STOCK_BLDG,0)+4) *'Furnace Fans'!$BG$66 /ROUND(INDEX(LIFETIMES_TABLE,MATCH($C56,APPLIANCES,0),MATCH($C$43,LIFETIMES_HOUSING_TYPE,0)),0) -> 18752.38567 | Z56: =INDEX(HOUSING_STOCK,MATCH($D$44,HOUSING_STOCK_YEARS,0)+2,MATCH($C$43,HOUSING_STOCK_BLDG,0)+4) *'Furnace Fans'!$BG$66 /ROUND(INDEX(LIFETIMES_TABLE,MATCH($C56,APPLIANCES,0),MATCH($C$43,LIFETIMES_HOUSING_TYPE,0)),0) -> 18752.38567 | AA56: =INDEX(HOUSING_STOCK,MATCH($D$44,HOUSING_STOCK_YEARS,0)+2,MATCH($C$43,HOUSING_STOCK_BLDG,0)+4) *'Furnace Fans'!$BG$66 /ROUND(INDEX(LIFETIMES_TABLE,MATCH($C56,APPLIANCES,0),MATCH($C$43,LIFETIMES_HOUSING_TYPE,0)),0) -> 18752.38567 | AB56: =INDEX(HOUSING_STOCK,MATCH($D$44,HOUSING_STOCK_YEARS,0)+2,MATCH($C$43,HOUSING_STOCK_BLDG,0)+4) *'Furnace Fans'!$BG$66 /ROUND(INDEX(LIFETIMES_TABLE,MATCH($C56,APPLIANCES,0),MATCH($C$43,LIFETIMES_HOUSING_TYPE,0)),0) -> 18752.38567 | AD56: Calculated per method described in INFORMATION box
C57: Electric Clothes Dryers | D57: 42270.30458 | E57: 42164.95209 | F57: 41930.28375 | G57: 41635.37094 | H57: 41257.75071 | I57: 40908.26171 | J57: 41024.68982 | K57: 40860.28915 | L57: 40830.84583 | M57: 40929.95416 | N57: 41122.36659 | O57: 41368.93748 | P57: 41616.40193 | Q57: 41813.41431 | R57: 6612.868716 | S57: 6609.124882 | T57: 6491.821443 | U57: 6280.476541 | V57: 6009.191116 | W57: 5720.933744 | X57: 5460.262251 | Y57: =X57 -> 5460.262251 | Z57: =Y57 -> 5460.262251 | AA57: =Z57 -> 5460.262251 | AB57: =AA57 -> 5460.262251 | AD57: 6P Supply Curve File - PNWResSectorSupplyCurveUnits_6th_Fnl: 'DHW & Appliance Units' tab, Range N158:AH158
C61: Total Homes
C62: Year | D62: 2010 | E62: 2011 | F62: 2012 | G62: 2013 | H62: 2014 | I62: 2015 | J62: 2016 | K62: 2017 | L62: 2018 | M62: 2019 | N62: 2020 | O62: 2021 | P62: 2022 | Q62: 2023 | R62: 2024 | S62: 2025 | T62: 2026 | U62: 2027 | V62: 2028 | W62: 2029 | X62: 2030 | Y62: 2031 | Z62: 2032 | AA62: 2033 | AB62: 2034 | AD62: Source
C63: Electric Water Heaters | D63: 343630.7974 | E63: 356699.1207 | F63: 363275.264 | G63: 364689.1373 | H63: 369820.0031 | I63: 370628.3089 | J63: 371343.8852 | K63: 370801.1212 | L63: 370307.2485 | M63: 369915.4974 | N63: 369620.6135 | O63: 368367.9823 | P63: 63144.91451 | Q63: 62806.99702 | R63: 62205.44519 | S63: 61896.302 | T63: 61200.25735 | U63: 60152.94364 | V63: 58854.04 | W63: 57858.54863 | X63: 57339.34974 | Y63: =Y9+Y27+Y45 -> 57339.34974 | Z63: 57339.34974 | AA63: 57339.34974 | AB63: 57339.34974 | AD63: 6P Supply Curve File - PNWResSectorSupplyCurveUnits_6th_Fnl: 'DHW & Appliance Units' tab, Range N165:AH165
C64: Dishwashers | D64: 468656.7633 | E64: 488482.0157 | F64: 496173.2646 | G64: 497826.8859 | H64: 497978.5824 | I64: 498851.2305 | J64: 499623.7678 | K64: 499037.799 | L64: 498504.6133 | M64: 70293.51572 | N64: 69975.1586 | O64: 68622.816 | P64: 68171.34563 | Q64: 67806.52941 | R64: 67157.09314 | S64: 66823.34168 | T64: 66071.89081 | U64: 64941.20934 | V64: 63538.91099 | W64: 62464.17701 | X64: 61903.64909 | Y64: =Y10+Y28+Y46 -> 61903.64909 | Z64: 61903.64909 | AA64: 61903.64909 | AB64: 61903.64909 | AD64: 6P Supply Curve File - PNWResSectorSupplyCurveUnits_6th_Fnl: 'DHW & Appliance Units' tab, Range N170:AH170
C65: Refrigerators | D65: 406246.5281 | E65: 429195.835 | F65: 440744.2125 | G65: 443227.118 | H65: 443454.8896 | I65: 444765.1671 | J65: 445925.1285 | K65: 445045.2989 | L65: 444244.7228 | M65: 443609.6875 | N65: 443131.6757 | O65: 446524.132 | P65: 445810.5732 | Q65: 445233.9732 | R65: 444207.525 | S65: 443680.0235 | T65: 442492.339 | U65: 440705.2722 | V65: 438488.909 | W65: 98725.99725 | X65: 97840.07062 | Y65: =Y11+Y29+Y47 -> 97840.07062 | Z65: 97840.07062 | AA65: 97840.07062 | AB65: 97840.07062 | AD65: 6P Supply Curve File - PNWResSectorSupplyCurveUnits_6th_Fnl: 'DHW & Appliance Units' tab, Range N166:AH166
C66: Freezers | D66: 182371.7579 | E66: 193992.8658 | F66: 199840.7522 | G66: 201098.05 | H66: 201213.3893 | I66: 201876.8898 | J66: 202464.273 | K66: 202018.7434 | L66: 201613.3464 | M66: 201291.7762 | N66: 201049.7197 | O66: 200021.4932 | P66: 199678.2268 | Q66: 199400.8461 | R66: 201228.0397 | S66: 200962.7438 | T66: 200365.4228 | U66: 199466.655 | V66: 198351.9816 | W66: 197497.6859 | X66: 197052.1277 | Y66: =Y12+Y30+Y48 -> 197052.1277 | Z66: 197052.1277 | AA66: 197052.1277 | AB66: 197052.1277 | AD66: 6P Supply Curve File - PNWResSectorSupplyCurveUnits_6th_Fnl: 'DHW & Appliance Units' tab, Range N167:AH167
C67: Clothes Washers | D67: 398321.9437 | E67: 415668.2324 | F67: 424397.1012 | G67: 426273.8113 | H67: 426445.973 | I67: 427436.3493 | J67: 434136.4581 | K67: 433423.9353 | L67: 432775.5952 | M67: 432261.3171 | N67: 431874.203 | O67: 430229.7895 | P67: 429680.8132 | Q67: 429237.2061 | R67: 81661.28689 | S67: 81255.45376 | T67: 80341.70895 | U67: 78966.82955 | V67: 77261.67106 | W67: 75954.82235 | X67: 75273.23491 | Y67: =Y13+Y31+Y49 -> 75273.23491 | Z67: 75273.23491 | AA67: 75273.23491 | AB67: 75273.23491 | AD67: 6P Supply Curve File - PNWResSectorSupplyCurveUnits_6th_Fnl: 'DHW & Appliance Units' tab, Range N168:AH168
C68: Heat Pumps | D68: =D14+D32+D50 -> 40827.80925 | E68: 42243.18148 | F68: 42982.93043 | G68: 43102.79729 | H68: 43047.15742 | I68: 43059.74458 | J68: 43077.32536 | K68: 42980.31301 | L68: 42894.26804 | M68: 42822.89147 | N68: 42781.47125 | O68: 42670.60457 | P68: 42628.14432 | Q68: 42597.54701 | R68: 42538.52435 | S68: 42513.10303 | T68: 42440.91661 | U68: 42314.35927 | V68: 42153.48671 | W68: 42026.99658 | X68: 41962.40033 | Y68: 41962.40033 | Z68: 41962.40033 | AA68: 41962.40033 | AB68: 41962.40033 | AD68: Calculated per method described in INFORMATION box
C69: Room AC | D69: 77519.96091 | E69: 80799.23246 | F69: 82071.43284 | G69: 82344.95639 | H69: 82370.04832 | I69: 82514.39201 | J69: 82642.17649 | K69: 82545.25209 | L69: 82457.05847 | M69: 11627.16729 | N69: 11574.50822 | O69: 11350.81883 | P69: 11276.14165 | Q69: 11215.79783 | R69: 11108.37534 | S69: 11053.16991 | T69: 10928.87331 | U69: 10741.84863 | V69: 10509.89612 | W69: 10332.12564 | X69: 10239.40938 | Y69: =Y15+Y33+Y51 -> 10239.40938 | Z69: 10239.40938 | AA69: 10239.40938 | AB69: 10239.40938 | AD69: 6P Supply Curve File - PNWResSectorSupplyCurveUnits_6th_Fnl: 'DHW & Appliance Units' tab, Range N172:AH172
C70: Central AC | D70: 193230.7248 | E70: 203620.0228 | F70: 208911.4837 | G70: 210011.8059 | H70: 210042.3639 | I70: 210561.852 | J70: 211027.4001 | K70: 210576.8428 | L70: 210158.6504 | M70: 209809.864 | N70: 212188.2913 | O70: 211217.8552 | P70: 210867.4877 | Q70: 210590.9866 | R70: 210116.2423 | S70: 209886.7427 | T70: 209355.9038 | U70: 208530.2903 | V70: 45334.26705 | W70: 44548.04093 | X70: 44151.76766 | Y70: =Y16+Y34+Y52 -> 44151.76766 | Z70: 44151.76766 | AA70: 44151.76766 | AB70: 44151.76766 | AD70: 6P Supply Curve File - PNWResSectorSupplyCurveUnits_6th_Fnl: 'DHW & Appliance Units' tab, Range N173:AH173
C71: Electric Ovens | D71: 286437.1478 | E71: 303320.7921 | F71: 311816.8525 | G71: 313643.5087 | H71: 313811.0786 | I71: 314775.0406 | J71: 315628.4161 | K71: 314981.1316 | L71: 314392.1533 | M71: 313924.9624 | N71: 313573.2924 | O71: 312079.4408 | P71: 315345.968 | Q71: 314922.828 | R71: 314169.5651 | S71: 313782.4561 | T71: 312910.8694 | U71: 311599.4237 | V71: 309972.9372 | W71: 308726.3835 | X71: 71800.30362 | Y71: =Y17+Y35+Y53 -> 71800.30362 | Z71: 71800.30362 | AA71: 71800.30362 | AB71: 71800.30362 | AD71: 6P Supply Curve File - PNWResSectorSupplyCurveUnits_6th_Fnl: 'DHW & Appliance Units' tab, Range N171:AH171
C72: Microwave Ovens | D72: =INDEX(HOUSING_STOCK,MATCH($D$62,HOUSING_STOCK_YEARS,0)+2,MATCH($C$61,HOUSING_STOCK_BLDG,0)+4) *'Microwave Ovens'!$CE$66 /ROUND(INDEX(LIFETIMES_TABLE,MATCH($C72,APPLIANCES,0),MATCH($C$61,LIFETIMES_HOUSING_TYPE,0)),0) -> 615565.7432 | E72: =INDEX(HOUSING_STOCK,MATCH($D$62,HOUSING_STOCK_YEARS,0)+2,MATCH($C$61,HOUSING_STOCK_BLDG,0)+4) *'Microwave Ovens'!$CE$66 /ROUND(INDEX(LIFETIMES_TABLE,MATCH($C72,APPLIANCES,0),MATCH($C$61,LIFETIMES_HOUSING_TYPE,0)),0) -> 615565.7432 | F72: =INDEX(HOUSING_STOCK,MATCH($D$62,HOUSING_STOCK_YEARS,0)+2,MATCH($C$61,HOUSING_STOCK_BLDG,0)+4) *'Microwave Ovens'!$CE$66 /ROUND(INDEX(LIFETIMES_TABLE,MATCH($C72,APPLIANCES,0),MATCH($C$61,LIFETIMES_HOUSING_TYPE,0)),0) -> 615565.7432 | G72: =INDEX(HOUSING_STOCK,MATCH($D$62,HOUSING_STOCK_YEARS,0)+2,MATCH($C$61,HOUSING_STOCK_BLDG,0)+4) *'Microwave Ovens'!$CE$66 /ROUND(INDEX(LIFETIMES_TABLE,MATCH($C72,APPLIANCES,0),MATCH($C$61,LIFETIMES_HOUSING_TYPE,0)),0) -> 615565.7432 | H72: =INDEX(HOUSING_STOCK,MATCH($D$62,HOUSING_STOCK_YEARS,0)+2,MATCH($C$61,HOUSING_STOCK_BLDG,0)+4) *'Microwave Ovens'!$CE$66 /ROUND(INDEX(LIFETIMES_TABLE,MATCH($C72,APPLIANCES,0),MATCH($C$61,LIFETIMES_HOUSING_TYPE,0)),0) -> 615565.7432 | I72: =INDEX(HOUSING_STOCK,MATCH($D$62,HOUSING_STOCK_YEARS,0)+2,MATCH($C$61,HOUSING_STOCK_BLDG,0)+4) *'Microwave Ovens'!$CE$66 /ROUND(INDEX(LIFETIMES_TABLE,MATCH($C72,APPLIANCES,0),MATCH($C$61,LIFETIMES_HOUSING_TYPE,0)),0) -> 615565.7432 | J72: =INDEX(HOUSING_STOCK,MATCH($D$62,HOUSING_STOCK_YEARS,0)+2,MATCH($C$61,HOUSING_STOCK_BLDG,0)+4) *'Microwave Ovens'!$CE$66 /ROUND(INDEX(LIFETIMES_TABLE,MATCH($C72,APPLIANCES,0),MATCH($C$61,LIFETIMES_HOUSING_TYPE,0)),0) -> 615565.7432 | K72: =INDEX(HOUSING_STOCK,MATCH($D$62,HOUSING_STOCK_YEARS,0)+2,MATCH($C$61,HOUSING_STOCK_BLDG,0)+4) *'Microwave Ovens'!$CE$66 /ROUND(INDEX(LIFETIMES_TABLE,MATCH($C72,APPLIANCES,0),MATCH($C$61,LIFETIMES_HOUSING_TYPE,0)),0) -> 615565.7432 | L72: =INDEX(HOUSING_STOCK,MATCH($D$62,HOUSING_STOCK_YEARS,0)+2,MATCH($C$61,HOUSING_STOCK_BLDG,0)+4) *'Microwave Ovens'!$CE$66 /ROUND(INDEX(LIFETIMES_TABLE,MATCH($C72,APPLIANCES,0),MATCH($C$61,LIFETIMES_HOUSING_TYPE,0)),0) -> 615565.7432 | M72: =INDEX(HOUSING_STOCK,MATCH($D$62,HOUSING_STOCK_YEARS,0)+2,MATCH($C$61,HOUSING_STOCK_BLDG,0)+4) *'Microwave Ovens'!$CE$66 /ROUND(INDEX(LIFETIMES_TABLE,MATCH($C72,APPLIANCES,0),MATCH($C$61,LIFETIMES_HOUSING_TYPE,0)),0) -> 615565.7432 | N72: =INDEX(HOUSING_STOCK,MATCH($D$62,HOUSING_STOCK_YEARS,0)+2,MATCH($C$61,HOUSING_STOCK_BLDG,0)+4) *'Microwave Ovens'!$CE$66 /ROUND(INDEX(LIFETIMES_TABLE,MATCH($C72,APPLIANCES,0),MATCH($C$61,LIFETIMES_HOUSING_TYPE,0)),0) -> 615565.7432 | O72: =INDEX(HOUSING_STOCK,MATCH($D$62,HOUSING_STOCK_YEARS,0)+2,MATCH($C$61,HOUSING_STOCK_BLDG,0)+4) *'Microwave Ovens'!$CE$66 /ROUND(INDEX(LIFETIMES_TABLE,MATCH($C72,APPLIANCES,0),MATCH($C$61,LIFETIMES_HOUSING_TYPE,0)),0) -> 615565.7432 | P72: =INDEX(HOUSING_STOCK,MATCH($D$62,HOUSING_STOCK_YEARS,0)+2,MATCH($C$61,HOUSING_STOCK_BLDG,0)+4) *'Microwave Ovens'!$CE$66 /ROUND(INDEX(LIFETIMES_TABLE,MATCH($C72,APPLIANCES,0),MATCH($C$61,LIFETIMES_HOUSING_TYPE,0)),0) -> 615565.7432 | Q72: =INDEX(HOUSING_STOCK,MATCH($D$62,HOUSING_STOCK_YEARS,0)+2,MATCH($C$61,HOUSING_STOCK_BLDG,0)+4) *'Microwave Ovens'!$CE$66 /ROUND(INDEX(LIFETIMES_TABLE,MATCH($C72,APPLIANCES,0),MATCH($C$61,LIFETIMES_HOUSING_TYPE,0)),0) -> 615565.7432 | R72: =INDEX(HOUSING_STOCK,MATCH($D$62,HOUSING_STOCK_YEARS,0)+2,MATCH($C$61,HOUSING_STOCK_BLDG,0)+4) *'Microwave Ovens'!$CE$66 /ROUND(INDEX(LIFETIMES_TABLE,MATCH($C72,APPLIANCES,0),MATCH($C$61,LIFETIMES_HOUSING_TYPE,0)),0) -> 615565.7432 | S72: =INDEX(HOUSING_STOCK,MATCH($D$62,HOUSING_STOCK_YEARS,0)+2,MATCH($C$61,HOUSING_STOCK_BLDG,0)+4) *'Microwave Ovens'!$CE$66 /ROUND(INDEX(LIFETIMES_TABLE,MATCH($C72,APPLIANCES,0),MATCH($C$61,LIFETIMES_HOUSING_TYPE,0)),0) -> 615565.7432 | T72: =INDEX(HOUSING_STOCK,MATCH($D$62,HOUSING_STOCK_YEARS,0)+2,MATCH($C$61,HOUSING_STOCK_BLDG,0)+4) *'Microwave Ovens'!$CE$66 /ROUND(INDEX(LIFETIMES_TABLE,MATCH($C72,APPLIANCES,0),MATCH($C$61,LIFETIMES_HOUSING_TYPE,0)),0) -> 615565.7432 | U72: =INDEX(HOUSING_STOCK,MATCH($D$62,HOUSING_STOCK_YEARS,0)+2,MATCH($C$61,HOUSING_STOCK_BLDG,0)+4) *'Microwave Ovens'!$CE$66 /ROUND(INDEX(LIFETIMES_TABLE,MATCH($C72,APPLIANCES,0),MATCH($C$61,LIFETIMES_HOUSING_TYPE,0)),0) -> 615565.7432 | V72: =INDEX(HOUSING_STOCK,MATCH($D$62,HOUSING_STOCK_YEARS,0)+2,MATCH($C$61,HOUSING_STOCK_BLDG,0)+4) *'Microwave Ovens'!$CE$66 /ROUND(INDEX(LIFETIMES_TABLE,MATCH($C72,APPLIANCES,0),MATCH($C$61,LIFETIMES_HOUSING_TYPE,0)),0) -> 615565.7432 | W72: =INDEX(HOUSING_STOCK,MATCH($D$62,HOUSING_STOCK_YEARS,0)+2,MATCH($C$61,HOUSING_STOCK_BLDG,0)+4) *'Microwave Ovens'!$CE$66 /ROUND(INDEX(LIFETIMES_TABLE,MATCH($C72,APPLIANCES,0),MATCH($C$61,LIFETIMES_HOUSING_TYPE,0)),0) -> 615565.7432 | X72: =INDEX(HOUSING_STOCK,MATCH($D$62,HOUSING_STOCK_YEARS,0)+2,MATCH($C$61,HOUSING_STOCK_BLDG,0)+4) *'Microwave Ovens'!$CE$66 /ROUND(INDEX(LIFETIMES_TABLE,MATCH($C72,APPLIANCES,0),MATCH($C$61,LIFETIMES_HOUSING_TYPE,0)),0) -> 615565.7432 | Y72: =INDEX(HOUSING_STOCK,MATCH($D$62,HOUSING_STOCK_YEARS,0)+2,MATCH($C$61,HOUSING_STOCK_BLDG,0)+4) *'Microwave Ovens'!$CE$66 /ROUND(INDEX(LIFETIMES_TABLE,MATCH($C72,APPLIANCES,0),MATCH($C$61,LIFETIMES_HOUSING_TYPE,0)),0) -> 615565.7432 | Z72: =INDEX(HOUSING_STOCK,MATCH($D$62,HOUSING_STOCK_YEARS,0)+2,MATCH($C$61,HOUSING_STOCK_BLDG,0)+4) *'Microwave Ovens'!$CE$66 /ROUND(INDEX(LIFETIMES_TABLE,MATCH($C72,APPLIANCES,0),MATCH($C$61,LIFETIMES_HOUSING_TYPE,0)),0) -> 615565.7432 | AA72: =INDEX(HOUSING_STOCK,MATCH($D$62,HOUSING_STOCK_YEARS,0)+2,MATCH($C$61,HOUSING_STOCK_BLDG,0)+4) *'Microwave Ovens'!$CE$66 /ROUND(INDEX(LIFETIMES_TABLE,MATCH($C72,APPLIANCES,0),MATCH($C$61,LIFETIMES_HOUSING_TYPE,0)),0) -> 615565.7432 | AB72: =INDEX(HOUSING_STOCK,MATCH($D$62,HOUSING_STOCK_YEARS,0)+2,MATCH($C$61,HOUSING_STOCK_BLDG,0)+4) *'Microwave Ovens'!$CE$66 /ROUND(INDEX(LIFETIMES_TABLE,MATCH($C72,APPLIANCES,0),MATCH($C$61,LIFETIMES_HOUSING_TYPE,0)),0) -> 615565.7432 | AD72: Calculated per method described in INFORMATION box
C73: Electric Cooktops | D73: =INDEX(HOUSING_STOCK,MATCH($D$62,HOUSING_STOCK_YEARS,0)+2,MATCH($C$61,HOUSING_STOCK_BLDG,0)+4) *'Electric Cooktops'!$CE$66 /ROUND(INDEX(LIFETIMES_TABLE,MATCH($C73,APPLIANCES,0),MATCH($C$61,LIFETIMES_HOUSING_TYPE,0)),0) -> 246866.4563 | E73: =INDEX(HOUSING_STOCK,MATCH($D$62,HOUSING_STOCK_YEARS,0)+2,MATCH($C$61,HOUSING_STOCK_BLDG,0)+4) *'Electric Cooktops'!$CE$66 /ROUND(INDEX(LIFETIMES_TABLE,MATCH($C73,APPLIANCES,0),MATCH($C$61,LIFETIMES_HOUSING_TYPE,0)),0) -> 246866.4563 | F73: =INDEX(HOUSING_STOCK,MATCH($D$62,HOUSING_STOCK_YEARS,0)+2,MATCH($C$61,HOUSING_STOCK_BLDG,0)+4) *'Electric Cooktops'!$CE$66 /ROUND(INDEX(LIFETIMES_TABLE,MATCH($C73,APPLIANCES,0),MATCH($C$61,LIFETIMES_HOUSING_TYPE,0)),0) -> 246866.4563 | G73: =INDEX(HOUSING_STOCK,MATCH($D$62,HOUSING_STOCK_YEARS,0)+2,MATCH($C$61,HOUSING_STOCK_BLDG,0)+4) *'Electric Cooktops'!$CE$66 /ROUND(INDEX(LIFETIMES_TABLE,MATCH($C73,APPLIANCES,0),MATCH($C$61,LIFETIMES_HOUSING_TYPE,0)),0) -> 246866.4563 | H73: =INDEX(HOUSING_STOCK,MATCH($D$62,HOUSING_STOCK_YEARS,0)+2,MATCH($C$61,HOUSING_STOCK_BLDG,0)+4) *'Electric Cooktops'!$CE$66 /ROUND(INDEX(LIFETIMES_TABLE,MATCH($C73,APPLIANCES,0),MATCH($C$61,LIFETIMES_HOUSING_TYPE,0)),0) -> 246866.4563 | I73: =INDEX(HOUSING_STOCK,MATCH($D$62,HOUSING_STOCK_YEARS,0)+2,MATCH($C$61,HOUSING_STOCK_BLDG,0)+4) *'Electric Cooktops'!$CE$66 /ROUND(INDEX(LIFETIMES_TABLE,MATCH($C73,APPLIANCES,0),MATCH($C$61,LIFETIMES_HOUSING_TYPE,0)),0) -> 246866.4563 | J73: =INDEX(HOUSING_STOCK,MATCH($D$62,HOUSING_STOCK_YEARS,0)+2,MATCH($C$61,HOUSING_STOCK_BLDG,0)+4) *'Electric Cooktops'!$CE$66 /ROUND(INDEX(LIFETIMES_TABLE,MATCH($C73,APPLIANCES,0),MATCH($C$61,LIFETIMES_HOUSING_TYPE,0)),0) -> 246866.4563 | K73: =INDEX(HOUSING_STOCK,MATCH($D$62,HOUSING_STOCK_YEARS,0)+2,MATCH($C$61,HOUSING_STOCK_BLDG,0)+4) *'Electric Cooktops'!$CE$66 /ROUND(INDEX(LIFETIMES_TABLE,MATCH($C73,APPLIANCES,0),MATCH($C$61,LIFETIMES_HOUSING_TYPE,0)),0) -> 246866.4563 | L73: =INDEX(HOUSING_STOCK,MATCH($D$62,HOUSING_STOCK_YEARS,0)+2,MATCH($C$61,HOUSING_STOCK_BLDG,0)+4) *'Electric Cooktops'!$CE$66 /ROUND(INDEX(LIFETIMES_TABLE,MATCH($C73,APPLIANCES,0),MATCH($C$61,LIFETIMES_HOUSING_TYPE,0)),0) -> 246866.4563 | M73: =INDEX(HOUSING_STOCK,MATCH($D$62,HOUSING_STOCK_YEARS,0)+2,MATCH($C$61,HOUSING_STOCK_BLDG,0)+4) *'Electric Cooktops'!$CE$66 /ROUND(INDEX(LIFETIMES_TABLE,MATCH($C73,APPLIANCES,0),MATCH($C$61,LIFETIMES_HOUSING_TYPE,0)),0) -> 246866.4563 | N73: =INDEX(HOUSING_STOCK,MATCH($D$62,HOUSING_STOCK_YEARS,0)+2,MATCH($C$61,HOUSING_STOCK_BLDG,0)+4) *'Electric Cooktops'!$CE$66 /ROUND(INDEX(LIFETIMES_TABLE,MATCH($C73,APPLIANCES,0),MATCH($C$61,LIFETIMES_HOUSING_TYPE,0)),0) -> 246866.4563 | O73: =INDEX(HOUSING_STOCK,MATCH($D$62,HOUSING_STOCK_YEARS,0)+2,MATCH($C$61,HOUSING_STOCK_BLDG,0)+4) *'Electric Cooktops'!$CE$66 /ROUND(INDEX(LIFETIMES_TABLE,MATCH($C73,APPLIANCES,0),MATCH($C$61,LIFETIMES_HOUSING_TYPE,0)),0) -> 246866.4563 | P73: =INDEX(HOUSING_STOCK,MATCH($D$62,HOUSING_STOCK_YEARS,0)+2,MATCH($C$61,HOUSING_STOCK_BLDG,0)+4) *'Electric Cooktops'!$CE$66 /ROUND(INDEX(LIFETIMES_TABLE,MATCH($C73,APPLIANCES,0),MATCH($C$61,LIFETIMES_HOUSING_TYPE,0)),0) -> 246866.4563 | Q73: =INDEX(HOUSING_STOCK,MATCH($D$62,HOUSING_STOCK_YEARS,0)+2,MATCH($C$61,HOUSING_STOCK_BLDG,0)+4) *'Electric Cooktops'!$CE$66 /ROUND(INDEX(LIFETIMES_TABLE,MATCH($C73,APPLIANCES,0),MATCH($C$61,LIFETIMES_HOUSING_TYPE,0)),0) -> 246866.4563 | R73: =INDEX(HOUSING_STOCK,MATCH($D$62,HOUSING_STOCK_YEARS,0)+2,MATCH($C$61,HOUSING_STOCK_BLDG,0)+4) *'Electric Cooktops'!$CE$66 /ROUND(INDEX(LIFETIMES_TABLE,MATCH($C73,APPLIANCES,0),MATCH($C$61,LIFETIMES_HOUSING_TYPE,0)),0) -> 246866.4563 | S73: =INDEX(HOUSING_STOCK,MATCH($D$62,HOUSING_STOCK_YEARS,0)+2,MATCH($C$61,HOUSING_STOCK_BLDG,0)+4) *'Electric Cooktops'!$CE$66 /ROUND(INDEX(LIFETIMES_TABLE,MATCH($C73,APPLIANCES,0),MATCH($C$61,LIFETIMES_HOUSING_TYPE,0)),0) -> 246866.4563 | T73: =INDEX(HOUSING_STOCK,MATCH($D$62,HOUSING_STOCK_YEARS,0)+2,MATCH($C$61,HOUSING_STOCK_BLDG,0)+4) *'Electric Cooktops'!$CE$66 /ROUND(INDEX(LIFETIMES_TABLE,MATCH($C73,APPLIANCES,0),MATCH($C$61,LIFETIMES_HOUSING_TYPE,0)),0) -> 246866.4563 | U73: =INDEX(HOUSING_STOCK,MATCH($D$62,HOUSING_STOCK_YEARS,0)+2,MATCH($C$61,HOUSING_STOCK_BLDG,0)+4) *'Electric Cooktops'!$CE$66 /ROUND(INDEX(LIFETIMES_TABLE,MATCH($C73,APPLIANCES,0),MATCH($C$61,LIFETIMES_HOUSING_TYPE,0)),0) -> 246866.4563 | V73: =INDEX(HOUSING_STOCK,MATCH($D$62,HOUSING_STOCK_YEARS,0)+2,MATCH($C$61,HOUSING_STOCK_BLDG,0)+4) *'Electric Cooktops'!$CE$66 /ROUND(INDEX(LIFETIMES_TABLE,MATCH($C73,APPLIANCES,0),MATCH($C$61,LIFETIMES_HOUSING_TYPE,0)),0) -> 246866.4563 | W73: =INDEX(HOUSING_STOCK,MATCH($D$62,HOUSING_STOCK_YEARS,0)+2,MATCH($C$61,HOUSING_STOCK_BLDG,0)+4) *'Electric Cooktops'!$CE$66 /ROUND(INDEX(LIFETIMES_TABLE,MATCH($C73,APPLIANCES,0),MATCH($C$61,LIFETIMES_HOUSING_TYPE,0)),0) -> 246866.4563 | X73: =INDEX(HOUSING_STOCK,MATCH($D$62,HOUSING_STOCK_YEARS,0)+2,MATCH($C$61,HOUSING_STOCK_BLDG,0)+4) *'Electric Cooktops'!$CE$66 /ROUND(INDEX(LIFETIMES_TABLE,MATCH($C73,APPLIANCES,0),MATCH($C$61,LIFETIMES_HOUSING_TYPE,0)),0) -> 246866.4563 | Y73: =INDEX(HOUSING_STOCK,MATCH($D$62,HOUSING_STOCK_YEARS,0)+2,MATCH($C$61,HOUSING_STOCK_BLDG,0)+4) *'Electric Cooktops'!$CE$66 /ROUND(INDEX(LIFETIMES_TABLE,MATCH($C73,APPLIANCES,0),MATCH($C$61,LIFETIMES_HOUSING_TYPE,0)),0) -> 246866.4563 | Z73: =INDEX(HOUSING_STOCK,MATCH($D$62,HOUSING_STOCK_YEARS,0)+2,MATCH($C$61,HOUSING_STOCK_BLDG,0)+4) *'Electric Cooktops'!$CE$66 /ROUND(INDEX(LIFETIMES_TABLE,MATCH($C73,APPLIANCES,0),MATCH($C$61,LIFETIMES_HOUSING_TYPE,0)),0) -> 246866.4563 | AA73: =INDEX(HOUSING_STOCK,MATCH($D$62,HOUSING_STOCK_YEARS,0)+2,MATCH($C$61,HOUSING_STOCK_BLDG,0)+4) *'Electric Cooktops'!$CE$66 /ROUND(INDEX(LIFETIMES_TABLE,MATCH($C73,APPLIANCES,0),MATCH($C$61,LIFETIMES_HOUSING_TYPE,0)),0) -> 246866.4563 | AB73: =INDEX(HOUSING_STOCK,MATCH($D$62,HOUSING_STOCK_YEARS,0)+2,MATCH($C$61,HOUSING_STOCK_BLDG,0)+4) *'Electric Cooktops'!$CE$66 /ROUND(INDEX(LIFETIMES_TABLE,MATCH($C73,APPLIANCES,0),MATCH($C$61,LIFETIMES_HOUSING_TYPE,0)),0) -> 246866.4563 | AD73: Calculated per method described in INFORMATION box
C74: Furnace Fans | D74: =INDEX(HOUSING_STOCK,MATCH($D$62,HOUSING_STOCK_YEARS,0)+2,MATCH($C$61,HOUSING_STOCK_BLDG,0)+4) *'Furnace Fans'!$CE$66 /ROUND(INDEX(LIFETIMES_TABLE,MATCH($C74,APPLIANCES,0),MATCH($C$61,LIFETIMES_HOUSING_TYPE,0)),0) -> 130954.2406 | E74: =INDEX(HOUSING_STOCK,MATCH($D$62,HOUSING_STOCK_YEARS,0)+2,MATCH($C$61,HOUSING_STOCK_BLDG,0)+4) *'Furnace Fans'!$CE$66 /ROUND(INDEX(LIFETIMES_TABLE,MATCH($C74,APPLIANCES,0),MATCH($C$61,LIFETIMES_HOUSING_TYPE,0)),0) -> 130954.2406 | F74: =INDEX(HOUSING_STOCK,MATCH($D$62,HOUSING_STOCK_YEARS,0)+2,MATCH($C$61,HOUSING_STOCK_BLDG,0)+4) *'Furnace Fans'!$CE$66 /ROUND(INDEX(LIFETIMES_TABLE,MATCH($C74,APPLIANCES,0),MATCH($C$61,LIFETIMES_HOUSING_TYPE,0)),0) -> 130954.2406 | G74: =INDEX(HOUSING_STOCK,MATCH($D$62,HOUSING_STOCK_YEARS,0)+2,MATCH($C$61,HOUSING_STOCK_BLDG,0)+4) *'Furnace Fans'!$CE$66 /ROUND(INDEX(LIFETIMES_TABLE,MATCH($C74,APPLIANCES,0),MATCH($C$61,LIFETIMES_HOUSING_TYPE,0)),0) -> 130954.2406 | H74: =INDEX(HOUSING_STOCK,MATCH($D$62,HOUSING_STOCK_YEARS,0)+2,MATCH($C$61,HOUSING_STOCK_BLDG,0)+4) *'Furnace Fans'!$CE$66 /ROUND(INDEX(LIFETIMES_TABLE,MATCH($C74,APPLIANCES,0),MATCH($C$61,LIFETIMES_HOUSING_TYPE,0)),0) -> 130954.2406 | I74: =INDEX(HOUSING_STOCK,MATCH($D$62,HOUSING_STOCK_YEARS,0)+2,MATCH($C$61,HOUSING_STOCK_BLDG,0)+4) *'Furnace Fans'!$CE$66 /ROUND(INDEX(LIFETIMES_TABLE,MATCH($C74,APPLIANCES,0),MATCH($C$61,LIFETIMES_HOUSING_TYPE,0)),0) -> 130954.2406 | J74: =INDEX(HOUSING_STOCK,MATCH($D$62,HOUSING_STOCK_YEARS,0)+2,MATCH($C$61,HOUSING_STOCK_BLDG,0)+4) *'Furnace Fans'!$CE$66 /ROUND(INDEX(LIFETIMES_TABLE,MATCH($C74,APPLIANCES,0),MATCH($C$61,LIFETIMES_HOUSING_TYPE,0)),0) -> 130954.2406 | K74: =INDEX(HOUSING_STOCK,MATCH($D$62,HOUSING_STOCK_YEARS,0)+2,MATCH($C$61,HOUSING_STOCK_BLDG,0)+4) *'Furnace Fans'!$CE$66 /ROUND(INDEX(LIFETIMES_TABLE,MATCH($C74,APPLIANCES,0),MATCH($C$61,LIFETIMES_HOUSING_TYPE,0)),0) -> 130954.2406 | L74: =INDEX(HOUSING_STOCK,MATCH($D$62,HOUSING_STOCK_YEARS,0)+2,MATCH($C$61,HOUSING_STOCK_BLDG,0)+4) *'Furnace Fans'!$CE$66 /ROUND(INDEX(LIFETIMES_TABLE,MATCH($C74,APPLIANCES,0),MATCH($C$61,LIFETIMES_HOUSING_TYPE,0)),0) -> 130954.2406 | M74: =INDEX(HOUSING_STOCK,MATCH($D$62,HOUSING_STOCK_YEARS,0)+2,MATCH($C$61,HOUSING_STOCK_BLDG,0)+4) *'Furnace Fans'!$CE$66 /ROUND(INDEX(LIFETIMES_TABLE,MATCH($C74,APPLIANCES,0),MATCH($C$61,LIFETIMES_HOUSING_TYPE,0)),0) -> 130954.2406 | N74: =INDEX(HOUSING_STOCK,MATCH($D$62,HOUSING_STOCK_YEARS,0)+2,MATCH($C$61,HOUSING_STOCK_BLDG,0)+4) *'Furnace Fans'!$CE$66 /ROUND(INDEX(LIFETIMES_TABLE,MATCH($C74,APPLIANCES,0),MATCH($C$61,LIFETIMES_HOUSING_TYPE,0)),0) -> 130954.2406 | O74: =INDEX(HOUSING_STOCK,MATCH($D$62,HOUSING_STOCK_YEARS,0)+2,MATCH($C$61,HOUSING_STOCK_BLDG,0)+4) *'Furnace Fans'!$CE$66 /ROUND(INDEX(LIFETIMES_TABLE,MATCH($C74,APPLIANCES,0),MATCH($C$61,LIFETIMES_HOUSING_TYPE,0)),0) -> 130954.2406 | P74: =INDEX(HOUSING_STOCK,MATCH($D$62,HOUSING_STOCK_YEARS,0)+2,MATCH($C$61,HOUSING_STOCK_BLDG,0)+4) *'Furnace Fans'!$CE$66 /ROUND(INDEX(LIFETIMES_TABLE,MATCH($C74,APPLIANCES,0),MATCH($C$61,LIFETIMES_HOUSING_TYPE,0)),0) -> 130954.2406 | Q74: =INDEX(HOUSING_STOCK,MATCH($D$62,HOUSING_STOCK_YEARS,0)+2,MATCH($C$61,HOUSING_STOCK_BLDG,0)+4) *'Furnace Fans'!$CE$66 /ROUND(INDEX(LIFETIMES_TABLE,MATCH($C74,APPLIANCES,0),MATCH($C$61,LIFETIMES_HOUSING_TYPE,0)),0) -> 130954.2406 | R74: =INDEX(HOUSING_STOCK,MATCH($D$62,HOUSING_STOCK_YEARS,0)+2,MATCH($C$61,HOUSING_STOCK_BLDG,0)+4) *'Furnace Fans'!$CE$66 /ROUND(INDEX(LIFETIMES_TABLE,MATCH($C74,APPLIANCES,0),MATCH($C$61,LIFETIMES_HOUSING_TYPE,0)),0) -> 130954.2406 | S74: =INDEX(HOUSING_STOCK,MATCH($D$62,HOUSING_STOCK_YEARS,0)+2,MATCH($C$61,HOUSING_STOCK_BLDG,0)+4) *'Furnace Fans'!$CE$66 /ROUND(INDEX(LIFETIMES_TABLE,MATCH($C74,APPLIANCES,0),MATCH($C$61,LIFETIMES_HOUSING_TYPE,0)),0) -> 130954.2406 | T74: =INDEX(HOUSING_STOCK,MATCH($D$62,HOUSING_STOCK_YEARS,0)+2,MATCH($C$61,HOUSING_STOCK_BLDG,0)+4) *'Furnace Fans'!$CE$66 /ROUND(INDEX(LIFETIMES_TABLE,MATCH($C74,APPLIANCES,0),MATCH($C$61,LIFETIMES_HOUSING_TYPE,0)),0) -> 130954.2406 | U74: =INDEX(HOUSING_STOCK,MATCH($D$62,HOUSING_STOCK_YEARS,0)+2,MATCH($C$61,HOUSING_STOCK_BLDG,0)+4) *'Furnace Fans'!$CE$66 /ROUND(INDEX(LIFETIMES_TABLE,MATCH($C74,APPLIANCES,0),MATCH($C$61,LIFETIMES_HOUSING_TYPE,0)),0) -> 130954.2406 | V74: =INDEX(HOUSING_STOCK,MATCH($D$62,HOUSING_STOCK_YEARS,0)+2,MATCH($C$61,HOUSING_STOCK_BLDG,0)+4) *'Furnace Fans'!$CE$66 /ROUND(INDEX(LIFETIMES_TABLE,MATCH($C74,APPLIANCES,0),MATCH($C$61,LIFETIMES_HOUSING_TYPE,0)),0) -> 130954.2406 | W74: =INDEX(HOUSING_STOCK,MATCH($D$62,HOUSING_STOCK_YEARS,0)+2,MATCH($C$61,HOUSING_STOCK_BLDG,0)+4) *'Furnace Fans'!$CE$66 /ROUND(INDEX(LIFETIMES_TABLE,MATCH($C74,APPLIANCES,0),MATCH($C$61,LIFETIMES_HOUSING_TYPE,0)),0) -> 130954.2406 | X74: =INDEX(HOUSING_STOCK,MATCH($D$62,HOUSING_STOCK_YEARS,0)+2,MATCH($C$61,HOUSING_STOCK_BLDG,0)+4) *'Furnace Fans'!$CE$66 /ROUND(INDEX(LIFETIMES_TABLE,MATCH($C74,APPLIANCES,0),MATCH($C$61,LIFETIMES_HOUSING_TYPE,0)),0) -> 130954.2406 | Y74: =INDEX(HOUSING_STOCK,MATCH($D$62,HOUSING_STOCK_YEARS,0)+2,MATCH($C$61,HOUSING_STOCK_BLDG,0)+4) *'Furnace Fans'!$CE$66 /ROUND(INDEX(LIFETIMES_TABLE,MATCH($C74,APPLIANCES,0),MATCH($C$61,LIFETIMES_HOUSING_TYPE,0)),0) -> 130954.2406 | Z74: =INDEX(HOUSING_STOCK,MATCH($D$62,HOUSING_STOCK_YEARS,0)+2,MATCH($C$61,HOUSING_STOCK_BLDG,0)+4) *'Furnace Fans'!$CE$66 /ROUND(INDEX(LIFETIMES_TABLE,MATCH($C74,APPLIANCES,0),MATCH($C$61,LIFETIMES_HOUSING_TYPE,0)),0) -> 130954.2406 | AA74: =INDEX(HOUSING_STOCK,MATCH($D$62,HOUSING_STOCK_YEARS,0)+2,MATCH($C$61,HOUSING_STOCK_BLDG,0)+4) *'Furnace Fans'!$CE$66 /ROUND(INDEX(LIFETIMES_TABLE,MATCH($C74,APPLIANCES,0),MATCH($C$61,LIFETIMES_HOUSING_TYPE,0)),0) -> 130954.2406 | AB74: =INDEX(HOUSING_STOCK,MATCH($D$62,HOUSING_STOCK_YEARS,0)+2,MATCH($C$61,HOUSING_STOCK_BLDG,0)+4) *'Furnace Fans'!$CE$66 /ROUND(INDEX(LIFETIMES_TABLE,MATCH($C74,APPLIANCES,0),MATCH($C$61,LIFETIMES_HOUSING_TYPE,0)),0) -> 130954.2406 | AD74: Calculated per method described in INFORMATION box
C75: Electric Clothes Dryers | D75: 386073.0721 | E75: 402885.9418 | F75: 411346.3876 | G75: 413165.3866 | H75: 413332.2541 | I75: 414292.1753 | J75: 420786.2478 | K75: 420095.6358 | L75: 419467.233 | M75: 418968.7695 | N75: 418593.5597 | O75: 416999.7138 | P75: 416467.6192 | Q75: 416037.6535 | R75: 79150.10558 | S75: 78756.7523 | T75: 77871.10623 | U75: 76538.506 | V75: 74885.78315 | W75: 73619.12159 | X75: 72958.49377 | Y75: =Y21+Y39+Y57 -> 72958.49377 | Z75: 72958.49377 | AA75: 72958.49377 | AB75: 72958.49377 | AD75: 6P Supply Curve File - PNWResSectorSupplyCurveUnits_6th_Fnl: 'DHW & Appliance Units' tab, Range N169:AH169
C79: Heat Pumps
C80: Year | D80: 2010 | E80: 2011 | F80: 2012 | G80: 2013 | H80: 2014 | I80: 2015 | J80: 2016 | K80: 2017 | L80: 2018 | M80: 2019 | N80: 2020 | O80: 2021 | P80: 2022 | Q80: 2023 | R80: 2024 | S80: 2025 | T80: 2026 | U80: 2027 | V80: 2028 | W80: 2029 | X80: 2030 | Y80: 2031 | Z80: 2032 | AA80: 2033 | AB80: 2034 | AD80: Source
C81: Single Family Installed Stock | D81: 590198.02 | E81: 590198.02 | F81: 590198.02 | G81: 590198.02 | H81: 590198.02 | I81: 590198.02 | J81: 590198.02 | K81: 590198.02 | L81: 590198.02 | M81: 590198.02 | N81: 590198.02 | O81: 590198.02 | P81: 590198.02 | Q81: 590198.02 | R81: 590198.02 | S81: 590198.02 | T81: 590198.02 | U81: 590198.02 | V81: 590198.02 | W81: 590198.02 | X81: 590198.02 | Y81: =X81 -> 590198.02 | Z81: =Y81 -> 590198.02 | AA81: 590198.02 | AB81: 590198.02 | AD81: 6P Supply Curve File - PNWResSectorSupplyCurveUnits_6th_Fnl: 'Existing Space Heating Units' tab, Range M10:AG10
C82: Single Family New Construction Shipments | D82: 3354.685118 | E82: 4628.299665 | F82: 5360.699705 | G82: 5496.320472 | H82: 5457.552325 | I82: 5474.511833 | J82: 5492.13288 | K82: 5395.919416 | L82: 5288.442169 | M82: 5172.60984 | N82: 5085.132778 | O82: 4952.177722 | P82: 4864.203606 | Q82: 4800.773525 | R82: 4728.087853 | S82: 4711.96094 | T82: 4669.112417 | U82: 4577.517479 | V82: 4458.319608 | W82: 4377.047685 | X82: 4359.471026 | Y82: 4359.471026 | Z82: 4359.471026 | AA82: 4359.471026 | AB82: 4359.471026 | AD82: 6P Supply Curve File - PNWResSectorSupplyCurveUnits_6th_Fnl: 'New Space Heating Units' tab, Range M10:AG10
C83: Multi-Family Installed Stock | D83: 12955.4472 | E83: 12955.4472 | F83: 12955.4472 | G83: 12955.4472 | H83: 12955.4472 | I83: 12955.4472 | J83: 12955.4472 | K83: 12955.4472 | L83: 12955.4472 | M83: 12955.4472 | N83: 12955.4472 | O83: 12955.4472 | P83: 12955.4472 | Q83: 12955.4472 | R83: 12955.4472 | S83: 12955.4472 | T83: 12955.4472 | U83: 12955.4472 | V83: 12955.4472 | W83: 12955.4472 | X83: 12955.4472 | Y83: 12955.4472 | Z83: =Y83 -> 12955.4472 | AA83: 12955.4472 | AB83: 12955.4472 | AD83: 6P Supply Curve File - PNWResSectorSupplyCurveUnits_6th_Fnl: 'Existing Space Heating Units' tab, Range M23:AG23
C84: Multi-Family New Construction Shipments | D84: 346.4079654 | E84: 504.8505838 | F84: 549.3645025 | G84: 580.3166798 | H84: 623.2496185 | I84: 674.2267145 | J84: 716.102969 | K84: 739.6048578 | L84: 765.3892868 | M84: 795.195407 | N84: 812.8109361 | O84: 798.452594 | P84: 807.3876732 | Q84: 811.0991892 | R84: 808.8476307 | S84: 800.1066156 | T84: 788.1078431 | U84: 784.3852497 | V84: 782.8104338 | W84: 780.2008062 | X84: 771.712196 | Y84: 771.712196 | Z84: 771.712196 | AA84: 771.712196 | AB84: 771.712196 | AD84: 6P Supply Curve File - PNWResSectorSupplyCurveUnits_6th_Fnl: 'New Space Heating Units' tab, Range M23:AG23
C85: Manufactured Homes Installed Stock | D85: 45280.55011 | E85: 45280.55011 | F85: 45280.55011 | G85: 45280.55011 | H85: 45280.55011 | I85: 45280.55011 | J85: 45280.55011 | K85: 45280.55011 | L85: 45280.55011 | M85: 45280.55011 | N85: 45280.55011 | O85: 45280.55011 | P85: 45280.55011 | Q85: 45280.55011 | R85: 45280.55011 | S85: 45280.55011 | T85: 45280.55011 | U85: 45280.55011 | V85: 45280.55011 | W85: 45280.55011 | X85: 45280.55011 | Y85: 45280.55011 | Z85: 45280.55011 | AA85: 45280.55011 | AB85: 45280.55011 | AD85: 6P Supply Curve File - PNWResSectorSupplyCurveUnits_6th_Fnl: 'Existing Space Heating Units' tab, Range M36:AG36
C86: Manufactured Homes New Construction Shipments | D86: 1102.604099 | E86: 1085.91916 | F86: 1048.754148 | G86: 1002.048068 | H86: 942.2434078 | I86: 886.8939603 | J86: 844.9774397 | K86: 820.676664 | L86: 816.3245186 | M86: 830.9741514 | N86: 859.4154663 | O86: 895.8621795 | P86: 932.4409727 | Q86: 961.562226 | R86: 977.4767983 | S86: 976.9234058 | T86: 959.5842759 | U86: 928.3444696 | V86: 888.2445946 | W86: 845.6360226 | X86: 807.1050389 | Y86: 807.1050389 | Z86: 807.1050389 | AA86: 807.1050389 | AB86: 807.1050389 | AD86: 6P Supply Curve File - PNWResSectorSupplyCurveUnits_6th_Fnl: 'New Space Heating Units' tab, Range M36:AG36

Sheet Housing Stock
B2: HOUSING STOCK
AG3: Demolition Rate of Pre-1980 Stock
B4: NAVIGATION
AH6: SF | AI6: MF | AJ6: MH
C7: Assume Demolition of pre-1980 stock? | G7: NO | J7: Post 2030 New Construction Growth Rate: | N7: 0.01 | Q7: Source of all data: | S7: PNWResSectorSupplyCurveUnits_6th_fnl | AH7: -0.002270781302 | AI7: -0.002270817811 | AJ7: -0.01068698648
C11: Single Family | J11: Multi-Family | Q11: Manufactured Homes | X11: Total Homes | AH11: Pre-1980 Housing Existing in 2030
D12: Beginning Year Stock | E12: Pre-1980 Dems | F12: New Additions | G12: End of Year Stock | H12: Stock Growth | L12: Pre-1980 Dems | M12: New Adds | N12: End of Year Stock | O12: Stock Growth | S12: Pre-1980 Dems | T12: New Adds | U12: End of Year Stock | V12: Stock Growth | Y12: Beginning Year Stock | Z12: Pre-1980 Dems | AA12: New Adds | AB12: End of Year Stock | AC12: Stock Growth | AH12: SF | AI12: MF | AJ12: MH
C13: 1980 | G13: 2612400 | J13: 1980 | N13: 509198 | Q13: 1980 | U13: 275356 | X13: 1980 | AB13: =G13+N13+U13 -> 3396954 | AG13: 1980 | AH13: =G13 -> 2612400 | AI13: =N13 -> 509198 | AJ13: =U13 -> 275356
C14: 1981 | D14: =G13 -> 2612400 | E14: =IF($G$7="YES",AH13-AH14,0) -> 0 | F14: 32998.3 | G14: =D14-E14+F14 -> 2645398.3 | H14: =G14/G13-1 -> 0.01263141173 | J14: 1981 | K14: =N13 -> 509198 | L14: =IF($G$7="YES",AI13-AI14,0) -> 0 | M14: 10694.7 | N14: =K14-L14+M14 -> 519892.7 | O14: =N14/N13-1 -> 0.02100302829 | Q14: 1981 | R14: =U13 -> 275356 | S14: =IF($G$7="YES",AJ13-AJ14,0) -> 0 | T14: 10843 | U14: =R14-S14+T14 -> 286199 | V14: =U14/U13-1 -> 0.03937811415 | X14: 1981 | Y14: =AB13 -> 3396954 | Z14: =S14+L14+E14 -> 0 | AA14: =T14+M14+F14 -> 54536 | AB14: =Y14-Z14+AA14 -> 3451490 | AC14: =AB14/AB13-1 -> 0.01605438284 | AG14: 1981 | AH14: =AH13*(1+$AH$7) -> 2606467.811 | AI14: =AI13*(1+$AI$7) -> 508041.7041 | AJ14: =AJ13*(1+$AJ$7) -> 272413.2742
C15: 1982 | D15: =G14 -> 2645398.3 | E15: 0 | F15: 22690.6 | G15: =D15-E15+F15 -> 2668088.9 | H15: =G15/G14-1 -> 0.008577385114 | J15: 1982 | K15: =N14 -> 519892.7 | L15: 0 | M15: 7612 | N15: =K15-L15+M15 -> 527504.7 | O15: =N15/N14-1 -> 0.01464148275 | Q15: 1982 | R15: =U14 -> 286199 | S15: 0 | T15: 8758 | U15: =R15-S15+T15 -> 294957 | V15: =U15/U14-1 -> 0.03060108526 | X15: 1982 | Y15: =AB14 -> 3451490 | Z15: =S15+L15+E15 -> 0 | AA15: =T15+M15+F15 -> 39060.6 | AB15: =Y15-Z15+AA15 -> 3490550.6 | AC15: =AB15/AB14-1 -> 0.0113170254 | AG15: 1982 | AH15: 2600549.093 | AI15: 506888.034 | AJ15: 269501.9972
C16: 1983 | D16: 2668088.9 | E16: 0 | F16: 35193.1 | G16: 2703282 | H16: 0.01319037758 | J16: 1983 | K16: 527504.7 | L16: 0 | M16: 8978.5 | N16: 536483.2 | O16: 0.01702070143 | Q16: 1983 | R16: 294957 | S16: 0 | T16: 12114 | U16: 307071 | V16: 0.04107039331 | X16: 1983 | Y16: 3490550.6 | Z16: 0 | AA16: 56285.6 | AB16: 3546836.2 | AC16: 0.0161251351 | AG16: 1983 | AH16: 2594643.814 | AI16: 505736.9836 | AJ16: 266621.833
C17: 1984 | D17: 2703282 | E17: 0 | F17: 32702.6 | G17: 2735984.6 | H17: 0.01209736905 | J17: 1984 | K17: 536483.2 | L17: 0 | M17: 13702.5 | N17: 550185.7 | O17: 0.02554134034 | Q17: 1984 | R17: 307071 | S17: 0 | T17: 11892 | U17: 318963 | V17: 0.0387271999 | X17: 1984 | Y17: 3546836.2 | Z17: 0 | AA17: 58297.1 | AB17: 3605133.3 | AC17: 0.01643636658 | AG17: 1984 | AH17: 2588751.946 | AI17: 504588.547 | AJ17: 263772.4491
C18: 1985 | D18: 2735984.6 | E18: 0 | F18: 31199.2 | G18: 2767183.8 | H18: 0.01140328056 | J18: 1985 | K18: 550185.7 | L18: 0 | M18: 21076 | N18: 571261.7 | O18: 0.03830706614 | Q18: 1985 | R18: 318963 | S18: 0 | T18: 10090 | U18: 329053 | V18: 0.03163376316 | X18: 1985 | Y18: 3605133.3 | Z18: 0 | AA18: 62365.2 | AB18: 3667498.5 | AC18: 0.01729899973 | AG18: 1985 | AH18: 2582873.456 | AI18: 503442.7184 | AJ18: 260953.5165
C19: 1986 | D19: 2767183.8 | E19: 0 | F19: 33696.6 | G19: 2800880.4 | H19: 0.01217721786 | J19: 1986 | K19: 571261.7 | L19: 0 | M19: 18723.3 | N19: 589985 | O19: 0.03277534622 | Q19: 1986 | R19: 329053 | S19: 0 | T19: 8352 | U19: 337405 | V19: 0.02538192935 | X19: 1986 | Y19: 3667498.5 | Z19: 0 | AA19: 60771.9 | AB19: 3728270.4 | AC19: 0.01657039533 | AG19: 1986 | AH19: 2577008.315 | AI19: 502299.4917 | AJ19: 258164.7098
C20: 1987 | D20: 2800880.4 | E20: 0 | F20: 33896.5 | G20: 2834776.9 | H20: 0.01210208762 | J20: 1987 | K20: 589985 | L20: 0 | M20: 20896.9 | N20: 610881.9 | O20: 0.03541937507 | Q20: 1987 | R20: 337405 | S20: 0 | T20: 7902 | U20: 345307 | V20: 0.02341992561 | X20: 1987 | Y20: 3728270.4 | Z20: 0 | AA20: 62695.4 | AB20: 3790965.8 | AC20: 0.01681621591 | AG20: 1987 | AH20: 2571156.493 | AI20: 501158.8611 | AJ20: 255405.707
C21: 1988 | D21: 2834776.9 | E21: 0 | F21: 37379.9 | G21: 2872156.8 | H21: 0.0131861876 | J21: 1988 | K21: 610881.9 | L21: 0 | M21: 25999.7 | N21: 636881.6 | O21: 0.04256092708 | Q21: 1988 | R21: 345307 | S21: 0 | T21: 9049 | U21: 354356 | V21: 0.02620566626 | X21: 1988 | Y21: 3790965.8 | Z21: 0 | AA21: 72428.6 | AB21: 3863394.4 | AC21: 0.0191055799 | AG21: 1988 | AH21: 2565317.959 | AI21: 500020.8206 | AJ21: 252676.1897
C22: 1989 | D22: 2872156.8 | E22: 0 | F22: 45933.1 | G22: 2918089.9 | H22: 0.01599254609 | J22: 1989 | K22: 636881.6 | L22: 0 | M22: 31121.1 | N22: 668002.7 | O22: 0.04886481255 | Q22: 1989 | R22: 354356 | S22: 0 | T22: 9967 | U22: 364323 | V22: 0.02812708124 | X22: 1989 | Y22: 3863394.4 | Z22: 0 | AA22: 87021.2 | AB22: 3950415.6 | AC22: 0.02252454474 | AG22: 1989 | AH22: 2559492.683 | AI22: 498885.3644 | AJ22: 249975.8426
C23: 1990 | D23: 2918089.9 | E23: 0 | F23: 52299.2 | G23: 2970389.1 | H23: 0.01792240876 | J23: 1990 | K23: 668002.7 | L23: 0 | M23: 26307.7 | N23: 694310.4 | O23: 0.03938262525 | Q23: 1990 | R23: 364323 | S23: 0 | T23: 11875 | U23: 376198 | V23: 0.03259470305 | X23: 1990 | Y23: 3950415.6 | Z23: 0 | AA23: 90481.9 | AB23: 4040897.5 | AC23: 0.02290440024 | AG23: 1990 | AH23: 2553680.635 | AI23: 497752.4866 | AJ23: 247304.3542
C24: 1991 | D24: 2970389.1 | E24: 0 | F24: 45813.8 | G24: 3016202.9 | H24: 0.01542350125 | J24: 1991 | K24: 694310.4 | L24: 0 | M24: 12317.5 | N24: 706627.9 | O24: 0.01774062437 | Q24: 1991 | R24: 376198 | S24: 0 | T24: 11815 | U24: 388013 | V24: 0.0314063339 | X24: 1991 | Y24: 4040897.5 | Z24: 0 | AA24: 69946.3 | AB24: 4110843.8 | AC24: 0.01730959521 | AG24: 1991 | AH24: 2547881.785 | AI24: 496622.1814 | AJ24: 244661.4159
C25: 1992 | D25: 3016202.9 | E25: 0 | F25: 56749.3 | G25: 3072952.2 | H25: 0.01881481514 | J25: 1992 | K25: 706627.9 | L25: 0 | M25: 12622.7 | N25: 719250.6 | O25: 0.01786329127 | Q25: 1992 | R25: 388013 | S25: 0 | T25: 13784 | U25: 401797 | V25: 0.03552458294 | X25: 1992 | Y25: 4110843.8 | Z25: 0 | AA25: 83156 | AB25: 4193999.8 | AC25: 0.02022845042 | AG25: 1992 | AH25: 2542096.102 | AI25: 495494.4429 | AJ25: 242046.7227
C26: 1993 | D26: 3072952.2 | E26: 0 | F26: 62971.3 | G26: 3135923.5 | H26: 0.0204921183 | J26: 1993 | K26: 719250.6 | L26: 0 | M26: 14764.5 | N26: 734015.1 | O26: 0.02052761583 | Q26: 1993 | R26: 401797 | S26: 0 | T26: 17535 | U26: 419332 | V26: 0.04364144083 | X26: 1993 | Y26: 4193999.8 | Z26: 0 | AA26: 95270.8 | AB26: 4289270.6 | AC26: 0.02271597629 | AG26: 1993 | AH26: 2536323.558 | AI26: 494369.2653 | AJ26: 239459.9726
C27: 1994 | D27: 3135923.5 | E27: 0 | F27: 66755.1 | G27: 3202678.6 | H27: 0.02128722209 | J27: 1994 | K27: 734015.1 | L27: 0 | M27: 17896.9 | N27: 751912 | O27: 0.02438219595 | Q27: 1994 | R27: 419332 | S27: 0 | T27: 20512 | U27: 439844 | V27: 0.0489158948 | X27: 1994 | Y27: 4289270.6 | Z27: 0 | AA27: 105164 | AB27: 4394434.6 | AC27: 0.02451792153 | AG27: 1994 | AH27: 2530564.122 | AI27: 493246.6428 | AJ27: 236900.8671
C28: 1995 | D28: 3202678.6 | E28: 0 | F28: 59583.7 | G28: 3262262.3 | H28: 0.01860433326 | J28: 1995 | K28: 751912 | L28: 0 | M28: 19442.5 | N28: 771354.5 | O28: 0.02585741417 | Q28: 1995 | R28: 439844 | S28: 0 | T28: 19641 | U28: 459485 | V28: 0.0446544684 | X28: 1995 | Y28: 4394434.6 | Z28: 0 | AA28: 98667.2 | AB28: 4493101.8 | AC28: 0.02245276332 | AG28: 1995 | AH28: 2524817.764 | AI28: 492126.5695 | AJ28: 234369.1107
C29: 1996 | D29: 3262262.3 | E29: 0 | F29: 62109.7 | G29: 3324372 | H29: 0.01903884308 | J29: 1996 | K29: 771354.5 | L29: 0 | M29: 19609.3 | N29: 790963.8 | O29: 0.02542190394 | Q29: 1996 | R29: 459485 | S29: 0 | T29: 17125 | U29: 476610 | V29: 0.03726998705 | X29: 1996 | Y29: 4493101.8 | Z29: 0 | AA29: 98844 | AB29: 4591945.8 | AC29: 0.02199905642 | AG29: 1996 | AH29: 2519084.455 | AI29: 491009.0397 | AJ29: 231864.4112
C30: 1997 | D30: 3324372 | E30: 0 | F30: 61718.1 | G30: 3386090.1 | H30: 0.01856534106 | J30: 1997 | K30: 790963.8 | L30: 0 | M30: 19921.8 | N30: 810885.6 | O30: 0.02518674053 | Q30: 1997 | R30: 476610 | S30: 0 | T30: 17301 | U30: 493911 | V30: 0.03630011959 | X30: 1997 | Y30: 4591945.8 | Z30: 0 | AA30: 98940.9 | AB30: 4690886.7 | AC30: 0.02154661756 | AG30: 1997 | AH30: 2513364.165 | AI30: 489894.0477 | AJ30: 229386.4794
C31: 1998 | D31: 3386090.1 | E31: 0 | F31: 63984.7 | G31: 3450074.8 | H31: 0.01889633711 | J31: 1998 | K31: 810885.6 | L31: 0 | M31: 22592.6 | N31: 833478.2 | O31: 0.02786163671 | Q31: 1998 | R31: 493911 | S31: 0 | T31: 17996 | U31: 511907 | V31: 0.03643571413 | X31: 1998 | Y31: 4690886.7 | Z31: 0 | AA31: 104573.3 | AB31: 4795460 | AC31: 0.02229286416 | AG31: 1998 | AH31: 2507656.865 | AI31: 488781.5875 | AJ31: 226935.0292
C32: 1999 | D32: 3450074.8 | E32: 0 | F32: 62690.3 | G32: 3512765.1 | H32: 0.01817070749 | J32: 1999 | K32: 833478.2 | L32: 0 | M32: 19012.5 | N32: 852490.7 | O32: 0.02281103453 | Q32: 1999 | R32: 511907 | S32: 0 | T32: 14620 | U32: 526527 | V32: 0.02855987513 | X32: 1999 | Y32: 4795460 | Z32: 0 | AA32: 96322.8 | AB32: 4891782.8 | AC32: 0.02008624824 | AG32: 1999 | AH32: 2501962.525 | AI32: 487671.6536 | AJ32: 224509.7776
C33: 2000 | D33: 3512765.1 | E33: 0 | F33: 57727.2 | G33: 3570492.3 | H33: 0.01643354974 | J33: 2000 | K33: 852490.7 | L33: 0 | M33: 15665.4 | N33: 868156.1 | O33: 0.01837603624 | Q33: 2000 | R33: 526527 | S33: 0 | T33: 9564 | U33: 536091 | V33: 0.01816431066 | X33: 2000 | Y33: 4891782.8 | Z33: 0 | AA33: 82956.6 | AB33: 4974739.4 | AC33: 0.01695835719 | AG33: 2000 | AH33: 2496281.115 | AI33: 486564.2401 | AJ33: 222110.4447
C34: 2001 | D34: 3570492.3 | E34: 0 | F34: 58981.8 | G34: 3629474.1 | H34: 0.01651923462 | J34: 2001 | K34: 868156.1 | L34: 0 | M34: 15890.4 | N34: 884046.5 | O34: 0.01830362074 | Q34: 2001 | R34: 536091 | S34: 0 | T34: 7283 | U34: 543374 | V34: 0.01358538009 | X34: 2001 | Y34: 4974739.4 | Z34: 0 | AA34: 82155.2 | AB34: 5056894.6 | AC34: 0.0165144731 | AG34: 2001 | AH34: 2490612.606 | AI34: 485459.3414 | AJ34: 219736.7533
C35: 2002 | D35: 3629474.1 | E35: 0 | F35: 66174.6 | G35: 3695648.7 | H35: 0.01823255882 | J35: 2002 | K35: 884046.5 | L35: 0 | M35: 14629.6 | N35: 898676.1 | O35: 0.01654845079 | Q35: 2002 | R35: 543374 | S35: 0 | T35: 7464 | U35: 550838 | V35: 0.01373639519 | X35: 2002 | Y35: 5056894.6 | Z35: 0 | AA35: 88268.2 | AB35: 5145162.8 | AC35: 0.01745502072 | AG35: 2002 | AH35: 2484956.97 | AI35: 484356.9517 | AJ35: 217388.4296
C36: 2003 | D36: 3695648.7 | E36: 0 | F36: 73242.5 | G36: 3768891.2 | H36: 0.01981857745 | J36: 2003 | K36: 898676.1 | L36: 0 | M36: 14989.6 | N36: 913665.7 | O36: 0.01667964687 | Q36: 2003 | R36: 550838 | S36: 0 | T36: 6895 | U36: 557733 | V36: 0.01251729184 | X36: 2003 | Y36: 5145162.8 | Z36: 0 | AA36: 95127.1 | AB36: 5240289.9 | AC36: 0.01848864724 | AG36: 2003 | AH36: 2479314.176 | AI36: 483257.0653 | AJ36: 215065.2024
C37: 2004 | D37: 3768891.2 | E37: 0 | F37: 76942.45813 | G37: 3845833.658 | H37: 0.02041514441 | J37: 2004 | K37: 913665.7 | L37: 0 | M37: 16877.52747 | N37: 930543.2275 | O37: 0.0184723225 | Q37: 2004 | R37: 557733 | S37: 0 | T37: 6659 | U37: 564392 | V37: 0.0119394047 | X37: 2004 | Y37: 5240289.9 | Z37: 0 | AA37: 100478.9856 | AB37: 5340768.886 | AC37: 0.01917431812 | AG37: 2004 | AH37: 2473684.196 | AI37: 482159.6765 | AJ37: 212766.8035
C38: 2005 | D38: 3845833.658 | E38: 0 | F38: 85375.80089 | G38: 3931209.459 | H38: 0.02219955632 | J38: 2005 | K38: 930543.2275 | L38: 0 | M38: 16570.90539 | N38: 947114.1329 | O38: 0.01780777604 | Q38: 2005 | R38: 564392 | S38: 0 | T38: 6657 | U38: 571049 | V38: 0.01179499355 | X38: 2005 | Y38: 5340768.886 | Z38: 0 | AA38: 108603.7063 | AB38: 5449372.592 | AC38: 0.02033484478 | AG38: 2005 | AH38: 2468067 | AI38: 481064.7797 | AJ38: 210492.9676
C39: 2006 | D39: 3931209.459 | E39: 0 | F39: 76635.58122 | G39: 4007845.04 | H39: 0.01949414856 | J39: 2006 | K39: 947114.1329 | L39: 0 | M39: 18515.20492 | N39: 965629.3378 | O39: 0.01954907469 | Q39: 2006 | R39: 571049 | S39: 0 | T39: 6343 | U39: 577392 | V39: 0.01110762824 | X39: 2006 | Y39: 5449372.592 | Z39: 0 | AA39: 101493.7861 | AB39: 5550866.378 | AC39: 0.01862485716 | AG39: 2006 | AH39: 2462462.56 | AI39: 479972.3693 | AJ39: 208243.4321
C40: 2007 | D40: 4007845.04 | E40: 0 | F40: 58437.30245 | G40: 4066282.343 | H40: 0.01458072901 | J40: 2007 | K40: 965629.3378 | L40: 0 | M40: 18148.56066 | N40: 983777.8984 | O40: 0.0187945415 | Q40: 2007 | R40: 577392 | S40: 0 | T40: 8034.090444 | U40: 585426.0904 | V40: 0.01391444711 | X40: 2007 | Y40: 5550866.378 | Z40: 0 | AA40: 84619.95355 | AB40: 5635486.332 | AC40: 0.01524445875 | AG40: 2007 | AH40: 2456870.846 | AI40: 478882.4395 | AJ40: 206017.9373
C41: 2008 | D41: 4066282.343 | E41: 0 | F41: 34499.64906 | G41: 4100781.992 | H41: 0.008484322078 | J41: 2008 | K41: 983777.8984 | L41: 0 | M41: 13544.89918 | N41: 997322.7976 | O41: 0.01376824912 | Q41: 2008 | R41: 585426.0904 | S41: 0 | T41: 8325.91292 | U41: 593752.0034 | V41: 0.01422197107 | X41: 2008 | Y41: 5635486.332 | Z41: 0 | AA41: 56370.46116 | AB41: 5691856.793 | AC41: 0.01000276779 | AG41: 2008 | AH41: 2451291.829 | AI41: 477794.9847 | AJ41: 203816.2264
C42: 2009 | D42: 4100781.992 | E42: 0 | F42: 26476.88903 | G42: 4127258.881 | H42: 0.006456546357 | J42: 2009 | K42: 997322.7976 | L42: 0 | M42: 5950.274911 | N42: 1003273.073 | O42: 0.005966247763 | Q42: 2009 | R42: 593752.0034 | S42: 0 | T42: 8447.209519 | U42: 602199.2129 | V42: 0.01422683119 | X42: 2009 | Y42: 5691856.793 | Z42: 0 | AA42: 40874.37346 | AB42: 5732731.166 | AC42: 0.007181202013 | AG42: 2009 | AH42: 2445725.482 | AI42: 476709.9993 | AJ42: 201638.0451
C43: 2010 | D43: 4127258.881 | E43: 0 | F43: 43008.78356 | G43: 4170267.664 | H43: 0.01042066534 | J43: 2010 | K43: 1003273.073 | L43: 0 | M43: 9362.377444 | N43: 1012635.45 | O43: 0.009331833676 | Q43: 2010 | R43: 602199.2129 | S43: 0 | T43: 8481.569989 | U43: 610680.7829 | V43: 0.01408432593 | X43: 2010 | Y43: 5732731.166 | Z43: 0 | AA43: 60852.73099 | AB43: 5793583.897 | AC43: 0.01061496331 | AG43: 2010 | AH43: 2440171.774 | AI43: 475627.4778 | AJ43: 199483.1421
C44: 2011 | D44: 4170267.664 | E44: 0 | F44: 59337.17519 | G44: 4229604.84 | H44: 0.01422862511 | J44: 2011 | K44: 1012635.45 | L44: 0 | M44: 13644.61037 | N44: 1026280.06 | O44: 0.01347435582 | Q44: 2011 | R44: 610680.7829 | S44: 0 | T44: 8353.224309 | U44: 619034.0072 | V44: 0.01367854457 | X44: 2011 | Y44: 5793583.897 | Z44: 0 | AA44: 81335.00988 | AB44: 5874918.907 | AC44: 0.01403880764 | AG44: 2011 | AH44: 2434630.678 | AI44: 474547.4144 | AJ44: 197351.2684
C45: 2012 | D45: 4229604.84 | E45: 0 | F45: 68726.91929 | G45: 4298331.759 | H45: 0.01624901661 | J45: 2012 | K45: 1026280.06 | L45: 0 | M45: 14847.68926 | N45: 1041127.75 | O45: 0.01446748293 | Q45: 2012 | R45: 619034.0072 | S45: 0 | T45: 8067.339603 | U45: 627101.3468 | V45: 0.01303214284 | X45: 2012 | Y45: 5874918.907 | Z45: 0 | AA45: 91641.94815 | AB45: 5966560.855 | AC45: 0.01559884478 | AG45: 2012 | AH45: 2429102.164 | AI45: 473469.8037 | AJ45: 195242.1781
C46: 2013 | D46: 4298331.759 | E46: =IF($G$7="YES",AH45-AH46,0) -> 0 | F46: 70465.64708 | G46: 4368797.406 | H46: 0.01639371994 | J46: 2013 | K46: 1041127.75 | L46: =IF($G$7="YES",AI45-AI46,0) -> 0 | M46: 15684.23459 | N46: 1056811.984 | O46: 0.01506465906 | Q46: 2013 | R46: 627101.3468 | S46: =IF($G$7="YES",AJ45-AJ46,0) -> 0 | T46: 7708.062064 | U46: 634809.4088 | V46: 0.01229157313 | X46: 2013 | Y46: 5966560.855 | Z46: 0 | AA46: 93857.94373 | AB46: 6060418.799 | AC46: 0.01573066059 | AG46: 2013 | AH46: =AH45*(1+$AH$7) -> 2423586.204 | AI46: =AI45*(1+$AI$7) -> 472394.64 | AJ46: =AJ45*(1+$AJ$7) -> 193155.6276
C47: 2014 | D47: 4368797.406 | E47: 0 | F47: 69968.61956 | G47: 4438766.025 | H47: 0.01601553312 | J47: 2014 | K47: 1056811.984 | L47: 0 | M47: 16844.58428 | N47: 1073656.568 | O47: 0.01593905495 | Q47: 2014 | R47: 634809.4088 | S47: 0 | T47: 7248.026214 | U47: 642057.4351 | V47: 0.01141764144 | X47: 2014 | Y47: 6060418.799 | Z47: 0 | AA47: 94061.23005 | AB47: 6154480.029 | AC47: 0.01552058252 | AG47: 2014 | AH47: 2418082.77 | AI47: 471321.9179 | AJ47: 191091.376
C48: 2015 | D48: 4438766.025 | E48: 0 | F48: 70186.04914 | G48: 4508952.075 | H48: 0.01581206325 | J48: 2015 | K48: 1073656.568 | L48: 0 | M48: 18222.34364 | N48: 1091878.912 | O48: 0.01697222759 | Q48: 2015 | R48: 642057.4351 | S48: 0 | T48: 6822.261233 | U48: 648879.6963 | V48: 0.01062562453 | X48: 2015 | Y48: 6154480.029 | Z48: 0 | AA48: 95230.65401 | AB48: 6249710.683 | AC48: 0.01547338744 | AG48: 2015 | AH48: 2412591.833 | AI48: 470251.6317 | AJ48: 189049.1851
C49: 2016 | D49: 4508952.075 | E49: 0 | F49: 70411.95999 | G49: 4579364.035 | H49: 0.01561603646 | J49: 2016 | K49: 1091878.912 | L49: 0 | M49: 19354.1343 | N49: 1111233.046 | O49: 0.01772553173 | Q49: 2016 | R49: 648879.6963 | S49: 0 | T49: 6499.826459 | U49: 655379.5228 | V49: 0.01001699775 | X49: 2016 | Y49: 6249710.683 | Z49: 0 | AA49: 96265.92075 | AB49: 6345976.604 | AC49: 0.01540326035 | AG49: 2016 | AH49: 2407113.364 | AI49: 469183.7759 | AJ49: 187028.819
C50: 2017 | D50: 4579364.035 | E50: 0 | F50: 69178.45405 | G50: 4648542.489 | H50: 0.0151065636 | J50: 2017 | K50: 1111233.046 | L50: 0 | M50: 19989.32048 | N50: 1131222.367 | O50: 0.01798841435 | Q50: 2017 | R50: 655379.5228 | S50: 0 | T50: 6312.897415 | U50: 661692.4202 | V50: 0.009632430059 | X50: 2017 | Y50: 6345976.604 | Z50: 0 | AA50: 95480.67195 | AB50: 6441457.276 | AC50: 0.01504585943 | AG50: 2017 | AH50: 2401647.336 | AI50: 468118.345 | AJ50: 185030.0445
C51: 2018 | D51: 4648542.489 | E51: 0 | F51: 67800.54063 | G51: 4716343.029 | H51: 0.0145853331 | J51: 2018 | K51: 1131222.367 | L51: 0 | M51: 20686.19694 | N51: 1151908.564 | O51: 0.01828658763 | Q51: 2018 | R51: 661692.4202 | S51: 0 | T51: 6279.419374 | U51: 667971.8395 | V51: 0.00948993699 | X51: 2018 | Y51: 6441457.276 | Z51: 0 | AA51: 94766.15695 | AB51: 6536223.433 | AC51: 0.01471191268 | AG51: 2018 | AH51: 2396193.72 | AI51: 467055.3335 | AJ51: 183052.6309
C52: 2019 | D52: 4716343.029 | E52: 0 | F52: 66315.51077 | G52: 4782658.54 | H52: 0.0140607904 | J52: 2019 | K52: 1151908.564 | L52: 0 | M52: 21491.76776 | N52: 1173400.332 | O52: 0.01865752928 | Q52: 2019 | R52: 667971.8395 | S52: 0 | T52: 6392.108857 | U52: 674363.9484 | V52: 0.009569428647 | X52: 2019 | Y52: 6536223.433 | Z52: 0 | AA52: 94199.38738 | AB52: 6630422.82 | AC52: 0.0144118983 | AG52: 2019 | AH52: 2390752.488 | AI52: 465994.736 | AJ52: 181096.3499
C53: 2020 | D53: 4782658.54 | E53: 0 | F53: 65194.00998 | G53: 4847852.55 | H53: 0.01363133275 | J53: 2020 | K53: 1173400.332 | L53: 0 | M53: 21967.86314 | N53: 1195368.195 | O53: 0.01872154161 | Q53: 2020 | R53: 674363.9484 | S53: 0 | T53: 6610.888202 | U53: 680974.8366 | V53: 0.009803145939 | X53: 2020 | Y53: 6630422.82 | Z53: 0 | AA53: 93772.76132 | AB53: 6724195.581 | AC53: 0.01414280263 | AG53: 2020 | AH53: 2385323.612 | AI53: 464936.5468 | AJ53: 179160.9757
C54: 2021 | D54: 4847852.55 | E54: 0 | F54: 63489.45797 | G54: 4911342.008 | H54: 0.01309640863 | J54: 2021 | K54: 1195368.195 | L54: 0 | M54: 21579.79984 | N54: 1216947.995 | O54: 0.01805284759 | Q54: 2021 | R54: 680974.8366 | S54: 0 | T54: 6891.247535 | U54: 687866.0841 | V54: 0.01011968015 | X54: 2021 | Y54: 6724195.581 | Z54: 0 | AA54: 91960.50535 | AB54: 6816156.087 | AC54: 0.01367606046 | AG54: 2021 | AH54: 2379907.064 | AI54: 463880.7606 | AJ54: 177246.2848
C55: 2022 | D55: 4911342.008 | E55: 0 | F55: 62361.58469 | G55: 4973703.593 | H55: 0.01269746326 | J55: 2022 | K55: 1216947.995 | L55: 0 | M55: 21821.28847 | N55: 1238769.283 | O55: 0.0179311594 | Q55: 2022 | R55: 687866.0841 | S55: 0 | T55: 7172.622867 | U55: 695038.707 | V55: 0.01042735357 | X55: 2022 | Y55: 6816156.087 | Z55: 0 | AA55: 91355.49602 | AB55: 6907511.583 | AC55: 0.01340278815 | AG55: 2022 | AH55: 2374502.816 | AI55: 462827.3719 | AJ55: 175352.0561
C56: 2023 | D56: 4973703.593 | E56: 0 | F56: 61548.37852 | G56: 5035251.971 | H56: 0.01237475804 | J56: 2023 | K56: 1238769.283 | L56: 0 | M56: 21921.59971 | N56: 1260690.883 | O56: 0.01769627324 | Q56: 2023 | R56: 695038.707 | S56: 0 | T56: 7396.632508 | U56: 702435.3395 | V56: 0.01064204401 | X56: 2023 | Y56: 6907511.583 | Z56: 0 | AA56: 90866.61074 | AB56: 6998378.193 | AC56: 0.01315475329 | AG56: 2023 | AH56: 2369110.839 | AI56: 461776.3753 | AJ56: 173478.0711
C57: 2024 | D57: 5035251.971 | E57: 0 | F57: 60616.51093 | G57: 5095868.482 | H57: 0.01203842653 | J57: 2024 | K57: 1260690.883 | L57: 0 | M57: 21860.74677 | N57: 1282551.63 | O57: 0.01734029101 | Q57: 2024 | R57: 702435.3395 | S57: 0 | T57: 7519.052294 | U57: 709954.3918 | V57: 0.01070426254 | X57: 2024 | Y57: 6998378.193 | Z57: 0 | AA57: 89996.31 | AB57: 7088374.503 | AC57: 0.01285959511 | AG57: 2024 | AH57: 2363731.106 | AI57: 460727.7653 | AJ57: 171624.1133
C58: 2025 | D58: 5095868.482 | E58: 0 | F58: 60409.75564 | G58: 5156278.238 | H58: 0.0118546536 | J58: 2025 | K58: 1282551.63 | L58: 0 | M58: 21624.50313 | N58: 1304176.133 | O58: 0.01686053226 | Q58: 2025 | R58: 709954.3918 | S58: 0 | T58: 7514.795429 | U58: 717469.1872 | V58: 0.01058489886 | X58: 2025 | Y58: 7088374.503 | Z58: 0 | AA58: 89549.0542 | AB58: 7177923.558 | AC58: 0.01263322842 | AG58: 2025 | AH58: 2358363.59 | AI58: 459681.5365 | AJ58: 169789.9687
C59: 2026 | D59: 5156278.238 | E59: 0 | F59: 59860.4156 | G59: 5216138.653 | H59: 0.01160922915 | J59: 2026 | K59: 1304176.133 | L59: 0 | M59: 21300.21198 | N59: 1325476.345 | O59: 0.01633231236 | Q59: 2026 | R59: 717469.1872 | S59: 0 | T59: 7381.417507 | U59: 724850.6047 | V59: 0.01028813172 | X59: 2026 | Y59: 7177923.558 | Z59: 0 | AA59: 88542.04508 | AB59: 7266465.603 | AC59: 0.01233532851 | AG59: 2026 | AH59: 2353008.262 | AI59: 458637.6835 | AJ59: 167975.4256
C60: 2027 | D60: 5216138.653 | E60: 0 | F60: 58686.12152 | G60: 5274824.775 | H60: 0.01125087453 | J60: 2027 | K60: 1325476.345 | L60: 0 | M60: 21199.60134 | N60: 1346675.946 | O60: 0.01599394922 | Q60: 2027 | R60: 724850.6047 | S60: 0 | T60: 7141.111305 | U60: 731991.716 | V60: 0.00985183879 | X60: 2027 | Y60: 7266465.603 | Z60: 0 | AA60: 87026.83417 | AB60: 7353492.437 | AC60: 0.01197650122 | AG60: 2027 | AH60: 2347665.095 | AI60: 457596.2008 | AJ60: 166180.2745
C61: 2028 | D61: 5274824.775 | E61: 0 | F61: 57157.94369 | G61: 5331982.719 | H61: 0.01083598909 | J61: 2028 | K61: 1346675.946 | L61: 0 | M61: 21157.03875 | N61: 1367832.985 | O61: 0.01571056408 | Q61: 2028 | R61: 731991.716 | S61: 0 | T61: 6832.650728 | U61: 738824.3668 | V61: 0.009334327941 | X61: 2028 | Y61: 7353492.437 | Z61: 0 | AA61: 85147.63317 | AB61: 7438640.07 | AC61: 0.01157921 | AG61: 2028 | AH61: 2342334.061 | AI61: 456557.0832 | AJ61: 164404.3081
C62: 2029 | D62: 5331982.719 | E62: 0 | F62: 56115.99597 | G62: 5388098.715 | H62: 0.01052441445 | J62: 2029 | K62: 1367832.985 | L62: 0 | M62: 21086.50828 | N62: 1388919.493 | O62: 0.01541599633 | Q62: 2029 | R62: 738824.3668 | S62: 0 | T62: 6504.892482 | U62: 745329.2593 | V62: 0.008804382712 | X62: 2029 | Y62: 7438640.07 | Z62: 0 | AA62: 83707.39672 | AB62: 7522347.467 | AC62: 0.01125305109 | AG62: 2029 | AH62: 2337015.132 | AI62: 455520.3253 | AJ62: 162647.3215
C63: 2030 | D63: 5388098.715 | E63: 0 | F63: 55890.65418 | G63: 5443989.369 | H63: 0.01037298259 | J63: 2030 | K63: 1388919.493 | L63: 0 | M63: 20857.08638 | N63: 1409776.579 | O63: 0.0150167713 | Q63: 2030 | R63: 745329.2593 | S63: 0 | T63: 6208.500299 | U63: 751537.7596 | V63: 0.008329875987 | X63: 2030 | Y63: 7522347.467 | Z63: 0 | AA63: 82956.24086 | AB63: 7605303.708 | AC63: 0.01102797248 | AG63: 2030 | AH63: 2331708.282 | AI63: 454485.9216 | AJ63: 160909.1118
C64: 2031 | D64: =G63 -> 5443989.369 | E64: 0 | F64: =F63*(1+$N$7) -> 56449.56072 | G64: =D64-E64+F64 -> 5500438.929 | H64: 0.01036915337 | J64: 2031 | K64: =N63 -> 1409776.579 | L64: 0 | M64: =M63*(1+$N$7) -> 21065.65724 | N64: =K64-L64+M64 -> 1430842.237 | O64: 0.01494255015 | Q64: 2031 | R64: =U63 -> 751537.7596 | S64: 0 | T64: =T63*(1+$N$7) -> 6270.585302 | U64: =R64-S64+T64 -> 757808.3449 | V64: 0.008343672986 | X64: 2031 | Y64: =AB63 -> 7605303.708 | Z64: 0 | AA64: 83785.80327 | AB64: =Y64-Z64+AA64 -> 7689089.511 | AC64: 0.01101675968 | AG64: 2031 | AH64: 2326413.483 | AI64: 453453.8669 | AJ64: 159189.4783
C65: 2032 | D65: =G64 -> 5500438.929 | E65: 0 | F65: =F64*(1+$N$7) -> 57014.05633 | G65: =D65-E65+F65 -> 5557452.986 | H65: 0.01036536485 | J65: 2032 | K65: =N64 -> 1430842.237 | L65: 0 | M65: =M64*(1+$N$7) -> 21276.31382 | N65: =K65-L65+M65 -> 1452118.55 | O65: 0.01486978317 | Q65: 2032 | R65: =U64 -> 757808.3449 | S65: 0 | T65: =T64*(1+$N$7) -> 6333.291155 | U65: =R65-S65+T65 -> 764141.636 | V65: 0.008357378482 | X65: 2032 | Y65: =AB64 -> 7689089.511 | Z65: 0 | AA65: 84623.6613 | AB65: =Y65-Z65+AA65 -> 7773713.172 | AC65: 0.01100568035 | AG65: 2032 | AH65: 2321130.706 | AI65: 452424.1558 | AJ65: 157488.2225
C66: 2033 | D66: =G65 -> 5557452.986 | E66: 0 | F66: =F65*(1+$N$7) -> 57584.1969 | G66: =D66-E66+F66 -> 5615037.183 | H66: 0.01036161656 | J66: 2033 | K66: =N65 -> 1452118.55 | L66: 0 | M66: =M65*(1+$N$7) -> 21489.07695 | N66: =K66-L66+M66 -> 1473607.627 | O66: 0.01479843154 | Q66: 2033 | R66: =U65 -> 764141.636 | S66: 0 | T66: =T65*(1+$N$7) -> 6396.624067 | U66: =R66-S66+T66 -> 770538.2601 | V66: 0.008370992713 | X66: 2033 | Y66: =AB65 -> 7773713.172 | Z66: 0 | AA66: 85469.89792 | AB66: =Y66-Z66+AA66 -> 7859183.07 | AC66: 0.01099473264 | AG66: 2033 | AH66: 2315859.926 | AI66: 451396.7829 | AJ66: 155805.148
C67: 2034 | D67: =G66 -> 5615037.183 | E67: 0 | F67: =F66*(1+$N$7) -> 58160.03886 | G67: =D67-E67+F67 -> 5673197.222 | H67: 0.01035790806 | J67: 2034 | K67: =N66 -> 1473607.627 | L67: 0 | M67: =M66*(1+$N$7) -> 21703.96772 | N67: =K67-L67+M67 -> 1495311.595 | O67: 0.01472845778 | Q67: 2034 | R67: =U66 -> 770538.2601 | S67: 0 | T67: =T66*(1+$N$7) -> 6460.590307 | U67: =R67-S67+T67 -> 776998.8504 | V67: 0.008384515918 | X67: 2034 | Y67: =AB66 -> 7859183.07 | Z67: 0 | AA67: 86324.59689 | AB67: =Y67-Z67+AA67 -> 7945507.667 | AC67: 0.01098391476 | AG67: 2034 | AH67: 2310601.115 | AI67: 450371.7431 | AJ67: 154140.0605

Sheet Lifetimes
B2: LIFETIMES
B4: NAVIGATION
C7: Model Appliance Lifetimes (Years) | J7: 6P Appliance Lifetimes (Years)
D9: TOTAL HOMES | E9: SINGLE FAMILY | F9: MULTI-FAMILY | G9: MANUFACTURED HOMES | H9: SOURCE | J9: AVERAGE | K9: SOURCE
C10: Electric Water Heaters | D10: 13 | E10: =$D10 -> 13 | F10: =$D10 -> 13 | G10: =$D10 -> 13 | H10: DOE Water Heaters 2010 Final Rule, Technical Support Document Chapter 8: Lifecycle Cost Analysis, Table 8.7.2 Water Heaters: Average, Minimum, and Maximum Product Lifetimes Used in LCC Analysis (page 8-50) | J10: 12 | K10: 6P Supply Curve File - PNWResSectorSupplyCurveUnits_6th_Fnl: 'DHW & Appliance Units' tab, cell C25
C11: Dishwashers | D11: 15.43 | E11: =$D11 -> 15.43 | F11: 15.43 | G11: 15.43 | H11: DOE Dishwasher 2014 Notice of Proposed Rulemaking, Technical Support Document Chapter 8: Lifecycle Cost Analysis, Section 8.2.3 Product Lifetimes (page 8-21) | J11: 9 | K11: 6P Supply Curve File - PNWResSectorSupplyCurveUnits_6th_Fnl: 'DHW & Appliance Units' tab, cell C30
C12: Refrigerators | D12: 17.43 | E12: 17.43 | F12: 17.43 | G12: 17.43 | H12: DOE Refrigerators and Freezers 2011 Final Rule, Technical Support Document Chapter 8: Lifecycle Cost Analysis, Section 8.2.3 Product Lifetimes (page 8-30) | J12: 19 | K12: 6P Supply Curve File - PNWResSectorSupplyCurveUnits_6th_Fnl: 'DHW & Appliance Units' tab, cell C26
C13: Freezers | D13: 22.28 | E13: 22.28 | F13: 22.28 | G13: 22.28 | H13: DOE Refrigerators and Freezers 2011 Final Rule, Technical Support Document Chapter 8: Lifecycle Cost Analysis, Section 8.2.3 Product Lifetimes (page 8-35) | J13: 22 | K13: 6P Supply Curve File - PNWResSectorSupplyCurveUnits_6th_Fnl: 'DHW & Appliance Units' tab, cell C27
C14: Clothes Washers | D14: 14.2 | E14: 14.2 | F14: 14.2 | G14: 14.2 | H14: DOE Clothes Washers 2012 Direct Final Rule, Technical Support Document Chapter 8: Lifecycle Cost Analysis, Section 8.2.3 Product Lifetimes (page 8-23) | J14: 14 | K14: 6P Supply Curve File - PNWResSectorSupplyCurveUnits_6th_Fnl: 'DHW & Appliance Units' tab, cell C28
C15: Heat Pumps | D15: 16.24 | E15: 16.24 | F15: 16.24 | G15: 16.24 | H15: DOE Central Air Conditioners and Heat Pumps 2011 Final Rule, Technical Support Document Chapter 8: Lifecycle Cost Analysis, Section 8.2.3.5 Lifetime (page 8-59) | J15: 18 | K15: Need Source
C16: Room AC | D16: 10.5 | E16: 10.5 | F16: 10.5 | G16: 10.5 | H16: DOE Room Air Conditioners 2011 Direct Final Rule, Technical Support Document Chapter 8: Lifecycle Cost Analysis, Table 8.2.39 Lifetime Parameters (page 8-41) | J16: 9 | K16: 6P Supply Curve File - PNWResSectorSupplyCurveUnits_6th_Fnl: 'DHW & Appliance Units' tab, cell C32
C17: Central AC | D17: 19.01 | E17: 19.01 | F17: 19.01 | G17: 19.01 | H17: DOE Central Air Conditioners and Heat Pumps 2011 Final Rule, Technical Support Document Chapter 8: Lifecycle Cost Analysis, Section 8.2.3.5 Lifetime (page 8-59) | J17: 18 | K17: 6P Supply Curve File - PNWResSectorSupplyCurveUnits_6th_Fnl: 'DHW & Appliance Units' tab, cell C33
C18: Electric Ovens | D18: 19 | E18: 19 | F18: 19 | G18: 19 | H18: DOE Kitchen Ranges and Ovens 2009 Final Rule, Technical Support Document Chapter 8: Lifecycle Cost Analysis, Table 8.2.43 Cooktops and Ovens: Average, Minimum, and Maximum Product Lifetimes (page 8-39) | J18: 20 | K18: 6P Supply Curve File - PNWResSectorSupplyCurveUnits_6th_Fnl: 'DHW & Appliance Units' tab, cell C31
C19: Microwave Ovens | D19: 9 | E19: 9 | F19: 9 | G19: 9 | H19: DOE Microwave Ovens 2013 Final Rule, Technical Support Document Chapter 8: Lifecycle Cost Analysis, Table 8.2.10 Lifetime Parameters (page 8-18) | J19: 15 | K19: 6P Supply Curve File - ResOven_MicrowaveFY09v1: 'Measure Table' tab, cell Q9
C20: Electric Cooktops | D20: 19 | E20: 19 | F20: 19 | G20: 19 | H20: DOE Kitchen Ranges and Ovens 2009 Final Rule, Technical Support Document Chapter 8: Lifecycle Cost Analysis, Table 8.2.43 Cooktops and Ovens: Average, Minimum, and Maximum Product Lifetimes (page 8-39) | J20: =J18 -> 20 | K20: Assumed same as Electric Oven Measure Life
C21: Furnace Fans | D21: 21.2 | E21: 21.2 | F21: 21.2 | G21: 21.2 | H21: DOE Furnace Fans 2014 Final Rule, Technical Support Document Chapter 8: Lifecycle Cost Analysis, Table 8.2.12 Lifetime Parameters for Furnace Fans (page 8-22) | K21: Need Source
C22: Electric Clothes Dryers | D22: 16 | E22: 16 | F22: 16 | G22: 16 | H22: DOE Clothes Dryers 2011 Direct Final Rule, Technical Support Document Chapter 8: Lifecycle Cost Analysis, Table 8.2.39 Lifetime Parameters (page 8-41) | J22: 14 | K22: 6P Supply Curve File - PNWResSectorSupplyCurveUnits_6th_Fnl: 'DHW & Appliance Units' tab, cell C29

Sheet 1992 Saturation Data - Average
B2: 1992 SATURATION DATA - AVERAGE
B4: NAVIGATION
C7: Source of all Data: | D7: The 1992 Pacific Northwest Residential Energy Survey - Phase I, Book2: Item-by-Item Crosstabulations, Volume C: Pacific Northwest Region. Source table numbers are listed with each data table.
C11: Space Heating Saturations | I11: Air Conditioning Saturations | O11: Water Heating Saturations | U11: Cooking Products Saturations | AA11: Non-Cooking Kitchen Products Saturations | AG11: Laundry Products Saturations
C15: Saturation Calculations | I15: Saturation Calculations | O15: Saturation Calculations | U15: Saturation Calculations | AA15: Saturation Calculations | AG15: Saturation Calculations
C17: AVERAGE | D17: Heat Pumps | E17: =($E$64/SUM($E$64:$E$70))*($E$28/SUM($E$28:$E$38)) -> 0.05298212299 | I17: AVERAGE | J17: Central AC | K17: =$K$27/SUM($K$27:$K$28)*(SUM($K$37:$K$38)/SUM($K$37:$K$41)) -> 0.07816160894 | O17: AVERAGE | P17: Electric Water Heaters | Q17: =$Q$40 -> 0.764419556 | U17: AVERAGE | V17: Electric Cooktops | W17: =$W$27/SUM($W$27:$W$33) -> 0.9265445639 | AA17: AVERAGE | AB17: Refrigerators | AC17: =SUMPRODUCT($AA$27:$AA$34,$AC$27:$AC$34)/SUM($AC$27:$AC$34) -> 1.175043665 | AG17: AVERAGE | AH17: Clothes Washers | AI17: =SUMPRODUCT($AG$27:$AG$32,$AI$27:$AI$32)/SUM($AI$27:$AI$32) -> 0.8976240066
C19: AVERAGE | D19: Furnace Fans | E19: =$E$68/SUM($E$64:$E$70)/($E$28/SUM($E$28:$E$41)) -> 0.6782307753 | I19: AVERAGE | J19: Room AC | K19: =$K$27/SUM($K$27:$K$28)*(SUM($K$41)/SUM($K$37:$K$41))*SUMPRODUCT($I$51:$I$59,$K$51:$K$59)/SUM($K$51:$K$59) -> 0.1009875499 | U19: AVERAGE | V19: Electric Ovens | W19: =$W$57/SUM($W$57:$W$59)*SUMPRODUCT($U$42:$U$48,$W$42:$W$48)/SUM($W$42:$W$48) -> 1.027014339 | AA19: AVERAGE | AB19: Freezers | AC19: =SUMPRODUCT($AA$43:$AA$51,$AC$43:$AC$51) -> 0.6643445731 | AG19: AVERAGE | AH19: Electric Clothes Dryers | AI19: =$AI$55/SUM($AI$55:$AI$57)*SUMPRODUCT($AG$41:$AG$46,$AI$41:$AI$46)/SUM($AI$41:$AI$46) -> 0.8617570098
C21: Multi-Family | D21: Furnace Fans | E21: =(SUM(E81:E82)/SUM(E81:E84)) -> 0.147088153 | I21: Multi-Family | J21: Central AC | K21: =(K69/SUM(K69:K71))*K27 -> 0.1780441718 | U21: AVERAGE | V21: Microwave Ovens | W21: =$W$69/SUM($W$69:$W$70) -> 0.8975480967 | AA21: AVERAGE | AB21: Dishwashers | AC21: =SUMPRODUCT($AA$60:$AA$64,$AC$60:$AC$64)/SUM($AC$60:$AC$64) -> 0.667380346
C25: Table C-20: Primary Space Heating Fuel Type by Domain | I25: Table C-35: Presence of Air Conditioning by Domain | O25: Table C-39: Multi-Unit Water-Heating System by Domain | U25: Table C-41: Stove-Top Fuel Type by Domain | AA25: Table C-45: Number of Refrigerators by Domain | AG25: Table C-50: Number of Clothes Washing Machines by Domain
J26: Weighted Data Total | K26: % | P26: Weighted Data Total | Q26: % | V26: Weighted Data Total | W26: % | AB26: Weighted Data Total | AC26: % | AH26: Weighted Data Total | AI26: %
D27: Weighted Data Total | E27: % | I27: Yes | J27: 855439 | K27: =J27/J$31 -> 0.2410496028 | O27: Central Water Heater for All Units | P27: 102532 | Q27: =P27/P$34 -> 0.02889195471 | U27: Electricity | V27: 3284493 | W27: =V27/V$36 -> 0.9255198012 | AA27: 0 | AB27: 2779 | AC27: =AB27/AB$37 -> 0.0007830796191 | AG27: 0 | AH27: 380358 | AI27: =AH27/AH$35 -> 0.1071790564
C28: Electricity | D28: 1629745 | E28: =D28/D$42 -> 0.4592371694 | I28: No | J28: 2692041 | K28: =J28/J$31 -> 0.7585759053 | O28: Water Heater for Several Units | P28: 14685 | Q28: 0.004138009157 | U28: Natural Gas | V28: 190579 | W28: 0.05370224208 | AA28: 1 | AB28: 2965098 | AC28: 0.835519184 | AG28: 1 | AH28: 3147882 | AI28: 0.8870249146
C29: Natural Gas | D29: 858134 | E29: 0.2418090125 | I29: Don't Know | J29: 1329 | K29: =J29/J$31 -> 0.0003744918366 | O29: Water Heater for Single Unit | P29: 422647 | Q29: 0.1190954822 | U29: Propane of Bottled Gas | V29: 55934 | W29: 0.01576134416 | AA29: 2 | AB29: 539955 | AC29: 0.1521510456 | AG29: 2 | AH29: 12922 | AI29: 0.003641221604
C30: Fuel Oil | D30: 326196 | E30: 0.0919170347 | I30: Refused | J30: 0 | K30: =J30/J$31 -> 0 | O30: No Hot Water in Unit | P30: 4504 | Q30: 0.001269158546 | U30: Kersene | V30: 1550 | W30: 0.0004367662503 | AA30: 3 | AB30: 35426 | AC30: 0.009982503989 | AG30: 3 | AH30: 2168 | AI30: 0.0006109091811
C31: Wood or Presto Logs | D31: 572866 | E31: 0.1614248611 | I31: TOTAL | J31: =SUM(J27:J30) -> 3548809 | K31: =J31/J$31 -> 1 | O31: Not Asked | P31: 2993475 | Q31: 0.8435156255 | U31: Wood | V31: 9141 | W31: 0.002575793738 | AA31: 4 | AB31: 2111 | AC31: 0.0005948474545 | AG31: 5 | AH31: 15 | AI31: 4.226770164e-06
C32: Propane or Bottled Gas | D32: 48317 | E32: 0.01361499027 | O32: Don't Know | P32: 10632 | Q32: 0.002995935537 | U32: Other | V32: 841 | W32: 0.0002369809139 | AA32: 5 | AB32: 1103 | AC32: 0.0003108084994 | AG32: 20 | AH32: 15 | AI32: 4.226770164e-06
C33: Kerosene | D33: 4892 | E33: 0.001378490643 | O33: Refused | P33: 333 | Q33: 9.383432409e-05 | U33: No Stove-Top Burners | V33: 2346 | W33: 0.0006610668537 | AA33: 6 | AB33: 333 | AC33: 9.383429765e-05 | AG33: Don't Know | AH33: 2394 | AI33: 0.0006745925182
C34: Coal | D34: 5277 | E34: 0.001486977744 | O34: TOTAL | P34: =SUM(P27:P33) -> 3548808 | Q34: 1 | U34: Don’t Know | V34: 3768 | W34: 0.001061764665 | AA34: 7 | AB34: 70 | AC34: 1.972492743e-05 | AG34: Refused | AH34: 3055 | AI34: 0.0008608521901
C35: Solar | D35: 1584 | E35: 0.0004463469294 | I35: Table C-37: Most-Used Air Conditioning Equipment System Type by Domain | U35: Refused | V35: 157 | W35: 4.424019439e-05 | AA35: Don't Know | AB35: 1433 | AC35: 0.000403797443 | AG35: TOTAL | AH35: =SUM(AH27:AH34) -> 3548809 | AI35: 1
C36: Geothermal | D36: 1075 | E36: 0.0003029185284 | J36: Weighted Data Total | K36: % | U36: TOTAL | V36: =SUM(V27:V35) -> 3548809 | W36: 1 | AA36: Refused | AB36: 501 | AC36: 0.0001411741235
C37: Other | D37: 8363 | E37: 0.002356565259 | I37: Central Electric System | J37: 238228 | K37: =J37/J$45 -> 0.0672047303 | AA37: TOTAL | AB37: =SUM(AB27:AB36) -> 3548809 | AC37: 1
C38: No Heat | D38: 585 | E38: 0.0001648440364 | I38: Central Gas System | J38: 29139 | K38: 0.008220186695 | O38: Table C-40: Primary Water-Heating Fuel Type by Domain
C39: Not Asked | D39: 89338 | E39: 0.02517407953 | I39: Evaporative Swamp Cooler | J39: 55164 | K39: 0.015561906 | P39: Weighted Data Total | Q39: % | AG39: Table C-51: Number of Clothes Dryers by Domain
C40: Don't Know | D40: 2407 | E40: 0.000678255719 | I40: Heat Pump | J40: 206294 | K40: 0.05819606693 | O40: Electricity | P40: 2712779 | Q40: =P40/P$52 -> 0.764419556 | U40: Table C-42: Number of Cooking Ovens by Domain | AH40: Weighted Data Total | AI40: %
C41: Refused | D41: 30 | E41: 8.453540329e-06 | I41: Individual Window or Wall Units | J41: 296041 | K41: 0.08351392599 | O41: Natural Gas | P41: 620496 | Q41: 0.1748462653 | V41: Weighted Data Total | W41: % | AA41: Table C-48: Number of Freezers, Separate from Refrigerators, by Domain | AG41: 0 | AH41: 422391 | AI41: =AH41/AH$49 -> 0.1190233118
C42: TOTAL | D42: =SUM(D28:D41) -> 3548809 | E42: 1 | I42: Not Asked | J42: 2706366 | K42: 0.7634727954 | O42: Fuel Oil | P42: 6843 | Q42: 0.001928252549 | U42: 0 | V42: 55591 | W42: =V42/V$51 -> 0.0156646876 | AB42: Weighted Data Total | AC42: % | AG42: 1 | AH42: 3108300 | AI42: 0.8758713134
I43: Don't Know | J43: 13007 | K43: 0.003669308087 | O43: Wood | P43: 6718 | Q43: 0.001893029464 | U43: 1 | V43: 3131845 | W43: 0.882505685 | AA43: 0 | AB43: 1479425 | AC43: =AB43/AB$54 -> 0.4168792967 | AG43: 2 | AH43: 10486 | AI43: 0.00295479413
I44: Refused | J44: 571 | K44: 0.0001610805657 | O44: Propane of Bottled Gas | P44: 43059 | Q44: 0.01213336643 | U44: 2 | V44: 338644 | W44: 0.09542466348 | AA44: 1 | AB44: 1791140 | AC44: 0.5047158075 | AG44: 3 | AH44: 2138 | AI44: 0.0006024556408
I45: TOTAL | J45: =SUM(J37:J44) -> 3544810 | K45: 1 | O45: Kersene | P45: 0 | Q45: 0 | U45: 3 | V45: 17463 | W45: 0.004920804439 | AA45: 2 | AB45: 247806 | AC45: 0.06982793382 | AG45: 4 | AH45: 45 | AI45: 1.268031049e-05
C46: Table C-21: Primary Space Heating Equipment Type by Domain | O46: Solar | P46: 4863 | Q46: 0.001370318887 | U46: 4 | V46: 3284 | W46: 0.0009253806205 | AA46: 3 | AB46: 19078 | AC46: 0.00537588808 | AG46: 12 | AH46: 15 | AI46: 4.226770164e-06
O47: Other | P47: 1206 | Q47: 0.0003398323212 | U47: 5 | V47: 30 | W47: 8.453537947e-06 | AA47: 4 | AB47: 1969 | AC47: 0.0005548340302 | AG47: Don't Know | AH47: 2379 | AI47: 0.0006703657481
D48: Weighted Data Total | E48: % | O48: No Hot Water in Home | P48: 618 | Q48: 0.0001741429308 | U48: 6 | V48: 403 | W48: 0.0001135591931 | AA48: 5 | AB48: 208 | AC48: 5.861121294e-05 | AG48: Refused | AH48: 3055 | AI48: 0.0008608521901
C49: Steam or Hot Water Radiators | D49: 55558 | E49: =D49/D$57 -> 0.01565539312 | I49: Table C-38: Number of Window or Wall Air Conditioning Units by Domain | O49: Not Asked | P49: 132686 | Q49: 0.03738888173 | U49: Don't Know | V49: 1550 | W49: 0.0004367661272 | AA49: 6 | AB49: 30 | AC49: 8.453540329e-06 | AG49: TOTAL | AH49: =SUM(AH41:AH48) -> 3548809 | AI49: 1
C50: Wall, Floor, or Ceiling Units | D50: 93611 | E50: 0.02637814546 | J50: Weighted Data Total | K50: % | O50: Don’t Know | P50: 19541 | Q50: 0.005506354385 | U50: Refused | V50: 0 | W50: 0 | AA50: 7 | AB50: 30 | AC50: 8.453540329e-06
C51: Portable Units | D51: 5876 | E51: 0.001655766766 | I51: 0 | J51: 151 | K51: =J51/J$63 -> 4.254947433e-05 | O51: Refused | P51: 0 | Q51: 0 | U51: TOTAL | V51: =SUM(V42:V50) -> 3548810 | W51: 1 | AA51: 20 | AB51: 217 | AC51: 6.114727504e-05
C52: Central Furnace | D52: 1054267 | E52: 0.2970762867 | I52: 1 | J52: 252959 | K52: 0.07127995018 | O52: TOTAL | P52: =SUM(P40:P51) -> 3548809 | Q52: =P52/P$34 -> 1.000000282 | AA52: Don't Know | AB52: 4999 | AC52: 0.001408641603
C53: Other | D53: 21211 | E53: 0.005976934797 | I53: 2 | J53: 38460 | K53: 0.01083743565 | AA53: Refused | AB53: 3907 | AC53: 0.001100932735 | AG53: Table C-52: Clothes Dryer Fuel Type by Domain
C54: Not Asked | D54: 2305993 | E54: 0.6497934941 | I54: 3 | J54: 4111 | K54: 0.001158416483 | AA54: TOTAL | AB54: =SUM(AB43:AB53) -> 3548809 | AC54: 1 | AH54: Weighted Data Total | AI54: %
C55: Don't Know | D55: 11329 | E55: 0.003192338613 | I55: 4 | J55: 458 | K55: 0.000129057346 | U55: Table C-43: Cooking Oven Fuel Type by Domain | AG55: Electricity | AH55: 3034665 | AI55: =AH55/AH$61 -> 0.8551216168
C56: Refused | D56: 964 | E56: 0.0002716404292 | I56: 5 | J56: 170 | K56: 4.79033817e-05 | V56: Weighted Data Total | W56: % | AG56: Natural Gas | AH56: 77195 | AI56: =AH56/AH$61 -> 0.02175235593
C57: TOTAL | D57: =SUM(D49:D56) -> 3548809 | E57: 1 | I57: 6 | J57: 82 | K57: 2.310633705e-05 | U57: Electricity | V57: 3279164 | W57: =V57/V$63 -> 0.9240181706 | AG57: Other | AH57: 4813 | AI57: 0.001356228889
I58: 7 | J58: 30 | K58: 8.453537947e-06 | U58: Natural Gas | V58: 165058 | W58: 0.04651081532 | AA58: Table C-49: Number of Dishwashers by Domain | AG58: Not Asked | AH58: 422391 | AI58: 0.1190232447
I59: 11 | J59: 30 | K59: 8.453537947e-06 | U59: Other | V59: 45692 | W59: 0.01287530549 | AB59: Weighted Data Total | AC59: % | AG59: Don’t Know | AH59: 6692 | AI59: 0.001885702
I60: Not Asked | J60: 3250768 | K60: 0.9160163548 | U60: Not Asked | V60: 57141 | W60: 0.01610145826 | AA60: 0 | AB60: 1192180 | AC60: =AB60/AB$67 -> 0.3359381516 | AG60: Refused | AH60: 3055 | AI60: 0.000860851705
C61: Table C-22: Primary Electric Space Heating Equipment Type by Domain | I61: Don't Know | J61: 1591 | K61: 0.0004483192958 | U61: Don’t Know | V61: 1646 | W61: 0.0004638175794 | AA61: 1 | AB61: 2336076 | AC61: 0.658270608 | AG61: TOTAL | AH61: =SUM(AH55:AH60) -> 3548811 | AI61: 1
I62: Refused | J62: 0 | K62: 0 | U62: Refused | V62: 108 | W62: 3.043274518e-05 | AA62: 2 | AB62: 11857 | AC62: 0.003341121864
D63: Weighted Data Total | E63: % | I63: TOTAL | J63: =SUM(J51:J62) -> 3548810 | K63: 1 | U63: TOTAL | V63: =SUM(V57:V62) -> 3548809 | W63: 1 | AA63: 3 | AB63: 1054 | AC63: 0.0002970011339
C64: Heat Pump | D64: 181506 | E64: =D64/D$74 -> 0.0511456097 | AA64: 4 | AB64: 106 | AC64: 2.986918424e-05
C65: Portable Room Heaters | D65: 29273 | E65: 0.008248682868 | AA65: Don't Know | AB65: 3432 | AC65: 0.0009670852861
C66: Radiant Panels | D66: 228568 | E66: 0.06440696019 | AA66: Refused | AB66: 4103 | AC66: 0.001156162858
C67: Steam or Hot Water Radiators | D67: 14732 | E67: 0.004151251871 | I67: Table C-36: Multi-Unit Air Conditioning System by Domain | U67: Table C-44: Presence of Microwave Oven by Domain | AA67: TOTAL | AB67: =SUM(AB60:AB66) -> 3548808 | AC67: 1
C68: Central Furnace | D68: 503028 | E68: 0.1417455828 | J68: Weighted Data Total | K68: % | V68: Weighted Data Total | W68: %
C69: Baseboard or Wall Units | D69: 653271 | E69: 0.1840817581 | I69: Central A/C - Cools All Units | J69: 238228 | K69: =J69/$J$75 -> 0.07830072556 | U69: Yes | V69: 3185067 | W69: =V69/V$73 -> 0.8975030778
C70: Other | D70: 4641 | E70: 0.001307762689 | I70: A/C - Cools Several Units | J70: 29139 | K70: =J70/$J$75 -> 0.009577399979 | U70: No | V70: 363564 | W70: =V70/V$73 -> 0.1024467645
C71: Not Asked | D71: 1919064 | E71: 0.5407628306 | I71: A/C - Cools Single Unit | J71: 55164 | K71: 0.01813129114 | U71: Don't Know | V71: 0 | W71: =V71/V$73 -> 0
C72: Don't Know | D72: 14696 | E72: 0.004141107622 | I72: Not Asked | J72: 2706366 | K72: 0.8895277693 | U72: Refused | V72: 178 | W72: =V72/V$73 -> 5.015767262e-05
C73: Refused | D73: 30 | E73: 8.453540329e-06 | I73: Don't Know | J73: 13007 | K73: 0.00427513784 | U73: TOTAL | V73: =SUM(V69:V72) -> 3548809 | W73: =V73/V$73 -> 1
C74: TOTAL | D74: =SUM(D64:D73) -> 3548809 | E74: 1 | I74: Refused | J74: 571 | K74: 0.0001876761518
I75: TOTAL | J75: =SUM(J69:J74) -> 3042475 | K75: 1
C78: Table C-19: Primary Multi-Unit Heating System Type by Domain
D80: Weighted Data Total | E80: %
C81: Central Heat - All Units | D81: 72746 | E81: =D81/$D$88 -> 0.02049870816
C82: Central Heat - Several Units | D82: 7937 | E82: =D82/$D$88 -> 0.002236524986
C83: Heating System for Single Unit | D83: 465996 | E83: 0.1313105326
C84: Unit Not Heated | D84: 1856 | E84: 0.0005229923617
C85: Not Asked | D85: 2993475 | E85: 0.8435153878
C86: Don't Know | D86: 6799 | E86: 0.001915854023
C87: Refused | D87: 0 | E87: 0
C88: TOTAL | D88: =SUM(D78:D87) -> 3548809 | E88: 1

Sheet 2011 Saturation Data - SF
B2: 2012 SATURATION DATA - SINGLE FAMILY
B4: NAVIGATION
C7: Source of all Data: | D7: RESIDENTIAL BUILDING STOCK ASSESSMENT: SINGLE-FAMILY CHARACTERISTICS AND ENERGY USE (September 18, 2012). Source table numbers are listed with each data table.
C11: Space Heating Saturations | I11: Air Conditioning Saturations | O11: Water Heating Saturations | U11: Cooking Products Saturations | AA11: Non-Cooking Kitchen Products Saturations | AG11: Laundry Products Saturations
C15: Saturation Calculations | I15: Saturation Calculations | O15: Saturation Calculations | U15: Saturation Calculations | AA15: Saturation Calculations | AG15: Saturation Calculations
C17: Single Family | D17: Heat Pumps | E17: =E29+E33+E34+E35 -> 0.148 | I17: Single Family | J17: Central AC | K17: =K45*K29 -> 0.168777 | O17: Single Family | P17: Electric Water Heaters | Q17: =Q33*Q47*Q55 -> 1.0153836 | U17: Single Family | V17: Electric Cooktops | W17: =W28 -> 0.751 | AA17: Single Family | AB17: Refrigerators | AC17: =AC32 -> 1.29 | AG17: Single Family | AH17: Clothes Washers | AI17: =AI28 -> 0.99
C19: Single Family | D19: Furnace Fans | E19: =E28 -> 0.541 | I19: Single Family | J19: Room AC | K19: =K45*K34 -> 0.066411 | U19: Single Family | V19: Electric Ovens | W19: =W42 -> 0.853 | AA19: Single Family | AB19: Freezers | AC19: =AC31 -> 0.53 | AG19: Single Family | AH19: Electric Clothes Dryers | AI19: =AI29*AI42 -> 0.931
U21: Single Family | V21: Microwave Ovens | W21: =W55/W54 -> 0.9595070423 | AA21: Single Family | AB21: Dishwashers | AC21: =AC30 -> 0.89
C25: SF RBSA - Table 50: Distribution of Primary Heating Systems (page 52) | I25: SF RBSA - Table 62: Distribution of Primary Cooling Systems in Cooling Zones by Type (page 60) | O25: SF RBSA - Table 87: Average Number of Appliances per Home by Type (page 75) | U25: SF RBSA - Table 101: Distribution of Cook Top Fuel by Type (page 81) | AA25: SF RBSA - Table 87: Average Number of Appliances per Home by Type (page 75) | AG25: SF RBSA - Table 87: Average Number of Appliances per Home by Type (page 75)
C27: Heating System Type | E27: % | I27: Cooling System Type | K27: % | O27: Appliance | Q27: % | U27: Fuel Type | W27: % | AA27: Appliance | AC27: % | AG27: Appliance | AI27: %
C28: Forced Air Furnace | E28: 0.541 | I28: PTAC | K28: 0.057 | O28: Clothes Washer | Q28: 0.99 | U28: Electricity | W28: 0.751 | AA28: Clothes Washer | AC28: 0.99 | AG28: Clothes Washer | AI28: 0.99
C29: Ductless Heat Pump | E29: 0.014 | I29: Central AC | K29: 0.399 | O29: Dryer | Q29: 0.98 | U29: Gas | W29: 0.208 | AA29: Dryer | AC29: 0.98 | AG29: Dryer | AI29: 0.98
C30: Baseboard Heater | E30: 0.123 | I30: Evaporative Cooler | K30: 0.017 | O30: Dishwasher | Q30: 0.89 | U30: Propane | W30: 0.04 | AA30: Dishwasher | AC30: 0.89 | AG30: Dishwasher | AI30: 0.89
C31: Boiler | E31: 0.051 | I31: Ground Source Heat Pump | K31: 0.017 | O31: Freezer | Q31: 0.53 | U31: Other | W31: 0 | AA31: Freezer | AC31: 0.53 | AG31: Freezer | AI31: 0.53
C32: Fireplace | E32: 0.001 | I32: Air Source Heat Pump | K32: 0.316 | O32: Refrigerator | Q32: 1.29 | U32: Total | W32: =SUM(W28:W31) -> 0.999 | AA32: Refrigerator | AC32: 1.29 | AG32: Refrigerator | AI32: 1.29
C33: Ground Source Heat Pump | E33: 0.008 | I33: Ductless Heat Pump | K33: 0.036 | O33: Water Heater | Q33: 1.05 | AA33: Water Heater | AC33: 1.05 | AG33: Water Heater | AI33: 1.05
C34: Air Source Heat Pump | E34: 0.114 | I34: Window AC | K34: 0.157
C35: Dual Fuel Heat Pump | E35: 0.012 | I35: Total | K35: =SUM(K28:K34) -> 0.999
C36: Heating Stove | E36: 0.128
C37: Plug-In Heater | E37: 0.01 | AG37: SF RBSA - Section 8.3. Clothes Dryers (page 80)
C38: Total | E38: 1
I39: SF RBSA - Table 61: Percentage of Homes with Cooling Equipment by Cooling Zone and State (page 59) | O39: SF RBSA - Table 103: Distribution of Water Heater Fuel by State (page 82) | U39: SF RBSA - Table 102: Distribution of Oven Fuel by Type (page 82) | AG39: "About 5% of all dryers are fueled with natural gas or propane."
I41: Cooling Zone | K41: % | O41: Water Heater Fuel Type | Q41: % | U41: Fuel Type | W41: % | AG41: Fuel | AI41: %
I42: Cooling Zone 1 | K42: 0.316 | O42: Electricity | Q42: 0.552 | U42: Electricity | W42: 0.853 | AG42: Electric | AI42: 0.95
I43: Cooling Zone 2 | K43: 0.516 | O43: Gas | Q43: 0.428 | U43: Gas | W43: 0.122 | AG43: Gas or Propane | AI43: 0.05
I44: Cooling Zone 3 | K44: 0.854 | O44: Oil/Kerosene | Q44: 0.004 | U44: Other | W44: 0
I45: All Cooling Zones | K45: 0.423 | O45: Propane | Q45: 0.015 | U45: Propane | W45: 0.023
O46: Wood | Q46: 0 | U46: No Oven | W46: 0.002
O47: Total | Q47: =SUM(Q42:Q46) -> 0.999 | U47: Total | W47: =SUM(W42:W46) -> 1
O51: SF RBSA - Table 104: Distribution of Water Heaters by Type (page 83) | U51: EIA RECS - Table HC3.11 Appliances in Homes in West Region, Divisions, and States, 2009
O53: Heater Type | Q53: % | U53: Fuel Type | W53: %
O54: Instantaneous | Q54: 0.032 | U54: Total Homes (millions) | W54: 113.6
O55: Storage | Q55: 0.968 | U55: Use a Microwave Oven (millions) | W55: 109
O56: Total | Q56: =SUM(Q54:Q55) -> 1

Sheet 2011 Saturation Data - MF
B2: 2012 SATURATION DATA - MULTI-FAMILY
B4: NAVIGATION
C7: Source of all Data: | D7: RESIDENTIAL BUILDING STOCK ASSESSMENT: MULTIFAMILY CHARACTERISTICS AND ENERGY USE (September 5, 2013). Source table numbers are listed with each data table.
C11: Space Heating Saturations | I11: Air Conditioning Saturations | O11: Water Heating Saturations | U11: Cooking Products Saturations | AA11: Non-Cooking Kitchen Products Saturations | AG11: Laundry Products Saturations
C15: Saturation Calculations | I15: Saturation Calculations | O15: Saturation Calculations | U15: Saturation Calculations | AA15: Saturation Calculations | AG15: Saturation Calculations
C17: Multi-Family | D17: Heat Pumps | E17: =D35 -> 0.055 | I17: Multi-Family | J17: Central AC | K17: =K45*K31 -> 0.02275 | O17: Multi-Family | P17: Electric Water Heaters | Q17: =Q33*Q44*Q53 -> 0.768964 | U17: Multi-Family | V17: Electric Cooktops | W17: =W28 -> 0.966 | AA17: Multi-Family | AB17: Refrigerators | AC17: =AC32 -> 1.03 | AG17: Multi-Family | AH17: Clothes Washers | AI17: =AI28 -> 0.47
C19: Multi-Family | D19: Furnace Fans | E19: =E46 -> 0.064 | I19: Multi-Family | J19: Room AC | K19: =K45*K32 -> 0.087 | U19: Multi-Family | V19: Electric Ovens | W19: =W30 -> 0.969 | AA19: Multi-Family | AB19: Freezers | AC19: =AC31 -> 0.04 | AG19: Multi-Family | AH19: Electric Clothes Dryers | AI19: =AI30*AI44 -> 0.4653
U21: Multi-Family | V21: Microwave Ovens | W21: =W43/W42 -> 0.9595070423 | AA21: Multi-Family | AB21: Dishwashers | AC21: =AC29 -> 0.78
C25: MF RBSA - Table 35. Distribution of Primary Heating Systems by System and Fuel Type (page 42) | I25: MF RBSA - Table 74. Distribution of In-Unit Cooling Systems by System Type and Building Size (page 67) | O25: MF RBSA - Table 86: Average Number of Appliances per Unit by Type (page 75) | U25: MF RBSA - Table 94. In-Unit Kitchen Appliance Characteristics (page 79) | AA25: MF RBSA - Table 86: Average Number of Appliances per Unit by Type (page 75) | AG25: MF RBSA - Table 86: Average Number of Appliances per Unit by Type (page 75)
C27: Primary Heating System | D27: Air Source Heat Pumps % | E27: All Types % | I27: Cooling System Type | K27: % | O27: Appliance | Q27: % | U27: Category | W27: % | AA27: Appliance | AC27: % | AG27: Appliance | AI27: %
C28: Central AC/Ventilation | D28: 0 | E28: 0.023 | I28: Air Source Heat Pump | K28: 0.031 | O28: Clothes Washer | Q28: 0.47 | U28: Cook Top Fuel: Electric | W28: 0.966 | AA28: Clothes Washer | AC28: 0.47 | AG28: Clothes Washer | AI28: 0.47
C29: Central WSHP Loop/VRF | D29: 0.002 | E29: 0.002 | I29: Ductless Heat Pump | K29: 0.065 | O29: Dishwasher | Q29: 0.78 | U29: Cook Top Fuel: Gas | W29: 0.034 | AA29: Dishwasher | AC29: 0.78 | AG29: Dishwasher | AI29: 0.78
C30: Central Hydronic Steam | D30: 0 | E30: 0.04 | I30: PTAC/PTHP | K30: 0.464 | O30: Dryer | Q30: 0.47 | U30: Oven Fuel: Electric | W30: 0.969 | AA30: Dryer | AC30: 0.47 | AG30: Dryer | AI30: 0.47
C31: Baseboard Heater | D31: 0 | E31: 0.806 | I31: Unit Central AC | K31: 0.091 | O31: Freezer | Q31: 0.04 | U31: Oven Fuel: Gas | W31: 0.031 | AA31: Freezer | AC31: 0.04 | AG31: Freezer | AI31: 0.04
C32: Forced Air Furnace | D32: 0.018 | E32: 0.057 | I32: Window AC | K32: 0.348 | O32: Refrigerator | Q32: 1.03 | AA32: Refrigerator | AC32: 1.03 | AG32: Refrigerator | AI32: 1.03
C33: PTHP/PTAC/DHP | D33: 0.035 | E33: 0.035 | I33: Total | K33: =SUM(K28:K32) -> 0.999 | O33: Water Heater | Q33: 1 | AA33: Water Heater | AC33: 1 | AG33: Water Heater | AI33: 1
C34: Stove | D34: 0 | E34: 0.037
C35: All Systems | D35: =SUM(D28:D34) -> 0.055 | E35: =SUM(E28:E34) -> 1
C39: MF RBSA - Table 71. Distribution of Primary In-Unit Heating Systems by System and Fuel Type (p 65) | I39: MF RBSA - Table 73: Percentage of Units With In-Unit Cooling Systems by Building Size (page 67) | O39: MF RBSA - Table 77. Distribution of Unit Water Heaters by Type (page 69) | U39: EIA RECS - Table HC3.11 Appliances in Homes in West Region, Divisions, and States, 2009 | AG39: MF RBSA - Section 5.4.3. Clothes Dryers (page 78)
C41: Primary Heating System | E41: All Types % | I41: Building Size | K41: % | O41: Appliance | Q41: % | U41: Fuel Type | W41: % | AG41: "Less than 1% of the dryers in units are gas fueled."
C42: Air Source Heat Pump | E42: 0.011 | I42: Low-Rise (1-3) | K42: 0.268 | O42: Central Building System | Q42: 0.187 | U42: Total Homes (millions) | W42: 113.6
C43: Baseboard Heater | E43: 0.817 | I43: Mid-Rise (4-6) | K43: 0.152 | O43: Instantaneous | Q43: 0.001 | U43: Use a Microwave Oven (millions) | W43: 109 | AG43: Appliance | AI43: %
C44: Boiler | E44: 0.011 | I44: High-Rise (7+) | K44: 0.206 | O44: Storage | Q44: 0.812 | AG44: Electric | AI44: 0.99
C45: Ductless Heat Pump | E45: 0.017 | I45: All Sizes | K45: 0.25 | O45: Total | Q45: =SUM(Q42:Q44) -> 1 | AG45: Gas | AI45: 0.01
C46: Forced Air Furnace | E46: 0.064
C47: Heating Stove | E47: 0.015
C48: PTHP/PTAC | E48: 0.018
C49: Plug-In Heater | E49: 0.046
C50: All Systems | E50: =SUM(E42:E49) -> 0.999 | O50: MF RBSA - Table 78. Distribution of In-Unit Water Heater Tanks by Size and Fuel Type (page 69)
O52: Fuel | Q52: %
O53: Electric | Q53: 0.947
O54: Gas | Q54: 0.053
O55: Total | Q55: =SUM(Q53:Q54) -> 1

Sheet 2011 Saturation Data - MH
B2: 2012 SATURATION DATA - MANUFACTURED HOMES
B4: NAVIGATION
C7: Source of all Data: | D7: RESIDENTIAL BUILDING STOCK ASSESSMENT: MANUFACTURED HOME CHARACTERISTICS AND ENERGY USE (January 30, 2013). Source table numbers are listed with each data table.
C11: Space Heating Saturations | I11: Air Conditioning Saturations | O11: Water Heating Saturations | U11: Cooking Products Saturations | AA11: Non-Cooking Kitchen Products Saturations | AG11: Laundry Products Saturations
C15: Saturation Calculations | I15: Saturation Calculations | O15: Saturation Calculations | U15: Saturation Calculations | AA15: Saturation Calculations | AG15: Saturation Calculations
C17: Manufactured Homes | D17: Heat Pumps | E17: =E29+E32 -> 0.152 | I17: Manufactured Homes | J17: Central AC | K17: =K44*K28 -> 0.134787 | O17: Manufactured Homes | P17: Electric Water Heaters | Q17: =Q33*Q44*Q52 -> 0.883651776 | U17: Manufactured Homes | V17: Electric Cooktops | W17: =W28 -> 0.889 | AA17: Manufactured Homes | AB17: Refrigerators | AC17: =AC32 -> 1.21 | AG17: Manufactured Homes | AH17: Clothes Washers | AI17: =AI28 -> 0.989
C19: Manufactured Homes | D19: Furnace Fans | E19: =E28 -> 0.643 | I19: Manufactured Homes | J19: Room AC | K19: =K44*K33 -> 0.179895 | U19: Manufactured Homes | V19: Electric Ovens | W19: =W41 -> 0.902 | AA19: Manufactured Homes | AB19: Freezers | AC19: =AC31 -> 0.428 | AG19: Manufactured Homes | AH19: Electric Clothes Dryers | AI19: =AI29*AI42 -> 0.9025
U21: Manufactured Homes | V21: Microwave Ovens | W21: =W52/W51 -> 0.9595070423 | AA21: Manufactured Homes | AB21: Dishwashers | AC21: =AC30 -> 0.77
C25: MH RBSA - Table 32: Distribution of Primary Heating System (page 39) | I25: MH RBSA - Table 42: Distribution of Primary Cooling Systems in Cooling Zones by Type (page 46) | O25: MH RBSA - Table 68: Average Number of Appliances per Home by Type (page 62) | U25: MH RBSA - Table 82: Distribution of Cook Top Fuel by Type (page 68) | AA25: MH RBSA - Table 68: Average Number of Appliances per Home by Type (page 62) | AG25: MH RBSA - Table 68: Average Number of Appliances per Home by Type (page 62)
C27: Primary Heating System | E27: All Types % | I27: Cooling System Type | K27: % | O27: Appliance | Q27: % | U27: Fuel Type | W27: % | AA27: Appliance | AC27: % | AG27: Appliance | AI27: %
C28: Forced Air Furnace | E28: 0.643 | I28: Central AC | K28: 0.251 | O28: Clothes Washer | Q28: 0.989 | U28: Electricity | W28: 0.889 | AA28: Clothes Washer | AC28: 0.989 | AG28: Clothes Washer | AI28: 0.989
C29: Ductless Heat Pump | E29: 0.008 | I29: Evaporative Cooler | K29: 0.05 | O29: Dryer | Q29: 0.95 | U29: Gas | W29: 0.069 | AA29: Dryer | AC29: 0.95 | AG29: Dryer | AI29: 0.95
C30: Baseboard Heater | E30: 0.015 | I30: Air Source Heat Pump | K30: 0.33 | O30: Dishwasher | Q30: 0.77 | U30: Propane | W30: 0.042 | AA30: Dishwasher | AC30: 0.77 | AG30: Dishwasher | AI30: 0.77
C31: Fireplace | E31: 0.013 | I31: Ductless Heat Pump | K31: 0.015 | O31: Freezer | Q31: 0.428 | U31: Total | W31: =SUM(W28:W30) -> 1 | AA31: Freezer | AC31: 0.428 | AG31: Freezer | AI31: 0.428
C32: Air Source Heat Pump | E32: 0.144 | I32: PTAC | K32: 0.019 | O32: Refrigerator | Q32: 1.21 | AA32: Refrigerator | AC32: 1.21 | AG32: Refrigerator | AI32: 1.21
C33: Heating Stove | E33: 0.16 | I33: Window AC | K33: 0.335 | O33: Water Heater | Q33: 1.002 | AA33: Water Heater | AC33: 1.002 | AG33: Water Heater | AI33: 1.002
C34: Plug-In Heater | E34: 0.017 | I34: Total | K34: =SUM(K28:K33) -> 1
C35: Total | E35: =SUM(E28:E34) -> 1
AG37: MH RBSA - Section 8.3. Clothes Dryers (page 66)
I38: MH RBSA - Table 41: Percentage of Homes with Any Mechanical Cooling Equipment by Cooling Zone and State (page 45) | O38: MH RBSA - Section 8.6. Water Heaters (page 69) | U38: MH RBSA - Table 83: Distribution of Oven Fuel by Type (page 68)
AG39: "About 5% of all dryers are fueled with natural gas or propane."
I40: Cooling Zone | K40: % | O40: "Nearly all water heaters in manufactured homes are storage water heaters, accounting for 99.2% of all water heaters" | U40: Fuel Type | W40: %
I41: Cooling Zone 1 | K41: 0.404 | U41: Electricity | W41: 0.902 | AG41: Appliance | AI41: %
I42: Cooling Zone 2 | K42: 0.702 | U42: Gas | W42: 0.06 | AG42: Electric | AI42: 0.95
I43: Cooling Zone 3 | K43: 0.905 | O43: Appliance | Q43: % | U43: Propane | W43: 0.038 | AG43: Gas or Propane | AI43: 0.05
I44: All Cooling Zones | K44: 0.537 | O44: Storage | Q44: 0.992 | U44: Total | W44: =SUM(W41:W43) -> 1
O45: Instantaneous | Q45: 0.008
U48: EIA RECS - Table HC3.11 Appliances in Homes in West Region, Divisions, and States, 2009
O49: MH RBSA - Table 84: Distribution of Water Heater Fuel by State (page 68)
U50: Fuel Type | W50: %
O51: Water Heater Fuel Type | Q51: % | U51: Total Homes (millions) | W51: 113.6
O52: Electricity | Q52: 0.889 | U52: Use a Microwave Oven (millions) | W52: 109
O53: Gas | Q53: 0.086
O54: Propane | Q54: 0.025
O55: Total | Q55: =SUM(Q52:Q54) -> 1

Sheet Saturation Summary
B2: SATURATIONS
B4: NAVIGATION
D7: SINGLE FAMILY | H7: MULTI-FAMILY | L7: MANUFACTURED HOMES | P7: TOTAL HOMES | T7: 6P | U7: Source
D8: 1992 | E8: 2011 | F8: 2034 | H8: 1992 | I8: 2011 | J8: 2034 | L8: 1992 | M8: 2011 | N8: 2034 | P8: 1992 | Q8: 2011 | R8: 2034
C9: Electric Water Heaters | D9: =(INDEX(HOUSING_STOCK,MATCH($P$8,HOUSING_STOCK_YEARS,0)+2,MATCH($P$7,HOUSING_STOCK_BLDG,0)+4)*$P9) / (INDEX(HOUSING_STOCK,MATCH($D$8,HOUSING_STOCK_YEARS,0)+2,MATCH($D$7,HOUSING_STOCK_BLDG,0)+4) +(INDEX(HOUSING_STOCK,MATCH($H$8,HOUSING_STOCK_YEARS,0)+2,MATCH($H$7,HOUSING_STOCK_BLDG,0)+4)*($I9/$E9)) +(INDEX(HOUSING_STOCK,MATCH($L$8,HOUSING_STOCK_YEARS,0)+2,MATCH($L$7,HOUSING_STOCK_BLDG,0)+4)*($M9/$E9))) -> 0.8080959997 | E9: ='2011 Saturation Data - SF'!$Q$17 -> 1.0153836 | F9: =E9 -> 1.0153836 | H9: =I9/$E9*D9 -> 0.6119822423 | I9: ='2011 Saturation Data - MF'!$Q$17 -> 0.768964 | J9: =I9 -> 0.768964 | L9: =M9/$E9*D9 -> 0.7032568433 | M9: ='2011 Saturation Data - MH'!$Q$17 -> 0.883651776 | N9: =M9 -> 0.883651776 | P9: ='1992 Saturation Data - Average'!$Q$17 -> 0.764419556 | Q9: =((INDEX(HOUSING_STOCK,MATCH(Q$8,HOUSING_STOCK_YEARS,0)+2,MATCH($D$7,HOUSING_STOCK_BLDG,0)+4)*E9) +(INDEX(HOUSING_STOCK,MATCH(Q$8,HOUSING_STOCK_YEARS,0)+2,MATCH($H$7,HOUSING_STOCK_BLDG,0)+4)*I9) +(INDEX(HOUSING_STOCK,MATCH(Q$8,HOUSING_STOCK_YEARS,0)+2,MATCH($L$7,HOUSING_STOCK_BLDG,0)+4)*M9)) / (INDEX(HOUSING_STOCK,MATCH(Q$8,HOUSING_STOCK_YEARS,0)+2,MATCH($D$7,HOUSING_STOCK_BLDG,0)+4) +INDEX(HOUSING_STOCK,MATCH(Q$8,HOUSING_STOCK_YEARS,0)+2,MATCH($H$7,HOUSING_STOCK_BLDG,0)+4) +INDEX(HOUSING_STOCK,MATCH(Q$8,HOUSING_STOCK_YEARS,0)+2,MATCH($L$7,HOUSING_STOCK_BLDG,0)+4)) -> 0.9584565162 | R9: =((INDEX(HOUSING_STOCK,MATCH(R$8,HOUSING_STOCK_YEARS,0)+2,MATCH($D$7,HOUSING_STOCK_BLDG,0)+4)*F9) +(INDEX(HOUSING_STOCK,MATCH(R$8,HOUSING_STOCK_YEARS,0)+2,MATCH($H$7,HOUSING_STOCK_BLDG,0)+4)*J9) +(INDEX(HOUSING_STOCK,MATCH(R$8,HOUSING_STOCK_YEARS,0)+2,MATCH($L$7,HOUSING_STOCK_BLDG,0)+4)*N9)) / (INDEX(HOUSING_STOCK,MATCH(R$8,HOUSING_STOCK_YEARS,0)+2,MATCH($D$7,HOUSING_STOCK_BLDG,0)+4) +INDEX(HOUSING_STOCK,MATCH(R$8,HOUSING_STOCK_YEARS,0)+2,MATCH($H$7,HOUSING_STOCK_BLDG,0)+4) +INDEX(HOUSING_STOCK,MATCH(R$8,HOUSING_STOCK_YEARS,0)+2,MATCH($L$7,HOUSING_STOCK_BLDG,0)+4)) -> 0.9561262711 | T9: 0.6380307253 | U9: 6P Supply Curve File - PNWResSectorSupplyCurveUnits_6th_Fnl: 'Summary of Residential Units' tab, cell E22
C10: Dishwashers | D10: =(INDEX(HOUSING_STOCK,MATCH($P$8,HOUSING_STOCK_YEARS,0)+2,MATCH($P$7,HOUSING_STOCK_BLDG,0)+4)*$P10) / (INDEX(HOUSING_STOCK,MATCH($D$8,HOUSING_STOCK_YEARS,0)+2,MATCH($D$7,HOUSING_STOCK_BLDG,0)+4) +(INDEX(HOUSING_STOCK,MATCH($H$8,HOUSING_STOCK_YEARS,0)+2,MATCH($H$7,HOUSING_STOCK_BLDG,0)+4)*($I10/$E10)) +(INDEX(HOUSING_STOCK,MATCH($L$8,HOUSING_STOCK_YEARS,0)+2,MATCH($L$7,HOUSING_STOCK_BLDG,0)+4)*($M10/$E10))) -> 0.690950937 | E10: ='2011 Saturation Data - SF'!$AC$21 -> 0.89 | F10: =E10 -> 0.89 | H10: =I10/$E10*D10 -> 0.6055525066 | I10: ='2011 Saturation Data - MF'!$AC$21 -> 0.78 | J10: =I10 -> 0.78 | L10: =M10/$E10*D10 -> 0.5977890129 | M10: ='2011 Saturation Data - MH'!$AC$21 -> 0.77 | N10: =M10 -> 0.77 | P10: ='1992 Saturation Data - Average'!$AC$21 -> 0.667380346 | Q10: =((INDEX(HOUSING_STOCK,MATCH(Q$8,HOUSING_STOCK_YEARS,0)+2,MATCH($D$7,HOUSING_STOCK_BLDG,0)+4)*E10) +(INDEX(HOUSING_STOCK,MATCH(Q$8,HOUSING_STOCK_YEARS,0)+2,MATCH($H$7,HOUSING_STOCK_BLDG,0)+4)*I10) +(INDEX(HOUSING_STOCK,MATCH(Q$8,HOUSING_STOCK_YEARS,0)+2,MATCH($L$7,HOUSING_STOCK_BLDG,0)+4)*M10)) / (INDEX(HOUSING_STOCK,MATCH(Q$8,HOUSING_STOCK_YEARS,0)+2,MATCH($D$7,HOUSING_STOCK_BLDG,0)+4) +INDEX(HOUSING_STOCK,MATCH(Q$8,HOUSING_STOCK_YEARS,0)+2,MATCH($H$7,HOUSING_STOCK_BLDG,0)+4) +INDEX(HOUSING_STOCK,MATCH(Q$8,HOUSING_STOCK_YEARS,0)+2,MATCH($L$7,HOUSING_STOCK_BLDG,0)+4)) -> 0.8581400049 | R10: 0.8575635405 | T10: 0.6715984669 | U10: 6P Supply Curve File - PNWResSectorSupplyCurveUnits_6th_Fnl: 'Summary of Residential Units' tab, cell E27
C11: Refrigerators | D11: 1.224649531 | E11: ='2011 Saturation Data - SF'!$AC$17 -> 1.29 | F11: 1.29 | H11: 0.9778209431 | I11: ='2011 Saturation Data - MF'!$AC$17 -> 1.03 | J11: 1.03 | L11: 1.148702273 | M11: ='2011 Saturation Data - MH'!$AC$17 -> 1.21 | N11: 1.21 | P11: ='1992 Saturation Data - Average'!$AC$17 -> 1.175043665 | Q11: 1.236151506 | R11: 1.233245801 | T11: 1.12044695 | U11: 6P Supply Curve File - PNWResSectorSupplyCurveUnits_6th_Fnl: 'Summary of Residential Units' tab, cell E23
C12: Freezers | D12: 0.8072128901 | E12: ='2011 Saturation Data - SF'!$AC$19 -> 0.53 | F12: 0.53 | H12: 0.06092172756 | I12: ='2011 Saturation Data - MF'!$AC$19 -> 0.04 | J12: 0.04 | L12: 0.6518624849 | M12: ='2011 Saturation Data - MH'!$AC$19 -> 0.428 | N12: 0.428 | P12: ='1992 Saturation Data - Average'!$AC$19 -> 0.6643445731 | Q12: 0.4336550619 | R12: 0.4278093536 | T12: 0.5673737735 | U12: 6P Supply Curve File - PNWResSectorSupplyCurveUnits_6th_Fnl: 'Summary of Residential Units' tab, cell E24
C13: Clothes Washers | D13: 0.9865897664 | E13: ='2011 Saturation Data - SF'!$AI$17 -> 0.99 | F13: 0.99 | H13: 0.4683810002 | I13: ='2011 Saturation Data - MF'!$AI$17 -> 0.47 | J13: 0.47 | L13: 0.9855932111 | M13: ='2011 Saturation Data - MH'!$AI$17 -> 0.989 | N13: 0.989 | P13: ='1992 Saturation Data - Average'!$AI$17 -> 0.8976240066 | Q13: 0.899056674 | R13: 0.8920403653 | T13: 0.8468925125 | U13: 6P Supply Curve File - PNWResSectorSupplyCurveUnits_6th_Fnl: 'Summary of Residential Units' tab, cell E25
C14: Heat Pumps | D14: 0.05920945194 | E14: ='2011 Saturation Data - SF'!$E$17 -> 0.148 | F14: 0.148 | H14: 0.02200351255 | I14: ='2011 Saturation Data - MF'!$E$17 -> 0.055 | J14: 0.055 | L14: 0.0608097074 | M14: ='2011 Saturation Data - MH'!$E$17 -> 0.152 | N14: 0.152 | P14: ='1992 Saturation Data - Average'!$E$17 -> 0.05298212299 | Q14: 0.1321754565 | R14: 0.1308889495 | T14: 0.1133556664 | U14: 6P Supply Curve File - PNWResSectorSupplyCurveUnits_6th_Fnl: 'Summary of Residential Units' tab, SUM(B40,B53,B66)/SUM(B34,B47,B60)
C15: Room AC | D15: 0.08298913715 | E15: ='2011 Saturation Data - SF'!$K$19 -> 0.066411 | F15: 0.066411 | H15: 0.1087177566 | I15: ='2011 Saturation Data - MF'!$K$19 -> 0.087 | J15: 0.087 | L15: 0.2248020784 | M15: ='2011 Saturation Data - MH'!$K$19 -> 0.179895 | N15: 0.179895 | P15: ='1992 Saturation Data - Average'!$K$19 -> 0.1009875499 | Q15: 0.08196534839 | R15: 0.08138347413 | T15: 0.11 | U15: 6P Supply Curve File - PNWResSectorSupplyCurveUnits_6th_Fnl: 'Summary of Residential Units' tab, cell E29
C16: Central AC | D16: 0.09390727525 | E16: ='2011 Saturation Data - SF'!$K$17 -> 0.168777 | F16: 0.168777 | H16: 0.01265806663 | I16: ='2011 Saturation Data - MF'!$K$17 -> 0.02275 | J16: 0.02275 | L16: 0.0749952891 | M16: ='2011 Saturation Data - MH'!$K$17 -> 0.134787 | N16: 0.134787 | P16: ='1992 Saturation Data - Average'!$K$17 -> 0.07816160894 | Q16: 0.1396862896 | R16: 0.1379714093 | T16: 0.11 | U16: 6P Supply Curve File - PNWResSectorSupplyCurveUnits_6th_Fnl: 'Summary of Residential Units' tab, cell E30
C17: Electric Ovens | D17: 0.9982400123 | E17: ='2011 Saturation Data - SF'!$W$19 -> 0.853 | F17: 0.853 | H17: 1.133991292 | I17: ='2011 Saturation Data - MF'!$W$19 -> 0.969 | J17: 0.969 | L17: 1.055583225 | M17: ='2011 Saturation Data - MH'!$W$19 -> 0.902 | N17: 0.902 | P17: ='1992 Saturation Data - Average'!$W$19 -> 1.027014339 | Q17: 0.8784269303 | R17: 0.8796224762 | T17: 0.82 | U17: 6P Supply Curve File - PNWResSectorSupplyCurveUnits_6th_Fnl: 'Summary of Residential Units' tab, cell E28
C18: Microwave Ovens | D18: 0.8975480967 | E18: ='2011 Saturation Data - SF'!$W$21 -> 0.9595070423 | F18: 0.9595070423 | H18: 0.8975480967 | I18: ='2011 Saturation Data - MF'!$W$21 -> 0.9595070423 | J18: 0.9595070423 | L18: 0.8975480967 | M18: ='2011 Saturation Data - MH'!$W$21 -> 0.9595070423 | N18: 0.9595070423 | P18: ='1992 Saturation Data - Average'!$W$21 -> 0.8975480967 | Q18: 0.9595070423 | R18: 0.9595070423 | T18: 1 | U18: 6P Supply Curve File - ResOven_MicrowaveFY09v1: 'Input Assumptions' tab, cell K11
C19: Electric Cooktops | D19: 0.8686077939 | E19: ='2011 Saturation Data - SF'!$W$17 -> 0.751 | F19: 0.751 | H19: 1.117277136 | I19: ='2011 Saturation Data - MF'!$W$17 -> 0.966 | J19: 0.966 | L19: 1.028218813 | M19: ='2011 Saturation Data - MH'!$W$17 -> 0.889 | N19: 0.889 | P19: ='1992 Saturation Data - Average'!$W$17 -> 0.9265445639 | Q19: 0.8030989159 | R19: 0.8049572614 | T19: =T17 -> 0.82 | U19: Assumed equal to electric ovens
C20: Furnace Fans | D20: ='1992 Saturation Data - Average'!$E$19 -> 0.6782307753 | E20: ='2011 Saturation Data - SF'!$E$19 -> 0.541 | F20: 0.541 | H20: ='1992 Saturation Data - Average'!E21 -> 0.147088153 | I20: ='2011 Saturation Data - MF'!$E$19 -> 0.064 | J20: 0.064 | L20: ='1992 Saturation Data - Average'!$E$19 -> 0.6782307753 | M20: ='2011 Saturation Data - MH'!$E$19 -> 0.643 | N20: 0.643 | P20: =((INDEX(HOUSING_STOCK,MATCH(P$8,HOUSING_STOCK_YEARS,0)+2,MATCH($D$7,HOUSING_STOCK_BLDG,0)+4)*D20) +(INDEX(HOUSING_STOCK,MATCH(P$8,HOUSING_STOCK_YEARS,0)+2,MATCH($H$7,HOUSING_STOCK_BLDG,0)+4)*H20) +(INDEX(HOUSING_STOCK,MATCH(P$8,HOUSING_STOCK_YEARS,0)+2,MATCH($L$7,HOUSING_STOCK_BLDG,0)+4)*L20)) / (INDEX(HOUSING_STOCK,MATCH(P$8,HOUSING_STOCK_YEARS,0)+2,MATCH($D$7,HOUSING_STOCK_BLDG,0)+4) +INDEX(HOUSING_STOCK,MATCH(P$8,HOUSING_STOCK_YEARS,0)+2,MATCH($H$7,HOUSING_STOCK_BLDG,0)+4) +INDEX(HOUSING_STOCK,MATCH(P$8,HOUSING_STOCK_YEARS,0)+2,MATCH($L$7,HOUSING_STOCK_BLDG,0)+4)) -> 0.5871423948 | Q20: =((INDEX(HOUSING_STOCK,MATCH(Q$8,HOUSING_STOCK_YEARS,0)+2,MATCH($D$7,HOUSING_STOCK_BLDG,0)+4)*E20) +(INDEX(HOUSING_STOCK,MATCH(Q$8,HOUSING_STOCK_YEARS,0)+2,MATCH($H$7,HOUSING_STOCK_BLDG,0)+4)*I20) +(INDEX(HOUSING_STOCK,MATCH(Q$8,HOUSING_STOCK_YEARS,0)+2,MATCH($L$7,HOUSING_STOCK_BLDG,0)+4)*M20)) / (INDEX(HOUSING_STOCK,MATCH(Q$8,HOUSING_STOCK_YEARS,0)+2,MATCH($D$7,HOUSING_STOCK_BLDG,0)+4) +INDEX(HOUSING_STOCK,MATCH(Q$8,HOUSING_STOCK_YEARS,0)+2,MATCH($H$7,HOUSING_STOCK_BLDG,0)+4) +INDEX(HOUSING_STOCK,MATCH(Q$8,HOUSING_STOCK_YEARS,0)+2,MATCH($L$7,HOUSING_STOCK_BLDG,0)+4)) -> 0.4684212756 | R20: 0.4612052563 | T20: 0.6 | U20: 6P Supply Curve File - PNWResSectorSupplyCurveUnits_6th_Fnl: 'Summary of Residential Units' tab, SUM (E8, E10, E12)
C21: Electric Clothes Dryers | D21: 0.9456526172 | E21: ='2011 Saturation Data - SF'!$AI$19 -> 0.931 | F21: 0.931 | H21: =I21/$E21*D21 -> 0.4726231609 | I21: ='2011 Saturation Data - MF'!$AI$19 -> 0.4653 | J21: 0.4653 | L21: =M21/$E21*D21 -> 0.9167040677 | M21: ='2011 Saturation Data - MH'!$AI$19 -> 0.9025 | N21: 0.9025 | P21: ='1992 Saturation Data - Average'!$AI$19 -> 0.8617570098 | Q21: 0.846644607 | R21: 0.8405701487 | T21: 0.82 | U21: 6P Supply Curve File - PNWResSectorSupplyCurveUnits_6th_Fnl: 'Summary of Residential Units' tab, cell E26

Sheet Electric Water Heaters
B2: ELECTRIC WATER HEATERS | Z2: =$B$2 -> ELECTRIC WATER HEATERS | AX2: =$B$2 -> ELECTRIC WATER HEATERS | BV2: =$B$2 -> ELECTRIC WATER HEATERS
B4: NAVIGATION | Z4: NAVIGATION | AX4: NAVIGATION | BV4: NAVIGATION
S5: Lifetime | U5: Calibration | AQ5: Lifetime | AS5: Calibration | BO5: Lifetime | BQ5: Calibration | CM5: Lifetime | CO5: Calibration
B6: SINGLE FAMILY | S6: =ROUND(INDEX(LIFETIMES_TABLE,MATCH(B2,APPLIANCES,0),MATCH(B6,LIFETIMES_HOUSING_TYPE,0)),0) -> 13 | U6: =ABS(SUM(OFFSET(U37,-1*S6,0,S6,1))-L36) -> 0 | Z6: MULTI-FAMILY | AQ6: =ROUND(INDEX(LIFETIMES_TABLE,MATCH(Z2,APPLIANCES,0),MATCH(Z6,LIFETIMES_HOUSING_TYPE,0)),0) -> 13 | AS6: =ABS(SUM(OFFSET(AS37,-1*AQ6,0,AQ6,1))-AJ36) -> 0 | AX6: MANUFACTURED HOMES | BO6: =ROUND(INDEX(LIFETIMES_TABLE,MATCH(AX2,APPLIANCES,0),MATCH(AX6,LIFETIMES_HOUSING_TYPE,0)),0) -> 13 | BQ6: =ABS(SUM(OFFSET(BQ37,-1*BO6,0,BO6,1))-BH36) -> 0 | BV6: TOTAL HOMES | CM6: =ROUND(INDEX(LIFETIMES_TABLE,MATCH(BV2,APPLIANCES,0),MATCH(BV6,LIFETIMES_HOUSING_TYPE,0)),0) -> 13 | CO6: =ABS(SUM(OFFSET(CO37,-1*CM6,0,CM6,1))-CF36) -> 0
C9: HOUSING | J9: STOCK | Q9: SHIPMENTS | AA9: HOUSING | AH9: STOCK | AO9: SHIPMENTS | AY9: HOUSING | BF9: STOCK | BM9: SHIPMENTS | BW9: HOUSING | CD9: STOCK | CK9: SHIPMENTS
D10: Beginning Year Stock | E10: New Additions | F10: End of Year Stock | K10: Stock Saturation | L10: Stock Units | M10: Stock Growth Rate | R10: New Construction Shipments | S10: Retirements | T10: Net Change | U10: Total Shipments | V10: Net New Shipments | W10: Net Replacements | AB10: Beginning Year Stock | AC10: New Additions | AD10: End of Year Stock | AI10: Stock Saturation | AJ10: Stock Units | AK10: Stock Growth Rate | AP10: New Construction Shipments | AQ10: Retirements | AR10: Net Change | AS10: Total Shipments | AT10: Net New Shipments | AU10: Net Replacements | AZ10: Beginning Year Stock | BA10: New Additions | BB10: End of Year Stock | BG10: Stock Saturation | BH10: Stock Units | BI10: Stock Growth Rate | BN10: New Construction Shipments | BO10: Retirements | BP10: Net Change | BQ10: Total Shipments | BR10: Net New Shipments | BS10: Net Replacements | BX10: Beginning Year Stock | BY10: New Additions | BZ10: End of Year Stock | CE10: Stock Saturation | CF10: Stock Units | CG10: Stock Growth Rate | CL10: New Construction Shipments | CM10: Retirements | CN10: Net Change | CO10: Total Shipments | CP10: Net New Shipments | CQ10: Net Replacements
C11: 1955 | J11: 1955 | Q11: 1955 | T11: =IF($Q$37-$Q11=$S$6,"CALIBRATE"," ") ->  | U11: =IF(Q$37-Q11=S$6,100000, IF(Q$37-Q11>S$6,0, IF(Q$37-Q11<S$6,U10))) -> 0 | AA11: 1955 | AH11: 1955 | AO11: 1955 | AR11: =IF($Q$37-$Q11=$S$6,"CALIBRATE"," ") ->  | AS11: =IF(AO$37-AO11=AQ$6,100000, IF(AO$37-AO11>AQ$6,0, IF(AO$37-AO11<AQ$6,AS10))) -> 0 | AY11: 1955 | BF11: 1955 | BM11: 1955 | BP11: =IF($Q$37-$Q11=$S$6,"CALIBRATE"," ") ->  | BQ11: =IF(BM$37-BM11=BO$6,100000, IF(BM$37-BM11>BO$6,0, IF(BM$37-BM11<BO$6,BQ10))) -> 0 | BW11: 1955 | CD11: 1955 | CK11: 1955 | CN11: =IF($Q$37-$Q11=$S$6,"CALIBRATE"," ") ->  | CO11: =IF(CK$37-CK11=CM$6,100000, IF(CK$37-CK11>CM$6,0, IF(CK$37-CK11<CM$6,CO10))) -> 0
C12: 1956 | J12: 1956 | Q12: 1956 | U12: 0 | AA12: 1956 | AH12: 1956 | AO12: 1956 | AS12: 0 | AY12: 1956 | BF12: 1956 | BM12: 1956 | BQ12: 0 | BW12: 1956 | CD12: 1956 | CK12: 1956 | CO12: 0
C13: 1957 | J13: 1957 | Q13: 1957 | U13: 0 | AA13: 1957 | AH13: 1957 | AO13: 1957 | AS13: 0 | AY13: 1957 | BF13: 1957 | BM13: 1957 | BQ13: 0 | BW13: 1957 | CD13: 1957 | CK13: 1957 | CO13: 0
C14: 1958 | J14: 1958 | Q14: 1958 | U14: 0 | AA14: 1958 | AH14: 1958 | AO14: 1958 | AS14: 0 | AY14: 1958 | BF14: 1958 | BM14: 1958 | BQ14: 0 | BW14: 1958 | CD14: 1958 | CK14: 1958 | CO14: 0
C15: 1959 | J15: 1959 | Q15: 1959 | U15: 0 | AA15: 1959 | AH15: 1959 | AO15: 1959 | AS15: 0 | AY15: 1959 | BF15: 1959 | BM15: 1959 | BQ15: 0 | BW15: 1959 | CD15: 1959 | CK15: 1959 | CO15: 0
C16: 1960 | J16: 1960 | Q16: 1960 | U16: 0 | AA16: 1960 | AH16: 1960 | AO16: 1960 | AS16: 0 | AY16: 1960 | BF16: 1960 | BM16: 1960 | BQ16: 0 | BW16: 1960 | CD16: 1960 | CK16: 1960 | CO16: 0
C17: 1961 | J17: 1961 | Q17: 1961 | U17: 0 | AA17: 1961 | AH17: 1961 | AO17: 1961 | AS17: 0 | AY17: 1961 | BF17: 1961 | BM17: 1961 | BQ17: 0 | BW17: 1961 | CD17: 1961 | CK17: 1961 | CO17: 0
C18: 1962 | J18: 1962 | Q18: 1962 | U18: 0 | AA18: 1962 | AH18: 1962 | AO18: 1962 | AS18: 0 | AY18: 1962 | BF18: 1962 | BM18: 1962 | BQ18: 0 | BW18: 1962 | CD18: 1962 | CK18: 1962 | CO18: 0
C19: 1963 | J19: 1963 | Q19: 1963 | U19: 0 | AA19: 1963 | AH19: 1963 | AO19: 1963 | AS19: 0 | AY19: 1963 | BF19: 1963 | BM19: 1963 | BQ19: 0 | BW19: 1963 | CD19: 1963 | CK19: 1963 | CO19: 0
C20: 1964 | J20: 1964 | Q20: 1964 | U20: 0 | AA20: 1964 | AH20: 1964 | AO20: 1964 | AS20: 0 | AY20: 1964 | BF20: 1964 | BM20: 1964 | BQ20: 0 | BW20: 1964 | CD20: 1964 | CK20: 1964 | CO20: 0
C21: 1965 | J21: 1965 | Q21: 1965 | U21: 0 | AA21: 1965 | AH21: 1965 | AO21: 1965 | AS21: 0 | AY21: 1965 | BF21: 1965 | BM21: 1965 | BQ21: 0 | BW21: 1965 | CD21: 1965 | CK21: 1965 | CO21: 0
C22: 1966 | J22: 1966 | Q22: 1966 | U22: 0 | AA22: 1966 | AH22: 1966 | AO22: 1966 | AS22: 0 | AY22: 1966 | BF22: 1966 | BM22: 1966 | BQ22: 0 | BW22: 1966 | CD22: 1966 | CK22: 1966 | CO22: 0
C23: 1967 | J23: 1967 | Q23: 1967 | U23: 0 | AA23: 1967 | AH23: 1967 | AO23: 1967 | AS23: 0 | AY23: 1967 | BF23: 1967 | BM23: 1967 | BQ23: 0 | BW23: 1967 | CD23: 1967 | CK23: 1967 | CO23: 0
C24: 1968 | J24: 1968 | Q24: 1968 | T24: CALIBRATE | U24: 162389.9992 | AA24: 1968 | AH24: 1968 | AO24: 1968 | AR24: CALIBRATE | AS24: 23970.77952 | AY24: 1968 | BF24: 1968 | BM24: 1968 | BP24: CALIBRATE | BQ24: 14895.84549 | BW24: 1968 | CD24: 1968 | CK24: 1968 | CN24: CALIBRATE | CO24: 199746.0053
C25: 1969 | J25: 1969 | Q25: 1969 | U25: =IF(Q$37-Q25=S$6,100000, IF(Q$37-Q25>S$6,0, IF(Q$37-Q25<S$6,U24))) -> 162389.9992 | AA25: 1969 | AH25: 1969 | AO25: 1969 | AS25: 23970.77952 | AY25: 1969 | BF25: 1969 | BM25: 1969 | BQ25: 14895.84549 | BW25: 1969 | CD25: 1969 | CK25: 1969 | CO25: 199746.0053
C26: 1970 | J26: 1970 | Q26: 1970 | U26: =IF(Q$37-Q26=S$6,100000, IF(Q$37-Q26>S$6,0, IF(Q$37-Q26<S$6,U25))) -> 162389.9992 | AA26: 1970 | AH26: 1970 | AO26: 1970 | AS26: 23970.77952 | AY26: 1970 | BF26: 1970 | BM26: 1970 | BQ26: 14895.84549 | BW26: 1970 | CD26: 1970 | CK26: 1970 | CO26: 199746.0053
C27: 1971 | J27: 1971 | Q27: 1971 | U27: 162389.9992 | AA27: 1971 | AH27: 1971 | AO27: 1971 | AS27: 23970.77952 | AY27: 1971 | BF27: 1971 | BM27: 1971 | BQ27: 14895.84549 | BW27: 1971 | CD27: 1971 | CK27: 1971 | CO27: 199746.0053
C28: 1972 | J28: 1972 | Q28: 1972 | U28: 162389.9992 | AA28: 1972 | AH28: 1972 | AO28: 1972 | AS28: 23970.77952 | AY28: 1972 | BF28: 1972 | BM28: 1972 | BQ28: 14895.84549 | BW28: 1972 | CD28: 1972 | CK28: 1972 | CO28: 199746.0053
C29: 1973 | J29: 1973 | Q29: 1973 | U29: 162389.9992 | AA29: 1973 | AH29: 1973 | AO29: 1973 | AS29: 23970.77952 | AY29: 1973 | BF29: 1973 | BM29: 1973 | BQ29: 14895.84549 | BW29: 1973 | CD29: 1973 | CK29: 1973 | CO29: 199746.0053
C30: 1974 | J30: 1974 | Q30: 1974 | U30: 162389.9992 | AA30: 1974 | AH30: 1974 | AO30: 1974 | AS30: 23970.77952 | AY30: 1974 | BF30: 1974 | BM30: 1974 | BQ30: 14895.84549 | BW30: 1974 | CD30: 1974 | CK30: 1974 | CO30: 199746.0053
C31: 1975 | J31: 1975 | Q31: 1975 | U31: 162389.9992 | AA31: 1975 | AH31: 1975 | AO31: 1975 | AS31: 23970.77952 | AY31: 1975 | BF31: 1975 | BM31: 1975 | BQ31: 14895.84549 | BW31: 1975 | CD31: 1975 | CK31: 1975 | CO31: 199746.0053
C32: 1976 | J32: 1976 | Q32: 1976 | U32: 162389.9992 | AA32: 1976 | AH32: 1976 | AO32: 1976 | AS32: 23970.77952 | AY32: 1976 | BF32: 1976 | BM32: 1976 | BQ32: 14895.84549 | BW32: 1976 | CD32: 1976 | CK32: 1976 | CO32: 199746.0053
C33: 1977 | J33: 1977 | Q33: 1977 | U33: 162389.9992 | AA33: 1977 | AH33: 1977 | AO33: 1977 | AS33: 23970.77952 | AY33: 1977 | BF33: 1977 | BM33: 1977 | BQ33: 14895.84549 | BW33: 1977 | CD33: 1977 | CK33: 1977 | CO33: 199746.0053
C34: 1978 | J34: 1978 | Q34: 1978 | U34: 162389.9992 | AA34: 1978 | AH34: 1978 | AO34: 1978 | AS34: 23970.77952 | AY34: 1978 | BF34: 1978 | BM34: 1978 | BQ34: 14895.84549 | BW34: 1978 | CD34: 1978 | CK34: 1978 | CO34: 199746.0053
C35: 1979 | J35: 1979 | Q35: 1979 | U35: 162389.9992 | AA35: 1979 | AH35: 1979 | AO35: 1979 | AS35: 23970.77952 | AY35: 1979 | BF35: 1979 | BM35: 1979 | BQ35: 14895.84549 | BW35: 1979 | CD35: 1979 | CK35: 1979 | CO35: 199746.0053
C36: 1980 | D36: =INDEX(HOUSING_STOCK,MATCH(C36,HOUSING_STOCK_YEARS,0)+2,MATCH(B$6,HOUSING_STOCK_BLDG,0)+MATCH(D$10,HOUSING_STOCK_CATEGORY,0)-1) -> 0 | E36: =INDEX(HOUSING_STOCK,MATCH(C36,HOUSING_STOCK_YEARS,0)+2,MATCH(B$6,HOUSING_STOCK_BLDG,0)+MATCH(E$10,HOUSING_STOCK_CATEGORY,0)-1) -> 0 | F36: =INDEX(HOUSING_STOCK,MATCH(C36,HOUSING_STOCK_YEARS,0)+2,MATCH(B$6,HOUSING_STOCK_BLDG,0)+MATCH(F$10,HOUSING_STOCK_CATEGORY,0)-1) -> 2612400 | J36: 1980 | K36: =K$48 -> 0.8080959997 | L36: =F36*K36 -> 2111069.99 | Q36: 1980 | U36: 162389.9992 | AA36: 1980 | AB36: =INDEX(HOUSING_STOCK,MATCH(AA36,HOUSING_STOCK_YEARS,0)+2,MATCH(Z$6,HOUSING_STOCK_BLDG,0)+MATCH(AB$10,HOUSING_STOCK_CATEGORY,0)-1) -> 0 | AC36: =INDEX(HOUSING_STOCK,MATCH(AA36,HOUSING_STOCK_YEARS,0)+2,MATCH(Z$6,HOUSING_STOCK_BLDG,0)+MATCH(AC$10,HOUSING_STOCK_CATEGORY,0)-1) -> 0 | AD36: =INDEX(HOUSING_STOCK,MATCH(AA36,HOUSING_STOCK_YEARS,0)+2,MATCH(Z$6,HOUSING_STOCK_BLDG,0)+MATCH(AD$10,HOUSING_STOCK_CATEGORY,0)-1) -> 509198 | AH36: 1980 | AI36: =AI$48 -> 0.6119822423 | AJ36: =AD36*AI36 -> 311620.1338 | AO36: 1980 | AS36: 23970.77952 | AY36: 1980 | AZ36: =INDEX(HOUSING_STOCK,MATCH(AY36,HOUSING_STOCK_YEARS,0)+2,MATCH(AX$6,HOUSING_STOCK_BLDG,0)+MATCH(AZ$10,HOUSING_STOCK_CATEGORY,0)-1) -> 0 | BA36: =INDEX(HOUSING_STOCK,MATCH(AY36,HOUSING_STOCK_YEARS,0)+2,MATCH(AX$6,HOUSING_STOCK_BLDG,0)+MATCH(BA$10,HOUSING_STOCK_CATEGORY,0)-1) -> 0 | BB36: =INDEX(HOUSING_STOCK,MATCH(AY36,HOUSING_STOCK_YEARS,0)+2,MATCH(AX$6,HOUSING_STOCK_BLDG,0)+MATCH(BB$10,HOUSING_STOCK_CATEGORY,0)-1) -> 275356 | BF36: 1980 | BG36: =BG$48 -> 0.7032568433 | BH36: =BB36*BG36 -> 193645.9913 | BM36: 1980 | BQ36: 14895.84549 | BW36: 1980 | BX36: =INDEX(HOUSING_STOCK,MATCH(BW36,HOUSING_STOCK_YEARS,0)+2,MATCH(BV$6,HOUSING_STOCK_BLDG,0)+MATCH(BX$10,HOUSING_STOCK_CATEGORY,0)-1) -> 0 | BY36: =INDEX(HOUSING_STOCK,MATCH(BW36,HOUSING_STOCK_YEARS,0)+2,MATCH(BV$6,HOUSING_STOCK_BLDG,0)+MATCH(BY$10,HOUSING_STOCK_CATEGORY,0)-1) -> 0 | BZ36: =INDEX(HOUSING_STOCK,MATCH(BW36,HOUSING_STOCK_YEARS,0)+2,MATCH(BV$6,HOUSING_STOCK_BLDG,0)+MATCH(BZ$10,HOUSING_STOCK_CATEGORY,0)-1) -> 3396954 | CD36: 1980 | CE36: =CE$48 -> 0.764419556 | CF36: =BZ36*CE36 -> 2596698.068 | CK36: 1980 | CO36: 199746.0053
C37: 1981 | D37: 2612400 | E37: 32998.3 | F37: 2645398.3 | J37: 1981 | K37: 0.8080959997 | L37: =F37*K37 -> 2137735.784 | M37: =F37/F36-1 -> 0.01263141173 | Q37: 1981 | R37: =E37*K37 -> 26665.79423 | S37: =OFFSET(U37,-S$6,0) -> 162389.9992 | T37: =L37-L36-R37 -> -3.892637324e-10 | U37: =SUM(R37:T37) -> 189055.7934 | V37: =IF(SUM(R37,T37)>0,SUM(R37,T37),0) -> 26665.79423 | W37: =IF(SUM(R37,T37)>0,S37,SUM(R37:T37)) -> 162389.9992 | AA37: 1981 | AB37: 509198 | AC37: 10694.7 | AD37: 519892.7 | AH37: 1981 | AI37: 0.6119822423 | AJ37: =AD37*AI37 -> 318165.1003 | AK37: =AD37/AD36-1 -> 0.02100302829 | AO37: 1981 | AP37: =AC37*AI37 -> 6544.966486 | AQ37: =OFFSET(AS37,-AQ$6,0) -> 23970.77952 | AR37: =AJ37-AJ36-AP37 -> 0 | AS37: =SUM(AP37:AR37) -> 30515.74601 | AT37: =IF(SUM(AP37,AR37)>0,SUM(AP37,AR37),0) -> 6544.966486 | AU37: =IF(SUM(AP37,AR37)>0,AQ37,SUM(AP37:AR37)) -> 23970.77952 | AY37: 1981 | AZ37: 275356 | BA37: 10843 | BB37: 286199 | BF37: 1981 | BG37: 0.7032568433 | BH37: =BB37*BG37 -> 201271.4053 | BI37: =BB37/BB36-1 -> 0.03937811415 | BM37: 1981 | BN37: =BA37*BG37 -> 7625.413952 | BO37: =OFFSET(BQ37,-BO$6,0) -> 14895.84549 | BP37: =BH37-BH36-BN37 -> 0 | BQ37: =SUM(BN37:BP37) -> 22521.25944 | BR37: =IF(SUM(BN37,BP37)>0,SUM(BN37,BP37),0) -> 7625.413952 | BS37: =IF(SUM(BN37,BP37)>0,BO37,SUM(BN37:BP37)) -> 14895.84549 | BW37: 1981 | BX37: 3396954 | BY37: 54536 | BZ37: 3451490 | CD37: 1981 | CE37: 0.764419556 | CF37: =BZ37*CE37 -> 2638386.453 | CG37: =BZ37/BZ36-1 -> 0.01605438284 | CK37: 1981 | CL37: =BY37*CE37 -> 41688.3849 | CM37: =OFFSET(CO37,-CM$6,0) -> 199746.0053 | CN37: =CF37-CF36-CL37 -> 1.309672371e-10 | CO37: =SUM(CL37:CN37) -> 241434.3902 | CP37: =IF(SUM(CL37,CN37)>0,SUM(CL37,CN37),0) -> 41688.3849 | CQ37: =IF(SUM(CL37,CN37)>0,CM37,SUM(CL37:CN37)) -> 199746.0053
C38: 1982 | D38: 2645398.3 | E38: 22690.6 | F38: 2668088.9 | J38: 1982 | K38: 0.8080959997 | L38: =F38*K38 -> 2156071.967 | M38: =F38/F37-1 -> 0.008577385114 | Q38: 1982 | R38: =E38*K38 -> 18336.18309 | S38: =OFFSET(U38,-S$6,0) -> 162389.9992 | T38: =L38-L37-R38 -> 1.164153218e-10 | U38: =SUM(R38:T38) -> 180726.1823 | V38: =IF(SUM(R38,T38)>0,SUM(R38,T38),0) -> 18336.18309 | W38: =IF(SUM(R38,T38)>0,S38,SUM(R38:T38)) -> 162389.9992 | AA38: 1982 | AB38: 519892.7 | AC38: 7612 | AD38: 527504.7 | AH38: 1982 | AI38: 0.6119822423 | AJ38: =AD38*AI38 -> 322823.5091 | AK38: =AD38/AD37-1 -> 0.01464148275 | AO38: 1982 | AP38: =AC38*AI38 -> 4658.408828 | AQ38: =OFFSET(AS38,-AQ$6,0) -> 23970.77952 | AR38: =AJ38-AJ37-AP38 -> -3.274180926e-11 | AS38: =SUM(AP38:AR38) -> 28629.18835 | AT38: =IF(SUM(AP38,AR38)>0,SUM(AP38,AR38),0) -> 4658.408828 | AU38: =IF(SUM(AP38,AR38)>0,AQ38,SUM(AP38:AR38)) -> 23970.77952 | AY38: 1982 | AZ38: 286199 | BA38: 8758 | BB38: 294957 | BF38: 1982 | BG38: 0.7032568433 | BH38: =BB38*BG38 -> 207430.5287 | BI38: =BB38/BB37-1 -> 0.03060108526 | BM38: 1982 | BN38: =BA38*BG38 -> 6159.123434 | BO38: =OFFSET(BQ38,-BO$6,0) -> 14895.84549 | BP38: =BH38-BH37-BN38 -> 8.185452316e-12 | BQ38: =SUM(BN38:BP38) -> 21054.96892 | BR38: =IF(SUM(BN38,BP38)>0,SUM(BN38,BP38),0) -> 6159.123434 | BS38: =IF(SUM(BN38,BP38)>0,BO38,SUM(BN38:BP38)) -> 14895.84549 | BW38: 1982 | BX38: 3451490 | BY38: 39060.6 | BZ38: 3490550.6 | CD38: 1982 | CE38: 0.764419556 | CF38: =BZ38*CE38 -> 2668245.14 | CG38: =BZ38/BZ37-1 -> 0.0113170254 | CK38: 1982 | CL38: =BY38*CE38 -> 29858.68651 | CM38: =OFFSET(CO38,-CM$6,0) -> 199746.0053 | CN38: =CF38-CF37-CL38 -> 0 | CO38: =SUM(CL38:CN38) -> 229604.6918 | CP38: =IF(SUM(CL38,CN38)>0,SUM(CL38,CN38),0) -> 29858.68651 | CQ38: =IF(SUM(CL38,CN38)>0,CM38,SUM(CL38:CN38)) -> 199746.0053
C39: 1983 | D39: 2668088.9 | E39: 35193.1 | F39: 2703282 | J39: 1983 | K39: 0.8080959997 | L39: 2184511.37 | M39: 0.01319037758 | Q39: 1983 | R39: 28439.40333 | S39: 162389.9992 | T39: 1.637090463e-10 | U39: 190829.4025 | V39: 28439.40333 | W39: 162389.9992 | AA39: 1983 | AB39: 527504.7 | AC39: 8978.5 | AD39: 536483.2 | AH39: 1983 | AI39: 0.6119822423 | AJ39: 328318.1917 | AK39: 0.01702070143 | AO39: 1983 | AP39: 5494.682562 | AQ39: 23970.77952 | AR39: 0 | AS39: 29465.46209 | AT39: 5494.682562 | AU39: 23970.77952 | AY39: 1983 | AZ39: 294957 | BA39: 12114 | BB39: 307071 | BF39: 1983 | BG39: 0.7032568433 | BH39: 215949.7821 | BI39: 0.04107039331 | BM39: 1983 | BN39: 8519.2534 | BO39: 14895.84549 | BP39: 0 | BQ39: 23415.09889 | BR39: 8519.2534 | BS39: 14895.84549 | BW39: 1983 | BX39: 3490550.6 | BY39: 56285.6 | BZ39: 3546836.2 | CD39: 1983 | CE39: 0.764419556 | CF39: 2711270.953 | CG39: 0.0161251351 | CK39: 1983 | CL39: 43025.81336 | CM39: 199746.0053 | CN39: 3.20142135e-10 | CO39: 242771.8186 | CP39: 43025.81336 | CQ39: 199746.0053
C40: 1984 | D40: 2703282 | E40: 32702.6 | F40: 2735984.6 | J40: 1984 | K40: 0.8080959997 | L40: 2210938.21 | M40: 0.01209736905 | Q40: 1984 | R40: 26426.84024 | S40: 162389.9992 | T40: 3.055902198e-10 | U40: 188816.8394 | V40: 26426.84024 | W40: 162389.9992 | AA40: 1984 | AB40: 536483.2 | AC40: 13702.5 | AD40: 550185.7 | AH40: 1984 | AI40: 0.6119822423 | AJ40: 336703.8784 | AK40: 0.02554134034 | AO40: 1984 | AP40: 8385.686675 | AQ40: 23970.77952 | AR40: 1.637090463e-11 | AS40: 32356.4662 | AT40: 8385.686675 | AU40: 23970.77952 | AY40: 1984 | AZ40: 307071 | BA40: 11892 | BB40: 318963 | BF40: 1984 | BG40: 0.7032568433 | BH40: 224312.9125 | BI40: 0.0387271999 | BM40: 1984 | BN40: 8363.130381 | BO40: 14895.84549 | BP40: 0 | BQ40: 23258.97587 | BR40: 8363.130381 | BS40: 14895.84549 | BW40: 1984 | BX40: 3546836.2 | BY40: 58297.1 | BZ40: 3605133.3 | CD40: 1984 | CE40: 0.764419556 | CF40: 2755834.396 | CG40: 0.01643636658 | CK40: 1984 | CL40: 44563.4433 | CM40: 199746.0053 | CN40: 0 | CO40: 244309.4486 | CP40: 44563.4433 | CQ40: 199746.0053
C41: 1985 | D41: 2735984.6 | E41: 31199.2 | F41: 2767183.8 | J41: 1985 | K41: 0.8080959997 | L41: 2236150.159 | M41: 0.01140328056 | Q41: 1985 | R41: 25211.94871 | S41: 162389.9992 | T41: -1.309672371e-10 | U41: 187601.9479 | V41: 25211.94871 | W41: 162389.9992 | AA41: 1985 | AB41: 550185.7 | AC41: 21076 | AD41: 571261.7 | AH41: 1985 | AI41: 0.6119822423 | AJ41: 349602.0161 | AK41: 0.03830706614 | AO41: 1985 | AP41: 12898.13774 | AQ41: 23970.77952 | AR41: -1.818989404e-11 | AS41: 36868.91726 | AT41: 12898.13774 | AU41: 23970.77952 | AY41: 1985 | AZ41: 318963 | BA41: 10090 | BB41: 329053 | BF41: 1985 | BG41: 0.7032568433 | BH41: 231408.7741 | BI41: 0.03163376316 | BM41: 1985 | BN41: 7095.861549 | BO41: 14895.84549 | BP41: 0 | BQ41: 21991.70704 | BR41: 7095.861549 | BS41: 14895.84549 | BW41: 1985 | BX41: 3605133.3 | BY41: 62365.2 | BZ41: 3667498.5 | CD41: 1985 | CE41: 0.764419556 | CF41: 2803507.575 | CG41: 0.01729899973 | CK41: 1985 | CL41: 47673.17849 | CM41: 199746.0053 | CN41: 1.964508556e-10 | CO41: 247419.1837 | CP41: 47673.17849 | CQ41: 199746.0053
C42: 1986 | D42: 2767183.8 | E42: 33696.6 | F42: 2800880.4 | J42: 1986 | K42: 0.8080959997 | L42: 2263380.247 | M42: 0.01217721786 | Q42: 1986 | R42: 27230.08766 | S42: 162389.9992 | T42: 3.055902198e-10 | U42: 189620.0869 | V42: 27230.08766 | W42: 162389.9992 | AA42: 1986 | AB42: 571261.7 | AC42: 18723.3 | AD42: 589985 | AH42: 1986 | AI42: 0.6119822423 | AJ42: 361060.3432 | AK42: 0.03277534622 | AO42: 1986 | AP42: 11458.32712 | AQ42: 23970.77952 | AR42: 2.546585165e-11 | AS42: 35429.10664 | AT42: 11458.32712 | AU42: 23970.77952 | AY42: 1986 | AZ42: 329053 | BA42: 8352 | BB42: 337405 | BF42: 1986 | BG42: 0.7032568433 | BH42: 237282.3752 | BI42: 0.02538192935 | BM42: 1986 | BN42: 5873.601155 | BO42: 14895.84549 | BP42: 8.185452316e-12 | BQ42: 20769.44664 | BR42: 5873.601155 | BS42: 14895.84549 | BW42: 1986 | BX42: 3667498.5 | BY42: 60771.9 | BZ42: 3728270.4 | CD42: 1986 | CE42: 0.764419556 | CF42: 2849962.804 | CG42: 0.01657039533 | CK42: 1986 | CL42: 46455.22881 | CM42: 199746.0053 | CN42: -1.091393642e-10 | CO42: 246201.2341 | CP42: 46455.22881 | CQ42: 199746.0053
C43: 1987 | D43: 2800880.4 | E43: 33896.5 | F43: 2834776.9 | J43: 1987 | K43: 0.8080959997 | L43: 2290771.873 | M43: 0.01210208762 | Q43: 1987 | R43: 27391.62605 | S43: 162389.9992 | T43: -1.89174898e-10 | U43: 189781.6253 | V43: 27391.62605 | W43: 162389.9992 | AA43: 1987 | AB43: 589985 | AC43: 20896.9 | AD43: 610881.9 | AH43: 1987 | AI43: 0.6119822423 | AJ43: 373848.8749 | AK43: 0.03541937507 | AO43: 1987 | AP43: 12788.53172 | AQ43: 23970.77952 | AR43: 4.91127139e-11 | AS43: 36759.31124 | AT43: 12788.53172 | AU43: 23970.77952 | AY43: 1987 | AZ43: 337405 | BA43: 7902 | BB43: 345307 | BF43: 1987 | BG43: 0.7032568433 | BH43: 242839.5108 | BI43: 0.02341992561 | BM43: 1987 | BN43: 5557.135576 | BO43: 14895.84549 | BP43: -2.273736754e-11 | BQ43: 20452.98106 | BR43: 5557.135576 | BS43: 14895.84549 | BW43: 1987 | BX43: 3728270.4 | BY43: 62695.4 | BZ43: 3790965.8 | CD43: 1987 | CE43: 0.764419556 | CF43: 2897888.394 | CG43: 0.01681621591 | CK43: 1987 | CL43: 47925.58983 | CM43: 199746.0053 | CN43: -1.164153218e-10 | CO43: 247671.5951 | CP43: 47925.58983 | CQ43: 199746.0053
C44: 1988 | D44: 2834776.9 | E44: 37379.9 | F44: 2872156.8 | J44: 1988 | K44: 0.8080959997 | L44: 2320978.421 | M44: 0.0131861876 | Q44: 1988 | R44: 30206.54766 | S44: 162389.9992 | T44: 7.275957614e-11 | U44: 192596.5469 | V44: 30206.54766 | W44: 162389.9992 | AA44: 1988 | AB44: 610881.9 | AC44: 25999.7 | AD44: 636881.6 | AH44: 1988 | AI44: 0.6119822423 | AJ44: 389760.2296 | AK44: 0.04256092708 | AO44: 1988 | AP44: 15911.3547 | AQ44: 23970.77952 | AR44: -6.184563972e-11 | AS44: 39882.13423 | AT44: 15911.3547 | AU44: 23970.77952 | AY44: 1988 | AZ44: 345307 | BA44: 9049 | BB44: 354356 | BF44: 1988 | BG44: 0.7032568433 | BH44: 249203.282 | BI44: 0.02620566626 | BM44: 1988 | BN44: 6363.771175 | BO44: 14895.84549 | BP44: 2.455635695e-11 | BQ44: 21259.61666 | BR44: 6363.771175 | BS44: 14895.84549 | BW44: 1988 | BX44: 3790965.8 | BY44: 72428.6 | BZ44: 3863394.4 | CD44: 1988 | CE44: 0.764419556 | CF44: 2953254.232 | CG44: 0.0191055799 | CK44: 1988 | CL44: 55365.83825 | CM44: 199746.0053 | CN44: -1.673470251e-10 | CO44: 255111.8435 | CP44: 55365.83825 | CQ44: 199746.0053
C45: 1989 | D45: 2872156.8 | E45: 45933.1 | F45: 2918089.9 | J45: 1989 | K45: 0.8080959997 | L45: 2358096.775 | M45: 0.01599254609 | Q45: 1989 | R45: 37118.35436 | S45: 162389.9992 | T45: 0 | U45: 199508.3536 | V45: 37118.35436 | W45: 162389.9992 | AA45: 1989 | AB45: 636881.6 | AC45: 31121.1 | AD45: 668002.7 | AH45: 1989 | AI45: 0.6119822423 | AJ45: 408805.7902 | AK45: 0.04886481255 | AO45: 1989 | AP45: 19045.56056 | AQ45: 23970.77952 | AR45: 0 | AS45: 43016.34008 | AT45: 19045.56056 | AU45: 23970.77952 | AY45: 1989 | AZ45: 354356 | BA45: 9967 | BB45: 364323 | BF45: 1989 | BG45: 0.7032568433 | BH45: 256212.6429 | BI45: 0.02812708124 | BM45: 1989 | BN45: 7009.360957 | BO45: 14895.84549 | BP45: -1.273292582e-11 | BQ45: 21905.20645 | BR45: 7009.360957 | BS45: 14895.84549 | BW45: 1989 | BX45: 3863394.4 | BY45: 87021.2 | BZ45: 3950415.6 | CD45: 1989 | CE45: 0.764419556 | CF45: 3019774.939 | CG45: 0.02252454474 | CK45: 1989 | CL45: 66520.70706 | CM45: 199746.0053 | CN45: 2.037268132e-10 | CO45: 266266.7123 | CP45: 66520.70706 | CQ45: 199746.0053
C46: 1990 | D46: 2918089.9 | E46: 52299.2 | F46: 2970389.1 | J46: 1990 | K46: 0.8080959997 | L46: 2400359.549 | M46: 0.01792240876 | Q46: 1990 | R46: 42262.77431 | S46: 162389.9992 | T46: 2.983142622e-10 | U46: 204652.7735 | V46: 42262.77431 | W46: 162389.9992 | AA46: 1990 | AB46: 668002.7 | AC46: 26307.7 | AD46: 694310.4 | AH46: 1990 | AI46: 0.6119822423 | AJ46: 424905.6354 | AK46: 0.03938262525 | AO46: 1990 | AP46: 16099.84524 | AQ46: 23970.77952 | AR46: -4.183675628e-11 | AS46: 40070.62476 | AT46: 16099.84524 | AU46: 23970.77952 | AY46: 1990 | AZ46: 364323 | BA46: 11875 | BB46: 376198 | BF46: 1990 | BG46: 0.7032568433 | BH46: 264563.8179 | BI46: 0.03259470305 | BM46: 1990 | BN46: 8351.175014 | BO46: 14895.84549 | BP46: -1.818989404e-11 | BQ46: 23247.0205 | BR46: 8351.175014 | BS46: 14895.84549 | BW46: 1990 | BX46: 3950415.6 | BY46: 90481.9 | BZ46: 4040897.5 | CD46: 1990 | CE46: 0.764419556 | CF46: 3088941.073 | CG46: 0.02290440024 | CK46: 1990 | CL46: 69166.13382 | CM46: 199746.0053 | CN46: 2.182787284e-10 | CO46: 268912.1391 | CP46: 69166.13382 | CQ46: 199746.0053
C47: 1991 | D47: 2970389.1 | E47: 45813.8 | F47: 3016202.9 | J47: 1991 | K47: =K$48 -> 0.8080959997 | L47: 2437381.498 | M47: 0.01542350125 | Q47: 1991 | R47: 37021.94851 | S47: 162389.9992 | T47: -1.818989404e-10 | U47: 199411.9477 | V47: 37021.94851 | W47: 162389.9992 | AA47: 1991 | AB47: 694310.4 | AC47: 12317.5 | AD47: 706627.9 | AH47: 1991 | AI47: =AI$48 -> 0.6119822423 | AJ47: 432443.7267 | AK47: 0.01774062437 | AO47: 1991 | AP47: 7538.091269 | AQ47: 23970.77952 | AR47: 2.546585165e-11 | AS47: 31508.87079 | AT47: 7538.091269 | AU47: 23970.77952 | AY47: 1991 | AZ47: 376198 | BA47: 11815 | BB47: 388013 | BF47: 1991 | BG47: =BG$48 -> 0.7032568433 | BH47: 272872.7975 | BI47: 0.0314063339 | BM47: 1991 | BN47: 8308.979604 | BO47: 14895.84549 | BP47: 2.000888344e-11 | BQ47: 23204.82509 | BR47: 8308.979604 | BS47: 14895.84549 | BW47: 1991 | BX47: 4040897.5 | BY47: 69946.3 | BZ47: 4110843.8 | CD47: 1991 | CE47: =CE$48 -> 0.764419556 | CF47: 3142409.392 | CG47: 0.01730959521 | CK47: 1991 | CL47: 53468.31959 | CM47: 199746.0053 | CN47: -5.602487363e-10 | CO47: 253214.3248 | CP47: 53468.31959 | CQ47: 199746.0053
C48: 1992 | D48: 3016202.9 | E48: 56749.3 | F48: 3072952.2 | J48: 1992 | K48: =INDEX(SATURATIONS_TABLE,MATCH($B$2,APPLIANCES,0),MATCH(B$6,SATURATIONS_HOUSING_TYPE,0)+MATCH(J48,SATURATIONS_YEARS,0)-1) -> 0.8080959997 | L48: 2483240.38 | M48: 0.01881481514 | Q48: 1992 | R48: 45858.88231 | S48: 162389.9992 | T48: -1.673470251e-10 | U48: 208248.8815 | V48: 45858.88231 | W48: 162389.9992 | AA48: 1992 | AB48: 706627.9 | AC48: 12622.7 | AD48: 719250.6 | AH48: 1992 | AI48: =INDEX(SATURATIONS_TABLE,MATCH($B$2,APPLIANCES,0),MATCH(Z$6,SATURATIONS_HOUSING_TYPE,0)+MATCH(AH48,SATURATIONS_YEARS,0)-1) -> 0.6119822423 | AJ48: 440168.5949 | AK48: 0.01786329127 | AO48: 1992 | AP48: 7724.86825 | AQ48: 23970.77952 | AR48: -3.274180926e-11 | AS48: 31695.64777 | AT48: 7724.86825 | AU48: 23970.77952 | AY48: 1992 | AZ48: 388013 | BA48: 13784 | BB48: 401797 | BF48: 1992 | BG48: =INDEX(SATURATIONS_TABLE,MATCH($B$2,APPLIANCES,0),MATCH(AX$6,SATURATIONS_HOUSING_TYPE,0)+MATCH(BF48,SATURATIONS_YEARS,0)-1) -> 0.7032568433 | BH48: 282566.4899 | BI48: 0.03552458294 | BM48: 1992 | BN48: 9693.692328 | BO48: 14895.84549 | BP48: -2.546585165e-11 | BQ48: 24589.53782 | BR48: 9693.692328 | BS48: 14895.84549 | BW48: 1992 | BX48: 4110843.8 | BY48: 83156 | BZ48: 4193999.8 | CD48: 1992 | CE48: =INDEX(SATURATIONS_TABLE,MATCH($B$2,APPLIANCES,0),MATCH(BV$6,SATURATIONS_HOUSING_TYPE,0)+MATCH(CD48,SATURATIONS_YEARS,0)-1) -> 0.764419556 | CF48: 3205975.465 | CG48: 0.02022845042 | CK48: 1992 | CL48: 63566.0726 | CM48: 199746.0053 | CN48: 2.692104317e-10 | CO48: 263312.0779 | CP48: 63566.0726 | CQ48: 199746.0053
C49: 1993 | D49: 3072952.2 | E49: 62971.3 | F49: 3135923.5 | J49: 1993 | K49: =((K$67-K$48)/(J$67-J$48))*(J49-J$48)+K$48 -> 0.8190058734 | L49: 2568339.765 | M49: 0.0204921183 | Q49: 1993 | R49: 51573.86455 | S49: 162389.9992 | T49: 33525.52039 | U49: 247489.3841 | V49: 85099.38495 | W49: 162389.9992 | AA49: 1993 | AB49: 719250.6 | AC49: 14764.5 | AD49: 734015.1 | AH49: 1993 | AI49: =((AI$67-AI$48)/(AH$67-AH$48))*(AH49-AH$48)+AI$48 -> 0.6202444401 | AJ49: 455268.7847 | AK49: 0.02052761583 | AO49: 1993 | AP49: 9157.599035 | AQ49: 23970.77952 | AR49: 5942.590707 | AS49: 39070.96927 | AT49: 15100.18974 | AU49: 23970.77952 | AY49: 1993 | AZ49: 401797 | BA49: 17535 | BB49: 419332 | BF49: 1993 | BG49: =((BG$67-BG$48)/(BF$67-BF$48))*(BF49-BF$48)+BG$48 -> 0.7127513135 | BH49: 298879.4338 | BI49: 0.04364144083 | BM49: 1993 | BN49: 12498.09428 | BO49: 14895.84549 | BP49: 3814.849619 | BQ49: 31208.78939 | BR49: 16312.9439 | BS49: 14895.84549 | BW49: 1993 | BX49: 4193999.8 | BY49: 95270.8 | BZ49: 4289270.6 | CD49: 1993 | CE49: =((CE$67-CE$48)/(CD$67-CD$48))*(CD49-CD$48)+CE$48 -> 0.7746320276 | CF49: 3322606.382 | CG49: 0.02271597629 | CK49: 1993 | CL49: 73799.81297 | CM49: 199746.0053 | CN49: 42831.10381 | CO49: 316376.922 | CP49: 116630.9168 | CQ49: 199746.0053
C50: 1994 | D50: 3135923.5 | E50: 66755.1 | F50: 3202678.6 | J50: 1994 | K50: =((K$67-K$48)/(J$67-J$48))*(J50-J$48)+K$48 -> 0.8299157471 | L50: 2657953.403 | M50: 0.02128722209 | Q50: 1994 | R50: 55401.10869 | S50: 189055.7934 | T50: 34212.52932 | U50: 278669.4314 | V50: 89613.63801 | W50: 189055.7934 | AA50: 1994 | AB50: 734015.1 | AC50: 17896.9 | AD50: 751912 | AH50: 1994 | AI50: =((AI$67-AI$48)/(AH$67-AH$48))*(AH50-AH$48)+AI$48 -> 0.6285066378 | AJ50: 472581.6831 | AK50: 0.02438219595 | AO50: 1994 | AP50: 11248.32045 | AQ50: 30515.74601 | AR50: 6064.577926 | AS50: 47828.64438 | AT50: 17312.89837 | AU50: 30515.74601 | AY50: 1994 | AZ50: 419332 | BA50: 20512 | BB50: 439844 | BF50: 1994 | BG50: =((BG$67-BG$48)/(BF$67-BF$48))*(BF50-BF$48)+BG$48 -> 0.7222457836 | BH50: 317675.4744 | BI50: 0.0489158948 | BM50: 1994 | BN50: 14814.70551 | BO50: 22521.25944 | BP50: 3981.335153 | BQ50: 41317.30011 | BR50: 18796.04067 | BS50: 22521.25944 | BW50: 1994 | BX50: 4289270.6 | BY50: 105164 | BZ50: 4394434.6 | CD50: 1994 | CE50: =((CE$67-CE$48)/(CD$67-CD$48))*(CD50-CD$48)+CE$48 -> 0.7848444992 | CF50: 3448947.823 | CG50: 0.02451792153 | CK50: 1994 | CL50: 82537.38691 | CM50: 241434.3902 | CN50: 43804.05415 | CO50: 367775.8312 | CP50: 126341.4411 | CQ50: 241434.3902
C51: 1995 | D51: 3202678.6 | E51: 59583.7 | F51: 3262262.3 | J51: 1995 | K51: 0.8408256208 | L51: 2742993.724 | M51: 0.01860433326 | Q51: 1995 | R51: 50099.50154 | S51: 180726.1823 | T51: 34940.81903 | U51: 265766.5029 | V51: 85040.32057 | W51: 180726.1823 | AA51: 1995 | AB51: 751912 | AC51: 19442.5 | AD51: 771354.5 | AH51: 1995 | AI51: 0.6367688356 | AJ51: 491174.5068 | AK51: 0.02585741417 | AO51: 1995 | AP51: 12380.37809 | AQ51: 28629.18835 | AR51: 6212.445653 | AS51: 47222.01209 | AT51: 18592.82374 | AU51: 28629.18835 | AY51: 1995 | AZ51: 439844 | BA51: 19641 | BB51: 459485 | BF51: 1995 | BG51: 0.7317402537 | BH51: 336223.6705 | BI51: 0.0446544684 | BM51: 1995 | BN51: 14372.11032 | BO51: 21054.96892 | BP51: 4176.085725 | BQ51: 39603.16497 | BR51: 18548.19605 | BS51: 21054.96892 | BW51: 1995 | BX51: 4394434.6 | BY51: 98667.2 | BZ51: 4493101.8 | CD51: 1995 | CE51: 0.7950569707 | CF51: 3572271.906 | CG51: 0.02245276332 | CK51: 1995 | CL51: 78446.04514 | CM51: 229604.6918 | CN51: 44878.03852 | CO51: 352928.7754 | CP51: 123324.0837 | CQ51: 229604.6918
C52: 1996 | D52: 3262262.3 | E52: 62109.7 | F52: 3324372 | J52: 1996 | K52: 0.8517354945 | L52: 2831485.629 | M52: 0.01903884308 | Q52: 1996 | R52: 52901.03604 | S52: 190829.4025 | T52: 35590.86967 | U52: 279321.3082 | V52: 88491.90571 | W52: 190829.4025 | AA52: 1996 | AB52: 771354.5 | AC52: 19609.3 | AD52: 790963.8 | AH52: 1996 | AI52: 0.6450310334 | AJ52: 510196.1973 | AK52: 0.02542190394 | AO52: 1996 | AP52: 12648.60704 | AQ52: 29465.46209 | AR52: 6373.083434 | AS52: 48487.15256 | AT52: 19021.69048 | AU52: 29465.46209 | AY52: 1996 | AZ52: 459485 | BA52: 17125 | BB52: 476610 | BF52: 1996 | BG52: 0.7412347239 | BH52: 353279.8818 | BI52: 0.03726998705 | BM52: 1996 | BN52: 12693.64465 | BO52: 23415.09889 | BP52: 4362.566613 | BQ52: 40471.31015 | BR52: 17056.21126 | BS52: 23415.09889 | BW52: 1996 | BX52: 4493101.8 | BY52: 98844 | BZ52: 4591945.8 | CD52: 1996 | CE52: 0.8052694423 | CF52: 3697753.634 | CG52: 0.02199905642 | CK52: 1996 | CL52: 79596.05276 | CM52: 242771.8186 | CN52: 45885.67449 | CO52: 368253.5459 | CP52: 125481.7273 | CQ52: 242771.8186
C53: 1997 | D53: 3324372 | E53: 61718.1 | F53: 3386090.1 | J53: 1997 | K53: 0.8626453682 | L53: 2920994.941 | M53: 0.01856534106 | Q53: 1997 | R53: 53240.8331 | S53: 188816.8394 | T53: 36268.47866 | U53: 278326.1512 | V53: 89509.31175 | W53: 188816.8394 | AA53: 1997 | AB53: 790963.8 | AC53: 19921.8 | AD53: 810885.6 | AH53: 1997 | AI53: 0.6532932312 | AJ53: 529746.0737 | AK53: 0.02518674053 | AO53: 1997 | AP53: 13014.77709 | AQ53: 32356.4662 | AR53: 6535.099348 | AS53: 51906.34264 | AT53: 19549.87644 | AU53: 32356.4662 | AY53: 1997 | AZ53: 476610 | BA53: 17301 | BB53: 493911 | BF53: 1997 | BG53: 0.750729194 | BH53: 370793.407 | BI53: 0.03630011959 | BM53: 1997 | BN53: 12988.36579 | BO53: 23258.97587 | BP53: 4525.159414 | BQ53: 40772.50107 | BR53: 17513.5252 | BS53: 23258.97587 | BW53: 1997 | BX53: 4591945.8 | BY53: 98940.9 | BZ53: 4690886.7 | CD53: 1997 | CE53: 0.8154819139 | CF53: 3825333.264 | CG53: 0.02154661756 | CK53: 1997 | CL53: 80684.5145 | CM53: 244309.4486 | CN53: 46895.11603 | CO53: 371889.0791 | CP53: 127579.6305 | CQ53: 244309.4486
C54: 1998 | D54: 3386090.1 | E54: 63984.7 | F54: 3450074.8 | J54: 1998 | K54: 0.8735552419 | L54: 3013830.926 | M54: 0.01889633711 | Q54: 1998 | R54: 55894.17009 | S54: 187601.9479 | T54: 36941.81533 | U54: 280437.9333 | V54: 92835.98542 | W54: 187601.9479 | AA54: 1998 | AB54: 810885.6 | AC54: 22592.6 | AD54: 833478.2 | AH54: 1998 | AI54: 0.6615554289 | AJ54: 551392.0281 | AK54: 0.02786163671 | AO54: 1998 | AP54: 14946.25718 | AQ54: 36868.91726 | AR54: 6699.6972 | AS54: 58514.87165 | AT54: 21645.95438 | AU54: 36868.91726 | AY54: 1998 | AZ54: 493911 | BA54: 17996 | BB54: 511907 | BF54: 1998 | BG54: 0.7602236642 | BH54: 389163.8153 | BI54: 0.03643571413 | BM54: 1998 | BN54: 13680.98506 | BO54: 21991.70704 | BP54: 4689.423242 | BQ54: 40362.11534 | BR54: 18370.4083 | BS54: 21991.70704 | BW54: 1998 | BX54: 4690886.7 | BY54: 104573.3 | BZ54: 4795460 | CD54: 1998 | CE54: 0.8256943855 | CF54: 3959584.398 | CG54: 0.02229286416 | CK54: 1998 | CL54: 86345.58669 | CM54: 247419.1837 | CN54: 47905.54716 | CO54: 381670.3176 | CP54: 134251.1339 | CQ54: 247419.1837
C55: 1999 | D55: 3450074.8 | E55: 62690.3 | F55: 3512765.1 | J55: 1999 | K55: 0.8844651156 | L55: 3106918.19 | M55: 0.01817070749 | Q55: 1999 | R55: 55447.38344 | S55: 189620.0869 | T55: 37639.88033 | U55: 282707.3506 | V55: 93087.26376 | W55: 189620.0869 | AA55: 1999 | AB55: 833478.2 | AC55: 19012.5 | AD55: 852490.7 | AH55: 1999 | AI55: 0.6698176267 | AJ55: 571013.2975 | AK55: 0.02281103453 | AO55: 1999 | AP55: 12734.90763 | AQ55: 35429.10664 | AR55: 6886.36173 | AS55: 55050.376 | AT55: 19621.26936 | AU55: 35429.10664 | AY55: 1999 | AZ55: 511907 | BA55: 14620 | BB55: 526527 | BF55: 1999 | BG55: 0.7697181343 | BH55: 405277.3801 | BI55: 0.02855987513 | BM55: 1999 | BN55: 11253.27912 | BO55: 20769.44664 | BP55: 4860.285726 | BQ55: 36883.01149 | BR55: 16113.56485 | BS55: 20769.44664 | BW55: 1999 | BX55: 4795460 | BY55: 96322.8 | BZ55: 4891782.8 | CD55: 1999 | CE55: 0.8359068571 | CF55: 4089074.786 | CG55: 0.02008624824 | CK55: 1999 | CL55: 80516.88902 | CM55: 246201.2341 | CN55: 48973.49902 | CO55: 375691.6221 | CP55: 129490.388 | CQ55: 246201.2341
C56: 2000 | D56: 3512765.1 | E56: 57727.2 | F56: 3570492.3 | J56: 2000 | K56: 0.8953749893 | L56: 3196929.505 | M56: 0.01643354974 | Q56: 2000 | R56: 51687.49108 | S56: 189781.6253 | T56: 38323.82358 | U56: 279792.9399 | V56: 90011.31466 | W56: 189781.6253 | AA56: 2000 | AB56: 852490.7 | AC56: 15665.4 | AD56: 868156.1 | AH56: 2000 | AI56: 0.6780798245 | AJ56: 588679.1359 | AK56: 0.01837603624 | AO56: 2000 | AP56: 10622.39168 | AQ56: 36759.31124 | AR56: 7043.446765 | AS56: 54425.14969 | AT56: 17665.83845 | AU56: 36759.31124 | AY56: 2000 | AZ56: 526527 | BA56: 9564 | BB56: 536091 | BF56: 2000 | BG56: 0.7792126044 | BH56: 417728.8643 | BI56: 0.01816431066 | BM56: 2000 | BN56: 7452.389349 | BO56: 20452.98106 | BP56: 4999.09488 | BQ56: 32904.46529 | BR56: 12451.48423 | BS56: 20452.98106 | BW56: 2000 | BX56: 4891782.8 | BY56: 82956.6 | BZ56: 4974739.4 | CD56: 2000 | CE56: 0.8461193287 | CF56: 4209223.162 | CG56: 0.01695835719 | CK56: 2000 | CL56: 70191.1827 | CM56: 247671.5951 | CN56: 49957.19288 | CO56: 367819.9707 | CP56: 120148.3756 | CQ56: 247671.5951
C57: 2001 | D57: 3570492.3 | E57: 58981.8 | F57: 3629474.1 | J57: 2001 | K57: 0.906284863 | L57: 3289337.437 | M57: 0.01651923462 | Q57: 2001 | R57: 53454.31253 | S57: 192596.5469 | T57: 38953.62004 | U57: 285004.4794 | V57: 92407.93258 | W57: 192596.5469 | AA57: 2001 | AB57: 868156.1 | AC57: 15890.4 | AD57: 884046.5 | AH57: 2001 | AI57: 0.6863420223 | AJ57: 606758.2626 | AK57: 0.01830362074 | AO57: 2001 | AP57: 10906.24927 | AQ57: 39882.13423 | AR57: 7172.877398 | AS57: 57961.2609 | AT57: 18079.12667 | AU57: 39882.13423 | AY57: 2001 | AZ57: 536091 | BA57: 7283 | BB57: 543374 | BF57: 2001 | BG57: 0.7887070746 | BH57: 428562.9179 | BI57: 0.01358538009 | BM57: 2001 | BN57: 5744.153624 | BO57: 21259.61666 | BP57: 5089.899992 | BQ57: 32093.67028 | BR57: 10834.05362 | BS57: 21259.61666 | BW57: 2001 | BX57: 4974739.4 | BY57: 82155.2 | BZ57: 5056894.6 | CD57: 2001 | CE57: 0.8563318003 | CF57: 4330379.657 | CG57: 0.0165144731 | CK57: 2001 | CL57: 70352.11032 | CM57: 255111.8435 | CN57: 50804.3848 | CO57: 376268.3386 | CP57: 121156.4951 | CQ57: 255111.8435
C58: 2002 | D58: 3629474.1 | E58: 66174.6 | F58: 3695648.7 | J58: 2002 | K58: 0.9171947367 | L58: 3389629.536 | M58: 0.01823255882 | Q58: 2002 | R58: 60694.99482 | S58: 199508.3536 | T58: 39597.10403 | U58: 299800.4524 | V58: 100292.0989 | W58: 199508.3536 | AA58: 2002 | AB58: 884046.5 | AC58: 14629.6 | AD58: 898676.1 | AH58: 2002 | AI58: 0.69460422 | AJ58: 624224.2115 | AK58: 0.01654845079 | AO58: 2002 | AP58: 10161.7819 | AQ58: 43016.34008 | AR58: 7304.167025 | AS58: 60482.28901 | AT58: 17465.94892 | AU58: 43016.34008 | AY58: 2002 | AZ58: 543374 | BA58: 7464 | BB58: 550838 | BF58: 2002 | BG58: 0.7982015447 | BH58: 439679.7425 | BI58: 0.01373639519 | BM58: 2002 | BN58: 5957.77633 | BO58: 21905.20645 | BP58: 5159.048218 | BQ58: 33022.03099 | BR58: 11116.82455 | BS58: 21905.20645 | BW58: 2002 | BX58: 5056894.6 | BY58: 88268.2 | BZ58: 5145162.8 | CD58: 2002 | CE58: 0.8665442719 | CF58: 4458511.352 | CG58: 0.01745502072 | CK58: 2002 | CL58: 76488.3031 | CM58: 266266.7123 | CN58: 51643.39245 | CO58: 394398.4079 | CP58: 128131.6955 | CQ58: 266266.7123
C59: 2003 | D59: 3695648.7 | E59: 73242.5 | F59: 3768891.2 | J59: 2003 | K59: 0.9281046104 | L59: 3497925.299 | M59: 0.01981857745 | Q59: 2003 | R59: 67976.70193 | S59: 204652.7735 | T59: 40319.06056 | U59: 312948.536 | V59: 108295.7625 | W59: 204652.7735 | AA59: 2003 | AB59: 898676.1 | AC59: 14989.6 | AD59: 913665.7 | AH59: 2003 | AI59: 0.7028664178 | AJ59: 642184.9376 | AK59: 0.01667964687 | AO59: 2003 | AP59: 10535.68646 | AQ59: 40070.62476 | AR59: 7425.039674 | AS59: 58031.35089 | AT59: 17960.72613 | AU59: 40070.62476 | AY59: 2003 | AZ59: 550838 | BA59: 6895 | BB59: 557733 | BF59: 2003 | BG59: 0.8076960149 | BH59: 450478.7215 | BI59: 0.01251729184 | BM59: 2003 | BN59: 5569.064023 | BO59: 23247.0205 | BP59: 5229.914944 | BQ59: 34045.99947 | BR59: 10798.97897 | BS59: 23247.0205 | BW59: 2003 | BX59: 5145162.8 | BY59: 95127.1 | BZ59: 5240289.9 | CD59: 2003 | CE59: 0.8767567435 | CF59: 4594459.508 | CG59: 0.01848864724 | CK59: 2003 | CL59: 83403.32641 | CM59: 268912.1391 | CN59: 52544.82893 | CO59: 404860.2944 | CP59: 135948.1553 | CQ59: 268912.1391
C60: 2004 | D60: 3768891.2 | E60: 76942.45813 | F60: 3845833.658 | J60: 2004 | K60: 0.9390144841 | L60: 3611293.508 | M60: 0.02041514441 | Q60: 2004 | R60: 72250.08262 | S60: 199411.9477 | T60: 41118.12698 | U60: 312780.1573 | V60: 113368.2096 | W60: 199411.9477 | AA60: 2004 | AB60: 913665.7 | AC60: 16877.52747 | AD60: 930543.2275 | AH60: 2004 | AI60: 0.7111286156 | AJ60: 661735.9171 | AK60: 0.0184723225 | AO60: 2004 | AP60: 12002.09274 | AQ60: 31508.87079 | AR60: 7548.886714 | AS60: 51059.85025 | AT60: 19550.97945 | AU60: 31508.87079 | AY60: 2004 | AZ60: 557733 | BA60: 6659 | BB60: 564392 | BF60: 2004 | BG60: 0.817190485 | BH60: 461215.7722 | BI60: 0.0119394047 | BM60: 2004 | BN60: 5441.67144 | BO60: 23204.82509 | BP60: 5295.379315 | BQ60: 33941.87585 | BR60: 10737.05075 | BS60: 23204.82509 | BW60: 2004 | BX60: 5240289.9 | BY60: 100478.9856 | BZ60: 5340768.886 | CD60: 2004 | CE60: 0.8869692151 | CF60: 4737097.586 | CG60: 0.01917431812 | CK60: 2004 | CL60: 89121.76698 | CM60: 253214.3248 | CN60: 53516.31174 | CO60: 395852.4036 | CP60: 142638.0787 | CQ60: 253214.3248
C61: 2005 | D61: 3845833.658 | E61: 85375.80089 | F61: 3931209.459 | J61: 2005 | K61: 0.9499243578 | L61: 3734351.621 | M61: 0.02219955632 | Q61: 2005 | R61: 81100.55283 | S61: 208248.8815 | T61: 41957.55949 | U61: 331306.9938 | V61: 123058.1123 | W61: 208248.8815 | AA61: 2005 | AB61: 930543.2275 | AC61: 16570.90539 | AD61: 947114.1329 | AH61: 2005 | AI61: 0.7193908134 | AJ61: 681345.2064 | AK61: 0.01780777604 | AO61: 2005 | AP61: 11920.95711 | AQ61: 31695.64777 | AR61: 7688.332183 | AS61: 51304.93706 | AT61: 19609.28929 | AU61: 31695.64777 | AY61: 2005 | AZ61: 564392 | BA61: 6657 | BB61: 571049 | BF61: 2005 | BG61: 0.8266849552 | BH61: 472077.617 | BI61: 0.01179499355 | BM61: 2005 | BN61: 5503.241746 | BO61: 24589.53782 | BP61: 5358.602992 | BQ61: 35451.38256 | BR61: 10861.84474 | BS61: 24589.53782 | BW61: 2005 | BX61: 5340768.886 | BY61: 108603.7063 | BZ61: 5449372.592 | CD61: 2005 | CE61: 0.8971816867 | CF61: 4889077.293 | CG61: 0.02033484478 | CK61: 2005 | CL61: 97437.25638 | CM61: 263312.0779 | CN61: 54542.45052 | CO61: 415291.7848 | CP61: 151979.7069 | CQ61: 263312.0779
C62: 2006 | D62: 3931209.459 | E62: 76635.58122 | F62: 4007845.04 | J62: 2006 | K62: 0.9608342315 | L62: 3850874.709 | M62: 0.01949414856 | Q62: 2006 | R62: 73634.08979 | S62: 247489.3841 | T62: 42888.99869 | U62: 364012.4726 | V62: 116523.0885 | W62: 247489.3841 | AA62: 2006 | AB62: 947114.1329 | AC62: 18515.20492 | AD62: 965629.3378 | AH62: 2006 | AI62: 0.7276530111 | AJ62: 702643.0953 | AK62: 0.01954907469 | AO62: 2006 | AP62: 13472.64461 | AQ62: 39070.96927 | AR62: 7825.244281 | AS62: 60368.85816 | AT62: 21297.88889 | AU62: 39070.96927 | AY62: 2006 | AZ62: 571049 | BA62: 6343 | BB62: 577392 | BF62: 2006 | BG62: 0.8361794253 | BH62: 482803.3107 | BI62: 0.01110762824 | BM62: 2006 | BN62: 5303.886095 | BO62: 31208.78939 | BP62: 5421.80768 | BQ62: 41934.48316 | BR62: 10725.69377 | BS62: 31208.78939 | BW62: 2006 | BX62: 5449372.592 | BY62: 101493.7861 | BZ62: 5550866.378 | CD62: 2006 | CE62: 0.9073941583 | CF62: 5036823.725 | CG62: 0.01862485716 | CK62: 2006 | CL62: 92094.86865 | CM62: 316376.922 | CN62: 55651.56279 | CO62: 464123.3535 | CP62: 147746.4314 | CQ62: 316376.922
C63: 2007 | D63: 4007845.04 | E63: 58437.30245 | F63: 4066282.343 | J63: 2007 | K63: 0.9717441052 | L63: 3951385.897 | M63: 0.01458072901 | Q63: 2007 | R63: 56786.10418 | S63: 278669.4314 | T63: 43725.0832 | U63: 379180.6188 | V63: 100511.1874 | W63: 278669.4314 | AA63: 2007 | AB63: 965629.3378 | AC63: 18148.56066 | AD63: 983777.8984 | AH63: 2007 | AI63: 0.7359152089 | AJ63: 723977.1176 | AK63: 0.0187945415 | AO63: 2007 | AP63: 13355.80181 | AQ63: 47828.64438 | AR63: 7978.220566 | AS63: 69162.66676 | AT63: 21334.02237 | AU63: 47828.64438 | AY63: 2007 | AZ63: 577392 | BA63: 8034.090444 | BB63: 585426.0904 | BF63: 2007 | BG63: 0.8456738954 | BH63: 495079.5624 | BI63: 0.01391444711 | BM63: 2007 | BN63: 6794.220562 | BO63: 41317.30011 | BP63: 5482.031104 | BQ63: 53593.55177 | BR63: 12276.25167 | BS63: 41317.30011 | BW63: 2007 | BX63: 5550866.378 | BY63: 84619.95355 | BZ63: 5635486.332 | CD63: 2007 | CE63: 0.9176066298 | CF63: 5171159.62 | CG63: 0.01524445875 | CK63: 2007 | CL63: 77647.8304 | CM63: 367775.8312 | CN63: 56688.0652 | CO63: 502111.7268 | CP63: 134335.8956 | CQ63: 367775.8312
C64: 2008 | D64: 4066282.343 | E64: 34499.64906 | F64: 4100781.992 | J64: 2008 | K64: 0.9826539789 | L64: 4029649.741 | M64: 0.008484322078 | Q64: 2008 | R64: 33901.21742 | S64: 265766.5029 | T64: 44362.62679 | U64: 344030.3471 | V64: 78263.84421 | W64: 265766.5029 | AA64: 2008 | AB64: 983777.8984 | AC64: 13544.89918 | AD64: 997322.7976 | AH64: 2008 | AI64: 0.7441774067 | AJ64: 742185.0932 | AK64: 0.01376824912 | AO64: 2008 | AP64: 10079.80795 | AQ64: 47222.01209 | AR64: 8128.167564 | AS64: 65429.9876 | AT64: 18207.97551 | AU64: 47222.01209 | AY64: 2008 | AZ64: 585426.0904 | BA64: 8325.91292 | BB64: 593752.0034 | BF64: 2008 | BG64: 0.8551683656 | BH64: 507757.9303 | BI64: 0.01422197107 | BM64: 2008 | BN64: 7120.057344 | BO64: 39603.16497 | BP64: 5558.310535 | BQ64: 52281.53285 | BR64: 12678.36788 | BS64: 39603.16497 | BW64: 2008 | BX64: 5635486.332 | BY64: 56370.46116 | BZ64: 5691856.793 | CD64: 2008 | CE64: 0.9278191014 | CF64: 5281013.455 | CG64: 0.01000276779 | CK64: 2008 | CL64: 52301.59062 | CM64: 352928.7754 | CN64: 57552.24407 | CO64: 462782.6101 | CP64: 109853.8347 | CQ64: 352928.7754
C65: 2009 | D65: 4100781.992 | E65: 26476.88903 | F65: 4127258.881 | J65: 2009 | K65: 0.9935638526 | L65: 4100695.234 | M65: 0.006456546357 | Q65: 2009 | R65: 26306.47987 | S65: 279321.3082 | T65: 44739.01361 | U65: 350366.8017 | V65: 71045.49348 | W65: 279321.3082 | AA65: 2009 | AB65: 997322.7976 | AC65: 5950.274911 | AD65: 1003273.073 | AH65: 2009 | AI65: 0.7524396045 | AJ65: 754902.3938 | AK65: 0.005966247763 | AO65: 2009 | AP65: 4477.2225 | AQ65: 48487.15256 | AR65: 8240.078199 | AS65: 61204.45326 | AT65: 12717.3007 | AU65: 48487.15256 | AY65: 2009 | AZ65: 593752.0034 | BA65: 8447.209519 | BB65: 602199.2129 | BF65: 2009 | BG65: 0.8646628357 | BH65: 520699.2791 | BI65: 0.01422683119 | BM65: 2009 | BN65: 7303.988137 | BO65: 40471.31015 | BP65: 5637.360667 | BQ65: 53412.65895 | BR65: 12941.3488 | BS65: 40471.31015 | BW65: 2009 | BX65: 5691856.793 | BY65: 40874.37346 | BZ65: 5732731.166 | CD65: 2009 | CE65: 0.938031573 | CF65: 5377482.834 | CG65: 0.007181202013 | CK65: 2009 | CL65: 38341.45283 | CM65: 368253.5459 | CN65: 58127.9258 | CO65: 464722.9245 | CP65: 96469.37863 | CQ65: 368253.5459
C66: 2010 | D66: 4127258.881 | E66: 43008.78356 | F66: 4170267.664 | J66: 2010 | K66: 1.004473726 | L66: 4188924.3 | M66: 0.01042066534 | Q66: 2010 | R66: 43201.19309 | S66: 278326.1512 | T66: 45027.87312 | U66: 366555.2174 | V66: 88229.06621 | W66: 278326.1512 | AA66: 2010 | AB66: 1003273.073 | AC66: 9362.377444 | AD66: 1012635.45 | AH66: 2010 | AI66: 0.7607018022 | AJ66: 770313.6118 | AK66: 0.009331833676 | AO66: 2010 | AP66: 7121.977395 | AQ66: 51906.34264 | AR66: 8289.240548 | AS66: 67317.56058 | AT66: 15411.21794 | AU66: 51906.34264 | AY66: 2010 | AZ66: 602199.2129 | BA66: 8481.569989 | BB66: 610680.7829 | BF66: 2010 | BG66: 0.8741573059 | BH66: 533831.0679 | BI66: 0.01408432593 | BM66: 2010 | BN66: 7414.226371 | BO66: 40772.50107 | BP66: 5717.562446 | BQ66: 53904.28989 | BR66: 13131.78882 | BS66: 40772.50107 | BW66: 2010 | BX66: 5732731.166 | BY66: 60852.73099 | BZ66: 5793583.897 | CD66: 2010 | CE66: 0.9482440446 | CF66: 5493731.428 | CG66: 0.01061496331 | CK66: 2010 | CL66: 57703.23976 | CM66: 371889.0791 | CN66: 58545.35418 | CO66: 488137.673 | CP66: 116248.5939 | CQ66: 371889.0791
C67: 2011 | D67: 4170267.664 | E67: 59337.17519 | F67: 4229604.84 | J67: 2011 | K67: =INDEX(SATURATIONS_TABLE,MATCH($B$2,APPLIANCES,0),MATCH(B$6,SATURATIONS_HOUSING_TYPE,0)+MATCH(J67,SATURATIONS_YEARS,0)-1) -> 1.0153836 | L67: 4294671.389 | M67: 0.01422862511 | Q67: 2011 | R67: 60249.99456 | S67: 280437.9333 | T67: 45497.09352 | U67: =SUM(R67:T67) -> 386185.0214 | V67: 105747.0881 | W67: 280437.9333 | AA67: 2011 | AB67: 1012635.45 | AC67: 13644.61037 | AD67: 1026280.06 | AH67: 2011 | AI67: =INDEX(SATURATIONS_TABLE,MATCH($B$2,APPLIANCES,0),MATCH(Z$6,SATURATIONS_HOUSING_TYPE,0)+MATCH(AH67,SATURATIONS_YEARS,0)-1) -> 0.768964 | AJ67: 789172.4203 | AK67: 0.01347435582 | AO67: 2011 | AP67: 10492.21417 | AQ67: 58514.87165 | AR67: 8366.594362 | AS67: =SUM(AP67:AR67) -> 77373.68018 | AT67: 18858.80853 | AU67: 58514.87165 | AY67: 2011 | AZ67: 610680.7829 | BA67: 8353.224309 | BB67: 619034.0072 | BF67: 2011 | BG67: =INDEX(SATURATIONS_TABLE,MATCH($B$2,APPLIANCES,0),MATCH(AX$6,SATURATIONS_HOUSING_TYPE,0)+MATCH(BF67,SATURATIONS_YEARS,0)-1) -> 0.883651776 | BH67: 547010.4998 | BI67: 0.01367854457 | BM67: 2011 | BN67: 7381.341496 | BO67: 40362.11534 | BP67: 5798.090459 | BQ67: =SUM(BN67:BP67) -> 53541.54729 | BR67: 13179.43195 | BS67: 40362.11534 | BW67: 2011 | BX67: 5793583.897 | BY67: 81335.00988 | BZ67: 5874918.907 | CD67: 2011 | CE67: =INDEX(SATURATIONS_TABLE,MATCH($B$2,APPLIANCES,0),MATCH(BV$6,SATURATIONS_HOUSING_TYPE,0)+MATCH(CD67,SATURATIONS_YEARS,0)-1) -> 0.9584565162 | CF67: 5630854.309 | CG67: 0.01403880764 | CK67: 2011 | CL67: 77956.07021 | CM67: 381670.3176 | CN67: 59166.81097 | CO67: =SUM(CL67:CN67) -> 518793.1988 | CP67: 137122.8812 | CQ67: 381670.3176
C68: 2012 | D68: 4229604.84 | E68: 68726.91929 | F68: 4298331.759 | J68: 2012 | K68: =((K$90-K$67)/(J$90-J$67))*(J68-J$67)+K$67 -> 1.0153836 | L68: 4364455.575 | M68: 0.01624901661 | Q68: 2012 | R68: 69784.18673 | S68: 282707.3506 | T68: -1.120497473e-09 | U68: 352491.5373 | V68: 69784.18673 | W68: 282707.3506 | AA68: 2012 | AB68: 1026280.06 | AC68: 14847.68926 | AD68: 1041127.75 | AH68: 2012 | AI68: =((AI$90-AI$67)/(AH$90-AH$67))*(AH68-AH$67)+AI$67 -> 0.768964 | AJ68: 800589.7588 | AK68: 0.01446748293 | AO68: 2012 | AP68: 11417.33852 | AQ68: 55050.376 | AR68: -6.002665032e-11 | AS68: =SUM(AP68:AR68) -> 66467.71452 | AT68: 11417.33852 | AU68: 55050.376 | AY68: 2012 | AZ68: 619034.0072 | BA68: 8067.339603 | BB68: 627101.3468 | BF68: 2012 | BG68: =((BG$90-BG$67)/(BF$90-BF$67))*(BF68-BF$67)+BG$67 -> 0.883651776 | BH68: 554139.2188 | BI68: 0.01303214284 | BM68: 2012 | BN68: 7128.718968 | BO68: 36883.01149 | BP68: 3.456079867e-11 | BQ68: =SUM(BN68:BP68) -> 44011.73046 | BR68: 7128.718968 | BS68: 36883.01149 | BW68: 2012 | BX68: 5874918.907 | BY68: 91641.94815 | BZ68: 5966560.855 | CD68: 2012 | CE68: =((CE$90-CE$67)/(CD$90-CD$67))*(CD68-CD$67)+CE$67 -> 0.9583552012 | CF68: 5718084.629 | CG68: 0.01559884478 | CK68: 2012 | CL68: 87825.53766 | CM68: 375691.6221 | CN68: -595.2174339 | CO68: =SUM(CL68:CN68) -> 462921.9423 | CP68: 87230.32023 | CQ68: 375691.6221
C69: 2013 | D69: 4298331.759 | E69: 70465.64708 | F69: 4368797.406 | J69: 2013 | K69: =((K$90-K$67)/(J$90-J$67))*(J69-J$67)+K$67 -> 1.0153836 | L69: 4436005.238 | M69: 0.01639371994 | Q69: 2013 | R69: 71549.6624 | S69: 279792.9399 | T69: 4.947651178e-10 | U69: 351342.6023 | V69: 71549.6624 | W69: 279792.9399 | AA69: 2013 | AB69: 1041127.75 | AC69: 15684.23459 | AD69: 1056811.984 | AH69: 2013 | AI69: =((AI$90-AI$67)/(AH$90-AH$67))*(AH69-AH$67)+AI$67 -> 0.768964 | AJ69: 812650.3706 | AK69: 0.01506465906 | AO69: 2013 | AP69: 12060.61177 | AQ69: 54425.14969 | AR69: 8.549250197e-11 | AS69: 66485.76145 | AT69: 12060.61177 | AU69: 54425.14969 | AY69: 2013 | AZ69: 627101.3468 | BA69: 7708.062064 | BB69: 634809.4088 | BF69: 2013 | BG69: =((BG$90-BG$67)/(BF$90-BF$67))*(BF69-BF$67)+BG$67 -> 0.883651776 | BH69: 560950.4616 | BI69: 0.01229157313 | BM69: 2013 | BN69: 6811.242733 | BO69: 32904.46529 | BP69: -2.910383046e-11 | BQ69: 39715.70803 | BR69: 6811.242733 | BS69: 32904.46529 | BW69: 2013 | BX69: 5966560.855 | BY69: 93857.94373 | BZ69: 6060418.799 | CD69: 2013 | CE69: =((CE$90-CE$67)/(CD$90-CD$67))*(CD69-CD$67)+CE$67 -> 0.9582538862 | CF69: 5807419.866 | CG69: 0.01573066059 | CK69: 2013 | CL69: 89939.73933 | CM69: 367819.9707 | CN69: -604.5021382 | CO69: 457155.2079 | CP69: 89335.23719 | CQ69: 367819.9707
C70: 2014 | D70: 4368797.406 | E70: 69968.61956 | F70: 4438766.025 | J70: 2014 | K70: 1.0153836 | L70: 4507050.226 | M70: 0.01601553312 | Q70: 2014 | R70: 71044.98881 | S70: 285004.4794 | T70: -4.656612873e-10 | U70: 356049.4682 | V70: 71044.98881 | W70: 285004.4794 | AA70: 2014 | AB70: 1056811.984 | AC70: 16844.58428 | AD70: 1073656.568 | AH70: 2014 | AI70: 0.768964 | AJ70: 825603.2495 | AK70: 0.01593905495 | AO70: 2014 | AP70: 12952.87891 | AQ70: 57961.2609 | AR70: -6.548361853e-11 | AS70: 70914.1398 | AT70: 12952.87891 | AU70: 57961.2609 | AY70: 2014 | AZ70: 634809.4088 | BA70: 7248.026214 | BB70: 642057.4351 | BF70: 2014 | BG70: 0.883651776 | BH70: 567355.1928 | BI70: 0.01141764144 | BM70: 2014 | BN70: 6404.731237 | BO70: 32093.67028 | BP70: -1.091393642e-11 | BQ70: 38498.40152 | BR70: 6404.731237 | BS70: 32093.67028 | BW70: 2014 | BX70: 6060418.799 | BY70: 94061.23005 | BZ70: 6154480.029 | CD70: 2014 | CE70: 0.9581525712 | CF70: 5896930.864 | CG70: 0.01552058252 | CK70: 2014 | CL70: 90125.00943 | CM70: 376268.3386 | CN70: -614.0113562 | CO70: 465779.3367 | CP70: 89510.99807 | CQ70: 376268.3386
C71: 2015 | D71: 4438766.025 | E71: 70186.04914 | F71: 4508952.075 | J71: 2015 | K71: 1.0153836 | L71: 4578315.99 | M71: 0.01581206325 | Q71: 2015 | R71: 71265.76324 | S71: 299800.4524 | T71: 4.074536264e-10 | U71: 371066.2157 | V71: 71265.76324 | W71: 299800.4524 | AA71: 2015 | AB71: 1073656.568 | AC71: 18222.34364 | AD71: 1091878.912 | AH71: 2015 | AI71: 0.768964 | AJ71: 839615.5758 | AK71: 0.01697222759 | AO71: 2015 | AP71: 14012.32625 | AQ71: 60482.28901 | AR71: -9.458744898e-11 | AS71: 74494.61526 | AT71: 14012.32625 | AU71: 60482.28901 | AY71: 2015 | AZ71: 642057.4351 | BA71: 6822.261233 | BB71: 648879.6963 | BF71: 2015 | BG71: 0.883651776 | BH71: 573383.696 | BI71: 0.01062562453 | BM71: 2015 | BN71: 6028.503255 | BO71: 33022.03099 | BP71: 0 | BQ71: 39050.53425 | BR71: 6028.503255 | BS71: 33022.03099 | BW71: 2015 | BX71: 6154480.029 | BY71: 95230.65401 | BZ71: 6249710.683 | CD71: 2015 | CE71: 0.9580512562 | CF71: 5987543.171 | CG71: 0.01547338744 | CK71: 2015 | CL71: 91235.8477 | CM71: 394398.4079 | CN71: -623.5411701 | CO71: 485010.7144 | CP71: 90612.30653 | CQ71: 394398.4079
C72: 2016 | D72: 4508952.075 | E72: 70411.95999 | F72: 4579364.035 | J72: 2016 | K72: 1.0153836 | L72: 4649811.139 | M72: 0.01561603646 | Q72: 2016 | R72: 71495.14942 | S72: 312948.536 | T72: -1.091393642e-09 | U72: 384443.6854 | V72: 71495.14942 | W72: 312948.536 | AA72: 2016 | AB72: 1091878.912 | AC72: 19354.1343 | AD72: 1111233.046 | AH72: 2016 | AI72: 0.768964 | AJ72: 854498.2083 | AK72: 0.01772553173 | AO72: 2016 | AP72: 14882.63253 | AQ72: 58031.35089 | AR72: -2.000888344e-11 | AS72: 72913.98341 | AT72: 14882.63253 | AU72: 58031.35089 | AY72: 2016 | AZ72: 648879.6963 | BA72: 6499.826459 | BB72: 655379.5228 | BF72: 2016 | BG72: 0.883651776 | BH72: 579127.2792 | BI72: 0.01001699775 | BM72: 2016 | BN72: 5743.583194 | BO72: 34045.99947 | BP72: 8.640199667e-11 | BQ72: 39789.58266 | BR72: 5743.583194 | BS72: 34045.99947 | BW72: 2016 | BX72: 6249710.683 | BY72: 96265.92075 | BZ72: 6345976.604 | CD72: 2016 | CE72: 0.9579499412 | CF72: 6079127.914 | CG72: 0.01540326035 | CK72: 2016 | CL72: 92217.93312 | CM72: 404860.2944 | CN72: -633.1894642 | CO72: 496445.0381 | CP72: 91584.74366 | CQ72: 404860.2944
C73: 2017 | D73: 4579364.035 | E73: 69178.45405 | F73: 4648542.489 | J73: 2017 | K73: 1.0153836 | L73: 4720053.807 | M73: 0.0151065636 | Q73: 2017 | R73: 70242.66772 | S73: 312780.1573 | T73: 4.511093721e-10 | U73: 383022.825 | V73: 70242.66772 | W73: 312780.1573 | AA73: 2017 | AB73: 1111233.046 | AC73: 19989.32048 | AD73: 1131222.367 | AH73: 2017 | AI73: 0.768964 | AJ73: 869869.2761 | AK73: 0.01798841435 | AO73: 2017 | AP73: 15371.06784 | AQ73: 51059.85025 | AR73: 1.055013854e-10 | AS73: 66430.91808 | AT73: 15371.06784 | AU73: 51059.85025 | AY73: 2017 | AZ73: 655379.5228 | BA73: 6312.897415 | BB73: 661692.4202 | BF73: 2017 | BG73: 0.883651776 | BH73: 584705.6822 | BI73: 0.009632430059 | BM73: 2017 | BN73: 5578.403013 | BO73: 33941.87585 | BP73: -2.819433575e-11 | BQ73: 39520.27886 | BR73: 5578.403013 | BS73: 33941.87585 | BW73: 2017 | BX73: 6345976.604 | BY73: 95480.67195 | BZ73: 6441457.276 | CD73: 2017 | CE73: 0.9578486262 | CF73: 6169941.002 | CG73: 0.01504585943 | CK73: 2017 | CL73: 91456.03045 | CM73: 395852.4036 | CN73: -642.9426464 | CO73: 486665.4914 | CP73: 90813.08781 | CQ73: 395852.4036
C74: 2018 | D74: 4648542.489 | E74: 67800.54063 | F74: 4716343.029 | J74: 2018 | K74: 1.0153836 | L74: 4788897.364 | M74: 0.0145853331 | Q74: 2018 | R74: 68843.55703 | S74: 331306.9938 | T74: -2.764863893e-10 | U74: 400150.5509 | V74: 68843.55703 | W74: 331306.9938 | AA74: 2018 | AB74: 1131222.367 | AC74: 20686.19694 | AD74: 1151908.564 | AH74: 2018 | AI74: 0.768964 | AJ74: 885776.2169 | AK74: 0.01828658763 | AO74: 2018 | AP74: 15906.94075 | AQ74: 51304.93706 | AR74: -1.2187229e-10 | AS74: 67211.87781 | AT74: 15906.94075 | AU74: 51304.93706 | AY74: 2018 | AZ74: 661692.4202 | BA74: 6279.419374 | BB74: 667971.8395 | BF74: 2018 | BG74: 0.883651776 | BH74: 590254.5023 | BI74: 0.00948993699 | BM74: 2018 | BN74: 5548.820082 | BO74: 35451.38256 | BP74: 7.185008144e-11 | BQ74: 41000.20264 | BR74: 5548.820082 | BS74: 35451.38256 | BW74: 2018 | BX74: 6441457.276 | BY74: 94766.15695 | BZ74: 6536223.433 | CD74: 2018 | CE74: 0.9577473112 | CF74: 6260050.418 | CG74: 0.01471191268 | CK74: 2018 | CL74: 90762.03201 | CM74: 415291.7848 | CN74: -652.6162711 | CO74: 505401.2005 | CP74: 90109.41573 | CQ74: 415291.7848
C75: 2019 | D75: 4716343.029 | E75: 66315.51077 | F75: 4782658.54 | J75: 2019 | K75: 1.0153836 | L75: 4856233.046 | M75: 0.0140607904 | Q75: 2019 | R75: 67335.68206 | S75: 364012.4726 | T75: -2.037268132e-10 | U75: 431348.1547 | V75: 67335.68206 | W75: 364012.4726 | AA75: 2019 | AB75: 1151908.564 | AC75: 21491.76776 | AD75: 1173400.332 | AH75: 2019 | AI75: 0.768964 | AJ75: 902302.6126 | AK75: 0.01865752928 | AO75: 2019 | AP75: 16526.3957 | AQ75: 60368.85816 | AR75: 5.09317033e-11 | AS75: 76895.25386 | AT75: 16526.3957 | AU75: 60368.85816 | AY75: 2019 | AZ75: 667971.8395 | BA75: 6392.108857 | BB75: 674363.9484 | BF75: 2019 | BG75: 0.883651776 | BH75: 595902.9007 | BI75: 0.009569428647 | BM75: 2019 | BN75: 5648.398344 | BO75: 41934.48316 | BP75: 4.001776688e-11 | BQ75: 47582.88151 | BR75: 5648.398344 | BS75: 41934.48316 | BW75: 2019 | BX75: 6536223.433 | BY75: 94199.38738 | BZ75: 6630422.82 | CD75: 2019 | CE75: 0.9576459962 | CF75: 6349597.867 | CG75: 0.0144118983 | CK75: 2019 | CL75: 90209.66617 | CM75: 464123.3535 | CN75: -662.2175047 | CO75: 553670.8021 | CP75: 89547.44866 | CQ75: 464123.3535
C76: 2020 | D76: 4782658.54 | E76: 65194.00998 | F76: 4847852.55 | J76: 2020 | K76: 1.0153836 | L76: 4922429.974 | M76: 0.01363133275 | Q76: 2020 | R76: 66196.92855 | S76: 379180.6188 | T76: 4.802132025e-10 | U76: 445377.5474 | V76: 66196.92855 | W76: 379180.6188 | AA76: 2020 | AB76: 1173400.332 | AC76: 21967.86314 | AD76: 1195368.195 | AH76: 2020 | AI76: 0.768964 | AJ76: 919195.1085 | AK76: 0.01872154161 | AO76: 2020 | AP76: 16892.49591 | AQ76: 69162.66676 | AR76: -4.001776688e-11 | AS76: 86055.16267 | AT76: 16892.49591 | AU76: 69162.66676 | AY76: 2020 | AZ76: 674363.9484 | BA76: 6610.888202 | BB76: 680974.8366 | BF76: 2020 | BG76: 0.883651776 | BH76: 601744.6238 | BI76: 0.009803145939 | BM76: 2020 | BN76: 5841.723101 | BO76: 53593.55177 | BP76: -5.27506927e-11 | BQ76: 59435.27487 | BR76: 5841.723101 | BS76: 53593.55177 | BW76: 2020 | BX76: 6630422.82 | BY76: 93772.76132 | BZ76: 6724195.581 | CD76: 2020 | CE76: 0.9575446812 | CF76: 6438717.714 | CG76: 0.01414280263 | CK76: 2020 | CL76: 89791.60884 | CM76: 502111.7268 | CN76: -671.761316 | CO76: 591231.5743 | CP76: 89119.84752 | CQ76: 502111.7268
C77: 2021 | D77: 4847852.55 | E77: 63489.45797 | F77: 4911342.008 | J77: 2021 | K77: 1.0153836 | L77: 4986896.129 | M77: 0.01309640863 | Q77: 2021 | R77: 64466.1544 | S77: 344030.3471 | T77: -2.473825589e-10 | U77: 408496.5015 | V77: 64466.1544 | W77: 344030.3471 | AA77: 2021 | AB77: 1195368.195 | AC77: 21579.79984 | AD77: 1216947.995 | AH77: 2021 | AI77: 0.768964 | AJ77: 935789.1977 | AK77: 0.01805284759 | AO77: 2021 | AP77: 16594.0892 | AQ77: 65429.9876 | AR77: -4.729372449e-11 | AS77: 82024.0768 | AT77: 16594.0892 | AU77: 65429.9876 | AY77: 2021 | AZ77: 680974.8366 | BA77: 6891.247535 | BB77: 687866.0841 | BF77: 2021 | BG77: 0.883651776 | BH77: 607834.0869 | BI77: 0.01011968015 | BM77: 2021 | BN77: 6089.463123 | BO77: 52281.53285 | BP77: -4.547473509e-11 | BQ77: 58370.99597 | BR77: 6089.463123 | BS77: 52281.53285 | BW77: 2021 | BX77: 6724195.581 | BY77: 91960.50535 | BZ77: 6816156.087 | CD77: 2021 | CE77: 0.9574433662 | CF77: 6526083.428 | CG77: 0.01367606046 | CK77: 2021 | CL77: 88046.97579 | CM77: 462782.6101 | CN77: -681.2619037 | CO77: 550148.324 | CP77: 87365.71389 | CQ77: 462782.6101
C78: 2022 | D78: 4911342.008 | E78: 62361.58469 | F78: 4973703.593 | J78: 2022 | K78: 1.0153836 | L78: 5050217.059 | M78: 0.01269746326 | Q78: 2022 | R78: 63320.93036 | S78: 350366.8017 | T78: 0 | U78: 413687.7321 | V78: 63320.93036 | W78: 350366.8017 | AA78: 2022 | AB78: 1216947.995 | AC78: 21821.28847 | AD78: 1238769.283 | AH78: 2022 | AI78: 0.768964 | AJ78: 952568.983 | AK78: 0.0179311594 | AO78: 2022 | AP78: 16779.78526 | AQ78: 61204.45326 | AR78: 6.548361853e-11 | AS78: 77984.23853 | AT78: 16779.78526 | AU78: 61204.45326 | AY78: 2022 | AZ78: 687866.0841 | BA78: 7172.622867 | BB78: 695038.707 | BF78: 2022 | BG78: 0.883651776 | BH78: 614172.1878 | BI78: 0.01042735357 | BM78: 2022 | BN78: 6338.100935 | BO78: 53412.65895 | BP78: 2.273736754e-11 | BQ78: 59750.75989 | BR78: 6338.100935 | BS78: 53412.65895 | BW78: 2022 | BX78: 6816156.087 | BY78: 91355.49602 | BZ78: 6907511.583 | CD78: 2022 | CE78: 0.9573420512 | CF78: 6612851.307 | CG78: 0.01340278815 | CK78: 2022 | CL78: 87458.45795 | CM78: 464722.9245 | CN78: -690.5788827 | CO78: 551490.8036 | CP78: 86767.87907 | CQ78: 464722.9245
C79: 2023 | D79: 4973703.593 | E79: 61548.37852 | F79: 5035251.971 | J79: 2023 | K79: 1.0153836 | L79: 5112712.273 | M79: 0.01237475804 | Q79: 2023 | R79: 62495.21416 | S79: 366555.2174 | T79: -5.748006515e-10 | U79: 429050.4316 | V79: 62495.21416 | W79: 366555.2174 | AA79: 2023 | AB79: 1238769.283 | AC79: 21921.59971 | AD79: 1260690.883 | AH79: 2023 | AI79: 0.768964 | AJ79: 969425.904 | AK79: 0.01769627324 | AO79: 2023 | AP79: 16856.921 | AQ79: 67317.56058 | AR79: 0 | AS79: 84174.48158 | AT79: 16856.921 | AU79: 67317.56058 | AY79: 2023 | AZ79: 695038.707 | BA79: 7396.632508 | BB79: 702435.3395 | BF79: 2023 | BG79: 0.883651776 | BH79: 620708.2353 | BI79: 0.01064204401 | BM79: 2023 | BN79: 6536.047452 | BO79: 53904.28989 | BP79: -4.820321919e-11 | BQ79: 60440.33734 | BR79: 6536.047452 | BS79: 53904.28989 | BW79: 2023 | BX79: 6907511.583 | BY79: 90866.61074 | BZ79: 6998378.193 | CD79: 2023 | CE79: 0.9572407362 | CF79: 6699132.694 | CG79: 0.01315475329 | CK79: 2023 | CL79: 86981.22136 | CM79: 488137.673 | CN79: -699.8345651 | CO79: 574419.0598 | CP79: 86281.38679 | CQ79: 488137.673
C80: 2024 | D80: 5035251.971 | E80: 60616.51093 | F80: 5095868.482 | J80: 2024 | K80: 1.0153836 | L80: 5174261.285 | M80: 0.01203842653 | Q80: 2024 | R80: 61549.01109 | S80: 386185.0214 | T80: 4.438334145e-10 | U80: 447734.0325 | V80: 61549.01109 | W80: 386185.0214 | AA80: 2024 | AB80: 1260690.883 | AC80: 21860.74677 | AD80: 1282551.63 | AH80: 2024 | AI80: 0.768964 | AJ80: 986236.0312 | AK80: 0.01734029101 | AO80: 2024 | AP80: 16810.12728 | AQ80: 77373.68018 | AR80: 9.094947018e-11 | AS80: 94183.80746 | AT80: 16810.12728 | AU80: 77373.68018 | AY80: 2024 | AZ80: 702435.3395 | BA80: 7519.052294 | BB80: 709954.3918 | BF80: 2024 | BG80: 0.883651776 | BH80: 627352.4592 | BI80: 0.01070426254 | BM80: 2024 | BN80: 6644.223914 | BO80: 53541.54729 | BP80: -3.910827218e-11 | BQ80: 60185.77121 | BR80: 6644.223914 | BS80: 53541.54729 | BW80: 2024 | BX80: 6998378.193 | BY80: 89996.31 | BZ80: 7088374.503 | CD80: 2024 | CE80: 0.9571394212 | CF80: 6784562.669 | CG80: 0.01285959511 | CK80: 2024 | CL80: 86139.01606 | CM80: 518793.1988 | CN80: -709.0407162 | CO80: 604223.1741 | CP80: 85429.97535 | CQ80: 518793.1988
C81: 2025 | D81: 5095868.482 | E81: 60409.75564 | F81: 5156278.238 | J81: 2025 | K81: 1.0153836 | L81: 5235600.36 | M81: 0.0118546536 | Q81: 2025 | R81: 61339.07516 | S81: 352491.5373 | T81: 2.764863893e-10 | U81: 413830.6125 | V81: 61339.07516 | W81: 352491.5373 | AA81: 2025 | AB81: 1282551.63 | AC81: 21624.50313 | AD81: 1304176.133 | AH81: 2025 | AI81: 0.768964 | AJ81: 1002864.496 | AK81: 0.01686053226 | AO81: 2025 | AP81: 16628.46442 | AQ81: 66467.71452 | AR81: -2.910383046e-11 | AS81: 83096.17894 | AT81: 16628.46442 | AU81: 66467.71452 | AY81: 2025 | AZ81: 709954.3918 | BA81: 7514.795429 | BB81: 717469.1872 | BF81: 2025 | BG81: 0.883651776 | BH81: 633992.9215 | BI81: 0.01058489886 | BM81: 2025 | BN81: 6640.462327 | BO81: 44011.73046 | BP81: 3.728928277e-11 | BQ81: 50652.19279 | BR81: 6640.462327 | BS81: 44011.73046 | BW81: 2025 | BX81: 7088374.503 | BY81: 89549.0542 | BZ81: 7177923.558 | CD81: 2025 | CE81: 0.9570381062 | CF81: 6869546.368 | CG81: 0.01263322842 | CK81: 2025 | CL81: 85701.85724 | CM81: 462921.9423 | CN81: -718.1586927 | CO81: 547905.6409 | CP81: 84983.69855 | CQ81: 462921.9423
C82: 2026 | D82: 5156278.238 | E82: 59860.4156 | F82: 5216138.653 | J82: 2026 | K82: 1.0153836 | L82: 5296381.644 | M82: 0.01160922915 | Q82: 2026 | R82: 60781.28429 | S82: 351342.6023 | T82: -1.236912794e-10 | U82: 412123.8866 | V82: 60781.28429 | W82: 351342.6023 | AA82: 2026 | AB82: 1304176.133 | AC82: 21300.21198 | AD82: 1325476.345 | AH82: 2026 | AI82: 0.768964 | AJ82: 1019243.592 | AK82: 0.01633231236 | AO82: 2026 | AP82: 16379.0962 | AQ82: 66485.76145 | AR82: 8.731149137e-11 | AS82: 82864.85766 | AT82: 16379.0962 | AU82: 66485.76145 | AY82: 2026 | AZ82: 717469.1872 | BA82: 7381.417507 | BB82: 724850.6047 | BF82: 2026 | BG82: 0.883651776 | BH82: 640515.5242 | BI82: 0.01028813172 | BM82: 2026 | BN82: 6522.602689 | BO82: 39715.70803 | BP82: -2.819433575e-11 | BQ82: 46238.31072 | BR82: 6522.602689 | BS82: 39715.70803 | BW82: 2026 | BX82: 7177923.558 | BY82: 88542.04508 | BZ82: 7266465.603 | CD82: 2026 | CE82: 0.9569367912 | CF82: 6953548.277 | CG82: 0.01233532851 | CK82: 2026 | CL82: 84729.1405 | CM82: 457155.2079 | CN82: -727.2313555 | CO82: 541157.117 | CP82: 84001.90915 | CQ82: 457155.2079
C83: 2027 | D83: 5216138.653 | E83: 58686.12152 | F83: 5274824.775 | J83: 2027 | K83: 1.0153836 | L83: 5355970.569 | M83: 0.01125087453 | Q83: 2027 | R83: 59588.92534 | S83: 356049.4682 | T83: -5.529727787e-10 | U83: 415638.3936 | V83: 59588.92534 | W83: 356049.4682 | AA83: 2027 | AB83: 1325476.345 | AC83: 21199.60134 | AD83: 1346675.946 | AH83: 2027 | AI83: 0.768964 | AJ83: 1035545.322 | AK83: 0.01599394922 | AO83: 2027 | AP83: 16301.73025 | AQ83: 70914.1398 | AR83: -1.236912794e-10 | AS83: 87215.87005 | AT83: 16301.73025 | AU83: 70914.1398 | AY83: 2027 | AZ83: 724850.6047 | BA83: 7141.111305 | BB83: 731991.716 | BF83: 2027 | BG83: 0.883651776 | BH83: 646825.7799 | BI83: 0.00985183879 | BM83: 2027 | BN83: 6310.255687 | BO83: 38498.40152 | BP83: -1.000444172e-10 | BQ83: 44808.6572 | BR83: 6310.255687 | BS83: 38498.40152 | BW83: 2027 | BX83: 7266465.603 | BY83: 87026.83417 | BZ83: 7353492.437 | CD83: 2027 | CE83: 0.9568354761 | CF83: 7036082.437 | CG83: 0.01197650122 | CK83: 2027 | CL83: 83270.36231 | CM83: 465779.3367 | CN83: -736.2019932 | CO83: 548313.497 | CP83: 82534.16032 | CQ83: 465779.3367
C84: 2028 | D84: 5274824.775 | E84: 57157.94369 | F84: 5331982.719 | J84: 2028 | K84: 1.0153836 | L84: 5414007.808 | M84: 0.01083598909 | Q84: 2028 | R84: 58037.23863 | S84: 371066.2157 | T84: -2.83762347e-10 | U84: 429103.4543 | V84: 58037.23863 | W84: 371066.2157 | AA84: 2028 | AB84: 1346675.946 | AC84: 21157.03875 | AD84: 1367832.985 | AH84: 2028 | AI84: 0.768964 | AJ84: 1051814.323 | AK84: 0.01571056408 | AO84: 2028 | AP84: 16269.00115 | AQ84: 74494.61526 | AR84: 1.182343112e-10 | AS84: 90763.6164 | AT84: 16269.00115 | AU84: 74494.61526 | AY84: 2028 | AZ84: 731991.716 | BA84: 6832.650728 | BB84: 738824.3668 | BF84: 2028 | BG84: 0.883651776 | BH84: 652863.4639 | BI84: 0.009334327941 | BM84: 2028 | BN84: 6037.68395 | BO84: 39050.53425 | BP84: 6.457412383e-11 | BQ84: 45088.2182 | BR84: 6037.68395 | BS84: 39050.53425 | BW84: 2028 | BX84: 7353492.437 | BY84: 85147.63317 | BZ84: 7438640.07 | CD84: 2028 | CE84: 0.9567341611 | CF84: 7116801.067 | CG84: 0.01157921 | CK84: 2028 | CL84: 81463.64939 | CM84: 485010.7144 | CN84: -745.0191173 | CO84: 565729.3447 | CP84: 80718.63027 | CQ84: 485010.7144
C85: 2029 | D85: 5331982.719 | E85: 56115.99597 | F85: 5388098.715 | J85: 2029 | K85: 1.0153836 | L85: 5470987.07 | M85: 0.01052441445 | Q85: 2029 | R85: 56979.262 | S85: 384443.6854 | T85: 0 | U85: 441422.9474 | V85: 56979.262 | W85: 384443.6854 | AA85: 2029 | AB85: 1367832.985 | AC85: 21086.50828 | AD85: 1388919.493 | AH85: 2029 | AI85: 0.768964 | AJ85: 1068029.089 | AK85: 0.01541599633 | AO85: 2029 | AP85: 16214.76575 | AQ85: 72913.98341 | AR85: 0 | AS85: 89128.74916 | AT85: 16214.76575 | AU85: 72913.98341 | AY85: 2029 | AZ85: 738824.3668 | BA85: 6504.892482 | BB85: 745329.2593 | BF85: 2029 | BG85: 0.883651776 | BH85: 658611.5236 | BI85: 0.008804382712 | BM85: 2029 | BN85: 5748.059794 | BO85: 39789.58266 | BP85: -7.457856555e-11 | BQ85: 45537.64246 | BR85: 5748.059794 | BS85: 39789.58266 | BW85: 2029 | BX85: 7438640.07 | BY85: 83707.39672 | BZ85: 7522347.467 | CD85: 2029 | CE85: 0.9566328461 | CF85: 7196124.667 | CG85: 0.01125305109 | CK85: 2029 | CL85: 80077.24517 | CM85: 496445.0381 | CN85: -753.6458501 | CO85: 575768.6374 | CP85: 79323.59932 | CQ85: 496445.0381
C86: 2030 | D86: 5388098.715 | E86: 55890.65418 | F86: 5443989.369 | J86: 2030 | K86: 1.0153836 | L86: 5527737.524 | M86: 0.01037298259 | Q86: 2030 | R86: 56750.45365 | S86: 383022.825 | T86: -7.203198038e-10 | U86: 439773.2787 | V86: 56750.45365 | W86: 383022.825 | AA86: 2030 | AB86: 1388919.493 | AC86: 20857.08638 | AD86: 1409776.579 | AH86: 2030 | AI86: 0.768964 | AJ86: 1084067.438 | AK86: 0.0150167713 | AO86: 2030 | AP86: 16038.34857 | AQ86: 66430.91808 | AR86: -1.273292582e-10 | AS86: 82469.26665 | AT86: 16038.34857 | AU86: 66430.91808 | AY86: 2030 | AZ86: 745329.2593 | BA86: 6208.500299 | BB86: 751537.7596 | BF86: 2030 | BG86: 0.883651776 | BH86: 664097.676 | BI86: 0.008329875987 | BM86: 2030 | BN86: 5486.152316 | BO86: 39520.27886 | BP86: 1.728039933e-11 | BQ86: 45006.43118 | BR86: 5486.152316 | BS86: 39520.27886 | BW86: 2030 | BX86: 7522347.467 | BY86: 82956.24086 | BZ86: 7605303.708 | CD86: 2030 | CE86: 0.9565315311 | CF86: 7274712.8 | CG86: 0.01102797248 | CK86: 2030 | CL86: 79350.26009 | CM86: 486665.4914 | CN86: -762.1266653 | CO86: 565253.6248 | CP86: 78588.13342 | CQ86: 486665.4914
C87: 2031 | D87: 5443989.369 | E87: 56449.56072 | F87: 5500438.929 | J87: 2031 | K87: 1.0153836 | L87: 5585055.482 | M87: 0.01036915337 | Q87: 2031 | R87: 57317.95819 | S87: 400150.5509 | T87: 8.440110832e-10 | U87: 457468.509 | V87: 57317.95819 | W87: 400150.5509 | AA87: 2031 | AB87: 1409776.579 | AC87: 21065.65724 | AD87: 1430842.237 | AH87: 2031 | AI87: 0.768964 | AJ87: 1100266.17 | AK87: 0.01494255015 | AO87: 2031 | AP87: 16198.73206 | AQ87: 67211.87781 | AR87: -7.821654435e-11 | AS87: 83410.60986 | AT87: 16198.73206 | AU87: 67211.87781 | AY87: 2031 | AZ87: 751537.7596 | BA87: 6270.585302 | BB87: 757808.3449 | BF87: 2031 | BG87: 0.883651776 | BH87: 669638.6898 | BI87: 0.008343672986 | BM87: 2031 | BN87: 5541.013839 | BO87: 41000.20264 | BP87: -1.728039933e-11 | BQ87: 46541.21648 | BR87: 5541.013839 | BS87: 41000.20264 | BW87: 2031 | BX87: 7605303.708 | BY87: 83785.80327 | BZ87: 7689089.511 | CD87: 2031 | CE87: 0.9564302161 | CF87: 7354077.543 | CG87: 0.01101675968 | CK87: 2031 | CL87: 80135.27393 | CM87: 505401.2005 | CN87: -770.5313772 | CO87: 584765.943 | CP87: 79364.74255 | CQ87: 505401.2005
C88: 2032 | D88: 5500438.929 | E88: 57014.05633 | F88: 5557452.986 | J88: 2032 | K88: 1.0153836 | L88: 5642946.62 | M88: 0.01036536485 | Q88: 2032 | R88: 57891.13777 | S88: 431348.1547 | T88: -9.167706594e-10 | U88: 489239.2924 | V88: 57891.13777 | W88: 431348.1547 | AA88: 2032 | AB88: 1430842.237 | AC88: 21276.31382 | AD88: 1452118.55 | AH88: 2032 | AI88: 0.768964 | AJ88: 1116626.889 | AK88: 0.01486978317 | AO88: 2032 | AP88: 16360.71938 | AQ88: 76895.25386 | AR88: 1.400621841e-10 | AS88: 93255.97324 | AT88: 16360.71938 | AU88: 76895.25386 | AY88: 2032 | AZ88: 757808.3449 | BA88: 6333.291155 | BB88: 764141.636 | BF88: 2032 | BG88: 0.883651776 | BH88: 675235.1138 | BI88: 0.008357378482 | BM88: 2032 | BN88: 5596.423977 | BO88: 47582.88151 | BP88: -8.822098607e-11 | BQ88: 53179.30548 | BR88: 5596.423977 | BS88: 47582.88151 | BW88: 2032 | BX88: 7689089.511 | BY88: 84623.6613 | BZ88: 7773713.172 | CD88: 2032 | CE88: 0.9563289011 | CF88: 7434226.576 | CG88: 0.01100568035 | CK88: 2032 | CL88: 80928.05302 | CM88: 553670.8021 | CN88: -779.0201362 | CO88: 633819.835 | CP88: 80149.03289 | CQ88: 553670.8021
C89: 2033 | D89: 5557452.986 | E89: 57584.1969 | F89: 5615037.183 | J89: 2033 | K89: 1.0153836 | L89: 5701416.669 | M89: 0.01036161656 | Q89: 2033 | R89: 58470.04915 | S89: 445377.5474 | T89: 0 | U89: 503847.5965 | V89: 58470.04915 | W89: 445377.5474 | AA89: 2033 | AB89: 1452118.55 | AC89: 21489.07695 | AD89: 1473607.627 | AH89: 2033 | AI89: 0.768964 | AJ89: 1133151.216 | AK89: 0.01479843154 | AO89: 2033 | AP89: 16524.32657 | AQ89: 86055.16267 | AR89: -6.912159733e-11 | AS89: 102579.4892 | AT89: 16524.32657 | AU89: 86055.16267 | AY89: 2033 | AZ89: 764141.636 | BA89: 6396.624067 | BB89: 770538.2601 | BF89: 2033 | BG89: 0.883651776 | BH89: 680887.502 | BI89: 0.008370992713 | BM89: 2033 | BN89: 5652.388217 | BO89: 59435.27487 | BP89: 8.913048077e-11 | BQ89: 65087.66309 | BR89: 5652.388217 | BS89: 59435.27487 | BW89: 2033 | BX89: 7773713.172 | BY89: 85469.89792 | BZ89: 7859183.07 | CD89: 2033 | CE89: 0.9562275861 | CF89: 7515167.656 | CG89: 0.01099473264 | CK89: 2033 | CL89: 81728.67417 | CM89: 591231.5743 | CN89: -787.5937828 | CO89: 672172.6547 | CP89: 80941.08039 | CQ89: 591231.5743
C90: 2034 | D90: 5615037.183 | E90: 58160.03886 | F90: 5673197.222 | J90: 2034 | K90: =INDEX(SATURATIONS_TABLE,MATCH($B$2,APPLIANCES,0),MATCH(B$6,SATURATIONS_HOUSING_TYPE,0)+MATCH(J90,SATURATIONS_YEARS,0)-1) -> 1.0153836 | L90: 5760471.418 | M90: 0.01035790806 | Q90: 2034 | R90: 59054.74964 | S90: 408496.5015 | T90: 7.203198038e-10 | U90: 467551.2511 | V90: 59054.74964 | W90: 408496.5015 | AA90: 2034 | AB90: 1473607.627 | AC90: 21703.96772 | AD90: 1495311.595 | AH90: 2034 | AI90: =INDEX(SATURATIONS_TABLE,MATCH($B$2,APPLIANCES,0),MATCH(Z$6,SATURATIONS_HOUSING_TYPE,0)+MATCH(AH90,SATURATIONS_YEARS,0)-1) -> 0.768964 | AJ90: 1149840.785 | AK90: 0.01472845778 | AO90: 2034 | AP90: 16689.56984 | AQ90: 82024.0768 | AR90: -1.091393642e-10 | AS90: 98713.64664 | AT90: 16689.56984 | AU90: 82024.0768 | AY90: 2034 | AZ90: 770538.2601 | BA90: 6460.590307 | BB90: 776998.8504 | BF90: 2034 | BG90: =INDEX(SATURATIONS_TABLE,MATCH($B$2,APPLIANCES,0),MATCH(AX$6,SATURATIONS_HOUSING_TYPE,0)+MATCH(BF90,SATURATIONS_YEARS,0)-1) -> 0.883651776 | BH90: 686596.4141 | BI90: 0.008384515918 | BM90: 2034 | BN90: 5708.912099 | BO90: 58370.99597 | BP90: -1.191438059e-10 | BQ90: 64079.90807 | BR90: 5708.912099 | BS90: 58370.99597 | BW90: 2034 | BX90: 7859183.07 | BY90: 86324.59689 | BZ90: 7945507.667 | CD90: 2034 | CE90: =INDEX(SATURATIONS_TABLE,MATCH($B$2,APPLIANCES,0),MATCH(BV$6,SATURATIONS_HOUSING_TYPE,0)+MATCH(CD90,SATURATIONS_YEARS,0)-1) -> 0.9561262711 | CF90: 7596908.618 | CG90: 0.01098391476 | CK90: 2034 | CL90: 82537.21493 | CM90: 550148.324 | CN90: -796.2531659 | CO90: 631889.2858 | CP90: 81740.96177 | CQ90: 550148.324

Sheet Dishwashers
B2: DISHWASHERS | Z2: =$B$2 -> DISHWASHERS | AX2: =$B$2 -> DISHWASHERS | BV2: =$B$2 -> DISHWASHERS
B4: NAVIGATION | Z4: NAVIGATION | AX4: NAVIGATION | BV4: NAVIGATION
S5: Lifetime | U5: Calibration | AQ5: Lifetime | AS5: Calibration | BO5: Lifetime | BQ5: Calibration | CM5: Lifetime | CO5: Calibration
B6: SINGLE FAMILY | S6: =ROUND(INDEX(LIFETIMES_TABLE,MATCH(B2,APPLIANCES,0),MATCH(B6,LIFETIMES_HOUSING_TYPE,0)),0) -> 15 | U6: =ABS(SUM(OFFSET(U37,-1*S6,0,S6,1))-L36) -> 0 | Z6: MULTI-FAMILY | AQ6: =ROUND(INDEX(LIFETIMES_TABLE,MATCH(Z2,APPLIANCES,0),MATCH(Z6,LIFETIMES_HOUSING_TYPE,0)),0) -> 15 | AS6: =ABS(SUM(OFFSET(AS37,-1*AQ6,0,AQ6,1))-AJ36) -> 1.164153218e-10 | AX6: MANUFACTURED HOMES | BO6: =ROUND(INDEX(LIFETIMES_TABLE,MATCH(AX2,APPLIANCES,0),MATCH(AX6,LIFETIMES_HOUSING_TYPE,0)),0) -> 15 | BQ6: =ABS(SUM(OFFSET(BQ37,-1*BO6,0,BO6,1))-BH36) -> 1.164153218e-10 | BV6: TOTAL HOMES | CM6: =ROUND(INDEX(LIFETIMES_TABLE,MATCH(BV2,APPLIANCES,0),MATCH(BV6,LIFETIMES_HOUSING_TYPE,0)),0) -> 15 | CO6: =ABS(SUM(OFFSET(CO37,-1*CM6,0,CM6,1))-CF36) -> 0
C9: HOUSING | J9: STOCK | Q9: SHIPMENTS | AA9: HOUSING | AH9: STOCK | AO9: SHIPMENTS | AY9: HOUSING | BF9: STOCK | BM9: SHIPMENTS | BW9: HOUSING | CD9: STOCK | CK9: SHIPMENTS
D10: Beginning Year Stock | E10: New Additions | F10: End of Year Stock | K10: Stock Saturation | L10: Stock Units | M10: Stock Growth Rate | R10: New Construction Shipments | S10: Retirements | T10: Net Change | U10: Total Shipments | V10: Net New Shipments | W10: Net Replacements | AB10: Beginning Year Stock | AC10: New Additions | AD10: End of Year Stock | AI10: Stock Saturation | AJ10: Stock Units | AK10: Stock Growth Rate | AP10: New Construction Shipments | AQ10: Retirements | AR10: Net Change | AS10: Total Shipments | AT10: Net New Shipments | AU10: Net Replacements | AZ10: Beginning Year Stock | BA10: New Additions | BB10: End of Year Stock | BG10: Stock Saturation | BH10: Stock Units | BI10: Stock Growth Rate | BN10: New Construction Shipments | BO10: Retirements | BP10: Net Change | BQ10: Total Shipments | BR10: Net New Shipments | BS10: Net Replacements | BX10: Beginning Year Stock | BY10: New Additions | BZ10: End of Year Stock | CE10: Stock Saturation | CF10: Stock Units | CG10: Stock Growth Rate | CL10: New Construction Shipments | CM10: Retirements | CN10: Net Change | CO10: Total Shipments | CP10: Net New Shipments | CQ10: Net Replacements
C11: 1955 | J11: 1955 | Q11: 1955 | T11: =IF($Q$37-$Q11=$S$6,"CALIBRATE"," ") ->  | U11: =IF(Q$37-Q11=S$6,100000, IF(Q$37-Q11>S$6,0, IF(Q$37-Q11<S$6,U10))) -> 0 | AA11: 1955 | AH11: 1955 | AO11: 1955 | AR11: =IF($Q$37-$Q11=$S$6,"CALIBRATE"," ") ->  | AS11: =IF(AO$37-AO11=AQ$6,100000, IF(AO$37-AO11>AQ$6,0, IF(AO$37-AO11<AQ$6,AS10))) -> 0 | AY11: 1955 | BF11: 1955 | BM11: 1955 | BP11: =IF($Q$37-$Q11=$S$6,"CALIBRATE"," ") ->  | BQ11: =IF(BM$37-BM11=BO$6,100000, IF(BM$37-BM11>BO$6,0, IF(BM$37-BM11<BO$6,BQ10))) -> 0 | BW11: 1955 | CD11: 1955 | CK11: 1955 | CN11: =IF($Q$37-$Q11=$S$6,"CALIBRATE"," ") ->  | CO11: =IF(CK$37-CK11=CM$6,100000, IF(CK$37-CK11>CM$6,0, IF(CK$37-CK11<CM$6,CO10))) -> 0
C12: 1956 | J12: 1956 | Q12: 1956 | U12: 0 | AA12: 1956 | AH12: 1956 | AO12: 1956 | AS12: 0 | AY12: 1956 | BF12: 1956 | BM12: 1956 | BQ12: 0 | BW12: 1956 | CD12: 1956 | CK12: 1956 | CO12: 0
C13: 1957 | J13: 1957 | Q13: 1957 | U13: 0 | AA13: 1957 | AH13: 1957 | AO13: 1957 | AS13: 0 | AY13: 1957 | BF13: 1957 | BM13: 1957 | BQ13: 0 | BW13: 1957 | CD13: 1957 | CK13: 1957 | CO13: 0
C14: 1958 | J14: 1958 | Q14: 1958 | U14: 0 | AA14: 1958 | AH14: 1958 | AO14: 1958 | AS14: 0 | AY14: 1958 | BF14: 1958 | BM14: 1958 | BQ14: 0 | BW14: 1958 | CD14: 1958 | CK14: 1958 | CO14: 0
C15: 1959 | J15: 1959 | Q15: 1959 | U15: 0 | AA15: 1959 | AH15: 1959 | AO15: 1959 | AS15: 0 | AY15: 1959 | BF15: 1959 | BM15: 1959 | BQ15: 0 | BW15: 1959 | CD15: 1959 | CK15: 1959 | CO15: 0
C16: 1960 | J16: 1960 | Q16: 1960 | U16: 0 | AA16: 1960 | AH16: 1960 | AO16: 1960 | AS16: 0 | AY16: 1960 | BF16: 1960 | BM16: 1960 | BQ16: 0 | BW16: 1960 | CD16: 1960 | CK16: 1960 | CO16: 0
C17: 1961 | J17: 1961 | Q17: 1961 | U17: 0 | AA17: 1961 | AH17: 1961 | AO17: 1961 | AS17: 0 | AY17: 1961 | BF17: 1961 | BM17: 1961 | BQ17: 0 | BW17: 1961 | CD17: 1961 | CK17: 1961 | CO17: 0
C18: 1962 | J18: 1962 | Q18: 1962 | U18: 0 | AA18: 1962 | AH18: 1962 | AO18: 1962 | AS18: 0 | AY18: 1962 | BF18: 1962 | BM18: 1962 | BQ18: 0 | BW18: 1962 | CD18: 1962 | CK18: 1962 | CO18: 0
C19: 1963 | J19: 1963 | Q19: 1963 | U19: 0 | AA19: 1963 | AH19: 1963 | AO19: 1963 | AS19: 0 | AY19: 1963 | BF19: 1963 | BM19: 1963 | BQ19: 0 | BW19: 1963 | CD19: 1963 | CK19: 1963 | CO19: 0
C20: 1964 | J20: 1964 | Q20: 1964 | U20: 0 | AA20: 1964 | AH20: 1964 | AO20: 1964 | AS20: 0 | AY20: 1964 | BF20: 1964 | BM20: 1964 | BQ20: 0 | BW20: 1964 | CD20: 1964 | CK20: 1964 | CO20: 0
C21: 1965 | J21: 1965 | Q21: 1965 | U21: 0 | AA21: 1965 | AH21: 1965 | AO21: 1965 | AS21: 0 | AY21: 1965 | BF21: 1965 | BM21: 1965 | BQ21: 0 | BW21: 1965 | CD21: 1965 | CK21: 1965 | CO21: 0
C22: 1966 | J22: 1966 | Q22: 1966 | T22: CALIBRATE | U22: 120336.0152 | AA22: 1966 | AH22: 1966 | AO22: 1966 | AR22: CALIBRATE | AS22: 20556.40835 | AY22: 1966 | BF22: 1966 | BM22: 1966 | BP22: CALIBRATE | BQ22: 10973.65276 | BW22: 1966 | CD22: 1966 | CK22: 1966 | CN22: CALIBRATE | CO22: 151137.3557
C23: 1967 | J23: 1967 | Q23: 1967 | U23: 120336.0152 | AA23: 1967 | AH23: 1967 | AO23: 1967 | AS23: 20556.40835 | AY23: 1967 | BF23: 1967 | BM23: 1967 | BQ23: 10973.65276 | BW23: 1967 | CD23: 1967 | CK23: 1967 | CO23: 151137.3557
C24: 1968 | J24: 1968 | Q24: 1968 | U24: 120336.0152 | AA24: 1968 | AH24: 1968 | AO24: 1968 | AS24: 20556.40835 | AY24: 1968 | BF24: 1968 | BM24: 1968 | BQ24: 10973.65276 | BW24: 1968 | CD24: 1968 | CK24: 1968 | CO24: 151137.3557
C25: 1969 | J25: 1969 | Q25: 1969 | U25: 120336.0152 | AA25: 1969 | AH25: 1969 | AO25: 1969 | AS25: 20556.40835 | AY25: 1969 | BF25: 1969 | BM25: 1969 | BQ25: 10973.65276 | BW25: 1969 | CD25: 1969 | CK25: 1969 | CO25: 151137.3557
C26: 1970 | J26: 1970 | Q26: 1970 | U26: 120336.0152 | AA26: 1970 | AH26: 1970 | AO26: 1970 | AS26: 20556.40835 | AY26: 1970 | BF26: 1970 | BM26: 1970 | BQ26: 10973.65276 | BW26: 1970 | CD26: 1970 | CK26: 1970 | CO26: 151137.3557
C27: 1971 | J27: 1971 | Q27: 1971 | U27: 120336.0152 | AA27: 1971 | AH27: 1971 | AO27: 1971 | AS27: 20556.40835 | AY27: 1971 | BF27: 1971 | BM27: 1971 | BQ27: 10973.65276 | BW27: 1971 | CD27: 1971 | CK27: 1971 | CO27: 151137.3557
C28: 1972 | J28: 1972 | Q28: 1972 | U28: 120336.0152 | AA28: 1972 | AH28: 1972 | AO28: 1972 | AS28: 20556.40835 | AY28: 1972 | BF28: 1972 | BM28: 1972 | BQ28: 10973.65276 | BW28: 1972 | CD28: 1972 | CK28: 1972 | CO28: 151137.3557
C29: 1973 | J29: 1973 | Q29: 1973 | U29: 120336.0152 | AA29: 1973 | AH29: 1973 | AO29: 1973 | AS29: 20556.40835 | AY29: 1973 | BF29: 1973 | BM29: 1973 | BQ29: 10973.65276 | BW29: 1973 | CD29: 1973 | CK29: 1973 | CO29: 151137.3557
C30: 1974 | J30: 1974 | Q30: 1974 | U30: 120336.0152 | AA30: 1974 | AH30: 1974 | AO30: 1974 | AS30: 20556.40835 | AY30: 1974 | BF30: 1974 | BM30: 1974 | BQ30: 10973.65276 | BW30: 1974 | CD30: 1974 | CK30: 1974 | CO30: 151137.3557
C31: 1975 | J31: 1975 | Q31: 1975 | U31: 120336.0152 | AA31: 1975 | AH31: 1975 | AO31: 1975 | AS31: 20556.40835 | AY31: 1975 | BF31: 1975 | BM31: 1975 | BQ31: 10973.65276 | BW31: 1975 | CD31: 1975 | CK31: 1975 | CO31: 151137.3557
C32: 1976 | J32: 1976 | Q32: 1976 | U32: 120336.0152 | AA32: 1976 | AH32: 1976 | AO32: 1976 | AS32: 20556.40835 | AY32: 1976 | BF32: 1976 | BM32: 1976 | BQ32: 10973.65276 | BW32: 1976 | CD32: 1976 | CK32: 1976 | CO32: 151137.3557
C33: 1977 | J33: 1977 | Q33: 1977 | U33: 120336.0152 | AA33: 1977 | AH33: 1977 | AO33: 1977 | AS33: 20556.40835 | AY33: 1977 | BF33: 1977 | BM33: 1977 | BQ33: 10973.65276 | BW33: 1977 | CD33: 1977 | CK33: 1977 | CO33: 151137.3557
C34: 1978 | J34: 1978 | Q34: 1978 | U34: 120336.0152 | AA34: 1978 | AH34: 1978 | AO34: 1978 | AS34: 20556.40835 | AY34: 1978 | BF34: 1978 | BM34: 1978 | BQ34: 10973.65276 | BW34: 1978 | CD34: 1978 | CK34: 1978 | CO34: 151137.3557
C35: 1979 | J35: 1979 | Q35: 1979 | U35: 120336.0152 | AA35: 1979 | AH35: 1979 | AO35: 1979 | AS35: 20556.40835 | AY35: 1979 | BF35: 1979 | BM35: 1979 | BQ35: 10973.65276 | BW35: 1979 | CD35: 1979 | CK35: 1979 | CO35: 151137.3557
C36: 1980 | D36: =INDEX(HOUSING_STOCK,MATCH(C36,HOUSING_STOCK_YEARS,0)+2,MATCH(B$6,HOUSING_STOCK_BLDG,0)+MATCH(D$10,HOUSING_STOCK_CATEGORY,0)-1) -> 0 | E36: =INDEX(HOUSING_STOCK,MATCH(C36,HOUSING_STOCK_YEARS,0)+2,MATCH(B$6,HOUSING_STOCK_BLDG,0)+MATCH(E$10,HOUSING_STOCK_CATEGORY,0)-1) -> 0 | F36: =INDEX(HOUSING_STOCK,MATCH(C36,HOUSING_STOCK_YEARS,0)+2,MATCH(B$6,HOUSING_STOCK_BLDG,0)+MATCH(F$10,HOUSING_STOCK_CATEGORY,0)-1) -> 2612400 | J36: 1980 | K36: =K$48 -> 0.690950937 | L36: =F36*K36 -> 1805040.228 | Q36: 1980 | U36: 120336.0152 | AA36: 1980 | AB36: =INDEX(HOUSING_STOCK,MATCH(AA36,HOUSING_STOCK_YEARS,0)+2,MATCH(Z$6,HOUSING_STOCK_BLDG,0)+MATCH(AB$10,HOUSING_STOCK_CATEGORY,0)-1) -> 0 | AC36: =INDEX(HOUSING_STOCK,MATCH(AA36,HOUSING_STOCK_YEARS,0)+2,MATCH(Z$6,HOUSING_STOCK_BLDG,0)+MATCH(AC$10,HOUSING_STOCK_CATEGORY,0)-1) -> 0 | AD36: =INDEX(HOUSING_STOCK,MATCH(AA36,HOUSING_STOCK_YEARS,0)+2,MATCH(Z$6,HOUSING_STOCK_BLDG,0)+MATCH(AD$10,HOUSING_STOCK_CATEGORY,0)-1) -> 509198 | AH36: 1980 | AI36: =AI$48 -> 0.6055525066 | AJ36: =AD36*AI36 -> 308346.1252 | AO36: 1980 | AS36: 20556.40835 | AY36: 1980 | AZ36: =INDEX(HOUSING_STOCK,MATCH(AY36,HOUSING_STOCK_YEARS,0)+2,MATCH(AX$6,HOUSING_STOCK_BLDG,0)+MATCH(AZ$10,HOUSING_STOCK_CATEGORY,0)-1) -> 0 | BA36: =INDEX(HOUSING_STOCK,MATCH(AY36,HOUSING_STOCK_YEARS,0)+2,MATCH(AX$6,HOUSING_STOCK_BLDG,0)+MATCH(BA$10,HOUSING_STOCK_CATEGORY,0)-1) -> 0 | BB36: =INDEX(HOUSING_STOCK,MATCH(AY36,HOUSING_STOCK_YEARS,0)+2,MATCH(AX$6,HOUSING_STOCK_BLDG,0)+MATCH(BB$10,HOUSING_STOCK_CATEGORY,0)-1) -> 275356 | BF36: 1980 | BG36: =BG$48 -> 0.5977890129 | BH36: =BB36*BG36 -> 164604.7914 | BM36: 1980 | BQ36: 10973.65276 | BW36: 1980 | BX36: =INDEX(HOUSING_STOCK,MATCH(BW36,HOUSING_STOCK_YEARS,0)+2,MATCH(BV$6,HOUSING_STOCK_BLDG,0)+MATCH(BX$10,HOUSING_STOCK_CATEGORY,0)-1) -> 0 | BY36: =INDEX(HOUSING_STOCK,MATCH(BW36,HOUSING_STOCK_YEARS,0)+2,MATCH(BV$6,HOUSING_STOCK_BLDG,0)+MATCH(BY$10,HOUSING_STOCK_CATEGORY,0)-1) -> 0 | BZ36: =INDEX(HOUSING_STOCK,MATCH(BW36,HOUSING_STOCK_YEARS,0)+2,MATCH(BV$6,HOUSING_STOCK_BLDG,0)+MATCH(BZ$10,HOUSING_STOCK_CATEGORY,0)-1) -> 3396954 | CD36: 1980 | CE36: =CE$48 -> 0.667380346 | CF36: =BZ36*CE36 -> 2267060.336 | CK36: 1980 | CO36: 151137.3557
C37: 1981 | D37: 2612400 | E37: 32998.3 | F37: 2645398.3 | J37: 1981 | K37: 0.690950937 | L37: =F37*K37 -> 1827840.434 | M37: =F37/F36-1 -> 0.01263141173 | Q37: 1981 | R37: =E37*K37 -> 22800.2063 | S37: =OFFSET(U37,-S$6,0) -> 120336.0152 | T37: =L37-L36-R37 -> -2.874003258e-10 | U37: =SUM(R37:T37) -> 143136.2215 | V37: =IF(SUM(R37,T37)>0,SUM(R37,T37),0) -> 22800.2063 | W37: =IF(SUM(R37,T37)>0,S37,SUM(R37:T37)) -> 120336.0152 | AA37: 1981 | AB37: 509198 | AC37: 10694.7 | AD37: 519892.7 | AH37: 1981 | AI37: 0.6055525066 | AJ37: =AD37*AI37 -> 314822.3276 | AK37: =AD37/AD36-1 -> 0.02100302829 | AO37: 1981 | AP37: =AC37*AI37 -> 6476.202392 | AQ37: =OFFSET(AS37,-AQ$6,0) -> 20556.40835 | AR37: =AJ37-AJ36-AP37 -> 4.092726158e-11 | AS37: =SUM(AP37:AR37) -> 27032.61074 | AT37: =IF(SUM(AP37,AR37)>0,SUM(AP37,AR37),0) -> 6476.202392 | AU37: =IF(SUM(AP37,AR37)>0,AQ37,SUM(AP37:AR37)) -> 20556.40835 | AY37: 1981 | AZ37: 275356 | BA37: 10843 | BB37: 286199 | BF37: 1981 | BG37: 0.5977890129 | BH37: =BB37*BG37 -> 171086.6177 | BI37: =BB37/BB36-1 -> 0.03937811415 | BM37: 1981 | BN37: =BA37*BG37 -> 6481.826267 | BO37: =OFFSET(BQ37,-BO$6,0) -> 10973.65276 | BP37: =BH37-BH36-BN37 -> 0 | BQ37: =SUM(BN37:BP37) -> 17455.47903 | BR37: =IF(SUM(BN37,BP37)>0,SUM(BN37,BP37),0) -> 6481.826267 | BS37: =IF(SUM(BN37,BP37)>0,BO37,SUM(BN37:BP37)) -> 10973.65276 | BW37: 1981 | BX37: 3396954 | BY37: 54536 | BZ37: 3451490 | CD37: 1981 | CE37: 0.667380346 | CF37: =BZ37*CE37 -> 2303456.59 | CG37: =BZ37/BZ36-1 -> 0.01605438284 | CK37: 1981 | CL37: =BY37*CE37 -> 36396.25455 | CM37: =OFFSET(CO37,-CM$6,0) -> 151137.3557 | CN37: =CF37-CF36-CL37 -> 1.018634066e-10 | CO37: =SUM(CL37:CN37) -> 187533.6103 | CP37: =IF(SUM(CL37,CN37)>0,SUM(CL37,CN37),0) -> 36396.25455 | CQ37: =IF(SUM(CL37,CN37)>0,CM37,SUM(CL37:CN37)) -> 151137.3557
C38: 1982 | D38: 2645398.3 | E38: 22690.6 | F38: 2668088.9 | J38: 1982 | K38: 0.690950937 | L38: =F38*K38 -> 1843518.525 | M38: =F38/F37-1 -> 0.008577385114 | Q38: 1982 | R38: =E38*K38 -> 15678.09133 | S38: =OFFSET(U38,-S$6,0) -> 120336.0152 | T38: =L38-L37-R38 -> 1.764419721e-10 | U38: =SUM(R38:T38) -> 136014.1065 | V38: =IF(SUM(R38,T38)>0,SUM(R38,T38),0) -> 15678.09133 | W38: =IF(SUM(R38,T38)>0,S38,SUM(R38:T38)) -> 120336.0152 | AA38: 1982 | AB38: 519892.7 | AC38: 7612 | AD38: 527504.7 | AH38: 1982 | AI38: 0.6055525066 | AJ38: =AD38*AI38 -> 319431.7933 | AK38: =AD38/AD37-1 -> 0.01464148275 | AO38: 1982 | AP38: =AC38*AI38 -> 4609.46568 | AQ38: =OFFSET(AS38,-AQ$6,0) -> 20556.40835 | AR38: =AJ38-AJ37-AP38 -> -5.09317033e-11 | AS38: =SUM(AP38:AR38) -> 25165.87403 | AT38: =IF(SUM(AP38,AR38)>0,SUM(AP38,AR38),0) -> 4609.46568 | AU38: =IF(SUM(AP38,AR38)>0,AQ38,SUM(AP38:AR38)) -> 20556.40835 | AY38: 1982 | AZ38: 286199 | BA38: 8758 | BB38: 294957 | BF38: 1982 | BG38: 0.5977890129 | BH38: =BB38*BG38 -> 176322.0539 | BI38: =BB38/BB37-1 -> 0.03060108526 | BM38: 1982 | BN38: =BA38*BG38 -> 5235.436175 | BO38: =OFFSET(BQ38,-BO$6,0) -> 10973.65276 | BP38: =BH38-BH37-BN38 -> 1.000444172e-11 | BQ38: =SUM(BN38:BP38) -> 16209.08894 | BR38: =IF(SUM(BN38,BP38)>0,SUM(BN38,BP38),0) -> 5235.436175 | BS38: =IF(SUM(BN38,BP38)>0,BO38,SUM(BN38:BP38)) -> 10973.65276 | BW38: 1982 | BX38: 3451490 | BY38: 39060.6 | BZ38: 3490550.6 | CD38: 1982 | CE38: 0.667380346 | CF38: =BZ38*CE38 -> 2329524.867 | CG38: =BZ38/BZ37-1 -> 0.0113170254 | CK38: 1982 | CL38: =BY38*CE38 -> 26068.27674 | CM38: =OFFSET(CO38,-CM$6,0) -> 151137.3557 | CN38: =CF38-CF37-CL38 -> 0 | CO38: =SUM(CL38:CN38) -> 177205.6325 | CP38: =IF(SUM(CL38,CN38)>0,SUM(CL38,CN38),0) -> 26068.27674 | CQ38: =IF(SUM(CL38,CN38)>0,CM38,SUM(CL38:CN38)) -> 151137.3557
C39: 1983 | D39: 2668088.9 | E39: 35193.1 | F39: 2703282 | J39: 1983 | K39: 0.690950937 | L39: 1867835.231 | M39: 0.01319037758 | Q39: 1983 | R39: 24316.70542 | S39: 120336.0152 | T39: 6.548361853e-11 | U39: 144652.7206 | V39: 24316.70542 | W39: 120336.0152 | AA39: 1983 | AB39: 527504.7 | AC39: 8978.5 | AD39: 536483.2 | AH39: 1983 | AI39: 0.6055525066 | AJ39: 324868.7465 | AK39: 0.01702070143 | AO39: 1983 | AP39: 5436.95318 | AQ39: 20556.40835 | AR39: 1.637090463e-11 | AS39: 25993.36153 | AT39: 5436.95318 | AU39: 20556.40835 | AY39: 1983 | AZ39: 294957 | BA39: 12114 | BB39: 307071 | BF39: 1983 | BG39: 0.5977890129 | BH39: 183563.67 | BI39: 0.04107039331 | BM39: 1983 | BN39: 7241.616102 | BO39: 10973.65276 | BP39: 0 | BQ39: 18215.26886 | BR39: 7241.616102 | BS39: 10973.65276 | BW39: 1983 | BX39: 3490550.6 | BY39: 56285.6 | BZ39: 3546836.2 | CD39: 1983 | CE39: 0.667380346 | CF39: 2367088.77 | CG39: 0.0161251351 | CK39: 1983 | CL39: 37563.9032 | CM39: 151137.3557 | CN39: -1.527951099e-10 | CO39: 188701.2589 | CP39: 37563.9032 | CQ39: 151137.3557
C40: 1984 | D40: 2703282 | E40: 32702.6 | F40: 2735984.6 | J40: 1984 | K40: 0.690950937 | L40: 1890431.123 | M40: 0.01209736905 | Q40: 1984 | R40: 22595.89211 | S40: 120336.0152 | T40: 0 | U40: 142931.9073 | V40: 22595.89211 | W40: 120336.0152 | AA40: 1984 | AB40: 536483.2 | AC40: 13702.5 | AD40: 550185.7 | AH40: 1984 | AI40: 0.6055525066 | AJ40: 333166.3297 | AK40: 0.02554134034 | AO40: 1984 | AP40: 8297.583221 | AQ40: 20556.40835 | AR40: 0 | AS40: 28853.99157 | AT40: 8297.583221 | AU40: 20556.40835 | AY40: 1984 | AZ40: 307071 | BA40: 11892 | BB40: 318963 | BF40: 1984 | BG40: 0.5977890129 | BH40: 190672.5769 | BI40: 0.0387271999 | BM40: 1984 | BN40: 7108.906941 | BO40: 10973.65276 | BP40: 0 | BQ40: 18082.5597 | BR40: 7108.906941 | BS40: 10973.65276 | BW40: 1984 | BX40: 3546836.2 | BY40: 58297.1 | BZ40: 3605133.3 | CD40: 1984 | CE40: 0.667380346 | CF40: 2405995.109 | CG40: 0.01643636658 | CK40: 1984 | CL40: 38906.33877 | CM40: 151137.3557 | CN40: 0 | CO40: 190043.6945 | CP40: 38906.33877 | CQ40: 151137.3557
C41: 1985 | D41: 2735984.6 | E41: 31199.2 | F41: 2767183.8 | J41: 1985 | K41: 0.690950937 | L41: 1911988.239 | M41: 0.01140328056 | Q41: 1985 | R41: 21557.11647 | S41: 120336.0152 | T41: 5.456968211e-11 | U41: 141893.1317 | V41: 21557.11647 | W41: 120336.0152 | AA41: 1985 | AB41: 550185.7 | AC41: 21076 | AD41: 571261.7 | AH41: 1985 | AI41: 0.6055525066 | AJ41: 345928.9543 | AK41: 0.03830706614 | AO41: 1985 | AP41: 12762.62463 | AQ41: 20556.40835 | AR41: 0 | AS41: 33319.03298 | AT41: 12762.62463 | AU41: 20556.40835 | AY41: 1985 | AZ41: 318963 | BA41: 10090 | BB41: 329053 | BF41: 1985 | BG41: 0.5977890129 | BH41: 196704.2681 | BI41: 0.03163376316 | BM41: 1985 | BN41: 6031.69114 | BO41: 10973.65276 | BP41: -1.091393642e-11 | BQ41: 17005.3439 | BR41: 6031.69114 | BS41: 10973.65276 | BW41: 1985 | BX41: 3605133.3 | BY41: 62365.2 | BZ41: 3667498.5 | CD41: 1985 | CE41: 0.667380346 | CF41: 2447616.418 | CG41: 0.01729899973 | CK41: 1985 | CL41: 41621.30875 | CM41: 151137.3557 | CN41: 5.09317033e-10 | CO41: 192758.6645 | CP41: 41621.30875 | CQ41: 151137.3557
C42: 1986 | D42: 2767183.8 | E42: 33696.6 | F42: 2800880.4 | J42: 1986 | K42: 0.690950937 | L42: 1935270.937 | M42: 0.01217721786 | Q42: 1986 | R42: 23282.69734 | S42: 120336.0152 | T42: 1.527951099e-10 | U42: 143618.7125 | V42: 23282.69734 | W42: 120336.0152 | AA42: 1986 | AB42: 571261.7 | AC42: 18723.3 | AD42: 589985 | AH42: 1986 | AI42: 0.6055525066 | AJ42: 357266.8956 | AK42: 0.03277534622 | AO42: 1986 | AP42: 11337.94125 | AQ42: 20556.40835 | AR42: 4.183675628e-11 | AS42: 31894.3496 | AT42: 11337.94125 | AU42: 20556.40835 | AY42: 1986 | AZ42: 329053 | BA42: 8352 | BB42: 337405 | BF42: 1986 | BG42: 0.5977890129 | BH42: 201697.0019 | BI42: 0.02538192935 | BM42: 1986 | BN42: 4992.733836 | BO42: 10973.65276 | BP42: 0 | BQ42: 15966.3866 | BR42: 4992.733836 | BS42: 10973.65276 | BW42: 1986 | BX42: 3667498.5 | BY42: 60771.9 | BZ42: 3728270.4 | CD42: 1986 | CE42: 0.667380346 | CF42: 2488174.39 | CG42: 0.01657039533 | CK42: 1986 | CL42: 40557.97165 | CM42: 151137.3557 | CN42: -1.673470251e-10 | CO42: 191695.3274 | CP42: 40557.97165 | CQ42: 151137.3557
C43: 1987 | D43: 2800880.4 | E43: 33896.5 | F43: 2834776.9 | J43: 1987 | K43: 0.690950937 | L43: 1958691.755 | M43: 0.01210208762 | Q43: 1987 | R43: 23420.81844 | S43: 120336.0152 | T43: -6.912159733e-11 | U43: 143756.8336 | V43: 23420.81844 | W43: 120336.0152 | AA43: 1987 | AB43: 589985 | AC43: 20896.9 | AD43: 610881.9 | AH43: 1987 | AI43: 0.6055525066 | AJ43: 369921.0658 | AK43: 0.03541937507 | AO43: 1987 | AP43: 12654.17017 | AQ43: 20556.40835 | AR43: 0 | AS43: 33210.57852 | AT43: 12654.17017 | AU43: 20556.40835 | AY43: 1987 | AZ43: 337405 | BA43: 7902 | BB43: 345307 | BF43: 1987 | BG43: 0.5977890129 | BH43: 206420.7307 | BI43: 0.02341992561 | BM43: 1987 | BN43: 4723.72878 | BO43: 10973.65276 | BP43: 1.909938874e-11 | BQ43: 15697.38154 | BR43: 4723.72878 | BS43: 10973.65276 | BW43: 1987 | BX43: 3728270.4 | BY43: 62695.4 | BZ43: 3790965.8 | CD43: 1987 | CE43: 0.667380346 | CF43: 2530016.067 | CG43: 0.01681621591 | CK43: 1987 | CL43: 41841.67774 | CM43: 151137.3557 | CN43: -1.164153218e-10 | CO43: 192979.0335 | CP43: 41841.67774 | CQ43: 151137.3557
C44: 1988 | D44: 2834776.9 | E44: 37379.9 | F44: 2872156.8 | J44: 1988 | K44: 0.690950937 | L44: 1984519.432 | M44: 0.0131861876 | Q44: 1988 | R44: 25827.67693 | S44: 120336.0152 | T44: 0 | U44: 146163.6921 | V44: 25827.67693 | W44: 120336.0152 | AA44: 1988 | AB44: 610881.9 | AC44: 25999.7 | AD44: 636881.6 | AH44: 1988 | AI44: 0.6055525066 | AJ44: 385665.2493 | AK44: 0.04256092708 | AO44: 1988 | AP44: 15744.18351 | AQ44: 20556.40835 | AR44: -3.274180926e-11 | AS44: 36300.59185 | AT44: 15744.18351 | AU44: 20556.40835 | AY44: 1988 | AZ44: 345307 | BA44: 9049 | BB44: 354356 | BF44: 1988 | BG44: 0.5977890129 | BH44: 211830.1235 | BI44: 0.02620566626 | BM44: 1988 | BN44: 5409.392778 | BO44: 10973.65276 | BP44: 0 | BQ44: 16383.04554 | BR44: 5409.392778 | BS44: 10973.65276 | BW44: 1988 | BX44: 3790965.8 | BY44: 72428.6 | BZ44: 3863394.4 | CD44: 1988 | CE44: 0.667380346 | CF44: 2578353.491 | CG44: 0.0191055799 | CK44: 1988 | CL44: 48337.42413 | CM44: 151137.3557 | CN44: 0 | CO44: 199474.7799 | CP44: 48337.42413 | CQ44: 151137.3557
C45: 1989 | D45: 2872156.8 | E45: 45933.1 | F45: 2918089.9 | J45: 1989 | K45: 0.690950937 | L45: 2016256.951 | M45: 0.01599254609 | Q45: 1989 | R45: 31737.51848 | S45: 120336.0152 | T45: 0 | U45: 152073.5337 | V45: 31737.51848 | W45: 120336.0152 | AA45: 1989 | AB45: 636881.6 | AC45: 31121.1 | AD45: 668002.7 | AH45: 1989 | AI45: 0.6055525066 | AJ45: 404510.7094 | AK45: 0.04886481255 | AO45: 1989 | AP45: 18845.46011 | AQ45: 20556.40835 | AR45: 0 | AS45: 39401.86846 | AT45: 18845.46011 | AU45: 20556.40835 | AY45: 1989 | AZ45: 354356 | BA45: 9967 | BB45: 364323 | BF45: 1989 | BG45: 0.5977890129 | BH45: 217788.2865 | BI45: 0.02812708124 | BM45: 1989 | BN45: 5958.163092 | BO45: 10973.65276 | BP45: 1.091393642e-11 | BQ45: 16931.81585 | BR45: 5958.163092 | BS45: 10973.65276 | BW45: 1989 | BX45: 3863394.4 | BY45: 87021.2 | BZ45: 3950415.6 | CD45: 1989 | CE45: 0.667380346 | CF45: 2636429.73 | CG45: 0.02252454474 | CK45: 1989 | CL45: 58076.23856 | CM45: 151137.3557 | CN45: 1.309672371e-10 | CO45: 209213.5943 | CP45: 58076.23856 | CQ45: 151137.3557
C46: 1990 | D46: 2918089.9 | E46: 52299.2 | F46: 2970389.1 | J46: 1990 | K46: 0.690950937 | L46: 2052393.132 | M46: 0.01792240876 | Q46: 1990 | R46: 36136.18124 | S46: 120336.0152 | T46: 1.964508556e-10 | U46: 156472.1964 | V46: 36136.18124 | W46: 120336.0152 | AA46: 1990 | AB46: 668002.7 | AC46: 26307.7 | AD46: 694310.4 | AH46: 1990 | AI46: 0.6055525066 | AJ46: 420441.4031 | AK46: 0.03938262525 | AO46: 1990 | AP46: 15930.69368 | AQ46: 20556.40835 | AR46: -6.366462912e-11 | AS46: 36487.10203 | AT46: 15930.69368 | AU46: 20556.40835 | AY46: 1990 | AZ46: 364323 | BA46: 11875 | BB46: 376198 | BF46: 1990 | BG46: 0.5977890129 | BH46: 224887.0311 | BI46: 0.03259470305 | BM46: 1990 | BN46: 7098.744528 | BO46: 10973.65276 | BP46: -2.091837814e-11 | BQ46: 18072.39729 | BR46: 7098.744528 | BS46: 10973.65276 | BW46: 1990 | BX46: 3950415.6 | BY46: 90481.9 | BZ46: 4040897.5 | CD46: 1990 | CE46: 0.667380346 | CF46: 2696815.572 | CG46: 0.02290440024 | CK46: 1990 | CL46: 60385.84173 | CM46: 151137.3557 | CN46: 0 | CO46: 211523.1975 | CP46: 60385.84173 | CQ46: 151137.3557
C47: 1991 | D47: 2970389.1 | E47: 45813.8 | F47: 3016202.9 | J47: 1991 | K47: =K$48 -> 0.690950937 | L47: 2084048.22 | M47: 0.01542350125 | Q47: 1991 | R47: 31655.08804 | S47: 120336.0152 | T47: 0 | U47: 151991.1032 | V47: 31655.08804 | W47: 120336.0152 | AA47: 1991 | AB47: 694310.4 | AC47: 12317.5 | AD47: 706627.9 | AH47: 1991 | AI47: =AI$48 -> 0.6055525066 | AJ47: 427900.2961 | AK47: 0.01774062437 | AO47: 1991 | AP47: 7458.893 | AQ47: 20556.40835 | AR47: -1.091393642e-11 | AS47: 28015.30135 | AT47: 7458.893 | AU47: 20556.40835 | AY47: 1991 | AZ47: 376198 | BA47: 11815 | BB47: 388013 | BF47: 1991 | BG47: =BG$48 -> 0.5977890129 | BH47: 231949.9083 | BI47: 0.0314063339 | BM47: 1991 | BN47: 7062.877187 | BO47: 10973.65276 | BP47: 7.275957614e-12 | BQ47: 18036.52995 | BR47: 7062.877187 | BS47: 10973.65276 | BW47: 1991 | BX47: 4040897.5 | BY47: 69946.3 | BZ47: 4110843.8 | CD47: 1991 | CE47: =CE$48 -> 0.667380346 | CF47: 2743496.358 | CG47: 0.01730959521 | CK47: 1991 | CL47: 46680.7859 | CM47: 151137.3557 | CN47: -1.382431947e-10 | CO47: 197818.1416 | CP47: 46680.7859 | CQ47: 151137.3557
C48: 1992 | D48: 3016202.9 | E48: 56749.3 | F48: 3072952.2 | J48: 1992 | K48: =INDEX(SATURATIONS_TABLE,MATCH($B$2,APPLIANCES,0),MATCH(B$6,SATURATIONS_HOUSING_TYPE,0)+MATCH(J48,SATURATIONS_YEARS,0)-1) -> 0.690950937 | L48: 2123259.202 | M48: 0.01881481514 | Q48: 1992 | R48: 39210.98201 | S48: 120336.0152 | T48: -2.401066013e-10 | U48: 159546.9972 | V48: 39210.98201 | W48: 120336.0152 | AA48: 1992 | AB48: 706627.9 | AC48: 12622.7 | AD48: 719250.6 | AH48: 1992 | AI48: =INDEX(SATURATIONS_TABLE,MATCH($B$2,APPLIANCES,0),MATCH(Z$6,SATURATIONS_HOUSING_TYPE,0)+MATCH(AH48,SATURATIONS_YEARS,0)-1) -> 0.6055525066 | AJ48: 435544.0037 | AK48: 0.01786329127 | AO48: 1992 | AP48: 7643.707625 | AQ48: 20556.40835 | AR48: 0 | AS48: 28200.11597 | AT48: 7643.707625 | AU48: 20556.40835 | AY48: 1992 | AZ48: 388013 | BA48: 13784 | BB48: 401797 | BF48: 1992 | BG48: =INDEX(SATURATIONS_TABLE,MATCH($B$2,APPLIANCES,0),MATCH(AX$6,SATURATIONS_HOUSING_TYPE,0)+MATCH(BF48,SATURATIONS_YEARS,0)-1) -> 0.5977890129 | BH48: 240189.832 | BI48: 0.03552458294 | BM48: 1992 | BN48: 8239.923754 | BO48: 10973.65276 | BP48: 1.637090463e-11 | BQ48: 19213.57652 | BR48: 8239.923754 | BS48: 10973.65276 | BW48: 1992 | BX48: 4110843.8 | BY48: 83156 | BZ48: 4193999.8 | CD48: 1992 | CE48: =INDEX(SATURATIONS_TABLE,MATCH($B$2,APPLIANCES,0),MATCH(BV$6,SATURATIONS_HOUSING_TYPE,0)+MATCH(CD48,SATURATIONS_YEARS,0)-1) -> 0.667380346 | CF48: 2798993.038 | CG48: 0.02022845042 | CK48: 1992 | CL48: 55496.68005 | CM48: 151137.3557 | CN48: 1.89174898e-10 | CO48: 206634.0358 | CP48: 55496.68005 | CQ48: 151137.3557
C49: 1993 | D49: 3072952.2 | E49: 62971.3 | F49: 3135923.5 | J49: 1993 | K49: =((K$67-K$48)/(J$67-J$48))*(J49-J$48)+K$48 -> 0.7014272035 | L49: 2199622.051 | M49: 0.0204921183 | Q49: 1993 | R49: 44169.78286 | S49: 120336.0152 | T49: 32193.06611 | U49: 196698.8642 | V49: 76362.84897 | W49: 120336.0152 | AA49: 1993 | AB49: 719250.6 | AC49: 14764.5 | AD49: 734015.1 | AH49: 1993 | AI49: =((AI$67-AI$48)/(AH$67-AH$48))*(AH49-AH$48)+AI$48 -> 0.6147339536 | AJ49: 451224.0044 | AK49: 0.02052761583 | AO49: 1993 | AP49: 9076.239458 | AQ49: 20556.40835 | AR49: 6603.76128 | AS49: 36236.40909 | AT49: 15680.00074 | AU49: 20556.40835 | AY49: 1993 | AZ49: 401797 | BA49: 17535 | BB49: 419332 | BF49: 1993 | BG49: =((BG$67-BG$48)/(BF$67-BF$48))*(BF49-BF$48)+BG$48 -> 0.6068527491 | BH49: 254472.777 | BI49: 0.04364144083 | BM49: 1993 | BN49: 10641.16295 | BO49: 10973.65276 | BP49: 3641.781999 | BQ49: 25256.59772 | BR49: 14282.94495 | BS49: 10973.65276 | BW49: 1993 | BX49: 4193999.8 | BY49: 95270.8 | BZ49: 4289270.6 | CD49: 1993 | CE49: =((CE$67-CE$48)/(CD$67-CD$48))*(CD49-CD$48)+CE$48 -> 0.677420328 | CF49: 2905639.097 | CG49: 0.02271597629 | CK49: 1993 | CL49: 64538.37659 | CM49: 151137.3557 | CN49: 42107.6827 | CO49: 257783.415 | CP49: 106646.0593 | CQ49: 151137.3557
C50: 1994 | D50: 3135923.5 | E50: 66755.1 | F50: 3202678.6 | J50: 1994 | K50: =((K$67-K$48)/(J$67-J$48))*(J50-J$48)+K$48 -> 0.7119034699 | L50: 2279998.008 | M50: 0.02128722209 | Q50: 1994 | R50: 47523.18733 | S50: 120336.0152 | T50: 32852.77023 | U50: 200711.9727 | V50: 80375.95755 | W50: 120336.0152 | AA50: 1994 | AB50: 734015.1 | AC50: 17896.9 | AD50: 751912 | AH50: 1994 | AI50: =((AI$67-AI$48)/(AH$67-AH$48))*(AH50-AH$48)+AI$48 -> 0.6239154006 | AJ50: 469129.4767 | AK50: 0.02438219595 | AO50: 1994 | AP50: 11166.15153 | AQ50: 20556.40835 | AR50: 6739.320754 | AS50: 38461.88064 | AT50: 17905.47229 | AU50: 20556.40835 | AY50: 1994 | AZ50: 419332 | BA50: 20512 | BB50: 439844 | BF50: 1994 | BG50: =((BG$67-BG$48)/(BF$67-BF$48))*(BF50-BF$48)+BG$48 -> 0.6159164852 | BH50: 270907.1705 | BI50: 0.0489158948 | BM50: 1994 | BN50: 12633.67895 | BO50: 10973.65276 | BP50: 3800.714613 | BQ50: 27408.04632 | BR50: 16434.39356 | BS50: 10973.65276 | BW50: 1994 | BX50: 4289270.6 | BY50: 105164 | BZ50: 4394434.6 | CD50: 1994 | CE50: =((CE$67-CE$48)/(CD$67-CD$48))*(CD50-CD$48)+CE$48 -> 0.6874603101 | CF50: 3020999.373 | CG50: 0.02451792153 | CK50: 1994 | CL50: 72296.07605 | CM50: 151137.3557 | CN50: 43064.19983 | CO50: 266497.6316 | CP50: 115360.2759 | CQ50: 151137.3557
C51: 1995 | D51: 3202678.6 | E51: 59583.7 | F51: 3262262.3 | J51: 1995 | K51: 0.7223797364 | L51: 2356592.18 | M51: 0.01860433326 | Q51: 1995 | R51: 43042.0575 | S51: 120336.0152 | T51: 33552.11444 | U51: 196930.1871 | V51: 76594.17195 | W51: 120336.0152 | AA51: 1995 | AB51: 751912 | AC51: 19442.5 | AD51: 771354.5 | AH51: 1995 | AI51: 0.6330968476 | AJ51: 488342.1024 | AK51: 0.02585741417 | AO51: 1995 | AP51: 12308.98546 | AQ51: 20556.40835 | AR51: 6903.640193 | AS51: 39769.034 | AT51: 19212.62565 | AU51: 20556.40835 | AY51: 1995 | AZ51: 439844 | BA51: 19641 | BB51: 459485 | BF51: 1995 | BG51: 0.6249802214 | BH51: 287169.037 | BI51: 0.0446544684 | BM51: 1995 | BN51: 12275.23653 | BO51: 10973.65276 | BP51: 3986.629969 | BQ51: 27235.51926 | BR51: 16261.8665 | BS51: 10973.65276 | BW51: 1995 | BX51: 4394434.6 | BY51: 98667.2 | BZ51: 4493101.8 | CD51: 1995 | CE51: 0.6975002921 | CF51: 3133939.818 | CG51: 0.02245276332 | CK51: 1995 | CL51: 68820.40082 | CM51: 151137.3557 | CN51: 44120.0445 | CO51: 264077.801 | CP51: 112940.4453 | CQ51: 151137.3557
C52: 1996 | D52: 3262262.3 | E52: 62109.7 | F52: 3324372 | J52: 1996 | K52: 0.7328560029 | L52: 2436285.976 | M52: 0.01903884308 | Q52: 1996 | R52: 45517.46648 | S52: 143136.2215 | T52: 34176.32916 | U52: 222830.0171 | V52: 79693.79565 | W52: 143136.2215 | AA52: 1996 | AB52: 771354.5 | AC52: 19609.3 | AD52: 790963.8 | AH52: 1996 | AI52: 0.6422782947 | AJ52: 508018.8806 | AK52: 0.02542190394 | AO52: 1996 | AP52: 12594.62776 | AQ52: 27032.61074 | AR52: 7082.150477 | AS52: 46709.38898 | AT52: 19676.77824 | AU52: 27032.61074 | AY52: 1996 | AZ52: 459485 | BA52: 17125 | BB52: 476610 | BF52: 1996 | BG52: 0.6340439576 | BH52: 302191.6906 | BI52: 0.03726998705 | BM52: 1996 | BN52: 10858.00277 | BO52: 17455.47903 | BP52: 4164.650811 | BQ52: 32478.13261 | BR52: 15022.65358 | BS52: 17455.47903 | BW52: 1996 | BX52: 4493101.8 | BY52: 98844 | BZ52: 4591945.8 | CD52: 1996 | CE52: 0.7075402742 | CF52: 3248986.59 | CG52: 0.02199905642 | CK52: 1996 | CL52: 69936.11086 | CM52: 187533.6103 | CN52: 45110.66141 | CO52: 302580.3825 | CP52: 115046.7723 | CQ52: 187533.6103
C53: 1997 | D53: 3324372 | E53: 61718.1 | F53: 3386090.1 | J53: 1997 | K53: 0.7433322694 | L53: 2516990.038 | M53: 0.01856534106 | Q53: 1997 | R53: 45877.05533 | S53: 136014.1065 | T53: 34827.00693 | U53: 216718.1688 | V53: 80704.06226 | W53: 136014.1065 | AA53: 1997 | AB53: 790963.8 | AC53: 19921.8 | AD53: 810885.6 | AH53: 1997 | AI53: 0.6514597417 | AJ53: 528259.3235 | AK53: 0.02518674053 | AO53: 1997 | AP53: 12978.25068 | AQ53: 25165.87403 | AR53: 7262.192226 | AS53: 45406.31694 | AT53: 20240.44291 | AU53: 25165.87403 | AY53: 1997 | AZ53: 476610 | BA53: 17301 | BB53: 493911 | BF53: 1997 | BG53: 0.6431076937 | BH53: 317637.9641 | BI53: 0.03630011959 | BM53: 1997 | BN53: 11126.40621 | BO53: 16209.08894 | BP53: 4319.867293 | BQ53: 31655.36244 | BR53: 15446.2735 | BS53: 16209.08894 | BW53: 1997 | BX53: 4591945.8 | BY53: 98940.9 | BZ53: 4690886.7 | CD53: 1997 | CE53: 0.7175802562 | CF53: 3366087.68 | CG53: 0.02154661756 | CK53: 1997 | CL53: 70998.03637 | CM53: 177205.6325 | CN53: 46103.0534 | CO53: 294306.7222 | CP53: 117101.0898 | CQ53: 177205.6325
C54: 1998 | D54: 3386090.1 | E54: 63984.7 | F54: 3450074.8 | J54: 1998 | K54: 0.7538085358 | L54: 2600695.834 | M54: 0.01889633711 | Q54: 1998 | R54: 48232.21302 | S54: 144652.7206 | T54: 35473.58219 | U54: 228358.5158 | V54: 83705.79522 | W54: 144652.7206 | AA54: 1998 | AB54: 810885.6 | AC54: 22592.6 | AD54: 833478.2 | AH54: 1998 | AI54: 0.6606411887 | AJ54: 550630.0288 | AK54: 0.02786163671 | AO54: 1998 | AP54: 14925.60212 | AQ54: 25993.36153 | AR54: 7445.103178 | AS54: 48364.06683 | AT54: 22370.7053 | AU54: 25993.36153 | AY54: 1998 | AZ54: 493911 | BA54: 17996 | BB54: 511907 | BF54: 1998 | BG54: 0.6521714299 | BH54: 333851.1202 | BI54: 0.03643571413 | BM54: 1998 | BN54: 11736.47705 | BO54: 18215.26886 | BP54: 4476.678992 | BQ54: 34428.42491 | BR54: 16213.15604 | BS54: 18215.26886 | BW54: 1998 | BX54: 4690886.7 | BY54: 104573.3 | BZ54: 4795460 | CD54: 1998 | CE54: 0.7276202383 | CF54: 3489273.748 | CG54: 0.02229286416 | CK54: 1998 | CL54: 76089.64946 | CM54: 188701.2589 | CN54: 47096.41826 | CO54: 311887.3266 | CP54: 123186.0677 | CQ54: 188701.2589
C55: 1999 | D55: 3450074.8 | E55: 62690.3 | F55: 3512765.1 | J55: 1999 | K55: 0.7642848023 | L55: 2684752.98 | M55: 0.01817070749 | Q55: 1999 | R55: 47913.24354 | S55: 142931.9073 | T55: 36143.90296 | U55: 226989.0538 | V55: 84057.1465 | W55: 142931.9073 | AA55: 1999 | AB55: 833478.2 | AC55: 19012.5 | AD55: 852490.7 | AH55: 1999 | AI55: 0.6698226357 | AJ55: 571017.5676 | AK55: 0.02281103453 | AO55: 1999 | AP55: 12735.00286 | AQ55: 28853.99157 | AR55: 7652.535938 | AS55: 49241.53037 | AT55: 20387.5388 | AU55: 28853.99157 | AY55: 1999 | AZ55: 511907 | BA55: 14620 | BB55: 526527 | BF55: 1999 | BG55: 0.661235166 | BH55: 348158.1683 | BI55: 0.02855987513 | BM55: 1999 | BN55: 9667.258128 | BO55: 18082.5597 | BP55: 4639.789988 | BQ55: 32389.60782 | BR55: 14307.04812 | BS55: 18082.5597 | BW55: 1999 | BX55: 4795460 | BY55: 96322.8 | BZ55: 4891782.8 | CD55: 1999 | CE55: 0.7376602203 | CF55: 3608473.578 | CG55: 0.02008624824 | CK55: 1999 | CL55: 71053.49787 | CM55: 190043.6945 | CN55: 48146.33231 | CO55: 309243.5247 | CP55: 119199.8302 | CQ55: 190043.6945
C56: 2000 | D56: 3512765.1 | E56: 57727.2 | F56: 3570492.3 | J56: 2000 | K56: 0.7747610688 | L56: 2766278.43 | M56: 0.01643354974 | Q56: 2000 | R56: 44724.78717 | S56: 141893.1317 | T56: 36800.66325 | U56: 223418.5821 | V56: 81525.45042 | W56: 141893.1317 | AA56: 2000 | AB56: 852490.7 | AC56: 15665.4 | AD56: 868156.1 | AH56: 2000 | AI56: 0.6790040828 | AJ56: 589481.5364 | AK56: 0.01837603624 | AO56: 2000 | AP56: 10636.87056 | AQ56: 33319.03298 | AR56: 7827.098199 | AS56: 51783.00174 | AT56: 18463.96876 | AU56: 33319.03298 | AY56: 2000 | AZ56: 526527 | BA56: 9564 | BB56: 536091 | BF56: 2000 | BG56: 0.6702989022 | BH56: 359341.2088 | BI56: 0.01816431066 | BM56: 2000 | BN56: 6410.738701 | BO56: 17005.3439 | BP56: 4772.301811 | BQ56: 28188.38441 | BR56: 11183.04051 | BS56: 17005.3439 | BW56: 2000 | BX56: 4891782.8 | BY56: 82956.6 | BZ56: 4974739.4 | CD56: 2000 | CE56: 0.7477002024 | CF56: 3719613.656 | CG56: 0.01695835719 | CK56: 2000 | CL56: 62026.66661 | CM56: 192758.6645 | CN56: 49113.4115 | CO56: 303898.7426 | CP56: 111140.0781 | CQ56: 192758.6645
C57: 2001 | D57: 3570492.3 | E57: 58981.8 | F57: 3629474.1 | J57: 2001 | K57: 0.7852373353 | L57: 2849998.571 | M57: 0.01651923462 | Q57: 2001 | R57: 46314.71146 | S57: 143618.7125 | T57: 37405.42878 | U57: 227338.8528 | V57: 83720.14024 | W57: 143618.7125 | AA57: 2001 | AB57: 868156.1 | AC57: 15890.4 | AD57: 884046.5 | AH57: 2001 | AI57: 0.6881855298 | AJ57: 608388.009 | AK57: 0.01830362074 | AO57: 2001 | AP57: 10935.54334 | AQ57: 31894.3496 | AR57: 7970.929239 | AS57: 50800.82218 | AT57: 18906.47258 | AU57: 31894.3496 | AY57: 2001 | AZ57: 536091 | BA57: 7283 | BB57: 543374 | BF57: 2001 | BG57: 0.6793626384 | BH57: 369147.9943 | BI57: 0.01358538009 | BM57: 2001 | BN57: 4947.798095 | BO57: 15966.3866 | BP57: 4858.987383 | BQ57: 25773.17208 | BR57: 9806.785479 | BS57: 15966.3866 | BW57: 2001 | BX57: 4974739.4 | BY57: 82155.2 | BZ57: 5056894.6 | CD57: 2001 | CE57: 0.7577401844 | CF57: 3831812.247 | CG57: 0.0165144731 | CK57: 2001 | CL57: 62252.2964 | CM57: 191695.3274 | CN57: 49946.29427 | CO57: 303893.918 | CP57: 112198.5907 | CQ57: 191695.3274
C58: 2002 | D58: 3629474.1 | E58: 66174.6 | F58: 3695648.7 | J58: 2002 | K58: 0.7957136017 | L58: 2940677.938 | M58: 0.01823255882 | Q58: 2002 | R58: 52656.02931 | S58: 143756.8336 | T58: 38023.33783 | U58: 234436.2008 | V58: 90679.36714 | W58: 143756.8336 | AA58: 2002 | AB58: 884046.5 | AC58: 14629.6 | AD58: 898676.1 | AH58: 2002 | AI58: 0.6973669768 | AJ58: 626707.035 | AK58: 0.01654845079 | AO58: 2002 | AP58: 10202.19992 | AQ58: 33210.57852 | AR58: 8116.826105 | AS58: 51529.60455 | AT58: 18319.02603 | AU58: 33210.57852 | AY58: 2002 | AZ58: 543374 | BA58: 7464 | BB58: 550838 | BF58: 2002 | BG58: 0.6884263745 | BH58: 379211.4073 | BI58: 0.01373639519 | BM58: 2002 | BN58: 5138.41446 | BO58: 15697.38154 | BP58: 4924.998574 | BQ58: 25760.79458 | BR58: 10063.41303 | BS58: 15697.38154 | BW58: 2002 | BX58: 5056894.6 | BY58: 88268.2 | BZ58: 5145162.8 | CD58: 2002 | CE58: 0.7677801665 | CF58: 3950353.951 | CG58: 0.01745502072 | CK58: 2002 | CL58: 67770.57329 | CM58: 192979.0335 | CN58: 50771.13101 | CO58: 311520.7378 | CP58: 118541.7043 | CQ58: 192979.0335
C59: 2003 | D59: 3695648.7 | E59: 73242.5 | F59: 3768891.2 | J59: 2003 | K59: 0.8061898682 | L59: 3038441.9 | M59: 0.01981857745 | Q59: 2003 | R59: 59047.36142 | S59: 146163.6921 | T59: 38716.60058 | U59: 243927.6541 | V59: 97763.962 | W59: 146163.6921 | AA59: 2003 | AB59: 898676.1 | AC59: 14989.6 | AD59: 913665.7 | AH59: 2003 | AI59: 0.7065484238 | AJ59: 645549.0602 | AK59: 0.01667964687 | AO59: 2003 | AP59: 10590.87825 | AQ59: 36300.59185 | AR59: 8251.147002 | AS59: 55142.61711 | AT59: 18842.02526 | AU59: 36300.59185 | AY59: 2003 | AZ59: 550838 | BA59: 6895 | BB59: 557733 | BF59: 2003 | BG59: 0.6974901107 | BH59: 389013.2519 | BI59: 0.01251729184 | BM59: 2003 | BN59: 4809.194313 | BO59: 16383.04554 | BP59: 4992.650301 | BQ59: 26184.89015 | BR59: 9801.844614 | BS59: 16383.04554 | BW59: 2003 | BX59: 5145162.8 | BY59: 95127.1 | BZ59: 5240289.9 | CD59: 2003 | CE59: 0.7778201485 | CF59: 4076003.068 | CG59: 0.01848864724 | CK59: 2003 | CL59: 73991.77505 | CM59: 199474.7799 | CN59: 51657.34215 | CO59: 325123.8971 | CP59: 125649.1172 | CQ59: 199474.7799
C60: 2004 | D60: 3768891.2 | E60: 76942.45813 | F60: 3845833.658 | J60: 2004 | K60: 0.8166661347 | L60: 3140762.108 | M60: 0.02041514441 | Q60: 2004 | R60: 62836.29987 | S60: 152073.5337 | T60: 39483.90852 | U60: 254393.7421 | V60: 102320.2084 | W60: 152073.5337 | AA60: 2004 | AB60: 913665.7 | AC60: 16877.52747 | AD60: 930543.2275 | AH60: 2004 | AI60: 0.7157298708 | AJ60: 666017.584 | AK60: 0.0184723225 | AO60: 2004 | AP60: 12079.75055 | AQ60: 39401.86846 | AR60: 8388.773221 | AS60: 59870.39224 | AT60: 20468.52377 | AU60: 39401.86846 | AY60: 2004 | AZ60: 557733 | BA60: 6659 | BB60: 564392 | BF60: 2004 | BG60: 0.7065538469 | BH60: 398773.3387 | BI60: 0.0119394047 | BM60: 2004 | BN60: 4704.942066 | BO60: 16931.81585 | BP60: 5055.144761 | BQ60: 26691.90268 | BR60: 9760.086828 | BS60: 16931.81585 | BW60: 2004 | BX60: 5240289.9 | BY60: 100478.9856 | BZ60: 5340768.886 | CD60: 2004 | CE60: 0.7878601306 | CF60: 4207778.872 | CG60: 0.01917431812 | CK60: 2004 | CL60: 79163.38671 | CM60: 209213.5943 | CN60: 52612.41652 | CO60: 340989.3975 | CP60: 131775.8032 | CQ60: 209213.5943
C61: 2005 | D61: 3845833.658 | E61: 85375.80089 | F61: 3931209.459 | J61: 2005 | K61: 0.8271424012 | L61: 3251670.031 | M61: 0.02219955632 | Q61: 2005 | R61: 70617.94495 | S61: 156472.1964 | T61: 40289.97822 | U61: 267380.1196 | V61: 110907.9232 | W61: 156472.1964 | AA61: 2005 | AB61: 930543.2275 | AC61: 16570.90539 | AD61: 947114.1329 | AH61: 2005 | AI61: 0.7249113179 | AJ61: 686573.7542 | AK61: 0.01780777604 | AO61: 2005 | AP61: 12012.43686 | AQ61: 36487.10203 | AR61: 8543.733345 | AS61: 57043.27224 | AT61: 20556.17021 | AU61: 36487.10203 | AY61: 2005 | AZ61: 564392 | BA61: 6657 | BB61: 571049 | BF61: 2005 | BG61: 0.715617583 | BH61: 408652.7052 | BI61: 0.01179499355 | BM61: 2005 | BN61: 4763.86625 | BO61: 18072.39729 | BP61: 5115.500181 | BQ61: 27951.76372 | BR61: 9879.366431 | BS61: 18072.39729 | BW61: 2005 | BX61: 5340768.886 | BY61: 108603.7063 | BZ61: 5449372.592 | CD61: 2005 | CE61: 0.7979001126 | CF61: 4348055.005 | CG61: 0.02033484478 | CK61: 2005 | CL61: 86654.90947 | CM61: 211523.1975 | CN61: 53621.22374 | CO61: 351799.3307 | CP61: 140276.1332 | CQ61: 211523.1975
C62: 2006 | D62: 3931209.459 | E62: 76635.58122 | F62: 4007845.04 | J62: 2006 | K62: 0.8376186676 | L62: 3357045.823 | M62: 0.01949414856 | Q62: 2006 | R62: 64191.39344 | S62: 151991.1032 | T62: 41184.39786 | U62: 257366.8945 | V62: 105375.7913 | W62: 151991.1032 | AA62: 2006 | AB62: 947114.1329 | AC62: 18515.20492 | AD62: 965629.3378 | AH62: 2006 | AI62: 0.7340927649 | AJ62: 708861.5104 | AK62: 0.01954907469 | AO62: 2006 | AP62: 13591.87797 | AQ62: 28015.30135 | AR62: 8695.878235 | AS62: 50303.05756 | AT62: 22287.75621 | AU62: 28015.30135 | AY62: 2006 | AZ62: 571049 | BA62: 6343 | BB62: 577392 | BF62: 2006 | BG62: 0.7246813192 | BH62: 418425.1962 | BI62: 0.01110762824 | BM62: 2006 | BN62: 4596.653608 | BO62: 18036.52995 | BP62: 5175.837472 | BQ62: 27809.02103 | BR62: 9772.49108 | BS62: 18036.52995 | BW62: 2006 | BX62: 5449372.592 | BY62: 101493.7861 | BZ62: 5550866.378 | CD62: 2006 | CE62: 0.8079400947 | CF62: 4484767.507 | CG62: 0.01862485716 | CK62: 2006 | CL62: 82000.89919 | CM62: 197818.1416 | CN62: 54711.603 | CO62: 334530.6438 | CP62: 136712.5022 | CQ62: 197818.1416
C63: 2007 | D63: 4007845.04 | E63: 58437.30245 | F63: 4066282.343 | J63: 2007 | K63: 0.8480949341 | L63: 3448593.455 | M63: 0.01458072901 | Q63: 2007 | R63: 49560.38017 | S63: 159546.9972 | T63: 41987.25263 | U63: 251094.63 | V63: 91547.6328 | W63: 159546.9972 | AA63: 2007 | AB63: 965629.3378 | AC63: 18148.56066 | AD63: 983777.8984 | AH63: 2007 | AI63: 0.7432742119 | AJ63: 731216.7422 | AK63: 0.0187945415 | AO63: 2007 | AP63: 13489.35712 | AQ63: 28200.11597 | AR63: 8865.874608 | AS63: 50555.3477 | AT63: 22355.23173 | AU63: 28200.11597 | AY63: 2007 | AZ63: 577392 | BA63: 8034.090444 | BB63: 585426.0904 | BF63: 2007 | BG63: 0.7337450553 | BH63: 429553.4991 | BI63: 0.01391444711 | BM63: 2007 | BN63: 5894.974137 | BO63: 19213.57652 | BP63: 5233.328751 | BQ63: 30341.8794 | BR63: 11128.30289 | BS63: 19213.57652 | BW63: 2007 | BX63: 5550866.378 | BY63: 84619.95355 | BZ63: 5635486.332 | CD63: 2007 | CE63: 0.8179800767 | CF63: 4609715.542 | CG63: 0.01524445875 | CK63: 2007 | CL63: 69217.4361 | CM63: 206634.0358 | CN63: 55730.59879 | CO63: 331582.0707 | CP63: 124948.0349 | CQ63: 206634.0358
C64: 2008 | D64: 4066282.343 | E64: 34499.64906 | F64: 4100781.992 | J64: 2008 | K64: 0.8585712006 | L64: 3520813.318 | M64: 0.008484322078 | Q64: 2008 | R64: 29620.40511 | S64: 196698.8642 | T64: 42599.45738 | U64: 268918.7266 | V64: 72219.86249 | W64: 196698.8642 | AA64: 2008 | AB64: 983777.8984 | AC64: 13544.89918 | AD64: 997322.7976 | AH64: 2008 | AI64: 0.7524556589 | AJ64: 750441.1829 | AK64: 0.01376824912 | AO64: 2008 | AP64: 10191.93604 | AQ64: 36236.40909 | AR64: 9032.504656 | AS64: 55460.84978 | AT64: 19224.4407 | AU64: 36236.40909 | AY64: 2008 | AZ64: 585426.0904 | BA64: 8325.91292 | BB64: 593752.0034 | BF64: 2008 | BG64: 0.7428087915 | BH64: 441044.2081 | BI64: 0.01422197107 | BM64: 2008 | BN64: 6184.561314 | BO64: 25256.59772 | BP64: 5306.147627 | BQ64: 36747.30666 | BR64: 11490.70894 | BS64: 25256.59772 | BW64: 2008 | BX64: 5635486.332 | BY64: 56370.46116 | BZ64: 5691856.793 | CD64: 2008 | CE64: 0.8280200588 | CF64: 4712971.596 | CG64: 0.01000276779 | CK64: 2008 | CL64: 46675.87256 | CM64: 257783.415 | CN64: 56580.1816 | CO64: 361039.4692 | CP64: 103256.0542 | CQ64: 257783.415
C65: 2009 | D65: 4100781.992 | E65: 26476.88903 | F65: 4127258.881 | J65: 2009 | K65: 0.8690474671 | L65: 3586783.876 | M65: 0.006456546357 | Q65: 2009 | R65: 23009.67335 | S65: 200711.9727 | T65: 42960.8849 | U65: 266682.531 | V65: 65970.55825 | W65: 200711.9727 | AA65: 2009 | AB65: 997322.7976 | AC65: 5950.274911 | AD65: 1003273.073 | AH65: 2009 | AI65: 0.761637106 | AJ65: 764129.9994 | AK65: 0.005966247763 | AO65: 2009 | AP65: 4531.950163 | AQ65: 38461.88064 | AR65: 9156.86643 | AS65: 52150.69723 | AT65: 13688.81659 | AU65: 38461.88064 | AY65: 2009 | AZ65: 593752.0034 | BA65: 8447.209519 | BB65: 602199.2129 | BF65: 2009 | BG65: 0.7518725277 | BH65: 452777.0444 | BI65: 0.01422683119 | BM65: 2009 | BN65: 6351.224773 | BO65: 27408.04632 | BP65: 5381.611505 | BQ65: 39140.8826 | BR65: 11732.83628 | BS65: 27408.04632 | BW65: 2009 | BX65: 5691856.793 | BY65: 40874.37346 | BZ65: 5732731.166 | CD65: 2009 | CE65: 0.8380600408 | CF65: 4804372.915 | CG65: 0.007181202013 | CK65: 2009 | CL65: 34255.17909 | CM65: 266497.6316 | CN65: 57146.14002 | CO65: 357898.9507 | CP65: 91401.31911 | CQ65: 266497.6316
C66: 2010 | D66: 4127258.881 | E66: 43008.78356 | F66: 4170267.664 | J66: 2010 | K66: 0.8795237335 | L66: 3667849.386 | M66: 0.01042066534 | Q66: 2010 | R66: 37827.24589 | S66: 196930.1871 | T66: 43238.26384 | U66: 277995.6969 | V66: 81065.50973 | W66: 196930.1871 | AA66: 2010 | AB66: 1003273.073 | AC66: 9362.377444 | AD66: 1012635.45 | AH66: 2010 | AI66: 0.770818553 | AJ66: 780558.1922 | AK66: 0.009331833676 | AO66: 2010 | AP66: 7216.694234 | AQ66: 39769.034 | AR66: 9211.498564 | AS66: 56197.2268 | AT66: 16428.1928 | AU66: 39769.034 | AY66: 2010 | AZ66: 602199.2129 | BA66: 8481.569989 | BB66: 610680.7829 | BF66: 2010 | BG66: 0.7609362638 | BH66: 464689.1533 | BI66: 0.01408432593 | BM66: 2010 | BN66: 6453.934179 | BO66: 27235.51926 | BP66: 5458.174783 | BQ66: 39147.62822 | BR66: 11912.10896 | BS66: 27235.51926 | BW66: 2010 | BX66: 5732731.166 | BY66: 60852.73099 | BZ66: 5793583.897 | CD66: 2010 | CE66: 0.8481000229 | CF66: 4913538.636 | CG66: 0.01061496331 | CK66: 2010 | CL66: 51609.20255 | CM66: 264077.801 | CN66: 57556.518 | CO66: 373243.5216 | CP66: 109165.7205 | CQ66: 264077.801
